Workbook

Sheet LDC Info
AA3: Algoma Power Inc.
AA4: Atikokan Hydro Inc.
AA5: Attawapiskat Power Corporation
AA6: Bluewater Power Distribution Corp.
AA7: Brant County Power
AA8: Brantford Power Inc.
AA9: Burlington Hydro Inc.
AA10: Cambridge and North Dumfries Hydro
AA11: Canadian Niagara Power Inc. – Eastern Ontario Power/Fort Erie/Port Colborne
AA12: Centre Wellington Hydro Ltd.
AA13: Chapleau Public Utilities Corporation
D14: Utility Name | E14: Northern Ontario Wires Inc. | AA14: COLLUS Power Corp.
AA15: Cooperative Hydro Embrun Inc.
D16: Service Territory | E16: Urban Cochrane, Iroquois Falls and Kapuskasing | AA16: E.L.K. Energy Inc.
AA17: Enersource Hydro Mississauga Inc.
D18: Assigned EB Number | E18: EB-2012-0153 | AA18: Entegrus Powerlines Inc.
AA19: ENWIN Utilities Ltd.
D20: Name of Contact and Title | E20: Monika Malherbe, Chief Financial Officer | AA20: Erie Thames Powerlines Corp.
AA21: Espanola Regional Hydro Distribution Corporation
D22: Phone Number | E22: 705-272-6669 | AA22: Essex Powerlines Corporation
AA23: Festival Hydro Inc.
D24: Email Address | E24: monikam@nowinc.ca | AA24: Fort Albany Power Corporation
AA25: Fort Frances Power Corporation
D26: Bridge Year | E26: 2012 | AA26: Greater Sudbury Hydro Inc.
AA27: Grimsby Power Inc.
D28: Test Year | E28: 2013 | AA28: Guelph Hydro Electric Systems Inc.
AA29: Haldimand County Hydro Inc.
D30: Last Rebasing Year | E30: 2009 | AA30: Guelph Hydro Electric Systems Inc.
AA31: Halton Hills Hydro Inc.
B32: Notes | AA32: Hearst Power Distribution Co. Ltd.
AA33: Horizon Utilities Corporation
C34: Pale green cells represent input cells. | AA34: Hydro 2000 Inc.
AA35: Hydro Hawkesbury Inc.
C36: Pale blue cells represent drop-down lists. The applicant should select the appropriate item from the drop-down list. | AA36: Hydro One Brampton Networks Inc.
AA37: Hydro One Networks Inc.
C38: White cells contain fixed values, automatically generated values or formulae. | AA38: Hydro One Remote Communities Inc.
AA39: Hydro Ottawa Limited
AA40: Innisfil Hydro Dist. Systems Limited
AA41: Kashechewan Power Corporation
AA42: Kenora Hydro Electric Corporation Ltd.
AA43: Kingston Hydro Corporation
AA44: Kitchener-Wilmot Hydro Inc.
AA45: Lakefront Utilities Inc.
AA46: Lakeland Power Distribution Ltd.
AA47: London Hydro Inc.
AA48: Midland Power Utility Corporation
AA49: Milton Hydro Distribution Inc.
AA50: Newmarket – Tay Power Distribution Ltd.
AA51: Niagara Peninsula Energy Inc.
AA52: Niagara-on-the-Lake Hydro Inc.
AA53: Norfolk Power Distribution Ltd.
AA54: North Bay Hydro Distribution Limited
AA55: Northern Ontario Wires Inc.
AA56: Oakville Hydro Distribution Inc.
AA57: Orangeville Hydro Limited
AA58: Orillia Power Distribution Corp.
AA59: Oshawa PUC Networks Inc.
AA60: Ottawa River Power Corporation
AA61: Parry Sound Power Corporation
AA62: Peterborough Distribution Inc.
AA63: PowerStream Inc.
AA64: PUC Distribution Inc.
AA65: Renfrew Hydro Inc.
AA66: Rideau St. Lawrence Distribution Inc.
AA67: St. Thomas Energy Inc.
AA68: Sioux Lookout Hydro Inc.
AA69: Thunder Bay Hydro Electricity Distribution
AA70: Tillsonburg Hydro Inc.
AA71: Toronto Hydro-Electric System Limited
AA72: Veridian Connections Inc.
AA73: Wasaga Distribution Inc.
AA74: Waterloo North Hydro Inc.
AA75: Welland Hydro Electric System Corp.
AA76: Wellington North Power Inc.
AA77: West Coast Huron Energy Inc.
AA78: Westario Power Inc.
AA79: Whitby Hydro Electric Corporation
AA80: Woodstock Hydro Services Inc.

Sheet Index
A15: 1 | B15: LDC Information Sheet | E15: 19 | F15: Appendix 2-H OM&A Detailed Analysis
A16: 2 | B16: Index | E16: 20 | F16: Appendix 2-I OM&A Summary Analysis
A17: 3 | B17: Appendix 2-A Capital Projects | E17: 21 | F17: Appendix 2-J OM&A Cost Drivers
A18: 4 | B18: Appendix 2-B Fixed Asset Continuity | E18: 22 | F18: Appendix 2-K Employee Costs
A19: 5 | B19: Appendix 2-CA CGAAP Depreciation Expense 2011 | E19: 23 | F19: Appendix 2-L OM&A per Cust FTEE
A20: 6 | B20: Appendix 2-CB MIFRS Depreciation Expense 2011 | E20: 24 | F20: Appendix 2-M Regulatory Costs
A21: 7 | B21: Appendix 2-CC MIFRS Depreciation Expense 2012 | E21: 25 | F21: Appendix 2-N Corp Cost Allocation
A22: 8 | B22: Appendix 2-CD MIFRS Depreciation Expense 2013 | E22: 26 | F22: Appendix 2-OA Capital Structure and Cost of Capital
A23: 9 | B23: Appendix 2-CE CGAAP Depreciation Expense 2011 | E23: 27 | F23: Appendix 2-OB Debt Instruments
A24: 10 | B24: Appendix 2-CF CGAAP Depreciation Expense 2012 | E24: 28 | F24: Appendix 2-P Cost Allocation
A25: 11 | B25: Appendix 2-CG MIFRS Depreciation Expense 2012 | E25: 29 | F25: Appendix 2-Q Cost of Service Embedded Distributor
A26: 12 | B26: Appendix 2-CH MIFRS Depreciation Expense 2013 | E26: 30 | F26: Appendix 2-R Loss Factors
A27: 13 | B27: Appendix 2-CI Alternative Accounting Standards Depreciation Expense | E27: 31 | F27: Appendix 2-S Stranded Meters
A28: 14 | B28: Appendix 2-D Overhead | E28: 32 | F28: Appendix 2-T 1592 Tax Variance
A29: 15 | B29: Appendix 2-EA PP&E Deferral Account - 2012 IFRS Adopters | E29: 33 | F29: Appendix 2-U IFRS Transition Costs
A30: 16 | B30: Appendix 2-EB PP&E Deferral Account - 2013 IFRS Adopters | E30: 34 | F30: Appendix 2-V Rev Reconciliation
A31: 17 | B31: Appendix 2-F Other Operating Revenue | E31: 35 | F31: Appendix 2-W Bill Impacts
A32: 18 | B32: Appendix 2-G Detailed OM&A Expenses | E32: 36 | F32: Appendix 2-X CoS Flowchart

Sheet App.2-A_Capital Projects
G1: File Number: | H1: ='LDC Info'!$E$18 -> EB-2012-0153
G2: Exhibit:
G3: Tab:
G4: Schedule:
G5: Page:
G7: Date:
A9: Appendix 2-A
A10: Capital Projects Table
A13: Projects | B13: =IF(ISBLANK('LDC Info'!E26), "Year 1", 'LDC Info'!E26-5) -> 2007 | C13: =IF(ISBLANK('LDC Info'!E26), "Year 2", 'LDC Info'!E26-4) -> 2008 | D13: =IF(ISBLANK('LDC Info'!E26), "Year 3", 'LDC Info'!E26-3) -> 2009 | E13: =IF(ISBLANK('LDC Info'!E26), "Year 4", 'LDC Info'!E26-2) -> 2010 | F13: =IF(ISBLANK('LDC Info'!E26), "Year 5", 'LDC Info'!E26-1) -> 2011 | G13: ='LDC Info'!E26 & " Bridge Year" -> 2012 Bridge Year | H13: ='LDC Info'!E28 & " Test Year" -> 2013 Test Year
A14: Reporting Basis | B14: CGAAP | C14: CGAAP | D14: CGAAP | E14: CGAAP | F14: CGAAP | G14: CGAAP | H14: CGAAP
A15: Pole Changes
H16: =20502+20502+20502 -> 61506
H17: 61506
H18: 24000
H19: =4556*3 -> 13668
A21: Sub-Total | B21: =SUM(B16:B20) -> 0 | C21: =SUM(C16:C20) -> 0 | D21: 0 | E21: 0 | F21: 0 | G21: 0 | H21: 160680
A22: Iroquois Falls - Old Town Site Conversion
A28: Sub-Total | B28: =SUM(B23:B27) -> 0 | C28: 0 | D28: 0 | E28: 0 | F28: 0 | G28: 0 | H28: 0
A29: Project Name #3
A35: Sub-Total | B35: =SUM(B30:B34) -> 0 | C35: 0 | D35: 0 | E35: 0 | F35: 0 | G35: 0 | H35: 0
A36: Project Name #4
A42: Sub-Total | B42: =SUM(B37:B41) -> 0 | C42: 0 | D42: 0 | E42: 0 | F42: 0 | G42: 0 | H42: 0
A43: Project Name #4
A49: Sub-Total | B49: =SUM(B44:B48) -> 0 | C49: 0 | D49: 0 | E49: 0 | F49: 0 | G49: 0 | H49: 0
A50: Project Name #4
A56: Sub-Total | B56: =SUM(B51:B55) -> 0 | C56: 0 | D56: 0 | E56: 0 | F56: 0 | G56: 0 | H56: 0
A59: Miscellaneous
A60: Total | B60: =SUMPRODUCT(--($A15:$A59="Sub-Total"), B$15:B$59)+B59 -> 0 | C60: =SUMPRODUCT(--($A15:$A59="Sub-Total"), C$15:C$59)+C59 -> 0 | D60: 0 | E60: 0 | F60: 0 | G60: 0 | H60: 160680
A63: Notes:
A65: 1 Please provide a breakdown of the major components of each capital project. Please ensure that all projects below the materiality threshold are included in the miscellaneous line. Add more projects as required.
A67: 2 Amounts should be reported on a MIFRS basis for the adoption year and any subsequent years, only.

Sheet Fixed Asset Continuity
B1: OEB Appendix 2-B Fixed Asset Continuity Schedule Summary
C3: CGAAP | I3: IFRS | K3: Per RRWF
C4: 2009 | D4: 2010 | E4: 2011 | F4: 2012 | G4: 2013 | I4: 2012 | J4: 2013 | K4: Average 2012 / 2013
F5: A | G5: B | K5: C = ( A + B ) / 2
B6: Opening Balance | C6: ='App.2-B_FAC 2009'!E54 -> 6635653.36 | D6: ='App 2-B FAC 2010'!E54 -> 6751833.36 | E6: ='App 2-B FAC 2011'!E54 -> 6537468.36 | F6: ='App2-B FAC2012'!E54 -> 7865405.36 | G6: ='App 2-B FAC 2013'!E54 -> 8695701.36 | I6: ='App2-B FAC MIFRS2012'!E54 -> 7865405.36 | J6: ='App2-B FAC MIFRS2013'!E54 -> 8823272.36
B7: Smart Meters NBV | G7: 1074883
B8: Additions | C8: ='App.2-B_FAC 2009'!F54 -> 201928 | D8: ='App 2-B FAC 2010'!F54 -> 437145 | E8: ='App 2-B FAC 2011'!F54 -> 1383278 | F8: ='App2-B FAC2012'!F54 -> 830296 | G8: ='App 2-B FAC 2013'!F54-G7 -> 772205 | I8: ='App2-B FAC MIFRS2012'!F54 -> 957867 | J8: ='App2-B FAC MIFRS2013'!F54 -> 1847088
B9: Disposals | C9: ='App.2-B_FAC 2009'!G54 -> -85748 | D9: ='App 2-B FAC 2010'!G54 -> -651510 | E9: ='App 2-B FAC 2011'!G54 -> -55341 | F9: ='App2-B FAC2012'!G54 -> 0 | G9: ='App 2-B FAC 2013'!G54 -> 0 | I9: ='App2-B FAC MIFRS2012'!G54 -> 0 | J9: ='App2-B FAC MIFRS2013'!G54 -> 0
B10: Closing Balance | C10: ='App.2-B_FAC 2009'!H54 -> 6751833.36 | D10: ='App 2-B FAC 2010'!H54 -> 6537468.36 | E10: ='App 2-B FAC 2011'!H54 -> 7865405.36 | F10: ='App2-B FAC2012'!H54 -> 8695701.36 | G10: ='App 2-B FAC 2013'!H54 -> 10542789.36 | I10: ='App2-B FAC MIFRS2012'!H54 -> 8823272.36 | J10: ='App2-B FAC MIFRS2013'!H54 -> 10670360.36 | K10: =(F10+G10)/2 -> 9619245.36
B12: Opening Balance | C12: ='App.2-B_FAC 2009'!J54 -> -2884394 | D12: ='App 2-B FAC 2010'!J54 -> -3188720 | E12: ='App 2-B FAC 2011'!J54 -> -3119293 | F12: ='App2-B FAC2012'!J54 -> -3468331 | G12: ='App 2-B FAC 2013'!J54 -> -3938570 | I12: ='App2-B FAC MIFRS2012'!J54 -> -3468331 | J12: ='App2-B FAC MIFRS2013'!J54 -> -3835390
B13: Smart Meters | G13: =-(87601+7639+4374+214) -> -99828
B14: Additions | C14: ='App.2-B_FAC 2009'!K54 -> -390072 | D14: ='App 2-B FAC 2010'!K54 -> -384791 | E14: ='App 2-B FAC 2011'!K54 -> -404798 | F14: ='App2-B FAC2012'!K54 -> -470239 | G14: ='App 2-B FAC 2013'!K54-G13 -> -438600.9826 | I14: ='App2-B FAC MIFRS2012'!K54 -> -367059 | J14: ='App2-B FAC MIFRS2013'!K54 -> -533429
B15: Disposals | C15: ='App.2-B_FAC 2009'!L54 -> 85746 | D15: ='App 2-B FAC 2010'!L54 -> 454218 | E15: ='App 2-B FAC 2011'!L54 -> 55760 | F15: ='App2-B FAC2012'!L54 -> 0 | G15: ='App 2-B FAC 2013'!L54 -> 0 | I15: ='App2-B FAC MIFRS2012'!L54 -> 0 | J15: ='App2-B FAC MIFRS2013'!L54 -> 0
B16: Closing Balance | C16: ='App.2-B_FAC 2009'!M54 -> -3188720 | D16: ='App 2-B FAC 2010'!M54 -> -3119293 | E16: ='App 2-B FAC 2011'!M54 -> -3468331 | F16: ='App2-B FAC2012'!M54 -> -3938570 | G16: ='App 2-B FAC 2013'!M54 -> -4476998.983 | I16: ='App2-B FAC MIFRS2012'!M54 -> -3835390 | J16: ='App2-B FAC MIFRS2013'!M54 -> -4368819 | K16: =(F16+G16)/2 -> -4207784.491
B18: Net Book Value | C18: ='App.2-B_FAC 2009'!N54 -> 3563113.36 | D18: ='App 2-B FAC 2010'!N54 -> 3418175.36 | E18: ='App 2-B FAC 2011'!N54 -> 4397074.36 | F18: ='App2-B FAC2012'!N54 -> 4757131.36 | G18: ='App 2-B FAC 2013'!N54 -> 6065790.377 | I18: ='App2-B FAC MIFRS2012'!N54 -> 4987882.36 | J18: ='App2-B FAC MIFRS2013'!N54 -> 6301541.36 | K18: =(F18+G18)/2 -> 5411460.869

Sheet App.2-B_FAC 2009
M1: File Number: | N1: ='LDC Info'!$E$18 -> EB-2012-0153
M2: Exhibit:
M3: Tab:
M4: Schedule:
M5: Page:
M7: Date:
A9: Appendix 2-B
A10: Fixed Asset Continuity Schedule
F11: CGAAP
F12: Year | G12: 2009 Actual
E14: Cost | K14: Accumulated Depreciation
A15: CCA Class | B15: OEB | C15: Description | D15: Depreciation Rate | E15: Opening Balance | F15: Additions | G15: Disposals | H15: Closing Balance | J15: Opening Balance | K15: Additions | L15: Disposals | M15: Closing Balance | N15: Net Book Value
A16: 12 | B16: 1611 | C16: Computer Software (Formally known as Account 1925) | E16: =43200+E63 -> 110642 | F16: 67427 | G16: -18911 | H16: =E16+F16+G16 -> 159158 | J16: -31308 | K16: -13879 | L16: 18910 | M16: =J16+K16+L16 -> -26277 | N16: =H16+M16 -> 132881
A17: CEC | B17: 1612 | C17: Land Rights (Formally known as Account 1906) | H17: =E17+F17+G17 -> 0 | M17: =J17+K17+L17 -> 0 | N17: =H17+M17 -> 0
A18: N/A | B18: 1805 | C18: Land | E18: 2840 | H18: =E18+F18+G18 -> 2840 | M18: =J18+K18+L18 -> 0 | N18: =H18+M18 -> 2840
A19: 47 | B19: 1808 | C19: Buildings | E19: 93232 | H19: =E19+F19+G19 -> 93232 | J19: -34009 | K19: -2554 | M19: =J19+K19+L19 -> -36563 | N19: =H19+M19 -> 56669
A20: 13 | B20: 1810 | C20: Leasehold Improvements | E20: 25087 | F20: 4692 | H20: 29779 | J20: -22988 | K20: -1453 | M20: -24441 | N20: 5338
A21: 47 | B21: 1815 | C21: Transformer Station Equipment >50 kV | E21: 3644 | H21: 3644 | J21: -850 | K21: -121 | M21: -971 | N21: 2673
A22: 47 | B22: 1820 | C22: Distribution Station Equipment <50 kV | E22: 551343 | H22: 551343 | J22: -246628 | K22: -20462 | M22: -267090 | N22: 284253
A23: 47 | B23: 1825 | C23: Storage Battery Equipment | H23: 0 | M23: 0 | N23: 0
A24: 47 | B24: 1830 | C24: Poles, Towers & Fixtures | E24: 2315176 | F24: 44303 | H24: 2359479 | J24: -798606 | K24: -95641 | M24: -894247 | N24: 1465232
A25: 47 | B25: 1835 | C25: Overhead Conductors & Devices | E25: =1200400+103321.08+14404 -> 1318125.08 | F25: =39244+8573 -> 47817 | H25: 1365942.08 | J25: =-691923+2869 -> -689054 | K25: -82062 | M25: -771116 | N25: 594826.08
A26: 47 | B26: 1840 | C26: Underground Conduit | E26: =112570+74104.28 -> 186674.28 | H26: 186674.28 | J26: -117655 | K26: -14412 | M26: -132067 | N26: 54607.28
A27: 47 | B27: 1845 | C27: Underground Conductors & Devices | E27: 3690 | H27: 3690 | J27: -687 | K27: -147 | M27: -834 | N27: 2856
A28: 47 | B28: 1850 | C28: Line Transformers | E28: 512547 | H28: 512547 | J28: -236930 | K28: -29711 | M28: -266641 | N28: 245906
A29: 47 | B29: 1855 | C29: Services (Overhead & Underground) | E29: =191829-74104.28-103321.08-14404+0.36 -> -5.820899318e-13 | F29: =8573-8573 -> 0 | H29: -5.820899318e-13 | J29: =2869-2869 -> 0 | M29: 0 | N29: -5.820899318e-13 | O29: Note 1
A30: 47 | B30: 1860 | C30: Meters | E30: 529176 | F30: 2442 | H30: 531618 | J30: -279686 | K30: -32717 | M30: -312403 | N30: 219215
A31: 47 | B31: 1860 | C31: Meters (Smart Meters) | H31: 0 | M31: 0 | N31: 0
A32: N/A | B32: 1905 | C32: Land | H32: 0 | M32: 0 | N32: 0
A33: 47 | B33: 1908 | C33: Buildings & Fixtures | H33: 0 | M33: 0 | N33: 0
A34: 13 | B34: 1910 | C34: Leasehold Improvements | H34: 0 | M34: 0 | N34: 0
A35: 8 | B35: 1915 | C35: Office Furniture & Equipment (10 years) | E35: 17008 | H35: 17008 | J35: -18021 | K35: -835 | M35: -18856 | N35: -1848
A36: 8 | B36: 1915 | C36: Office Furniture & Equipment (5 years) | H36: 0 | M36: 0 | N36: 0
A37: 10 | B37: 1920 | C37: Computer Equipment - Hardware | H37: 0 | M37: 0 | N37: 0
A38: 45 | B38: 1920 | C38: Computer Equip.-Hardware(Post Mar. 22/04) | H38: 0 | M38: 0 | N38: 0
A39: 45.1 | B39: 1920 | C39: Computer Equip.-Hardware(Post Mar. 19/07) | E39: 149130 | F39: 1410 | G39: -66837 | H39: 83703 | J39: -108133 | K39: -11988 | L39: 66836 | M39: -53285 | N39: 30418
A40: 10 | B40: 1930 | C40: Transportation Equipment | E40: 701506 | F40: 20142 | H40: 721648 | J40: -247914 | K40: -72729 | M40: -320643 | N40: 401005
A41: 8 | B41: 1935 | C41: Stores Equipment | F41: 680 | H41: 680 | J41: -434 | K41: -68 | M41: -502 | N41: 178
A42: 8 | B42: 1940 | C42: Tools, Shop & Garage Equipment | E42: 108544 | F42: 13015 | H42: 121559 | J42: -50145 | K42: =-11293 -> -11293 | M42: -61438 | N42: 60121
A43: 8 | B43: 1945 | C43: Measurement & Testing Equipment | H43: 0 | M43: 0 | N43: 0
A44: 8 | B44: 1950 | C44: Power Operated Equipment | H44: 0 | M44: 0 | N44: 0
A45: 8 | B45: 1955 | C45: Communications Equipment | E45: 686 | H45: 686 | J45: -686 | M45: -686 | N45: 0
A46: 8 | B46: 1955 | C46: Communication Equipment (Smart Meters) | H46: 0 | M46: 0 | N46: 0
A47: 8 | B47: 1960 | C47: Miscellaneous Equipment | E47: 6603 | H47: 6603 | J47: -660 | M47: -660 | N47: 5943
A48: 47 | B48: 1975 | C48: Load Management Controls Utility Premises | H48: 0 | M48: 0 | N48: 0
A49: 47 | B49: 1980 | C49: System Supervisor Equipment | H49: 0 | M49: 0 | N49: 0
A50: 47 | B50: 1985 | C50: Miscellaneous Fixed Assets - WIP Smart Meters | H50: 0 | M50: 0 | N50: 0
A51: 47 | B51: 1995 | C51: Contributions & Grants | H51: 0 | M51: 0 | N51: 0
B52: etc. | E52: =67442-E63 -> 0 | H52: 0 | M52: 0 | N52: 0
C54: Total | E54: =SUM(E16:E52) -> 6635653.36 | F54: =SUM(F16:F52) -> 201928 | G54: -85748 | H54: 6751833.36 | J54: -2884394 | K54: -390072 | L54: 85746 | M54: -3188720 | N54: 3563113.36
J56: Less: Fully Allocated Depreciation
A57: 10 | C57: Transportation | J57: Transportation | L57: -72729
A58: 8 | C58: Stores Equipment | J58: Stores Equipment | L58: -2232
J59: Net Depreciation | L59: =+K54-L57-L58 -> -315111
A60: NOW NOTES
C62: YE WIP - allocated to relevant accounts for above
C63: YE 2009 WIP | D63: Software 1611 | E63: 67442 | F63: -67442
D64: Smart Meters 1895 WIP | F64: =34062+6959 -> 41021
D65: Substation 1820 | F65: 2047.8
D66: Overhead Services 1855 | F66: 678.71
C67: YE WIP TOTAL | E67: =SUM(E63:E66) -> 67442 | F67: =SUM(F63:F66) -> -23694.49
A70: Note 1 | B70: Services acct 1855 included in Acct 1835 and 1840
A72: Notes:
A74: 1 | B74: Tables in the format outlined above covering all fixed asset accounts should be submitted for the Test Year, Bridge Year and all relevant historical years. At a minimum , the applicant must provide data for the earlier of: 1) all historical years back to its last rebasing; or 2) at least three years of historical actuals, in addition to Bridge Year and Test Year forecasts.
A77: 2 | B77: The "CCA Class" for fixed assets should agree with the CCA Class used for tax purposes in Tax Returns. Fixed Assets sub-components may be used where the underlying asset components are classified under multiple CCA Classes for tax purposes. If an applicant uses any different classes from those shown in the table, an explanation should be provided. (also see note 3 below).
A80: 3 | B80: The table may need to be customized for a utility's asset categories or for any new asset accounts announced or authorized by the Board.
A82: 4 | B82: The depreciation column (D) is not required as the relevant information will be provided in the following 2-C series of appendices.

Sheet App 2-B FAC 2010
M1: File Number: | N1: ='LDC Info'!$E$18 -> EB-2012-0153
M2: Exhibit:
M3: Tab:
M4: Schedule:
M5: Page:
M7: Date:
A9: Appendix 2-B
A10: Fixed Asset Continuity Schedule
F11: CGAAP
F12: Year | G12: 2010 Actual
E14: Cost | K14: Accumulated Depreciation
A15: CCA Class | B15: OEB | C15: Description | D15: Depreciation Rate | E15: Opening Balance | F15: Additions | G15: Disposals | H15: Closing Balance | J15: Opening Balance | K15: Additions | L15: Disposals | M15: Closing Balance | N15: Net Book Value
A16: 12 | B16: 1611 | C16: Computer Software (Formally known as Account 1925) | E16: =+'App.2-B_FAC 2009'!H16 -> 159158 | H16: =E16+F16+G16 -> 159158 | J16: =+'App.2-B_FAC 2009'!M16 -> -26277 | K16: -21360 | M16: =J16+K16+L16 -> -47637 | N16: =H16+M16 -> 111521
A17: CEC | B17: 1612 | C17: Land Rights (Formally known as Account 1906) | E17: =+'App.2-B_FAC 2009'!H17 -> 0 | H17: =E17+F17+G17 -> 0 | J17: =+'App.2-B_FAC 2009'!M17 -> 0 | M17: =J17+K17+L17 -> 0 | N17: =H17+M17 -> 0
A18: N/A | B18: 1805 | C18: Land | E18: =+'App.2-B_FAC 2009'!H18 -> 2840 | H18: =E18+F18+G18 -> 2840 | J18: =+'App.2-B_FAC 2009'!M18 -> 0 | M18: =J18+K18+L18 -> 0 | N18: =H18+M18 -> 2840
A19: 47 | B19: 1808 | C19: Buildings | E19: =+'App.2-B_FAC 2009'!H19 -> 93232 | H19: =E19+F19+G19 -> 93232 | J19: =+'App.2-B_FAC 2009'!M19 -> -36563 | K19: -2553 | M19: =J19+K19+L19 -> -39116 | N19: =H19+M19 -> 54116
A20: 13 | B20: 1810 | C20: Leasehold Improvements | E20: =+'App.2-B_FAC 2009'!H20 -> 29779 | H20: 29779 | J20: =+'App.2-B_FAC 2009'!M20 -> -24441 | K20: -1922 | M20: -26363 | N20: 3416
A21: 47 | B21: 1815 | C21: Transformer Station Equipment >50 kV | E21: =+'App.2-B_FAC 2009'!H21 -> 3644 | H21: 3644 | J21: =+'App.2-B_FAC 2009'!M21 -> -971 | K21: -121 | M21: -1092 | N21: 2552
A22: 47 | B22: 1820 | C22: Distribution Station Equipment <50 kV | E22: =+'App.2-B_FAC 2009'!H22 -> 551343 | H22: 551343 | J22: =+'App.2-B_FAC 2009'!M22 -> -267090 | K22: -20463 | M22: -287553 | N22: 263790
A23: 47 | B23: 1825 | C23: Storage Battery Equipment | E23: =+'App.2-B_FAC 2009'!H23 -> 0 | H23: 0 | J23: =+'App.2-B_FAC 2009'!M23 -> 0 | M23: 0 | N23: 0
A24: 47 | B24: 1830 | C24: Poles, Towers & Fixtures | E24: =+'App.2-B_FAC 2009'!H24 -> 2359479 | F24: 94217 | H24: 2453696 | J24: =+'App.2-B_FAC 2009'!M24 -> -894247 | K24: -97248 | M24: -991495 | N24: 1462201
A25: 47 | B25: 1835 | C25: Overhead Conductors & Devices | E25: =+'App.2-B_FAC 2009'!H25 -> 1365942.08 | F25: =90371+20906 -> 111277 | H25: 1477219.08 | J25: =+'App.2-B_FAC 2009'!M25 -> -771116 | K25: -84659 | M25: -855775 | N25: 621444.08
A26: 47 | B26: 1840 | C26: Underground Conduit | E26: =+'App.2-B_FAC 2009'!H26 -> 186674.28 | H26: 186674.28 | J26: =+'App.2-B_FAC 2009'!M26 -> -132067 | K26: -14412 | M26: -146479 | N26: 40195.28
A27: 47 | B27: 1845 | C27: Underground Conductors & Devices | E27: =+'App.2-B_FAC 2009'!H27 -> 3690 | H27: 3690 | J27: =+'App.2-B_FAC 2009'!M27 -> -834 | K27: -148 | M27: -982 | N27: 2708
A28: 47 | B28: 1850 | C28: Line Transformers | E28: =+'App.2-B_FAC 2009'!H28 -> 512547 | F28: 6915 | H28: 519462 | J28: =+'App.2-B_FAC 2009'!M28 -> -266641 | K28: -29591 | M28: -296232 | N28: 223230
A29: 47 | B29: 1855 | C29: Services (Overhead & Underground) | E29: =+'App.2-B_FAC 2009'!H29 -> -5.820899318e-13 | F29: =20906+G65-20906-G65 -> 9.094947018e-13 | H29: 3.2740477e-13 | J29: =+'App.2-B_FAC 2009'!M29 -> 0 | M29: 0 | N29: 3.2740477e-13 | O29: Note 1
A30: 47 | B30: 1860 | C30: Meters | E30: =+'App.2-B_FAC 2009'!H30 -> 531618 | F30: 3354 | G30: -478455 | H30: 56517 | J30: =+'App.2-B_FAC 2009'!M30 -> -312403 | L30: 281162 | M30: -31241 | N30: 25276
A31: 47 | B31: 1860 | C31: Meters (Smart Meters) | E31: =+'App.2-B_FAC 2009'!H31 -> 0 | H31: 0 | J31: =+'App.2-B_FAC 2009'!M31 -> 0 | M31: 0 | N31: 0
A32: N/A | B32: 1905 | C32: Land | E32: =+'App.2-B_FAC 2009'!H32 -> 0 | H32: 0 | J32: =+'App.2-B_FAC 2009'!M32 -> 0 | M32: 0 | N32: 0
A33: 47 | B33: 1908 | C33: Buildings & Fixtures | E33: =+'App.2-B_FAC 2009'!H33 -> 0 | H33: 0 | J33: =+'App.2-B_FAC 2009'!M33 -> 0 | M33: 0 | N33: 0
A34: 13 | B34: 1910 | C34: Leasehold Improvements | E34: =+'App.2-B_FAC 2009'!H34 -> 0 | H34: 0 | J34: =+'App.2-B_FAC 2009'!M34 -> 0 | M34: 0 | N34: 0
A35: 8 | B35: 1915 | C35: Office Furniture & Equipment (10 years) | E35: =+'App.2-B_FAC 2009'!H35 -> 17008 | H35: 17008 | J35: =+'App.2-B_FAC 2009'!M35 -> -18856 | K35: -835 | M35: -19691 | N35: -2683
A36: 8 | B36: 1915 | C36: Office Furniture & Equipment (5 years) | E36: =+'App.2-B_FAC 2009'!H36 -> 0 | H36: 0 | J36: =+'App.2-B_FAC 2009'!M36 -> 0 | M36: 0 | N36: 0
A37: 10 | B37: 1920 | C37: Computer Equipment - Hardware | E37: =+'App.2-B_FAC 2009'!H37 -> 0 | H37: 0 | J37: =+'App.2-B_FAC 2009'!M37 -> 0 | M37: 0 | N37: 0
A38: 45 | B38: 1920 | C38: Computer Equip.-Hardware(Post Mar. 22/04) | E38: =+'App.2-B_FAC 2009'!H38 -> 0 | H38: 0 | J38: =+'App.2-B_FAC 2009'!M38 -> 0 | M38: 0 | N38: 0
A39: 45.1 | B39: 1920 | C39: Computer Equip.-Hardware(Post Mar. 19/07) | E39: =+'App.2-B_FAC 2009'!H39 -> 83703 | F39: 2419 | H39: 86122 | J39: =+'App.2-B_FAC 2009'!M39 -> -53285 | K39: -9303 | M39: -62588 | N39: 23534
A40: 10 | B40: 1930 | C40: Transportation Equipment | E40: =+'App.2-B_FAC 2009'!H40 -> 721648 | F40: 195230 | G40: -173055 | H40: 743823 | J40: =+'App.2-B_FAC 2009'!M40 -> -320643 | K40: -86594 | L40: 173056 | M40: -234181 | N40: 509642
A41: 8 | B41: 1935 | C41: Stores Equipment | E41: =+'App.2-B_FAC 2009'!H41 -> 680 | H41: 680 | J41: =+'App.2-B_FAC 2009'!M41 -> -502 | K41: -68 | M41: -570 | N41: 110
A42: 8 | B42: 1940 | C42: Tools, Shop & Garage Equipment | E42: =+'App.2-B_FAC 2009'!H42 -> 121559 | F42: 19781 | H42: 141340 | J42: =+'App.2-B_FAC 2009'!M42 -> -61438 | K42: -13799 | M42: -75237 | N42: 66103
A43: 8 | B43: 1945 | C43: Measurement & Testing Equipment | E43: =+'App.2-B_FAC 2009'!H43 -> 0 | H43: 0 | J43: =+'App.2-B_FAC 2009'!M43 -> 0 | M43: 0 | N43: 0
A44: 8 | B44: 1950 | C44: Power Operated Equipment | E44: =+'App.2-B_FAC 2009'!H44 -> 0 | H44: 0 | J44: =+'App.2-B_FAC 2009'!M44 -> 0 | M44: 0 | N44: 0
A45: 8 | B45: 1955 | C45: Communications Equipment | E45: =+'App.2-B_FAC 2009'!H45 -> 686 | F45: 3952 | H45: 4638 | J45: =+'App.2-B_FAC 2009'!M45 -> -686 | K45: -395 | M45: -1081 | N45: 3557
A46: 8 | B46: 1955 | C46: Communication Equipment (Smart Meters) | E46: =+'App.2-B_FAC 2009'!H46 -> 0 | H46: 0 | J46: =+'App.2-B_FAC 2009'!M46 -> 0 | M46: 0 | N46: 0
A47: 8 | B47: 1960 | C47: Miscellaneous Equipment | E47: =+'App.2-B_FAC 2009'!H47 -> 6603 | H47: 6603 | J47: =+'App.2-B_FAC 2009'!M47 -> -660 | K47: -1320 | M47: -1980 | N47: 4623
A48: 47 | B48: 1975 | C48: Load Management Controls Utility Premises | E48: =+'App.2-B_FAC 2009'!H48 -> 0 | H48: 0 | J48: =+'App.2-B_FAC 2009'!M48 -> 0 | M48: 0 | N48: 0
A49: 47 | B49: 1980 | C49: System Supervisor Equipment | E49: =+'App.2-B_FAC 2009'!H49 -> 0 | H49: 0 | J49: =+'App.2-B_FAC 2009'!M49 -> 0 | M49: 0 | N49: 0
A50: 47 | B50: 1985 | C50: Miscellaneous Fixed Assets | E50: =+'App.2-B_FAC 2009'!H50 -> 0 | H50: 0 | J50: =+'App.2-B_FAC 2009'!M50 -> 0 | M50: 0 | N50: 0
A51: 47 | B51: 1995 | C51: Contributions & Grants | H51: 0 | J51: =+'App.2-B_FAC 2009'!M51 -> 0 | M51: 0 | N51: 0
B52: etc. | H52: 0 | J52: =+'App.2-B_FAC 2009'!M52 -> 0 | M52: 0 | N52: 0
J53: =+'App.2-B_FAC 2009'!M53 -> 0
C54: Total | E54: =SUM(E16:E52) -> 6751833.36 | F54: =SUM(F16:F52) -> 437145 | G54: -651510 | H54: 6537468.36 | J54: -3188720 | K54: -384791 | L54: 454218 | M54: -3119293 | N54: 3418175.36
J56: Less: Fully Allocated Depreciation
A57: 10 | C57: Transportation | J57: Transportation | L57: -85594
A58: 8 | C58: Stores Equipment | J58: Stores Equipment | L58: -2232
J59: Net Depreciation | L59: =+K54-L57-L58 -> -296965
C61: YE WIP - allocated to relevant accounts for above | E61: Opening | F61: Closing | G61: Change
C62: Software 1611
C63: Smart Meters 1985 as WIP | E63: =34062+6959 -> 41021 | F63: =28319+9872 -> 38191 | G63: =+F63-E63 -> -2830
C64: Substation 1820 | E64: 2047.8 | F64: 27743 | G64: =+F64-E64 -> 25695.2
C65: Overhead Services 1855 | E65: 678.71 | G65: -678.71
C66: YE WIP TOTAL | E66: =SUM(E62:E65) -> 43747.51 | F66: =SUM(F62:F65) -> 65934 | G66: =SUM(G62:G65) -> 22186.49
A68: Note 1 | B68: Services acct 1855 included in Acct 1835 and 1840
A71: Notes:
A73: 1 | B73: Tables in the format outlined above covering all fixed asset accounts should be submitted for the Test Year, Bridge Year and all relevant historical years. At a minimum , the applicant must provide data for the earlier of: 1) all historical years back to its last rebasing; or 2) at least three years of historical actuals, in addition to Bridge Year and Test Year forecasts.
A76: 2 | B76: The "CCA Class" for fixed assets should agree with the CCA Class used for tax purposes in Tax Returns. Fixed Assets sub-components may be used where the underlying asset components are classified under multiple CCA Classes for tax purposes. If an applicant uses any different classes from those shown in the table, an explanation should be provided. (also see note 3 below).
A79: 3 | B79: The table may need to be customized for a utility's asset categories or for any new asset accounts announced or authorized by the Board.
A81: 4 | B81: The depreciation column (D) is not required as the relevant information will be provided in the following 2-C series of appendices.

Sheet App 2-B FAC 2011
M1: File Number: | N1: ='LDC Info'!$E$18 -> EB-2012-0153
M2: Exhibit:
M3: Tab:
M4: Schedule:
M5: Page:
M7: Date:
A9: Appendix 2-B
A10: Fixed Asset Continuity Schedule
F11: CGAAP
F12: Year | G12: 2011 Actual
E14: Cost | K14: Accumulated Depreciation
A15: CCA Class | B15: OEB | C15: Description | D15: Depreciation Rate | E15: Opening Balance | F15: Additions | G15: Disposals | H15: Closing Balance | J15: Opening Balance | K15: Additions | L15: Disposals | M15: Closing Balance | N15: Net Book Value
A16: 12 | B16: 1611 | C16: Computer Software (Formally known as Account 1925) | E16: =+'App 2-B FAC 2010'!H16 -> 159158 | H16: =E16+F16+G16 -> 159158 | J16: =+'App 2-B FAC 2010'!M16 -> -47637 | K16: -21360 | M16: =J16+K16+L16 -> -68997 | N16: =H16+M16 -> 90161
A17: CEC | B17: 1612 | C17: Land Rights (Formally known as Account 1906) | E17: =+'App 2-B FAC 2010'!H17 -> 0 | H17: =E17+F17+G17 -> 0 | J17: =+'App 2-B FAC 2010'!M17 -> 0 | M17: =J17+K17+L17 -> 0 | N17: =H17+M17 -> 0
A18: N/A | B18: 1805 | C18: Land | E18: =+'App 2-B FAC 2010'!H18 -> 2840 | F18: 84860 | H18: =E18+F18+G18 -> 87700 | J18: =+'App 2-B FAC 2010'!M18 -> 0 | M18: =J18+K18+L18 -> 0 | N18: =H18+M18 -> 87700
A19: 47 | B19: 1808 | C19: Buildings | E19: =+'App 2-B FAC 2010'!H19 -> 93232 | F19: 296479 | G19: -4134 | H19: =E19+F19+G19 -> 385577 | J19: =+'App 2-B FAC 2010'!M19 -> -39116 | K19: -7495 | L19: 4133 | M19: =J19+K19+L19 -> -42478 | N19: =H19+M19 -> 343099
A20: 13 | B20: 1810 | C20: Leasehold Improvements | E20: =+'App 2-B FAC 2010'!H20 -> 29779 | G20: -25087 | H20: 4692 | J20: =+'App 2-B FAC 2010'!M20 -> -26363 | K20: -1069 | L20: 25087 | M20: -2345 | N20: 2347
A21: 47 | B21: 1815 | C21: Transformer Station Equipment >50 kV | E21: =+'App 2-B FAC 2010'!H21 -> 3644 | H21: 3644 | J21: =+'App 2-B FAC 2010'!M21 -> -1092 | K21: -121 | M21: -1213 | N21: 2431
A22: 47 | B22: 1820 | C22: Distribution Station Equipment <50 kV | E22: =+'App 2-B FAC 2010'!H22 -> 551343 | H22: 551343 | J22: =+'App 2-B FAC 2010'!M22 -> -287553 | K22: -20462 | M22: -308015 | N22: =H22+M22 -> 243328
A23: 47 | B23: 1825 | C23: Storage Battery Equipment | E23: =+'App 2-B FAC 2010'!H23 -> 0 | H23: 0 | J23: =+'App 2-B FAC 2010'!M23 -> 0 | M23: 0 | N23: 0
A24: 47 | B24: 1830 | C24: Poles, Towers & Fixtures | E24: =+'App 2-B FAC 2010'!H24 -> 2453696 | F24: 147980 | H24: 2601676 | J24: =+'App 2-B FAC 2010'!M24 -> -991495 | K24: -96300 | M24: -1087795 | N24: 1513881
A25: 47 | B25: 1835 | C25: Overhead Conductors & Devices | E25: =+'App 2-B FAC 2010'!H25 -> 1477219.08 | F25: =148426+32885 -> 181311 | H25: 1658530.08 | J25: =+'App 2-B FAC 2010'!M25 -> -855775 | K25: -64621 | M25: -920396 | N25: 738134.08
A26: 47 | B26: 1840 | C26: Underground Conduit | E26: =+'App 2-B FAC 2010'!H26 -> 186674.28 | H26: 186674.28 | J26: =+'App 2-B FAC 2010'!M26 -> -146479 | K26: -10013 | M26: -156492 | N26: 30182.28
A27: 47 | B27: 1845 | C27: Underground Conductors & Devices | E27: =+'App 2-B FAC 2010'!H27 -> 3690 | H27: 3690 | J27: =+'App 2-B FAC 2010'!M27 -> -982 | K27: -148 | M27: -1130 | N27: 2560
A28: 47 | B28: 1850 | C28: Line Transformers | E28: =+'App 2-B FAC 2010'!H28 -> 519462 | F28: 175330 | H28: 694792 | J28: =+'App 2-B FAC 2010'!M28 -> -296232 | K28: -29169 | M28: -325401 | N28: 369391
A29: 47 | B29: 1855 | C29: Services (Overhead & Underground) | E29: =+'App 2-B FAC 2010'!H29 -> 3.2740477e-13 | F29: =32885-32885 -> 0 | H29: 3.2740477e-13 | J29: =+'App 2-B FAC 2010'!M29 -> 0 | M29: 0 | N29: 3.2740477e-13 | O29: Note 1
A30: 47 | B30: 1860 | C30: Meters | E30: =+'App 2-B FAC 2010'!H30 -> 56517 | F30: 9378 | G30: -26120 | H30: 39775 | J30: =+'App 2-B FAC 2010'!M30 -> -31241 | K30: -3114 | L30: 26540 | M30: -7815 | N30: 31960
A31: 47 | B31: 1860 | C31: Meters (Smart Meters) | E31: =+'App 2-B FAC 2010'!H31 -> 0 | H31: 0 | J31: =+'App 2-B FAC 2010'!M31 -> 0 | M31: 0 | N31: 0
A32: N/A | B32: 1905 | C32: Land | E32: =+'App 2-B FAC 2010'!H32 -> 0 | H32: 0 | J32: =+'App 2-B FAC 2010'!M32 -> 0 | M32: 0 | N32: 0
A33: 47 | B33: 1908 | C33: Buildings & Fixtures | E33: =+'App 2-B FAC 2010'!H33 -> 0 | H33: 0 | J33: =+'App 2-B FAC 2010'!M33 -> 0 | M33: 0 | N33: 0
A34: 13 | B34: 1910 | C34: Leasehold Improvements | E34: =+'App 2-B FAC 2010'!H34 -> 0 | H34: 0 | J34: =+'App 2-B FAC 2010'!M34 -> 0 | M34: 0 | N34: 0
A35: 8 | B35: 1915 | C35: Office Furniture & Equipment (10 years) | E35: =+'App 2-B FAC 2010'!H35 -> 17008 | F35: 599 | H35: 17607 | J35: =+'App 2-B FAC 2010'!M35 -> -19691 | K35: -582 | M35: -20273 | N35: -2666
A36: 8 | B36: 1915 | C36: Office Furniture & Equipment (5 years) | E36: =+'App 2-B FAC 2010'!H36 -> 0 | H36: 0 | J36: =+'App 2-B FAC 2010'!M36 -> 0 | M36: 0 | N36: 0
A37: 10 | B37: 1920 | C37: Computer Equipment - Hardware | E37: =+'App 2-B FAC 2010'!H37 -> 0 | H37: 0 | J37: =+'App 2-B FAC 2010'!M37 -> 0 | M37: 0 | N37: 0
A38: 45 | B38: 1920 | C38: Computer Equip.-Hardware(Post Mar. 22/04) | E38: =+'App 2-B FAC 2010'!H38 -> 0 | H38: 0 | J38: =+'App 2-B FAC 2010'!M38 -> 0 | M38: 0 | N38: 0
A39: 45.1 | B39: 1920 | C39: Computer Equip.-Hardware(Post Mar. 19/07) | E39: =+'App 2-B FAC 2010'!H39 -> 86122 | F39: 1403 | H39: 87525 | J39: =+'App 2-B FAC 2010'!M39 -> -62588 | K39: -9315 | M39: -71903 | N39: 15622
A40: 10 | B40: 1930 | C40: Transportation Equipment | E40: =+'App 2-B FAC 2010'!H40 -> 743823 | F40: =459146 -> 459146 | H40: 1202969 | J40: =+'App 2-B FAC 2010'!M40 -> -234181 | K40: -121606 | M40: -355787 | N40: 847182
A41: 8 | B41: 1935 | C41: Stores Equipment | E41: =+'App 2-B FAC 2010'!H41 -> 680 | H41: 680 | J41: =+'App 2-B FAC 2010'!M41 -> -570 | K41: -68 | M41: -638 | N41: 42
A42: 8 | B42: 1940 | C42: Tools, Shop & Garage Equipment | E42: =+'App 2-B FAC 2010'!H42 -> 141340 | F42: 26792 | H42: 168132 | J42: =+'App 2-B FAC 2010'!M42 -> -75237 | K42: -17244 | M42: -92481 | N42: 75651
A43: 8 | B43: 1945 | C43: Measurement & Testing Equipment | E43: =+'App 2-B FAC 2010'!H43 -> 0 | H43: 0 | J43: =+'App 2-B FAC 2010'!M43 -> 0 | M43: 0 | N43: 0
A44: 8 | B44: 1950 | C44: Power Operated Equipment | E44: =+'App 2-B FAC 2010'!H44 -> 0 | H44: 0 | J44: =+'App 2-B FAC 2010'!M44 -> 0 | M44: 0 | N44: 0
A45: 8 | B45: 1955 | C45: Communications Equipment | E45: =+'App 2-B FAC 2010'!H45 -> 4638 | H45: 4638 | J45: =+'App 2-B FAC 2010'!M45 -> -1081 | K45: -790 | M45: -1871 | N45: 2767
A46: 8 | B46: 1955 | C46: Communication Equipment (Smart Meters) | E46: =+'App 2-B FAC 2010'!H46 -> 0 | H46: 0 | J46: =+'App 2-B FAC 2010'!M46 -> 0 | M46: 0 | N46: 0
A47: 8 | B47: 1960 | C47: Miscellaneous Equipment | E47: =+'App 2-B FAC 2010'!H47 -> 6603 | H47: 6603 | J47: =+'App 2-B FAC 2010'!M47 -> -1980 | K47: -1321 | M47: -3301 | N47: 3302
A48: 47 | B48: 1975 | C48: Load Management Controls Utility Premises | E48: =+'App 2-B FAC 2010'!H48 -> 0 | H48: 0 | J48: =+'App 2-B FAC 2010'!M48 -> 0 | M48: 0 | N48: 0
A49: 47 | B49: 1980 | C49: System Supervisor Equipment | E49: =+'App 2-B FAC 2010'!H49 -> 0 | H49: 0 | J49: =+'App 2-B FAC 2010'!M49 -> 0 | M49: 0 | N49: 0
A50: 47 | B50: 1985 | C50: Miscellaneous Fixed Assets | E50: =+'App 2-B FAC 2010'!H50 -> 0 | H50: 0 | J50: =+'App 2-B FAC 2010'!M50 -> 0 | M50: 0 | N50: 0
A51: 47 | B51: 1995 | C51: Contributions & Grants | E51: =+'App 2-B FAC 2010'!H51 -> 0 | H51: 0 | J51: =+'App 2-B FAC 2010'!M51 -> 0 | M51: 0 | N51: 0
B52: etc. | E52: =+'App 2-B FAC 2010'!H52 -> 0 | H52: 0 | J52: =+'App 2-B FAC 2010'!M52 -> 0 | M52: 0 | N52: 0
E53: =+'App 2-B FAC 2010'!H53 -> 0 | J53: =+'App 2-B FAC 2010'!M53 -> 0
C54: Total | E54: =SUM(E16:E52) -> 6537468.36 | F54: =SUM(F16:F52) -> 1383278 | G54: -55341 | H54: 7865405.36 | J54: -3119293 | K54: -404798 | L54: 55760 | M54: -3468331 | N54: 4397074.36
J56: Less: Fully Allocated Depreciation
A57: 10 | C57: Transportation | J57: Transportation | L57: -121606
A58: 8 | C58: Stores Equipment | J58: Stores Equipment | L58: -7173
J59: Net Depreciation | L59: =K54-L57-L58 -> -276019
C61: YE WIP - allocated to relevant accounts for above | E61: Opening | F61: Closing | G61: Change
D62: Software | E62: =+'App 2-B FAC 2010'!F62 -> 0
D63: Smart Meters | E63: =+'App 2-B FAC 2010'!F63 -> 38191 | G63: =+F63-E63 -> -38191
D64: Substation 1820 | E64: =+'App 2-B FAC 2010'!F64 -> 27743 | F64: 28685 | G64: =+F64-E64 -> 942
D65: Overhead Services 1855 | E65: =+'App 2-B FAC 2010'!F65 -> 0 | G65: 0
D66: Transportation | F66: 84000 | G66: 84000
C67: YE WIP TOTAL | E67: =SUM(E62:E66) -> 65934 | F67: =SUM(F62:F66) -> 112685 | G67: 46751
A68: Note 1 | B68: Services acct 1855 included in Acct 1835 and 1840
A70: Notes:
A72: 1 | B72: Tables in the format outlined above covering all fixed asset accounts should be submitted for the Test Year, Bridge Year and all relevant historical years. At a minimum , the applicant must provide data for the earlier of: 1) all historical years back to its last rebasing; or 2) at least three years of historical actuals, in addition to Bridge Year and Test Year forecasts.
A75: 2 | B75: The "CCA Class" for fixed assets should agree with the CCA Class used for tax purposes in Tax Returns. Fixed Assets sub-components may be used where the underlying asset components are classified under multiple CCA Classes for tax purposes. If an applicant uses any different classes from those shown in the table, an explanation should be provided. (also see note 3 below).
A78: 3 | B78: The table may need to be customized for a utility's asset categories or for any new asset accounts announced or authorized by the Board.
A80: 4 | B80: The depreciation column (D) is not required as the relevant information will be provided in the following 2-C series of appendices.

Sheet App2-B FAC2012
M1: File Number: | N1: ='LDC Info'!$E$18 -> EB-2012-0153
M2: Exhibit:
M3: Tab:
M4: Schedule:
M5: Page:
M7: Date:
A9: Appendix 2-B
A10: Fixed Asset Continuity Schedule
F11: CGAAP
F12: Year | G12: 2012 Bridge Year
E14: Cost | K14: Accumulated Depreciation
A15: CCA Class | B15: OEB | C15: Description | D15: Depreciation Rate | E15: Opening Balance | F15: Additions | G15: Disposals | H15: Closing Balance | J15: Opening Balance | K15: Additions | L15: Disposals | M15: Closing Balance | N15: Net Book Value
A16: 12 | B16: 1611 | C16: Computer Software (Formally known as Account 1925) | E16: =+'App 2-B FAC 2011'!H16 -> 159158 | H16: =E16+F16+G16 -> 159158 | J16: =+'App 2-B FAC 2011'!M16 -> -68997 | K16: -21360 | M16: =J16+K16+L16 -> -90357 | N16: =H16+M16 -> 68801
A17: CEC | B17: 1612 | C17: Land Rights (Formally known as Account 1906) | E17: =+'App 2-B FAC 2011'!H17 -> 0 | H17: =E17+F17+G17 -> 0 | J17: =+'App 2-B FAC 2011'!M17 -> 0 | M17: =J17+K17+L17 -> 0 | N17: =H17+M17 -> 0
A18: N/A | B18: 1805 | C18: Land | E18: =+'App 2-B FAC 2011'!H18 -> 87700 | H18: =E18+F18+G18 -> 87700 | J18: =+'App 2-B FAC 2011'!M18 -> 0 | M18: =J18+K18+L18 -> 0 | N18: =H18+M18 -> 87700
A19: 47 | B19: 1808 | C19: Buildings | E19: =+'App 2-B FAC 2011'!H19 -> 385577 | F19: 116245 | H19: =E19+F19+G19 -> 501822 | J19: =+'App 2-B FAC 2011'!M19 -> -42478 | K19: -12436 | M19: =J19+K19+L19 -> -54914 | N19: =H19+M19 -> 446908
A20: 13 | B20: 1810 | C20: Leasehold Improvements | E20: =+'App 2-B FAC 2011'!H20 -> 4692 | H20: 4692 | J20: =+'App 2-B FAC 2011'!M20 -> -2345 | K20: -938 | M20: -3283 | N20: 1409
A21: 47 | B21: 1815 | C21: Transformer Station Equipment >50 kV | E21: =+'App 2-B FAC 2011'!H21 -> 3644 | H21: 3644 | J21: =+'App 2-B FAC 2011'!M21 -> -1213 | K21: -121 | M21: -1334 | N21: 2310
A22: 47 | B22: 1820 | C22: Distribution Station Equipment <50 kV | E22: =+'App 2-B FAC 2011'!H22 -> 551343 | F22: 16256 | H22: 567599 | J22: =+'App 2-B FAC 2011'!M22 -> -308015 | K22: -20546 | M22: -328561 | N22: 239038
A23: 47 | B23: 1825 | C23: Storage Battery Equipment | E23: =+'App 2-B FAC 2011'!H23 -> 0 | H23: 0 | J23: =+'App 2-B FAC 2011'!M23 -> 0 | M23: 0 | N23: 0
A24: 47 | B24: 1830 | C24: Poles, Towers & Fixtures | E24: =+'App 2-B FAC 2011'!H24 -> 2601676 | F24: 186320 | H24: 2787996 | J24: =+'App 2-B FAC 2011'!M24 -> -1087795 | K24: -106343 | M24: -1194138 | N24: 1593858
A25: 47 | B25: 1835 | C25: Overhead Conductors & Devices | E25: =+'App 2-B FAC 2011'!H25 -> 1658530.08 | F25: 219276 | H25: 1877806.08 | J25: =+'App 2-B FAC 2011'!M25 -> -920396 | K25: -71911 | M25: -992307 | N25: 885499.08
A26: 47 | B26: 1840 | C26: Underground Conduit | E26: =+'App 2-B FAC 2011'!H26 -> 186674.28 | H26: 186674.28 | J26: =+'App 2-B FAC 2011'!M26 -> -156492 | K26: -9571 | M26: -166063 | N26: 20611.28
A27: 47 | B27: 1845 | C27: Underground Conductors & Devices | E27: =+'App 2-B FAC 2011'!H27 -> 3690 | H27: 3690 | J27: =+'App 2-B FAC 2011'!M27 -> -1130 | K27: -148 | M27: -1278 | N27: 2412
A28: 47 | B28: 1850 | C28: Line Transformers | E28: =+'App 2-B FAC 2011'!H28 -> 694792 | F28: 54337 | H28: 749129 | J28: =+'App 2-B FAC 2011'!M28 -> -325401 | K28: -27241 | M28: -352642 | N28: 396487
A29: 47 | B29: 1855 | C29: Services (Overhead & Underground) | E29: =+'App 2-B FAC 2011'!H29 -> 3.2740477e-13 | F29: 0 | H29: 3.2740477e-13 | J29: =+'App 2-B FAC 2011'!M29 -> 0 | M29: 0 | N29: 3.2740477e-13 | O29: Note 1
A30: 47 | B30: 1860 | C30: Meters | E30: =+'App 2-B FAC 2011'!H30 -> 39775 | F30: -8497 | H30: 31278 | J30: =+'App 2-B FAC 2011'!M30 -> -7815 | K30: -1278 | M30: -9093 | N30: 22185
A31: 47 | B31: 1860 | C31: Meters (Smart Meters) | E31: =+'App 2-B FAC 2011'!H31 -> 0 | H31: 0 | J31: =+'App 2-B FAC 2011'!M31 -> 0 | M31: 0 | N31: 0
A32: N/A | B32: 1905 | C32: Land | E32: =+'App 2-B FAC 2011'!H32 -> 0 | H32: 0 | J32: =+'App 2-B FAC 2011'!M32 -> 0 | M32: 0 | N32: 0
A33: 47 | B33: 1908 | C33: Buildings & Fixtures | E33: =+'App 2-B FAC 2011'!H33 -> 0 | H33: 0 | J33: =+'App 2-B FAC 2011'!M33 -> 0 | M33: 0 | N33: 0
A34: 13 | B34: 1910 | C34: Leasehold Improvements | E34: =+'App 2-B FAC 2011'!H34 -> 0 | H34: 0 | J34: =+'App 2-B FAC 2011'!M34 -> 0 | M34: 0 | N34: 0
A35: 8 | B35: 1915 | C35: Office Furniture & Equipment (10 years) | E35: =+'App 2-B FAC 2011'!H35 -> 17607 | F35: 0 | H35: 17607 | J35: =+'App 2-B FAC 2011'!M35 -> -20273 | K35: -404 | M35: -20677 | N35: -3070 | O35: Note 2
A36: 8 | B36: 1915 | C36: Office Furniture & Equipment (5 years) | E36: =+'App 2-B FAC 2011'!H36 -> 0 | H36: 0 | J36: =+'App 2-B FAC 2011'!M36 -> 0 | M36: 0 | N36: 0
A37: 10 | B37: 1920 | C37: Computer Equipment - Hardware | E37: =+'App 2-B FAC 2011'!H37 -> 0 | H37: 0 | J37: =+'App 2-B FAC 2011'!M37 -> 0 | M37: 0 | N37: 0
A38: 45 | B38: 1920 | C38: Computer Equip.-Hardware(Post Mar. 22/04) | E38: =+'App 2-B FAC 2011'!H38 -> 0 | H38: 0 | J38: =+'App 2-B FAC 2011'!M38 -> 0 | M38: 0 | N38: 0
A39: 45.1 | B39: 1920 | C39: Computer Equip.-Hardware(Post Mar. 19/07) | E39: =+'App 2-B FAC 2011'!H39 -> 87525 | F39: 3982 | H39: 91507 | J39: =+'App 2-B FAC 2011'!M39 -> -71903 | K39: -4618 | M39: -76521 | N39: 14986
A40: 10 | B40: 1930 | C40: Transportation Equipment | E40: =+'App 2-B FAC 2011'!H40 -> 1202969 | F40: 218112 | H40: 1421081 | J40: =+'App 2-B FAC 2011'!M40 -> -355787 | K40: -169727 | M40: -525514 | N40: 895567
A41: 8 | B41: 1935 | C41: Stores Equipment | E41: =+'App 2-B FAC 2011'!H41 -> 680 | H41: 680 | J41: =+'App 2-B FAC 2011'!M41 -> -638 | K41: -68 | M41: -706 | N41: -26
A42: 8 | B42: 1940 | C42: Tools, Shop & Garage Equipment | E42: =+'App 2-B FAC 2011'!H42 -> 168132 | F42: 24265 | H42: 192397 | J42: =+'App 2-B FAC 2011'!M42 -> -92481 | K42: -22078 | M42: -114559 | N42: 77838
A43: 8 | B43: 1945 | C43: Measurement & Testing Equipment | E43: =+'App 2-B FAC 2011'!H43 -> 0 | H43: 0 | J43: =+'App 2-B FAC 2011'!M43 -> 0 | M43: 0 | N43: 0
A44: 8 | B44: 1950 | C44: Power Operated Equipment | E44: =+'App 2-B FAC 2011'!H44 -> 0 | H44: 0 | J44: =+'App 2-B FAC 2011'!M44 -> 0 | M44: 0 | N44: 0
A45: 8 | B45: 1955 | C45: Communications Equipment | E45: =+'App 2-B FAC 2011'!H45 -> 4638 | H45: 4638 | J45: =+'App 2-B FAC 2011'!M45 -> -1871 | K45: -791 | M45: -2662 | N45: 1976
A46: 8 | B46: 1955 | C46: Communication Equipment (Smart Meters) | E46: =+'App 2-B FAC 2011'!H46 -> 0 | H46: 0 | J46: =+'App 2-B FAC 2011'!M46 -> 0 | M46: 0 | N46: 0
A47: 8 | B47: 1960 | C47: Miscellaneous Equipment | E47: =+'App 2-B FAC 2011'!H47 -> 6603 | H47: 6603 | J47: =+'App 2-B FAC 2011'!M47 -> -3301 | K47: -660 | M47: -3961 | N47: 2642
A48: 47 | B48: 1975 | C48: Load Management Controls Utility Premises | E48: =+'App 2-B FAC 2011'!H48 -> 0 | H48: 0 | J48: =+'App 2-B FAC 2011'!M48 -> 0 | M48: 0 | N48: 0
A49: 47 | B49: 1980 | C49: System Supervisor Equipment | E49: =+'App 2-B FAC 2011'!H49 -> 0 | H49: 0 | J49: =+'App 2-B FAC 2011'!M49 -> 0 | M49: 0 | N49: 0
A50: 47 | B50: 1985 | C50: Miscellaneous Fixed Assets | E50: =+'App 2-B FAC 2011'!H50 -> 0 | H50: 0 | J50: =+'App 2-B FAC 2011'!M50 -> 0 | M50: 0 | N50: 0
A51: 47 | B51: 1995 | C51: Contributions & Grants | E51: =+'App 2-B FAC 2011'!H51 -> 0 | H51: 0 | J51: =+'App 2-B FAC 2011'!M51 -> 0 | M51: 0 | N51: 0
B52: etc. | E52: =+'App 2-B FAC 2011'!H52 -> 0 | H52: 0 | J52: =+'App 2-B FAC 2011'!M52 -> 0 | M52: 0 | N52: 0
E53: =+'App 2-B FAC 2011'!H53 -> 0 | J53: =+'App 2-B FAC 2011'!M53 -> 0
C54: Total | E54: =SUM(E16:E52) -> 7865405.36 | F54: =SUM(F16:F52) -> 830296 | G54: 0 | H54: 8695701.36 | J54: -3468331 | K54: -470239 | L54: 0 | M54: -3938570 | N54: 4757131.36
J56: Less: Fully Allocated Depreciation
A57: 10 | C57: Transportation | J57: Transportation | L57: =K40 -> -169727
A58: 8 | C58: Stores Equipment | J58: Stores Equipment
J59: Net Depreciation | L59: =K54-L57-L58 -> -300512
A61: Note 1 | B61: Services acct 1855 included in Acct 1835 and 1840
A62: Note 2 | B62: Adjusted depreciation for over-amortized asset.
A65: Notes:
A67: 1 | B67: Tables in the format outlined above covering all fixed asset accounts should be submitted for the Test Year, Bridge Year and all relevant historical years. At a minimum , the applicant must provide data for the earlier of: 1) all historical years back to its last rebasing; or 2) at least three years of historical actuals, in addition to Bridge Year and Test Year forecasts.
A70: 2 | B70: The "CCA Class" for fixed assets should agree with the CCA Class used for tax purposes in Tax Returns. Fixed Assets sub-components may be used where the underlying asset components are classified under multiple CCA Classes for tax purposes. If an applicant uses any different classes from those shown in the table, an explanation should be provided. (also see note 3 below).
A73: 3 | B73: The table may need to be customized for a utility's asset categories or for any new asset accounts announced or authorized by the Board.
A75: 4 | B75: The depreciation column (D) is not required as the relevant information will be provided in the following 2-C series of appendices.

Sheet App 2-B FAC 2013
M1: File Number: | N1: ='LDC Info'!$E$18 -> EB-2012-0153
M2: Exhibit:
M3: Tab:
M4: Schedule:
M5: Page:
M7: Date:
A9: Appendix 2-B
A10: Fixed Asset Continuity Schedule
F11: CGAAP
F12: Year | G12: 2013 Test Year
E14: Cost | K14: Accumulated Depreciation
A15: CCA Class | B15: OEB | C15: Description | D15: Depreciation Rate | E15: Opening Balance | F15: Additions | G15: Disposals | H15: Closing Balance | J15: Opening Balance | K15: Additions | L15: Disposals | M15: Closing Balance | N15: Net Book Value
A16: 12 | B16: 1611 | C16: Computer Software (Formally known as Account 1925) | E16: =+'App2-B FAC2012'!H16 -> 159158 | F16: =5000+16743 -> 21743 | H16: =E16+F16+G16 -> 180901 | J16: =+'App2-B FAC2012'!M16 -> -90357 | K16: =(H16/P16)-4374 -> -31539.17026 | M16: =J16+K16+L16 -> -121896.1703 | N16: =H16+M16 -> 59004.82974 | P16: ='App2-B FAC MIFRS2013'!P16 -> -6.659299327
A17: CEC | B17: 1612 | C17: Land Rights (Formally known as Account 1906) | E17: =+'App2-B FAC2012'!H17 -> 0 | H17: =E17+F17+G17 -> 0 | J17: =+'App2-B FAC2012'!M17 -> 0 | M17: =J17+K17+L17 -> 0 | N17: =H17+M17 -> 0 | P17: ='App2-B FAC MIFRS2013'!P17 -> 
A18: N/A | B18: 1805 | C18: Land | E18: =+'App2-B FAC2012'!H18 -> 87700 | H18: =E18+F18+G18 -> 87700 | J18: =+'App2-B FAC2012'!M18 -> 0 | M18: =J18+K18+L18 -> 0 | N18: =H18+M18 -> 87700 | P18: ='App2-B FAC MIFRS2013'!P18 -> 
A19: 47 | B19: 1808 | C19: Buildings | E19: =+'App2-B FAC2012'!H19 -> 501822 | F19: 23854 | H19: =E19+F19+G19 -> 525676 | J19: =+'App2-B FAC2012'!M19 -> -54914 | K19: =H19/P19 -> -19904.09764 | M19: =J19+K19+L19 -> -74818.09764 | N19: =H19+M19 -> 450857.9024 | P19: ='App2-B FAC MIFRS2013'!P19 -> -26.41044118
A20: 13 | B20: 1810 | C20: Leasehold Improvements | E20: =+'App2-B FAC2012'!H20 -> 4692 | H20: 4692 | J20: =+'App2-B FAC2012'!M20 -> -3283 | K20: =H20/P20 -> -938 | M20: -4221 | N20: 471 | P20: ='App2-B FAC MIFRS2013'!P20 -> -5.002132196
A21: 47 | B21: 1815 | C21: Transformer Station Equipment >50 kV | E21: =+'App2-B FAC2012'!H21 -> 3644 | H21: 3644 | J21: =+'App2-B FAC2012'!M21 -> -1334 | K21: =H21/P21 -> -121 | M21: -1455 | N21: 2189 | P21: ='App2-B FAC MIFRS2013'!P21 -> -30.11570248
A22: 47 | B22: 1820 | C22: Distribution Station Equipment <50 kV | E22: =+'App2-B FAC2012'!H22 -> 567599 | F22: 15000 | H22: 582599 | J22: =+'App2-B FAC2012'!M22 -> -328561 | K22: =H22/P22 -> -9856.233566 | M22: -338417.2336 | N22: 244181.7664 | P22: ='App2-B FAC MIFRS2013'!P22 -> -59.10969906
A23: 47 | B23: 1825 | C23: Storage Battery Equipment | E23: =+'App2-B FAC2012'!H23 -> 0 | H23: 0 | J23: =+'App2-B FAC2012'!M23 -> 0 | M23: 0 | N23: 0 | P23: ='App2-B FAC MIFRS2013'!P23 -> 
A24: 47 | B24: 1830 | C24: Poles, Towers & Fixtures | E24: =+'App2-B FAC2012'!H24 -> 2787996 | F24: 129488 | H24: 2917484 | J24: =+'App2-B FAC2012'!M24 -> -1194138 | K24: =H24/P24 -> -49432.95297 | M24: -1243570.953 | N24: 1673913.047 | P24: ='App2-B FAC MIFRS2013'!P24 -> -59.0190111
A25: 47 | B25: 1835 | C25: Overhead Conductors & Devices | E25: =+'App2-B FAC2012'!H25 -> 1877806.08 | F25: 129488 | H25: 2007294.08 | J25: =+'App2-B FAC2012'!M25 -> -992307 | K25: =H25/P25 -> -28244.53008 | M25: -1020551.53 | N25: 986742.5499 | P25: ='App2-B FAC MIFRS2013'!P25 -> -71.06841836
A26: 47 | B26: 1840 | C26: Underground Conduit | E26: =+'App2-B FAC2012'!H26 -> 186674.28 | H26: 186674.28 | J26: =+'App2-B FAC2012'!M26 -> -166063 | K26: =H26/P26 -> -862 | M26: -166925 | N26: 19749.28 | P26: ='App2-B FAC MIFRS2013'!P26 -> -216.5594896
A27: 47 | B27: 1845 | C27: Underground Conductors & Devices | E27: =+'App2-B FAC2012'!H27 -> 3690 | H27: 3690 | J27: =+'App2-B FAC2012'!M27 -> -1278 | K27: =H27/P27 -> -73 | M27: -1351 | N27: 2339 | P27: ='App2-B FAC MIFRS2013'!P27 -> -50.54794521
A28: 47 | B28: 1850 | C28: Line Transformers | E28: =+'App2-B FAC2012'!H28 -> 749129 | F28: 112000 | H28: 861129 | J28: =+'App2-B FAC2012'!M28 -> -352642 | K28: =H28/P28 -> -13036.70402 | M28: -365678.704 | N28: 495450.296 | P28: ='App2-B FAC MIFRS2013'!P28 -> -66.0541958
A29: 47 | B29: 1855 | C29: Services (Overhead & Underground) | E29: =+'App2-B FAC2012'!H29 -> 3.2740477e-13 | F29: =40053-40053 -> 0 | H29: 3.2740477e-13 | J29: =+'App2-B FAC2012'!M29 -> 0 | M29: 0 | N29: 3.2740477e-13 | O29: Note 1 | P29: ='App2-B FAC MIFRS2013'!P29 -> 
A30: 47 | B30: 1860 | C30: Meters | E30: =+'App2-B FAC2012'!H30 -> 31278 | F30: 28775 | H30: 60053 | J30: =+'App2-B FAC2012'!M30 -> -9093 | K30: =H30/P30 -> -14052.66481 | M30: -23145.66481 | N30: 36907.33519 | P30: ='App2-B FAC MIFRS2013'!P30 -> -4.27342435
A31: 47 | B31: 1860 | C31: Meters (Smart Meters) | E31: =+'App2-B FAC2012'!H31 -> 0 | F31: =1036720+25000 -> 1061720 | H31: 1061720 | J31: =+'App2-B FAC2012'!M31 -> 0 | K31: =H31/P31 -> -87601 | M31: -87601 | N31: 974119 | P31: ='App2-B FAC MIFRS2013'!P31 -> -12.11995297
A32: N/A | B32: 1905 | C32: Land | E32: =+'App2-B FAC2012'!H32 -> 0 | H32: 0 | J32: =+'App2-B FAC2012'!M32 -> 0 | M32: 0 | N32: 0 | P32: ='App2-B FAC MIFRS2013'!P32 -> 
A33: 47 | B33: 1908 | C33: Buildings & Fixtures | E33: =+'App2-B FAC2012'!H33 -> 0 | H33: 0 | J33: =+'App2-B FAC2012'!M33 -> 0 | M33: 0 | N33: 0 | P33: ='App2-B FAC MIFRS2013'!P33 -> 
A34: 13 | B34: 1910 | C34: Leasehold Improvements | E34: =+'App2-B FAC2012'!H34 -> 0 | H34: 0 | J34: =+'App2-B FAC2012'!M34 -> 0 | M34: 0 | N34: 0 | P34: ='App2-B FAC MIFRS2013'!P34 -> 
A35: 8 | B35: 1915 | C35: Office Furniture & Equipment (10 years) | E35: =+'App2-B FAC2012'!H35 -> 17607 | H35: 17607 | J35: =+'App2-B FAC2012'!M35 -> -20677 | K35: =H35/P35 -> -436.144557 | M35: -21113.14456 | N35: -3506.144557 | P35: ='App2-B FAC MIFRS2013'!P35 -> -40.36964286
A36: 8 | B36: 1915 | C36: Office Furniture & Equipment (5 years) | E36: =+'App2-B FAC2012'!H36 -> 0 | H36: 0 | J36: =+'App2-B FAC2012'!M36 -> 0 | M36: 0 | N36: 0 | P36: ='App2-B FAC MIFRS2013'!P36 -> 
A37: 10 | B37: 1920 | C37: Computer Equipment - Hardware | E37: =+'App2-B FAC2012'!H37 -> 0 | H37: 0 | J37: =+'App2-B FAC2012'!M37 -> 0 | M37: 0 | N37: 0 | P37: ='App2-B FAC MIFRS2013'!P37 -> 
A38: 45 | B38: 1920 | C38: Computer Equip.-Hardware(Post Mar. 22/04) | E38: =+'App2-B FAC2012'!H38 -> 0 | H38: 0 | J38: =+'App2-B FAC2012'!M38 -> 0 | M38: 0 | N38: 0 | P38: ='App2-B FAC MIFRS2013'!P38 -> 
A39: 45.1 | B39: 1920 | C39: Computer Equip.-Hardware(Post Mar. 19/07) | E39: =+'App2-B FAC2012'!H39 -> 91507 | F39: =17500+20669 -> 38169 | H39: 129676 | J39: =+'App2-B FAC2012'!M39 -> -76521 | K39: =-7639+(H39/P39) -> -25520.17114 | M39: -102041.1711 | N39: 27634.82886 | P39: ='App2-B FAC MIFRS2013'!P39 -> -7.252097697
A40: 10 | B40: 1930 | C40: Transportation Equipment | E40: =+'App2-B FAC2012'!H40 -> 1421081 | F40: 262000 | H40: 1683081 | J40: =+'App2-B FAC2012'!M40 -> -525514 | K40: =H40/P40 -> -218750.7465 | M40: -744264.7465 | N40: 938816.2535 | P40: ='App2-B FAC MIFRS2013'!P40 -> -7.694058316
A41: 8 | B41: 1935 | C41: Stores Equipment | E41: =+'App2-B FAC2012'!H41 -> 680 | H41: 680 | J41: =+'App2-B FAC2012'!M41 -> -706 | K41: 0 | M41: -706 | N41: -26 | P41: ='App2-B FAC MIFRS2013'!P41 -> 
A42: 8 | B42: 1940 | C42: Tools, Shop & Garage Equipment | E42: =+'App2-B FAC2012'!H42 -> 192397 | F42: 24100 | H42: 216497 | J42: =+'App2-B FAC2012'!M42 -> -114559 | K42: =H42/P42 -> -35409.56709 | M42: -149968.5671 | N42: 66528.43291 | P42: ='App2-B FAC MIFRS2013'!P42 -> -6.114082091
A43: 8 | B43: 1945 | C43: Measurement & Testing Equipment | E43: =+'App2-B FAC2012'!H43 -> 0 | H43: 0 | J43: =+'App2-B FAC2012'!M43 -> 0 | M43: 0 | N43: 0 | P43: ='App2-B FAC MIFRS2013'!P43 -> 
A44: 8 | B44: 1950 | C44: Power Operated Equipment | E44: =+'App2-B FAC2012'!H44 -> 0 | H44: 0 | J44: =+'App2-B FAC2012'!M44 -> 0 | M44: 0 | N44: 0 | P44: ='App2-B FAC MIFRS2013'!P44 -> 
A45: 8 | B45: 1955 | C45: Communications Equipment | E45: =+'App2-B FAC2012'!H45 -> 4638 | H45: 4638 | J45: =+'App2-B FAC2012'!M45 -> -2662 | K45: =H45/P45 -> -791 | M45: -3453 | N45: 1185 | P45: ='App2-B FAC MIFRS2013'!P45 -> -5.86346397
A46: 8 | B46: 1955 | C46: Communication Equipment (Smart Meters) | E46: =+'App2-B FAC2012'!H46 -> 0 | H46: 0 | J46: =+'App2-B FAC2012'!M46 -> 0 | M46: 0 | N46: 0 | P46: ='App2-B FAC MIFRS2013'!P46 -> 
A47: 8 | B47: 1960 | C47: Miscellaneous Equipment | E47: =+'App2-B FAC2012'!H47 -> 6603 | F47: =751 -> 751 | H47: 7354 | J47: =+'App2-B FAC2012'!M47 -> -3961 | K47: =(H47/P47)-214 -> -1860 | M47: -5821 | N47: 1533 | P47: ='App2-B FAC MIFRS2013'!P47 -> -4.467800729
A48: 47 | B48: 1975 | C48: Load Management Controls Utility Premises | E48: =+'App2-B FAC2012'!H48 -> 0 | H48: 0 | J48: =+'App2-B FAC2012'!M48 -> 0 | M48: 0 | N48: 0 | P48: ='App2-B FAC MIFRS2013'!P48 -> 
A49: 47 | B49: 1980 | C49: System Supervisor Equipment | E49: =+'App2-B FAC2012'!H49 -> 0 | H49: 0 | J49: =+'App2-B FAC2012'!M49 -> 0 | M49: 0 | N49: 0 | P49: ='App2-B FAC MIFRS2013'!P49 -> 
A50: 47 | B50: 1985 | C50: Miscellaneous Fixed Assets - WIP Smart Meters | E50: =+'App2-B FAC2012'!H50 -> 0 | H50: 0 | J50: =+'App2-B FAC2012'!M50 -> 0 | M50: 0 | N50: 0 | P50: ='App2-B FAC MIFRS2013'!P50 -> 
A51: 47 | B51: 1995 | C51: Contributions & Grants | E51: =+'App2-B FAC2012'!H51 -> 0 | H51: 0 | J51: =+'App2-B FAC2012'!M51 -> 0 | M51: 0 | N51: 0 | P51: ='App2-B FAC MIFRS2013'!P51 -> 
B52: etc. | E52: =+'App2-B FAC2012'!H52 -> 0 | H52: 0 | J52: =+'App2-B FAC2012'!M52 -> 0 | M52: 0 | N52: 0 | P52: ='App2-B FAC MIFRS2013'!P52 -> 
E53: =+'App2-B FAC2012'!H53 -> 0 | J53: =+'App2-B FAC2012'!M53 -> 0 | P53: ='App2-B FAC MIFRS2013'!P53 -> 
C54: Total | E54: =SUM(E16:E52) -> 8695701.36 | F54: =SUM(F16:F52) -> 1847088 | G54: 0 | H54: 10542789.36 | J54: -3938570 | K54: -538428.9826 | L54: 0 | M54: -4476998.983 | N54: 6065790.377
J56: Less: Fully Allocated Depreciation
A57: 10 | C57: Transportation | J57: Transportation | L57: =K40 -> -218750.7465
A58: 8 | C58: Stores Equipment | J58: Stores Equipment
J59: Net Depreciation | L59: =+K54-L57-L58 -> -319678.2361
A60: Note 1 | B60: Services acct 1855 included in Acct 1835 and 1840
A62: Notes:
A64: 1 | B64: Tables in the format outlined above covering all fixed asset accounts should be submitted for the Test Year, Bridge Year and all relevant historical years. At a minimum , the applicant must provide data for the earlier of: 1) all historical years back to its last rebasing; or 2) at least three years of historical actuals, in addition to Bridge Year and Test Year forecasts.
A67: 2 | B67: The "CCA Class" for fixed assets should agree with the CCA Class used for tax purposes in Tax Returns. Fixed Assets sub-components may be used where the underlying asset components are classified under multiple CCA Classes for tax purposes. If an applicant uses any different classes from those shown in the table, an explanation should be provided. (also see note 3 below).
A70: 3 | B70: The table may need to be customized for a utility's asset categories or for any new asset accounts announced or authorized by the Board.
A72: 4 | B72: The depreciation column (D) is not required as the relevant information will be provided in the following 2-C series of appendices.

Sheet App2-B FAC MIFRS2012 (hidden)
M1: File Number: | N1: ='LDC Info'!$E$18 -> EB-2012-0153
M2: Exhibit:
M3: Tab:
M4: Schedule:
M5: Page:
M7: Date:
A9: Appendix 2-B
A10: Fixed Asset Continuity Schedule
F11: MIFRS
F12: Year | G12: 2012 Bridge Year
E14: Cost | K14: Accumulated Depreciation
A15: CCA Class | B15: OEB | C15: Description | D15: Depreciation Rate | E15: Opening Balance | F15: Additions | G15: Disposals | H15: Closing Balance | J15: Opening Balance | K15: Additions | L15: Disposals | M15: Closing Balance | N15: Net Book Value
A16: 12 | B16: 1611 | C16: Computer Software (Formally known as Account 1925) | E16: ='App 2-B FAC 2011'!H16 -> 159158 | F16: 5000 | H16: =E16+F16+G16 -> 164158 | J16: ='App 2-B FAC 2011'!M16 -> -68997 | K16: -22319 | M16: =J16+K16+L16 -> -91316 | N16: =H16+M16 -> 72842
A17: CEC | B17: 1612 | C17: Land Rights (Formally known as Account 1906) | E17: ='App 2-B FAC 2011'!H17 -> 0 | H17: =E17+F17+G17 -> 0 | J17: ='App 2-B FAC 2011'!M17 -> 0 | M17: =J17+K17+L17 -> 0 | N17: =H17+M17 -> 0
A18: N/A | B18: 1805 | C18: Land | E18: ='App 2-B FAC 2011'!H18 -> 87700 | H18: =E18+F18+G18 -> 87700 | J18: ='App 2-B FAC 2011'!M18 -> 0 | M18: =J18+K18+L18 -> 0 | N18: =H18+M18 -> 87700
A19: 47 | B19: 1808 | C19: Buildings | E19: ='App 2-B FAC 2011'!H19 -> 385577 | F19: 100000 | H19: =E19+F19+G19 -> 485577 | J19: ='App 2-B FAC 2011'!M19 -> -42478 | K19: -17113 | M19: =J19+K19+L19 -> -59591 | N19: =H19+M19 -> 425986
A20: 13 | B20: 1810 | C20: Leasehold Improvements | E20: ='App 2-B FAC 2011'!H20 -> 4692 | H20: 4692 | J20: ='App 2-B FAC 2011'!M20 -> -2345 | K20: -938 | M20: -3283 | N20: 1409
A21: 47 | B21: 1815 | C21: Transformer Station Equipment >50 kV | E21: ='App 2-B FAC 2011'!H21 -> 3644 | H21: 3644 | J21: ='App 2-B FAC 2011'!M21 -> -1213 | K21: -121 | M21: -1334 | N21: 2310
A22: 47 | B22: 1820 | C22: Distribution Station Equipment <50 kV | E22: ='App 2-B FAC 2011'!H22 -> 551343 | F22: 15060 | H22: 566403 | J22: ='App 2-B FAC 2011'!M22 -> -308015 | K22: -9649 | M22: -317664 | N22: 248739
A23: 47 | B23: 1825 | C23: Storage Battery Equipment | E23: ='App 2-B FAC 2011'!H23 -> 0 | H23: 0 | J23: ='App 2-B FAC 2011'!M23 -> 0 | M23: 0 | N23: 0
A24: 47 | B24: 1830 | C24: Poles, Towers & Fixtures | E24: ='App 2-B FAC 2011'!H24 -> 2601676 | F24: 193228 | H24: 2794904 | J24: ='App 2-B FAC 2011'!M24 -> -1087795 | K24: -45401 | M24: -1133196 | N24: 1661708
A25: 47 | B25: 1835 | C25: Overhead Conductors & Devices | E25: ='App 2-B FAC 2011'!H25 -> 1658530.08 | F25: =224428+46406 -> 270834 | H25: 1929364.08 | J25: ='App 2-B FAC 2011'!M25 -> -920396 | K25: -23513 | M25: -943909 | N25: 985455.08
A26: 47 | B26: 1840 | C26: Underground Conduit | E26: ='App 2-B FAC 2011'!H26 -> 186674.28 | H26: 186674.28 | J26: ='App 2-B FAC 2011'!M26 -> -156492 | K26: -862 | M26: -157354 | N26: 29320.28
A27: 47 | B27: 1845 | C27: Underground Conductors & Devices | E27: ='App 2-B FAC 2011'!H27 -> 3690 | H27: 3690 | J27: ='App 2-B FAC 2011'!M27 -> -1130 | K27: -73 | M27: -1203 | N27: 2487
A28: 47 | B28: 1850 | C28: Line Transformers | E28: ='App 2-B FAC 2011'!H28 -> 694792 | F28: 100000 | H28: 794792 | J28: ='App 2-B FAC 2011'!M28 -> -325401 | K28: -11372 | M28: -336773 | N28: 458019
A29: 47 | B29: 1855 | C29: Services (Overhead & Underground) | E29: ='App 2-B FAC 2011'!H29 -> 3.2740477e-13 | F29: =46406-46406 -> 0 | H29: 3.2740477e-13 | J29: ='App 2-B FAC 2011'!M29 -> 0 | K29: 0 | M29: 0 | N29: 3.2740477e-13 | O29: Note 1
A30: 47 | B30: 1860 | C30: Meters | E30: ='App 2-B FAC 2011'!H30 -> 39775 | H30: 39775 | J30: ='App 2-B FAC 2011'!M30 -> -7815 | K30: -16041 | M30: -23856 | N30: 15919
A31: 47 | B31: 1860 | C31: Meters (Smart Meters) | E31: ='App 2-B FAC 2011'!H31 -> 0 | H31: 0 | J31: ='App 2-B FAC 2011'!M31 -> 0 | M31: 0 | N31: 0
A32: N/A | B32: 1905 | C32: Land | E32: ='App 2-B FAC 2011'!H32 -> 0 | H32: 0 | J32: ='App 2-B FAC 2011'!M32 -> 0 | M32: 0 | N32: 0
A33: 47 | B33: 1908 | C33: Buildings & Fixtures | E33: ='App 2-B FAC 2011'!H33 -> 0 | H33: 0 | J33: ='App 2-B FAC 2011'!M33 -> 0 | M33: 0 | N33: 0
A34: 13 | B34: 1910 | C34: Leasehold Improvements | E34: ='App 2-B FAC 2011'!H34 -> 0 | H34: 0 | J34: ='App 2-B FAC 2011'!M34 -> 0 | M34: 0 | N34: 0
A35: 8 | B35: 1915 | C35: Office Furniture & Equipment (10 years) | E35: ='App 2-B FAC 2011'!H35 -> 17607 | F35: 5000 | H35: 22607 | J35: ='App 2-B FAC 2011'!M35 -> -20273 | K35: =-310+3235 -> 2925 | M35: -17348 | N35: 5259 | O35: Note 2
A36: 8 | B36: 1915 | C36: Office Furniture & Equipment (5 years) | E36: ='App 2-B FAC 2011'!H36 -> 0 | H36: 0 | J36: ='App 2-B FAC 2011'!M36 -> 0 | M36: 0 | N36: 0
A37: 10 | B37: 1920 | C37: Computer Equipment - Hardware | E37: ='App 2-B FAC 2011'!H37 -> 0 | H37: 0 | J37: ='App 2-B FAC 2011'!M37 -> 0 | M37: 0 | N37: 0
A38: 45 | B38: 1920 | C38: Computer Equip.-Hardware(Post Mar. 22/04) | E38: ='App 2-B FAC 2011'!H38 -> 0 | H38: 0 | J38: ='App 2-B FAC 2011'!M38 -> 0 | M38: 0 | N38: 0
A39: 45.1 | B39: 1920 | C39: Computer Equip.-Hardware(Post Mar. 19/07) | E39: ='App 2-B FAC 2011'!H39 -> 87525 | F39: 10000 | H39: 97525 | J39: ='App 2-B FAC 2011'!M39 -> -71903 | K39: -7420 | M39: -79323 | N39: 18202
A40: 10 | B40: 1930 | C40: Transportation Equipment | E40: ='App 2-B FAC 2011'!H40 -> 1202969 | F40: 219345 | H40: 1422314 | J40: ='App 2-B FAC 2011'!M40 -> -355787 | K40: -183935 | M40: -539722 | N40: 882592
A41: 8 | B41: 1935 | C41: Stores Equipment | E41: ='App 2-B FAC 2011'!H41 -> 680 | H41: 680 | J41: ='App 2-B FAC 2011'!M41 -> -638 | K41: -42 | M41: -680 | N41: 0
A42: 8 | B42: 1940 | C42: Tools, Shop & Garage Equipment | E42: ='App 2-B FAC 2011'!H42 -> 168132 | F42: 39400 | H42: 207532 | J42: ='App 2-B FAC 2011'!M42 -> -92481 | K42: -29734 | M42: -122215 | N42: 85317
A43: 8 | B43: 1945 | C43: Measurement & Testing Equipment | E43: ='App 2-B FAC 2011'!H43 -> 0 | H43: 0 | J43: ='App 2-B FAC 2011'!M43 -> 0 | M43: 0 | N43: 0
A44: 8 | B44: 1950 | C44: Power Operated Equipment | E44: ='App 2-B FAC 2011'!H44 -> 0 | H44: 0 | J44: ='App 2-B FAC 2011'!M44 -> 0 | M44: 0 | N44: 0
A45: 8 | B45: 1955 | C45: Communications Equipment | E45: ='App 2-B FAC 2011'!H45 -> 4638 | H45: 4638 | J45: ='App 2-B FAC 2011'!M45 -> -1871 | K45: -791 | M45: -2662 | N45: 1976
A46: 8 | B46: 1955 | C46: Communication Equipment (Smart Meters) | E46: ='App 2-B FAC 2011'!H46 -> 0 | H46: 0 | J46: ='App 2-B FAC 2011'!M46 -> 0 | M46: 0 | N46: 0
A47: 8 | B47: 1960 | C47: Miscellaneous Equipment | E47: ='App 2-B FAC 2011'!H47 -> 6603 | H47: 6603 | J47: ='App 2-B FAC 2011'!M47 -> -3301 | K47: -660 | M47: -3961 | N47: 2642
A48: 47 | B48: 1975 | C48: Load Management Controls Utility Premises | E48: ='App 2-B FAC 2011'!H48 -> 0 | H48: 0 | J48: ='App 2-B FAC 2011'!M48 -> 0 | M48: 0 | N48: 0
A49: 47 | B49: 1980 | C49: System Supervisor Equipment | E49: ='App 2-B FAC 2011'!H49 -> 0 | H49: 0 | J49: ='App 2-B FAC 2011'!M49 -> 0 | M49: 0 | N49: 0
A50: 47 | B50: 1985 | C50: Miscellaneous Fixed Assets | E50: ='App 2-B FAC 2011'!H50 -> 0 | H50: 0 | J50: ='App 2-B FAC 2011'!M50 -> 0 | M50: 0 | N50: 0
A51: 47 | B51: 1995 | C51: Contributions & Grants | E51: ='App 2-B FAC 2011'!H51 -> 0 | H51: 0 | J51: ='App 2-B FAC 2011'!M51 -> 0 | M51: 0 | N51: 0
B52: etc. | E52: ='App 2-B FAC 2011'!H52 -> 0 | H52: 0 | J52: ='App 2-B FAC 2011'!M52 -> 0 | M52: 0 | N52: 0
E53: ='App 2-B FAC 2011'!H53 -> 0 | J53: ='App 2-B FAC 2011'!M53 -> 0
C54: Total | E54: =SUM(E16:E52) -> 7865405.36 | F54: =SUM(F16:F52) -> 957867 | G54: 0 | H54: 8823272.36 | J54: -3468331 | K54: =SUM(K16:K52) -> -367059 | L54: 0 | M54: -3835390 | N54: 4987882.36
J56: Less: Fully Allocated Depreciation
A57: 10 | C57: Transportation | J57: Transportation | L57: =K40 -> -183935
A58: 8 | C58: Stores Equipment | J58: Stores Equipment | L58: =K41 -> -42
J59: Net Depreciation | L59: =K54-L57-L58 -> -183082
A60: Note 1 | B60: Services acct 1855 included in Acct 1835 and 1840
A61: Note 2 | B61: Adjusted depreciation for over-amortized asset.
A63: Notes:
A65: 1 | B65: Tables in the format outlined above covering all fixed asset accounts should be submitted for the Test Year, Bridge Year and all relevant historical years. At a minimum , the applicant must provide data for the earlier of: 1) all historical years back to its last rebasing; or 2) at least three years of historical actuals, in addition to Bridge Year and Test Year forecasts.
A68: 2 | B68: The "CCA Class" for fixed assets should agree with the CCA Class used for tax purposes in Tax Returns. Fixed Assets sub-components may be used where the underlying asset components are classified under multiple CCA Classes for tax purposes. If an applicant uses any different classes from those shown in the table, an explanation should be provided. (also see note 3 below).
A71: 3 | B71: The table may need to be customized for a utility's asset categories or for any new asset accounts announced or authorized by the Board.
A73: 4 | B73: The depreciation column (D) is not required as the relevant information will be provided in the following 2-C series of appendices.

Sheet App2-B FAC MIFRS2013 (hidden)
M1: File Number: | N1: ='LDC Info'!$E$18 -> EB-2012-0153
M2: Exhibit:
M3: Tab:
M4: Schedule:
M5: Page:
M7: Date:
A9: Appendix 2-B
A10: Fixed Asset Continuity Schedule
F11: MIFRS
F12: Year | G12: 2013 Test Year
E14: Cost | K14: Accumulated Depreciation
A15: CCA Class | B15: OEB | C15: Description | D15: Depreciation Rate | E15: Opening Balance | F15: Additions | G15: Disposals | H15: Closing Balance | J15: Opening Balance | K15: Additions | L15: Disposals | M15: Closing Balance | N15: Net Book Value
A16: 12 | B16: 1611 | C16: Computer Software (Formally known as Account 1925) | E16: =+'App2-B FAC MIFRS2012'!H16 -> 164158 | F16: =+'App 2-B FAC 2013'!F16 -> 21743 | H16: =E16+F16+G16 -> 185901 | J16: =+'App2-B FAC MIFRS2012'!M16 -> -91316 | K16: =-23542-4374 -> -27916 | M16: =J16+K16+L16 -> -119232 | N16: =H16+M16 -> 66669 | P16: =IF(ISERROR(H16/K16),"",H16/K16) -> -6.659299327
A17: CEC | B17: 1612 | C17: Land Rights (Formally known as Account 1906) | E17: =+'App2-B FAC MIFRS2012'!H17 -> 0 | F17: =+'App 2-B FAC 2013'!F17 -> 0 | H17: =E17+F17+G17 -> 0 | J17: =+'App2-B FAC MIFRS2012'!M17 -> 0 | M17: =J17+K17+L17 -> 0 | N17: =H17+M17 -> 0 | P17: =IF(ISERROR(H17/K17),"",H17/K17) -> 
A18: N/A | B18: 1805 | C18: Land | E18: =+'App2-B FAC MIFRS2012'!H18 -> 87700 | F18: =+'App 2-B FAC 2013'!F18 -> 0 | H18: =E18+F18+G18 -> 87700 | J18: =+'App2-B FAC MIFRS2012'!M18 -> 0 | M18: =J18+K18+L18 -> 0 | N18: =H18+M18 -> 87700
A19: 47 | B19: 1808 | C19: Buildings | E19: =+'App2-B FAC MIFRS2012'!H19 -> 485577 | F19: =+'App 2-B FAC 2013'!F19 -> 23854 | H19: =E19+F19+G19 -> 509431 | J19: =+'App2-B FAC MIFRS2012'!M19 -> -59591 | K19: -19289 | M19: =J19+K19+L19 -> -78880 | N19: =H19+M19 -> 430551 | P19: -26.41044118
A20: 13 | B20: 1810 | C20: Leasehold Improvements | E20: =+'App2-B FAC MIFRS2012'!H20 -> 4692 | F20: =+'App 2-B FAC 2013'!F20 -> 0 | H20: 4692 | J20: =+'App2-B FAC MIFRS2012'!M20 -> -3283 | K20: -938 | M20: -4221 | N20: 471 | P20: -5.002132196
A21: 47 | B21: 1815 | C21: Transformer Station Equipment >50 kV | E21: =+'App2-B FAC MIFRS2012'!H21 -> 3644 | F21: =+'App 2-B FAC 2013'!F21 -> 0 | H21: 3644 | J21: =+'App2-B FAC MIFRS2012'!M21 -> -1334 | K21: -121 | M21: -1455 | N21: 2189 | P21: -30.11570248
A22: 47 | B22: 1820 | C22: Distribution Station Equipment <50 kV | E22: =+'App2-B FAC MIFRS2012'!H22 -> 566403 | F22: =+'App 2-B FAC 2013'!F22 -> 15000 | H22: 581403 | J22: =+'App2-B FAC MIFRS2012'!M22 -> -317664 | K22: -9836 | M22: -327500 | N22: 253903 | P22: -59.10969906
A23: 47 | B23: 1825 | C23: Storage Battery Equipment | E23: =+'App2-B FAC MIFRS2012'!H23 -> 0 | F23: =+'App 2-B FAC 2013'!F23 -> 0 | H23: 0 | J23: =+'App2-B FAC MIFRS2012'!M23 -> 0 | M23: 0 | N23: 0
A24: 47 | B24: 1830 | C24: Poles, Towers & Fixtures | E24: =+'App2-B FAC MIFRS2012'!H24 -> 2794904 | F24: =+'App 2-B FAC 2013'!F24 -> 129488 | H24: 2924392 | J24: =+'App2-B FAC MIFRS2012'!M24 -> -1133196 | K24: -49550 | M24: -1182746 | N24: 1741646 | P24: -59.0190111
A25: 47 | B25: 1835 | C25: Overhead Conductors & Devices | E25: =+'App2-B FAC MIFRS2012'!H25 -> 1929364.08 | F25: =+'App 2-B FAC 2013'!F25 -> 129488 | H25: 2058852.08 | J25: =+'App2-B FAC MIFRS2012'!M25 -> -943909 | K25: -28970 | M25: -972879 | N25: 1085973.08 | P25: -71.06841836
A26: 47 | B26: 1840 | C26: Underground Conduit | E26: =+'App2-B FAC MIFRS2012'!H26 -> 186674.28 | F26: =+'App 2-B FAC 2013'!F26 -> 0 | H26: 186674.28 | J26: =+'App2-B FAC MIFRS2012'!M26 -> -157354 | K26: -862 | M26: -158216 | N26: 28458.28 | P26: -216.5594896
A27: 47 | B27: 1845 | C27: Underground Conductors & Devices | E27: =+'App2-B FAC MIFRS2012'!H27 -> 3690 | F27: =+'App 2-B FAC 2013'!F27 -> 0 | H27: 3690 | J27: =+'App2-B FAC MIFRS2012'!M27 -> -1203 | K27: -73 | M27: -1276 | N27: 2414 | P27: -50.54794521
A28: 47 | B28: 1850 | C28: Line Transformers | E28: =+'App2-B FAC MIFRS2012'!H28 -> 794792 | F28: =+'App 2-B FAC 2013'!F28 -> 112000 | H28: 906792 | J28: =+'App2-B FAC MIFRS2012'!M28 -> -336773 | K28: -13728 | M28: -350501 | N28: 556291 | P28: -66.0541958
A29: 47 | B29: 1855 | C29: Services (Overhead & Underground) | E29: =+'App2-B FAC MIFRS2012'!H29 -> 3.2740477e-13 | F29: =+'App 2-B FAC 2013'!F29 -> 0 | H29: 3.2740477e-13 | J29: =+'App2-B FAC MIFRS2012'!M29 -> 0 | K29: 0 | M29: 0 | N29: 3.2740477e-13 | O29: Note 1
A30: 47 | B30: 1860 | C30: Meters | E30: =+'App2-B FAC MIFRS2012'!H30 -> 39775 | F30: =+'App 2-B FAC 2013'!F30 -> 28775 | H30: 68550 | J30: =+'App2-B FAC MIFRS2012'!M30 -> -23856 | K30: -16041 | M30: -39897 | N30: 28653 | P30: -4.27342435
A31: 47 | B31: 1860 | C31: Meters (Smart Meters) | E31: =+'App2-B FAC MIFRS2012'!H31 -> 0 | F31: =+'App 2-B FAC 2013'!F31 -> 1061720 | H31: 1061720 | J31: =+'App2-B FAC MIFRS2012'!M31 -> 0 | K31: -87601 | M31: -87601 | N31: 974119 | P31: -12.11995297
A32: N/A | B32: 1905 | C32: Land | E32: =+'App2-B FAC MIFRS2012'!H32 -> 0 | F32: =+'App 2-B FAC 2013'!F32 -> 0 | H32: 0 | J32: =+'App2-B FAC MIFRS2012'!M32 -> 0 | M32: 0 | N32: 0
A33: 47 | B33: 1908 | C33: Buildings & Fixtures | E33: =+'App2-B FAC MIFRS2012'!H33 -> 0 | F33: =+'App 2-B FAC 2013'!F33 -> 0 | H33: 0 | J33: =+'App2-B FAC MIFRS2012'!M33 -> 0 | M33: 0 | N33: 0
A34: 13 | B34: 1910 | C34: Leasehold Improvements | E34: =+'App2-B FAC MIFRS2012'!H34 -> 0 | F34: =+'App 2-B FAC 2013'!F34 -> 0 | H34: 0 | J34: =+'App2-B FAC MIFRS2012'!M34 -> 0 | M34: 0 | N34: 0
A35: 8 | B35: 1915 | C35: Office Furniture & Equipment (10 years) | E35: =+'App2-B FAC MIFRS2012'!H35 -> 22607 | F35: =+'App 2-B FAC 2013'!F35 -> 0 | H35: 22607 | J35: =+'App2-B FAC MIFRS2012'!M35 -> -17348 | K35: -560 | M35: -17908 | N35: 4699 | P35: -40.36964286
A36: 8 | B36: 1915 | C36: Office Furniture & Equipment (5 years) | E36: =+'App2-B FAC MIFRS2012'!H36 -> 0 | F36: =+'App 2-B FAC 2013'!F36 -> 0 | H36: 0 | J36: =+'App2-B FAC MIFRS2012'!M36 -> 0 | M36: 0 | N36: 0
A37: 10 | B37: 1920 | C37: Computer Equipment - Hardware | E37: =+'App2-B FAC MIFRS2012'!H37 -> 0 | F37: =+'App 2-B FAC 2013'!F37 -> 0 | H37: 0 | J37: =+'App2-B FAC MIFRS2012'!M37 -> 0 | M37: 0 | N37: 0
A38: 45 | B38: 1920 | C38: Computer Equip.-Hardware(Post Mar. 22/04) | E38: =+'App2-B FAC MIFRS2012'!H38 -> 0 | F38: =+'App 2-B FAC 2013'!F38 -> 0 | H38: 0 | J38: =+'App2-B FAC MIFRS2012'!M38 -> 0 | M38: 0 | N38: 0
A39: 45.1 | B39: 1920 | C39: Computer Equip.-Hardware(Post Mar. 19/07) | E39: =+'App2-B FAC MIFRS2012'!H39 -> 97525 | F39: =+'App 2-B FAC 2013'!F39 -> 38169 | H39: 135694 | J39: =+'App2-B FAC MIFRS2012'!M39 -> -79323 | K39: =-11072-7639 -> -18711 | M39: -98034 | N39: 37660 | P39: -7.252097697
A40: 10 | B40: 1930 | C40: Transportation Equipment | E40: =+'App2-B FAC MIFRS2012'!H40 -> 1422314 | F40: =+'App 2-B FAC 2013'!F40 -> 262000 | H40: 1684314 | J40: =+'App2-B FAC MIFRS2012'!M40 -> -539722 | K40: -218911 | M40: -758633 | N40: 925681 | P40: -7.694058316
A41: 8 | B41: 1935 | C41: Stores Equipment | E41: =+'App2-B FAC MIFRS2012'!H41 -> 680 | F41: =+'App 2-B FAC 2013'!F41 -> 0 | H41: 680 | J41: =+'App2-B FAC MIFRS2012'!M41 -> -680 | K41: 0 | M41: -680 | N41: 0
A42: 8 | B42: 1940 | C42: Tools, Shop & Garage Equipment | E42: =+'App2-B FAC MIFRS2012'!H42 -> 207532 | F42: =+'App 2-B FAC 2013'!F42 -> 24100 | H42: 231632 | J42: =+'App2-B FAC MIFRS2012'!M42 -> -122215 | K42: -37885 | M42: -160100 | N42: 71532 | P42: -6.114082091
A43: 8 | B43: 1945 | C43: Measurement & Testing Equipment | E43: =+'App2-B FAC MIFRS2012'!H43 -> 0 | F43: =+'App 2-B FAC 2013'!F43 -> 0 | H43: 0 | J43: =+'App2-B FAC MIFRS2012'!M43 -> 0 | M43: 0 | N43: 0
A44: 8 | B44: 1950 | C44: Power Operated Equipment | E44: =+'App2-B FAC MIFRS2012'!H44 -> 0 | F44: =+'App 2-B FAC 2013'!F44 -> 0 | H44: 0 | J44: =+'App2-B FAC MIFRS2012'!M44 -> 0 | M44: 0 | N44: 0
A45: 8 | B45: 1955 | C45: Communications Equipment | E45: =+'App2-B FAC MIFRS2012'!H45 -> 4638 | F45: =+'App 2-B FAC 2013'!F45 -> 0 | H45: 4638 | J45: =+'App2-B FAC MIFRS2012'!M45 -> -2662 | K45: -791 | M45: -3453 | N45: 1185 | P45: -5.86346397
A46: 8 | B46: 1955 | C46: Communication Equipment (Smart Meters) | E46: =+'App2-B FAC MIFRS2012'!H46 -> 0 | F46: =+'App 2-B FAC 2013'!F46 -> 0 | H46: 0 | J46: =+'App2-B FAC MIFRS2012'!M46 -> 0 | M46: 0 | N46: 0
A47: 8 | B47: 1960 | C47: Miscellaneous Equipment | E47: =+'App2-B FAC MIFRS2012'!H47 -> 6603 | F47: =+'App 2-B FAC 2013'!F47 -> 751 | H47: 7354 | J47: =+'App2-B FAC MIFRS2012'!M47 -> -3961 | K47: =-1432-214 -> -1646 | M47: -5607 | N47: 1747 | P47: -4.467800729
A48: 47 | B48: 1975 | C48: Load Management Controls Utility Premises | E48: =+'App2-B FAC MIFRS2012'!H48 -> 0 | F48: =+'App 2-B FAC 2013'!F48 -> 0 | H48: 0 | J48: =+'App2-B FAC MIFRS2012'!M48 -> 0 | M48: 0 | N48: 0
A49: 47 | B49: 1980 | C49: System Supervisor Equipment | E49: =+'App2-B FAC MIFRS2012'!H49 -> 0 | F49: =+'App 2-B FAC 2013'!F49 -> 0 | H49: 0 | J49: =+'App2-B FAC MIFRS2012'!M49 -> 0 | M49: 0 | N49: 0
A50: 47 | B50: 1985 | C50: Miscellaneous Fixed Assets | E50: =+'App2-B FAC MIFRS2012'!H50 -> 0 | F50: =+'App 2-B FAC 2013'!F50 -> 0 | H50: 0 | J50: =+'App2-B FAC MIFRS2012'!M50 -> 0 | M50: 0 | N50: 0
A51: 47 | B51: 1995 | C51: Contributions & Grants | E51: =+'App2-B FAC MIFRS2012'!H51 -> 0 | F51: =+'App 2-B FAC 2013'!F51 -> 0 | H51: 0 | J51: =+'App2-B FAC MIFRS2012'!M51 -> 0 | M51: 0 | N51: 0
B52: etc. | E52: =+'App2-B FAC MIFRS2012'!H52 -> 0 | F52: =+'App 2-B FAC 2013'!F52 -> 0 | H52: 0 | J52: =+'App2-B FAC MIFRS2012'!M52 -> 0 | M52: 0 | N52: 0
E53: =+'App2-B FAC MIFRS2012'!H53 -> 0 | F53: =+'App 2-B FAC 2013'!F53 -> 0 | J53: =+'App2-B FAC MIFRS2012'!M53 -> 0
C54: Total | E54: =SUM(E16:E52) -> 8823272.36 | F54: =SUM(F16:F52) -> 1847088 | G54: 0 | H54: 10670360.36 | J54: -3835390 | K54: -533429 | L54: 0 | M54: -4368819 | N54: 6301541.36
J56: Less: Fully Allocated Depreciation
A57: 10 | C57: Transportation | J57: Transportation | L57: =K40 -> -218911
A58: 8 | C58: Stores Equipment | J58: Stores Equipment | L58: =K41 -> 0
J59: Net Depreciation | L59: =K54-L57-L58 -> -314518
A60: Note 1 | B60: Services acct 1855 included in Acct 1835 and 1840
A63: Notes:
A65: 1 | B65: Tables in the format outlined above covering all fixed asset accounts should be submitted for the Test Year, Bridge Year and all relevant historical years. At a minimum , the applicant must provide data for the earlier of: 1) all historical years back to its last rebasing; or 2) at least three years of historical actuals, in addition to Bridge Year and Test Year forecasts.
A68: 2 | B68: The "CCA Class" for fixed assets should agree with the CCA Class used for tax purposes in Tax Returns. Fixed Assets sub-components may be used where the underlying asset components are classified under multiple CCA Classes for tax purposes. If an applicant uses any different classes from those shown in the table, an explanation should be provided. (also see note 3 below).
A71: 3 | B71: The table may need to be customized for a utility's asset categories or for any new asset accounts announced or authorized by the Board.
A73: 4 | B73: The depreciation column (D) is not required as the relevant information will be provided in the following 2-C series of appendices.

Sheet App.2-CB_MIFRS_DepExp_2011NA (hidden)
M1: File Number: | N1: ='LDC Info'!$E$18 -> EB-2012-0153
M2: Exhibit:
M3: Tab:
M4: Schedule:
M5: Page:
M7: Date:
A9: NOW Inc to adopt IFRS in 2013
A10: Depreciation and Amortization Expense
A11: Assumes the applicant adopted IFRS for financial reporting purposes January 1, 2012
C12: Year | E12: MIFRS
A14: Account | B14: Description | C14: Opening NBV as at Jan 1, 2011 5 | D14: Additions | E14: Average Remaining Life of Opening NBV 4 | F14: Years (new additions only) 3 | G14: Depreciation Rate on New Additions | H14: Depreciation Expense on Opening NBV | I14: Depreciation Expense on Additions 1 | J14: 2011 Depreciation Expense | K14: 2011 Depreciation Expense per Appendix 2-B Fixed Assets, Columns K & L (l) | L14: Variance 2 | M14: Depreciation Expense on 2011 Full Year Additions | N14: 2011 Full Year Depreciation
C15: (a) | D15: (d) | E15: (i) | F15: (f) | G15: (g) = 1 / (f) | H15: (j) = (a) / (i) | I15: (h)=((d)*0.5)/(f) | J15: (k) = (j) + (h) | L15: (m) = (k) - (l) | M15: (n) = (d)/(f) | N15: (o) = (j) + (n)
A16: 1611 | B16: Computer Software (Formally known as Account 1925) | G16: =IF(F16=0,0,1/F16) -> 0 | H16: =IF(E16=0,0,+C16/E16) -> 0 | I16: =IF(F16=0,0,+(D16*0.5)/F16) -> 0 | J16: =IF(ISERROR(+H16+I16), 0, +H16+I16) -> 0 | L16: =IF(ISERROR(+J16-K16), 0, +J16-K16) -> 0 | M16: =IF(F16=0,0,+(D16)/F16) -> 0 | N16: =IF(ISERROR(+M16+H16), 0, +M16+H16) -> 0
A17: 1612 | B17: Land Rights (Formally known as Account 1906) | G17: 0 | H17: 0 | I17: 0 | J17: 0 | L17: 0 | M17: 0 | N17: 0
A18: 1805 | B18: Land | G18: 0 | H18: 0 | I18: 0 | J18: 0 | L18: 0 | M18: 0 | N18: 0
A19: 1808 | B19: Buildings | G19: 0 | H19: 0 | I19: 0 | J19: 0 | L19: 0 | M19: 0 | N19: 0
A20: 1810 | B20: Leasehold Improvements | G20: 0 | H20: 0 | I20: 0 | J20: 0 | L20: 0 | M20: 0 | N20: 0
A21: 1815 | B21: Transformer Station Equipment >50 kV | G21: 0 | H21: 0 | I21: 0 | J21: 0 | L21: 0 | M21: 0 | N21: 0
A22: 1820 | B22: Distribution Station Equipment <50 kV | G22: 0 | H22: 0 | I22: 0 | J22: 0 | L22: 0 | M22: 0 | N22: 0
A23: 1825 | B23: Storage Battery Equipment | G23: 0 | H23: 0 | I23: 0 | J23: 0 | L23: 0 | M23: 0 | N23: 0
A24: 1830 | B24: Poles, Towers & Fixtures | G24: 0 | H24: 0 | I24: 0 | J24: 0 | L24: 0 | M24: 0 | N24: 0
A25: 1835 | B25: Overhead Conductors & Devices | G25: 0 | H25: 0 | I25: 0 | J25: 0 | L25: 0 | M25: 0 | N25: 0
A26: 1840 | B26: Underground Conduit | G26: 0 | H26: 0 | I26: 0 | J26: 0 | L26: 0 | M26: 0 | N26: 0
A27: 1845 | B27: Underground Conductors & Devices | G27: 0 | H27: 0 | I27: 0 | J27: 0 | L27: 0 | M27: 0 | N27: 0
A28: 1850 | B28: Line Transformers | G28: 0 | H28: 0 | I28: 0 | J28: 0 | L28: 0 | M28: 0 | N28: 0
A29: 1855 | B29: Services (Overhead & Underground) | G29: 0 | H29: 0 | I29: 0 | J29: 0 | L29: 0 | M29: 0 | N29: 0
A30: 1860 | B30: Meters | G30: 0 | H30: 0 | I30: 0 | J30: 0 | L30: 0 | M30: 0 | N30: 0
A31: 1860 | B31: Meters (Smart Meters) | G31: 0 | H31: 0 | I31: 0 | J31: 0 | L31: 0 | M31: 0 | N31: 0
A32: 1905 | B32: Land | G32: 0 | H32: 0 | I32: 0 | J32: 0 | L32: 0 | M32: 0 | N32: 0
A33: 1908 | B33: Buildings & Fixtures | G33: 0 | H33: 0 | I33: 0 | J33: 0 | L33: 0 | M33: 0 | N33: 0
A34: 1910 | B34: Leasehold Improvements | G34: 0 | H34: 0 | I34: 0 | J34: 0 | L34: 0 | M34: 0 | N34: 0
A35: 1915 | B35: Office Furniture & Equipment (10 years) | G35: 0 | H35: 0 | I35: 0 | J35: 0 | L35: 0 | M35: 0 | N35: 0
A36: 1915 | B36: Office Furniture & Equipment (5 years) | G36: 0 | H36: 0 | I36: 0 | J36: 0 | L36: 0 | M36: 0 | N36: 0
A37: 1920 | B37: Computer Equipment - Hardware | G37: 0 | H37: 0 | I37: 0 | J37: 0 | L37: 0 | M37: 0 | N37: 0
A38: 1920 | B38: Computer Equip.-Hardware(Post Mar. 22/04) | G38: 0 | H38: 0 | I38: 0 | J38: 0 | L38: 0 | M38: 0 | N38: 0
A39: 1920 | B39: Computer Equip.-Hardware(Post Mar. 19/07) | G39: 0 | H39: 0 | I39: 0 | J39: 0 | L39: 0 | M39: 0 | N39: 0
A40: 1930 | B40: Transportation Equipment | G40: 0 | H40: 0 | I40: 0 | J40: 0 | L40: 0 | M40: 0 | N40: 0
A41: 1935 | B41: Stores Equipment | G41: 0 | H41: 0 | I41: 0 | J41: 0 | L41: 0 | M41: 0 | N41: 0
A42: 1940 | B42: Tools, Shop & Garage Equipment | G42: 0 | H42: 0 | I42: 0 | J42: 0 | L42: 0 | M42: 0 | N42: 0
A43: 1945 | B43: Measurement & Testing Equipment | G43: 0 | H43: 0 | I43: 0 | J43: 0 | L43: 0 | M43: 0 | N43: 0
A44: 1950 | B44: Power Operated Equipment | G44: 0 | H44: 0 | I44: 0 | J44: 0 | L44: 0 | M44: 0 | N44: 0
A45: 1955 | B45: Communications Equipment | G45: 0 | H45: 0 | I45: 0 | J45: 0 | L45: 0 | M45: 0 | N45: 0
A46: 1955 | B46: Communication Equipment (Smart Meters) | G46: 0 | H46: 0 | I46: 0 | J46: 0 | L46: 0 | M46: 0 | N46: 0
A47: 1960 | B47: Miscellaneous Equipment | G47: 0 | H47: 0 | I47: 0 | J47: 0 | L47: 0 | M47: 0 | N47: 0
A48: 1975 | B48: Load Management Controls Utility Premises | G48: 0 | H48: 0 | I48: 0 | J48: 0 | L48: 0 | M48: 0 | N48: 0
A49: 1980 | B49: System Supervisor Equipment | G49: 0 | H49: 0 | I49: 0 | J49: 0 | L49: 0 | M49: 0 | N49: 0
A50: 1985 | B50: Miscellaneous Fixed Assets | G50: 0 | H50: 0 | I50: 0 | J50: 0 | L50: 0 | M50: 0 | N50: 0
A51: 1995 | B51: Contributions & Grants | G51: 0 | H51: 0 | I51: 0 | J51: 0 | L51: 0 | M51: 0 | N51: 0
A52: etc. | G52: 0 | H52: 0 | I52: 0 | J52: 0 | L52: 0 | M52: 0 | N52: 0
G53: 0 | H53: 0 | I53: 0 | J53: 0 | L53: 0 | M53: 0 | N53: 0
B54: Total | C54: =SUM(C16:C53) -> 0 | D54: =SUM(D16:D53) -> 0 | H54: =SUM(H16:H53) -> 0 | I54: 0 | J54: 0 | K54: 0 | L54: 0 | M54: 0 | N54: 0
A56: Notes:
A58: 1 | B58: Board policy of the "half-year" rule - the applicant must ensure that additions in the year attract a half-year depreciation expense in the first year. Deviations from this standard practice must be supported in the application.
A59: 2 | B59: The applicant must provide an explanation of material variances in evidence
A60: 3 | B60: The applicant should ensure that the years for new additions of assets are the asset useful lives determined by management in accordance with IFRS.
A61: 4 | B61: A recalculation should be performed to determine the average remaining life of opening balance of assets (i.e. excluding 2011 additions) under IFRS. For example, Asset A had a useful life of 20 years under CGAAP. On January 1, 2011, the date of transition, Asset A was 3 years depreciated. As a result, Asset A would have a remaining service life of 17 years (20 years less 3 years) under CGAAP as of January 1, 2011. Due to the transition to IFRS, management re-assessed the asset useful lives under IFRS principles and concluded that the revised useful life of Asset A is now 30 years. Therefore, the average remaining useful life of opening balance of Asset A is determined to be 27 years (30 years less 3 years) under IFRS as of January 1, 2011.
A62: 5 | B62: NBV must exclude assets still on the books but which have been fully amortized or depreciated.
A64: General: | B64: Applicants must provide a breakdown of depreciation and amortization expense in the above format for all relevant accounts. Asset Retirement Obligations (AROs), depreciation and accretion expense should be disclosed separately consistent with the Notes of historical Audited Financial Statements.

Sheet App.2-CC_MIFRS_DepExp_2012NA (hidden)
A1: NOW Inc to adopt IFRS in 2013 | I1: File Number: | J1: ='LDC Info'!$E$18 -> EB-2012-0153
I2: Exhibit:
I3: Tab:
I4: Schedule:
I5: Page:
I7: Date:
A9: Appendix 2-CC
A10: Depreciation and Amortization Expense
A11: Assumes the applicant adopted IFRS for financial reporting purposes January 1, 2012
D12: MIFRS
A14: Account | B14: Description | C14: Additions | D14: Years (new additions only) | E14: Depreciation Rate on New Additions | F14: 2012 Depreciation Expense 1 | G14: 2012 Depreciation Expense per Apppendix 2-B Fixed Assets, Columns K & L (l) | H14: Variance 2 | I14: Depreciation Expense on 2012 Full Year Additions | J14: 2012 Full Year Depreciation
C15: (d) | D15: (f) | E15: (g) = 1 / (f) | F15: (h)=2011 Full Year Deprecation 3 + ((d)*0.5)/(f) | H15: (m) = (h) - (l) | I15: (n)=((d))/(f) | J15: (o) = 2011 Full Year Depreciation 3 + (n)
A16: 1611 | B16: Computer Software (Formally known as Account 1925) | E16: =IF(D16=0,0,1/D16) -> 0 | F16: =IF(D16=0,+'App.2-CB_MIFRS_DepExp_2011NA'!N16,+'App.2-CB_MIFRS_DepExp_2011NA'!N16+((C16*0.5)/D16)) -> 0 | H16: =IF(ISERROR(+F16-G16), 0, +F16-G16) -> 0 | I16: =IF(D16=0,0,+(C16)/D16) -> 0 | J16: =IF(ISERROR(+I16+'App.2-CB_MIFRS_DepExp_2011NA'!N16), 0, +I16+'App.2-CB_MIFRS_DepExp_2011NA'!N16) -> 0
A17: 1612 | B17: Land Rights (Formally known as Account 1906) | E17: 0 | F17: =IF(D17=0,+'App.2-CB_MIFRS_DepExp_2011NA'!N17,+'App.2-CB_MIFRS_DepExp_2011NA'!N17+((C17*0.5)/D17)) -> 0 | H17: 0 | I17: 0 | J17: =IF(ISERROR(+I17+'App.2-CB_MIFRS_DepExp_2011NA'!N17), 0, +I17+'App.2-CB_MIFRS_DepExp_2011NA'!N17) -> 0
A18: 1805 | B18: Land | E18: 0 | F18: =IF(D18=0,+'App.2-CB_MIFRS_DepExp_2011NA'!N18,+'App.2-CB_MIFRS_DepExp_2011NA'!N18+((C18*0.5)/D18)) -> 0 | H18: 0 | I18: 0 | J18: =IF(ISERROR(+I18+'App.2-CB_MIFRS_DepExp_2011NA'!N18), 0, +I18+'App.2-CB_MIFRS_DepExp_2011NA'!N18) -> 0
A19: 1808 | B19: Buildings | E19: 0 | F19: =IF(D19=0,+'App.2-CB_MIFRS_DepExp_2011NA'!N19,+'App.2-CB_MIFRS_DepExp_2011NA'!N19+((C19*0.5)/D19)) -> 0 | H19: 0 | I19: 0 | J19: =IF(ISERROR(+I19+'App.2-CB_MIFRS_DepExp_2011NA'!N19), 0, +I19+'App.2-CB_MIFRS_DepExp_2011NA'!N19) -> 0
A20: 1810 | B20: Leasehold Improvements | E20: 0 | F20: =IF(D20=0,+'App.2-CB_MIFRS_DepExp_2011NA'!N20,+'App.2-CB_MIFRS_DepExp_2011NA'!N20+((C20*0.5)/D20)) -> 0 | H20: 0 | I20: 0 | J20: =IF(ISERROR(+I20+'App.2-CB_MIFRS_DepExp_2011NA'!N20), 0, +I20+'App.2-CB_MIFRS_DepExp_2011NA'!N20) -> 0
A21: 1815 | B21: Transformer Station Equipment >50 kV | E21: 0 | F21: =IF(D21=0,+'App.2-CB_MIFRS_DepExp_2011NA'!N21,+'App.2-CB_MIFRS_DepExp_2011NA'!N21+((C21*0.5)/D21)) -> 0 | H21: 0 | I21: 0 | J21: =IF(ISERROR(+I21+'App.2-CB_MIFRS_DepExp_2011NA'!N21), 0, +I21+'App.2-CB_MIFRS_DepExp_2011NA'!N21) -> 0
A22: 1820 | B22: Distribution Station Equipment <50 kV | E22: 0 | F22: =IF(D22=0,+'App.2-CB_MIFRS_DepExp_2011NA'!N22,+'App.2-CB_MIFRS_DepExp_2011NA'!N22+((C22*0.5)/D22)) -> 0 | H22: 0 | I22: 0 | J22: =IF(ISERROR(+I22+'App.2-CB_MIFRS_DepExp_2011NA'!N22), 0, +I22+'App.2-CB_MIFRS_DepExp_2011NA'!N22) -> 0
A23: 1825 | B23: Storage Battery Equipment | E23: 0 | F23: =IF(D23=0,+'App.2-CB_MIFRS_DepExp_2011NA'!N23,+'App.2-CB_MIFRS_DepExp_2011NA'!N23+((C23*0.5)/D23)) -> 0 | H23: 0 | I23: 0 | J23: =IF(ISERROR(+I23+'App.2-CB_MIFRS_DepExp_2011NA'!N23), 0, +I23+'App.2-CB_MIFRS_DepExp_2011NA'!N23) -> 0
A24: 1830 | B24: Poles, Towers & Fixtures | E24: 0 | F24: =IF(D24=0,+'App.2-CB_MIFRS_DepExp_2011NA'!N24,+'App.2-CB_MIFRS_DepExp_2011NA'!N24+((C24*0.5)/D24)) -> 0 | H24: 0 | I24: 0 | J24: =IF(ISERROR(+I24+'App.2-CB_MIFRS_DepExp_2011NA'!N24), 0, +I24+'App.2-CB_MIFRS_DepExp_2011NA'!N24) -> 0
A25: 1835 | B25: Overhead Conductors & Devices | E25: 0 | F25: =IF(D25=0,+'App.2-CB_MIFRS_DepExp_2011NA'!N25,+'App.2-CB_MIFRS_DepExp_2011NA'!N25+((C25*0.5)/D25)) -> 0 | H25: 0 | I25: 0 | J25: =IF(ISERROR(+I25+'App.2-CB_MIFRS_DepExp_2011NA'!N25), 0, +I25+'App.2-CB_MIFRS_DepExp_2011NA'!N25) -> 0
A26: 1840 | B26: Underground Conduit | E26: 0 | F26: =IF(D26=0,+'App.2-CB_MIFRS_DepExp_2011NA'!N26,+'App.2-CB_MIFRS_DepExp_2011NA'!N26+((C26*0.5)/D26)) -> 0 | H26: 0 | I26: 0 | J26: =IF(ISERROR(+I26+'App.2-CB_MIFRS_DepExp_2011NA'!N26), 0, +I26+'App.2-CB_MIFRS_DepExp_2011NA'!N26) -> 0
A27: 1845 | B27: Underground Conductors & Devices | E27: 0 | F27: =IF(D27=0,+'App.2-CB_MIFRS_DepExp_2011NA'!N27,+'App.2-CB_MIFRS_DepExp_2011NA'!N27+((C27*0.5)/D27)) -> 0 | H27: 0 | I27: 0 | J27: =IF(ISERROR(+I27+'App.2-CB_MIFRS_DepExp_2011NA'!N27), 0, +I27+'App.2-CB_MIFRS_DepExp_2011NA'!N27) -> 0
A28: 1850 | B28: Line Transformers | E28: 0 | F28: =IF(D28=0,+'App.2-CB_MIFRS_DepExp_2011NA'!N28,+'App.2-CB_MIFRS_DepExp_2011NA'!N28+((C28*0.5)/D28)) -> 0 | H28: 0 | I28: 0 | J28: =IF(ISERROR(+I28+'App.2-CB_MIFRS_DepExp_2011NA'!N28), 0, +I28+'App.2-CB_MIFRS_DepExp_2011NA'!N28) -> 0
A29: 1855 | B29: Services (Overhead & Underground) | E29: 0 | F29: =IF(D29=0,+'App.2-CB_MIFRS_DepExp_2011NA'!N29,+'App.2-CB_MIFRS_DepExp_2011NA'!N29+((C29*0.5)/D29)) -> 0 | H29: 0 | I29: 0 | J29: =IF(ISERROR(+I29+'App.2-CB_MIFRS_DepExp_2011NA'!N29), 0, +I29+'App.2-CB_MIFRS_DepExp_2011NA'!N29) -> 0
A30: 1860 | B30: Meters | E30: 0 | F30: =IF(D30=0,+'App.2-CB_MIFRS_DepExp_2011NA'!N30,+'App.2-CB_MIFRS_DepExp_2011NA'!N30+((C30*0.5)/D30)) -> 0 | H30: 0 | I30: 0 | J30: =IF(ISERROR(+I30+'App.2-CB_MIFRS_DepExp_2011NA'!N30), 0, +I30+'App.2-CB_MIFRS_DepExp_2011NA'!N30) -> 0
A31: 1860 | B31: Meters (Smart Meters) | E31: 0 | F31: =IF(D31=0,+'App.2-CB_MIFRS_DepExp_2011NA'!N31,+'App.2-CB_MIFRS_DepExp_2011NA'!N31+((C31*0.5)/D31)) -> 0 | H31: 0 | I31: 0 | J31: =IF(ISERROR(+I31+'App.2-CB_MIFRS_DepExp_2011NA'!N31), 0, +I31+'App.2-CB_MIFRS_DepExp_2011NA'!N31) -> 0
A32: 1905 | B32: Land | E32: 0 | F32: =IF(D32=0,+'App.2-CB_MIFRS_DepExp_2011NA'!N32,+'App.2-CB_MIFRS_DepExp_2011NA'!N32+((C32*0.5)/D32)) -> 0 | H32: 0 | I32: 0 | J32: =IF(ISERROR(+I32+'App.2-CB_MIFRS_DepExp_2011NA'!N32), 0, +I32+'App.2-CB_MIFRS_DepExp_2011NA'!N32) -> 0
A33: 1908 | B33: Buildings & Fixtures | E33: 0 | F33: =IF(D33=0,+'App.2-CB_MIFRS_DepExp_2011NA'!N33,+'App.2-CB_MIFRS_DepExp_2011NA'!N33+((C33*0.5)/D33)) -> 0 | H33: 0 | I33: 0 | J33: =IF(ISERROR(+I33+'App.2-CB_MIFRS_DepExp_2011NA'!N33), 0, +I33+'App.2-CB_MIFRS_DepExp_2011NA'!N33) -> 0
A34: 1910 | B34: Leasehold Improvements | E34: 0 | F34: =IF(D34=0,+'App.2-CB_MIFRS_DepExp_2011NA'!N34,+'App.2-CB_MIFRS_DepExp_2011NA'!N34+((C34*0.5)/D34)) -> 0 | H34: 0 | I34: 0 | J34: =IF(ISERROR(+I34+'App.2-CB_MIFRS_DepExp_2011NA'!N34), 0, +I34+'App.2-CB_MIFRS_DepExp_2011NA'!N34) -> 0
A35: 1915 | B35: Office Furniture & Equipment (10 years) | E35: 0 | F35: =IF(D35=0,+'App.2-CB_MIFRS_DepExp_2011NA'!N35,+'App.2-CB_MIFRS_DepExp_2011NA'!N35+((C35*0.5)/D35)) -> 0 | H35: 0 | I35: 0 | J35: =IF(ISERROR(+I35+'App.2-CB_MIFRS_DepExp_2011NA'!N35), 0, +I35+'App.2-CB_MIFRS_DepExp_2011NA'!N35) -> 0
A36: 1915 | B36: Office Furniture & Equipment (5 years) | E36: 0 | F36: =IF(D36=0,+'App.2-CB_MIFRS_DepExp_2011NA'!N36,+'App.2-CB_MIFRS_DepExp_2011NA'!N36+((C36*0.5)/D36)) -> 0 | H36: 0 | I36: 0 | J36: =IF(ISERROR(+I36+'App.2-CB_MIFRS_DepExp_2011NA'!N36), 0, +I36+'App.2-CB_MIFRS_DepExp_2011NA'!N36) -> 0
A37: 1920 | B37: Computer Equipment - Hardware | E37: 0 | F37: =IF(D37=0,+'App.2-CB_MIFRS_DepExp_2011NA'!N37,+'App.2-CB_MIFRS_DepExp_2011NA'!N37+((C37*0.5)/D37)) -> 0 | H37: 0 | I37: 0 | J37: =IF(ISERROR(+I37+'App.2-CB_MIFRS_DepExp_2011NA'!N37), 0, +I37+'App.2-CB_MIFRS_DepExp_2011NA'!N37) -> 0
A38: 1920 | B38: Computer Equip.-Hardware(Post Mar. 22/04) | E38: 0 | F38: =IF(D38=0,+'App.2-CB_MIFRS_DepExp_2011NA'!N38,+'App.2-CB_MIFRS_DepExp_2011NA'!N38+((C38*0.5)/D38)) -> 0 | H38: 0 | I38: 0 | J38: =IF(ISERROR(+I38+'App.2-CB_MIFRS_DepExp_2011NA'!N38), 0, +I38+'App.2-CB_MIFRS_DepExp_2011NA'!N38) -> 0
A39: 1920 | B39: Computer Equip.-Hardware(Post Mar. 19/07) | E39: 0 | F39: =IF(D39=0,+'App.2-CB_MIFRS_DepExp_2011NA'!N39,+'App.2-CB_MIFRS_DepExp_2011NA'!N39+((C39*0.5)/D39)) -> 0 | H39: 0 | I39: 0 | J39: =IF(ISERROR(+I39+'App.2-CB_MIFRS_DepExp_2011NA'!N39), 0, +I39+'App.2-CB_MIFRS_DepExp_2011NA'!N39) -> 0
A40: 1930 | B40: Transportation Equipment | E40: 0 | F40: =IF(D40=0,+'App.2-CB_MIFRS_DepExp_2011NA'!N40,+'App.2-CB_MIFRS_DepExp_2011NA'!N40+((C40*0.5)/D40)) -> 0 | H40: 0 | I40: 0 | J40: =IF(ISERROR(+I40+'App.2-CB_MIFRS_DepExp_2011NA'!N40), 0, +I40+'App.2-CB_MIFRS_DepExp_2011NA'!N40) -> 0
A41: 1935 | B41: Stores Equipment | E41: 0 | F41: =IF(D41=0,+'App.2-CB_MIFRS_DepExp_2011NA'!N41,+'App.2-CB_MIFRS_DepExp_2011NA'!N41+((C41*0.5)/D41)) -> 0 | H41: 0 | I41: 0 | J41: =IF(ISERROR(+I41+'App.2-CB_MIFRS_DepExp_2011NA'!N41), 0, +I41+'App.2-CB_MIFRS_DepExp_2011NA'!N41) -> 0
A42: 1940 | B42: Tools, Shop & Garage Equipment | E42: 0 | F42: =IF(D42=0,+'App.2-CB_MIFRS_DepExp_2011NA'!N42,+'App.2-CB_MIFRS_DepExp_2011NA'!N42+((C42*0.5)/D42)) -> 0 | H42: 0 | I42: 0 | J42: =IF(ISERROR(+I42+'App.2-CB_MIFRS_DepExp_2011NA'!N42), 0, +I42+'App.2-CB_MIFRS_DepExp_2011NA'!N42) -> 0
A43: 1945 | B43: Measurement & Testing Equipment | E43: 0 | F43: =IF(D43=0,+'App.2-CB_MIFRS_DepExp_2011NA'!N43,+'App.2-CB_MIFRS_DepExp_2011NA'!N43+((C43*0.5)/D43)) -> 0 | H43: 0 | I43: 0 | J43: =IF(ISERROR(+I43+'App.2-CB_MIFRS_DepExp_2011NA'!N43), 0, +I43+'App.2-CB_MIFRS_DepExp_2011NA'!N43) -> 0
A44: 1950 | B44: Power Operated Equipment | E44: 0 | F44: =IF(D44=0,+'App.2-CB_MIFRS_DepExp_2011NA'!N44,+'App.2-CB_MIFRS_DepExp_2011NA'!N44+((C44*0.5)/D44)) -> 0 | H44: 0 | I44: 0 | J44: =IF(ISERROR(+I44+'App.2-CB_MIFRS_DepExp_2011NA'!N44), 0, +I44+'App.2-CB_MIFRS_DepExp_2011NA'!N44) -> 0
A45: 1955 | B45: Communications Equipment | E45: 0 | F45: =IF(D45=0,+'App.2-CB_MIFRS_DepExp_2011NA'!N45,+'App.2-CB_MIFRS_DepExp_2011NA'!N45+((C45*0.5)/D45)) -> 0 | H45: 0 | I45: 0 | J45: =IF(ISERROR(+I45+'App.2-CB_MIFRS_DepExp_2011NA'!N45), 0, +I45+'App.2-CB_MIFRS_DepExp_2011NA'!N45) -> 0
A46: 1955 | B46: Communication Equipment (Smart Meters) | E46: 0 | F46: =IF(D46=0,+'App.2-CB_MIFRS_DepExp_2011NA'!N46,+'App.2-CB_MIFRS_DepExp_2011NA'!N46+((C46*0.5)/D46)) -> 0 | H46: 0 | I46: 0 | J46: =IF(ISERROR(+I46+'App.2-CB_MIFRS_DepExp_2011NA'!N46), 0, +I46+'App.2-CB_MIFRS_DepExp_2011NA'!N46) -> 0
A47: 1960 | B47: Miscellaneous Equipment | E47: 0 | F47: =IF(D47=0,+'App.2-CB_MIFRS_DepExp_2011NA'!N47,+'App.2-CB_MIFRS_DepExp_2011NA'!N47+((C47*0.5)/D47)) -> 0 | H47: 0 | I47: 0 | J47: =IF(ISERROR(+I47+'App.2-CB_MIFRS_DepExp_2011NA'!N47), 0, +I47+'App.2-CB_MIFRS_DepExp_2011NA'!N47) -> 0
A48: 1975 | B48: Load Management Controls Utility Premises | E48: 0 | F48: =IF(D48=0,+'App.2-CB_MIFRS_DepExp_2011NA'!N48,+'App.2-CB_MIFRS_DepExp_2011NA'!N48+((C48*0.5)/D48)) -> 0 | H48: 0 | I48: 0 | J48: =IF(ISERROR(+I48+'App.2-CB_MIFRS_DepExp_2011NA'!N48), 0, +I48+'App.2-CB_MIFRS_DepExp_2011NA'!N48) -> 0
A49: 1980 | B49: System Supervisor Equipment | E49: 0 | F49: =IF(D49=0,+'App.2-CB_MIFRS_DepExp_2011NA'!N49,+'App.2-CB_MIFRS_DepExp_2011NA'!N49+((C49*0.5)/D49)) -> 0 | H49: 0 | I49: 0 | J49: =IF(ISERROR(+I49+'App.2-CB_MIFRS_DepExp_2011NA'!N49), 0, +I49+'App.2-CB_MIFRS_DepExp_2011NA'!N49) -> 0
A50: 1985 | B50: Miscellaneous Fixed Assets | E50: 0 | F50: =IF(D50=0,+'App.2-CB_MIFRS_DepExp_2011NA'!N50,+'App.2-CB_MIFRS_DepExp_2011NA'!N50+((C50*0.5)/D50)) -> 0 | H50: 0 | I50: 0 | J50: =IF(ISERROR(+I50+'App.2-CB_MIFRS_DepExp_2011NA'!N50), 0, +I50+'App.2-CB_MIFRS_DepExp_2011NA'!N50) -> 0
A51: 1995 | B51: Contributions & Grants | E51: 0 | F51: =IF(D51=0,+'App.2-CB_MIFRS_DepExp_2011NA'!N51,+'App.2-CB_MIFRS_DepExp_2011NA'!N51+((C51*0.5)/D51)) -> 0 | H51: 0 | I51: 0 | J51: =IF(ISERROR(+I51+'App.2-CB_MIFRS_DepExp_2011NA'!N51), 0, +I51+'App.2-CB_MIFRS_DepExp_2011NA'!N51) -> 0
A52: etc. | E52: 0 | F52: =IF(D52=0,+'App.2-CB_MIFRS_DepExp_2011NA'!N52,+'App.2-CB_MIFRS_DepExp_2011NA'!N52+((C52*0.5)/D52)) -> 0 | H52: 0 | I52: 0 | J52: =IF(ISERROR(+I52+'App.2-CB_MIFRS_DepExp_2011NA'!N52), 0, +I52+'App.2-CB_MIFRS_DepExp_2011NA'!N52) -> 0
E53: 0 | F53: =IF(D53=0,+'App.2-CB_MIFRS_DepExp_2011NA'!N53,+'App.2-CB_MIFRS_DepExp_2011NA'!N53+((C53*0.5)/D53)) -> 0 | H53: 0 | I53: 0 | J53: =IF(ISERROR(+I53+'App.2-CB_MIFRS_DepExp_2011NA'!N53), 0, +I53+'App.2-CB_MIFRS_DepExp_2011NA'!N53) -> 0
B54: Total | C54: =SUM(C16:C53) -> 0 | E54: 0 | F54: =SUM(F16:F53) -> 0 | G54: =SUM(G16:G53) -> 0 | H54: =SUM(H16:H53) -> 0 | I54: =SUM(I16:I53) -> 0 | J54: =SUM(J16:J53) -> 0
A56: Notes:
A57: 1 | B57: Board policy of the "half-year" rule - the applicant must ensure that additions in the year attract a half-year depreciation expense in the first year. Deviations from this standard practice must be supported in the application.
A58: 2 | B58: The applicant must provide an explanation of material variances in evidence
A59: 3 | B59: If the assets are fully depreciated as of the end of 2011, the applicant must exclude the depreciation expense of these assets in the calculation of the 2012 depreciation expense.
A61: General: | B61: Applicants must provide a breakdown of depreciation and amortization expense in the above format for all relevant accounts. Asset Retirement Obligations (AROs), depreciation and accretion expense should be disclosed separately consistent with the Notes of historical Audited Financial Statements.

Sheet App.2-CD_MIFRS_DepExp_2013NA (hidden)
I1: File Number: | J1: ='LDC Info'!$E$18 -> EB-2012-0153
I2: Exhibit:
I3: Tab:
I4: Schedule:
I5: Page:
A6: NOW Inc to adopt IFRS in 2013
I7: Date:
A9: Appendix 2-CD
A10: Depreciation and Amortization Expense
A11: Assumes the applicant adopted IFRS for financial reporting purposes January 1, 2013
D12: MIFRS
A14: Account | B14: Description | C14: Additions | D14: Years (new additions only) | E14: Depreciation Rate on New Additions | F14: 2013 Depreciation Expense 1 | G14: 2013 Depreciation Expense per Appendix 2-B Fixed Assets, Columns K & L (l) | H14: Variance 2 | I14: Depreciation Expense on 2013 Full Year Additions | J14: 2013 Full Year Depreciation
C15: (d) | D15: (f) | E15: (g) = 1 / (f) | F15: (h)=2012 Full Year Depreciation 3 + ((d)*0.5)/(f) | H15: (m) = (h) - (l) | I15: (n)=((d))/(f) | J15: (o) = 2012 Full Year Depreciation 3 + (n)
A16: 1611 | B16: Computer Software (Formally known as Account 1925) | E16: =IF(D16=0,0,1/D16) -> 0 | F16: =IF(D16=0,'App.2-CC_MIFRS_DepExp_2012NA'!J16,+'App.2-CC_MIFRS_DepExp_2012NA'!J16+((C16*0.5)/D16)) -> 0 | H16: =IF(ISERROR(+F16-G16), 0, +F16-G16) -> 0 | I16: =IF(D16=0,0,+(C16)/D16) -> 0 | J16: =IF(ISERROR(+I16+'App.2-CC_MIFRS_DepExp_2012NA'!J16), 0, +I16+'App.2-CC_MIFRS_DepExp_2012NA'!J16) -> 0
A17: 1612 | B17: Land Rights (Formally known as Account 1906) | E17: 0 | F17: =IF(D17=0,'App.2-CC_MIFRS_DepExp_2012NA'!J17,+'App.2-CC_MIFRS_DepExp_2012NA'!J17+((C17*0.5)/D17)) -> 0 | H17: 0 | I17: 0 | J17: =IF(ISERROR(+I17+'App.2-CC_MIFRS_DepExp_2012NA'!J17), 0, +I17+'App.2-CC_MIFRS_DepExp_2012NA'!J17) -> 0
A18: 1805 | B18: Land | E18: 0 | F18: =IF(D18=0,'App.2-CC_MIFRS_DepExp_2012NA'!J18,+'App.2-CC_MIFRS_DepExp_2012NA'!J18+((C18*0.5)/D18)) -> 0 | H18: 0 | I18: 0 | J18: =IF(ISERROR(+I18+'App.2-CC_MIFRS_DepExp_2012NA'!J18), 0, +I18+'App.2-CC_MIFRS_DepExp_2012NA'!J18) -> 0
A19: 1808 | B19: Buildings | E19: 0 | F19: =IF(D19=0,'App.2-CC_MIFRS_DepExp_2012NA'!J19,+'App.2-CC_MIFRS_DepExp_2012NA'!J19+((C19*0.5)/D19)) -> 0 | H19: 0 | I19: 0 | J19: =IF(ISERROR(+I19+'App.2-CC_MIFRS_DepExp_2012NA'!J19), 0, +I19+'App.2-CC_MIFRS_DepExp_2012NA'!J19) -> 0
A20: 1810 | B20: Leasehold Improvements | E20: 0 | F20: =IF(D20=0,'App.2-CC_MIFRS_DepExp_2012NA'!J20,+'App.2-CC_MIFRS_DepExp_2012NA'!J20+((C20*0.5)/D20)) -> 0 | H20: 0 | I20: 0 | J20: =IF(ISERROR(+I20+'App.2-CC_MIFRS_DepExp_2012NA'!J20), 0, +I20+'App.2-CC_MIFRS_DepExp_2012NA'!J20) -> 0
A21: 1815 | B21: Transformer Station Equipment >50 kV | E21: 0 | F21: =IF(D21=0,'App.2-CC_MIFRS_DepExp_2012NA'!J21,+'App.2-CC_MIFRS_DepExp_2012NA'!J21+((C21*0.5)/D21)) -> 0 | H21: 0 | I21: 0 | J21: =IF(ISERROR(+I21+'App.2-CC_MIFRS_DepExp_2012NA'!J21), 0, +I21+'App.2-CC_MIFRS_DepExp_2012NA'!J21) -> 0
A22: 1820 | B22: Distribution Station Equipment <50 kV | E22: 0 | F22: =IF(D22=0,'App.2-CC_MIFRS_DepExp_2012NA'!J22,+'App.2-CC_MIFRS_DepExp_2012NA'!J22+((C22*0.5)/D22)) -> 0 | H22: 0 | I22: 0 | J22: =IF(ISERROR(+I22+'App.2-CC_MIFRS_DepExp_2012NA'!J22), 0, +I22+'App.2-CC_MIFRS_DepExp_2012NA'!J22) -> 0
A23: 1825 | B23: Storage Battery Equipment | E23: 0 | F23: =IF(D23=0,'App.2-CC_MIFRS_DepExp_2012NA'!J23,+'App.2-CC_MIFRS_DepExp_2012NA'!J23+((C23*0.5)/D23)) -> 0 | H23: 0 | I23: 0 | J23: =IF(ISERROR(+I23+'App.2-CC_MIFRS_DepExp_2012NA'!J23), 0, +I23+'App.2-CC_MIFRS_DepExp_2012NA'!J23) -> 0
A24: 1830 | B24: Poles, Towers & Fixtures | E24: 0 | F24: =IF(D24=0,'App.2-CC_MIFRS_DepExp_2012NA'!J24,+'App.2-CC_MIFRS_DepExp_2012NA'!J24+((C24*0.5)/D24)) -> 0 | H24: 0 | I24: 0 | J24: =IF(ISERROR(+I24+'App.2-CC_MIFRS_DepExp_2012NA'!J24), 0, +I24+'App.2-CC_MIFRS_DepExp_2012NA'!J24) -> 0
A25: 1835 | B25: Overhead Conductors & Devices | E25: 0 | F25: =IF(D25=0,'App.2-CC_MIFRS_DepExp_2012NA'!J25,+'App.2-CC_MIFRS_DepExp_2012NA'!J25+((C25*0.5)/D25)) -> 0 | H25: 0 | I25: 0 | J25: =IF(ISERROR(+I25+'App.2-CC_MIFRS_DepExp_2012NA'!J25), 0, +I25+'App.2-CC_MIFRS_DepExp_2012NA'!J25) -> 0
A26: 1840 | B26: Underground Conduit | E26: 0 | F26: =IF(D26=0,'App.2-CC_MIFRS_DepExp_2012NA'!J26,+'App.2-CC_MIFRS_DepExp_2012NA'!J26+((C26*0.5)/D26)) -> 0 | H26: 0 | I26: 0 | J26: =IF(ISERROR(+I26+'App.2-CC_MIFRS_DepExp_2012NA'!J26), 0, +I26+'App.2-CC_MIFRS_DepExp_2012NA'!J26) -> 0
A27: 1845 | B27: Underground Conductors & Devices | E27: 0 | F27: =IF(D27=0,'App.2-CC_MIFRS_DepExp_2012NA'!J27,+'App.2-CC_MIFRS_DepExp_2012NA'!J27+((C27*0.5)/D27)) -> 0 | H27: 0 | I27: 0 | J27: =IF(ISERROR(+I27+'App.2-CC_MIFRS_DepExp_2012NA'!J27), 0, +I27+'App.2-CC_MIFRS_DepExp_2012NA'!J27) -> 0
A28: 1850 | B28: Line Transformers | E28: 0 | F28: =IF(D28=0,'App.2-CC_MIFRS_DepExp_2012NA'!J28,+'App.2-CC_MIFRS_DepExp_2012NA'!J28+((C28*0.5)/D28)) -> 0 | H28: 0 | I28: 0 | J28: =IF(ISERROR(+I28+'App.2-CC_MIFRS_DepExp_2012NA'!J28), 0, +I28+'App.2-CC_MIFRS_DepExp_2012NA'!J28) -> 0
A29: 1855 | B29: Services (Overhead & Underground) | E29: 0 | F29: =IF(D29=0,'App.2-CC_MIFRS_DepExp_2012NA'!J29,+'App.2-CC_MIFRS_DepExp_2012NA'!J29+((C29*0.5)/D29)) -> 0 | H29: 0 | I29: 0 | J29: =IF(ISERROR(+I29+'App.2-CC_MIFRS_DepExp_2012NA'!J29), 0, +I29+'App.2-CC_MIFRS_DepExp_2012NA'!J29) -> 0
A30: 1860 | B30: Meters | E30: 0 | F30: =IF(D30=0,'App.2-CC_MIFRS_DepExp_2012NA'!J30,+'App.2-CC_MIFRS_DepExp_2012NA'!J30+((C30*0.5)/D30)) -> 0 | H30: 0 | I30: 0 | J30: =IF(ISERROR(+I30+'App.2-CC_MIFRS_DepExp_2012NA'!J30), 0, +I30+'App.2-CC_MIFRS_DepExp_2012NA'!J30) -> 0
A31: 1860 | B31: Meters (Smart Meters) | E31: 0 | F31: =IF(D31=0,'App.2-CC_MIFRS_DepExp_2012NA'!J31,+'App.2-CC_MIFRS_DepExp_2012NA'!J31+((C31*0.5)/D31)) -> 0 | H31: 0 | I31: 0 | J31: =IF(ISERROR(+I31+'App.2-CC_MIFRS_DepExp_2012NA'!J31), 0, +I31+'App.2-CC_MIFRS_DepExp_2012NA'!J31) -> 0
A32: 1905 | B32: Land | E32: 0 | F32: =IF(D32=0,'App.2-CC_MIFRS_DepExp_2012NA'!J32,+'App.2-CC_MIFRS_DepExp_2012NA'!J32+((C32*0.5)/D32)) -> 0 | H32: 0 | I32: 0 | J32: =IF(ISERROR(+I32+'App.2-CC_MIFRS_DepExp_2012NA'!J32), 0, +I32+'App.2-CC_MIFRS_DepExp_2012NA'!J32) -> 0
A33: 1908 | B33: Buildings & Fixtures | E33: 0 | F33: =IF(D33=0,'App.2-CC_MIFRS_DepExp_2012NA'!J33,+'App.2-CC_MIFRS_DepExp_2012NA'!J33+((C33*0.5)/D33)) -> 0 | H33: 0 | I33: 0 | J33: =IF(ISERROR(+I33+'App.2-CC_MIFRS_DepExp_2012NA'!J33), 0, +I33+'App.2-CC_MIFRS_DepExp_2012NA'!J33) -> 0
A34: 1910 | B34: Leasehold Improvements | E34: 0 | F34: =IF(D34=0,'App.2-CC_MIFRS_DepExp_2012NA'!J34,+'App.2-CC_MIFRS_DepExp_2012NA'!J34+((C34*0.5)/D34)) -> 0 | H34: 0 | I34: 0 | J34: =IF(ISERROR(+I34+'App.2-CC_MIFRS_DepExp_2012NA'!J34), 0, +I34+'App.2-CC_MIFRS_DepExp_2012NA'!J34) -> 0
A35: 1915 | B35: Office Furniture & Equipment (10 years) | E35: 0 | F35: =IF(D35=0,'App.2-CC_MIFRS_DepExp_2012NA'!J35,+'App.2-CC_MIFRS_DepExp_2012NA'!J35+((C35*0.5)/D35)) -> 0 | H35: 0 | I35: 0 | J35: =IF(ISERROR(+I35+'App.2-CC_MIFRS_DepExp_2012NA'!J35), 0, +I35+'App.2-CC_MIFRS_DepExp_2012NA'!J35) -> 0
A36: 1915 | B36: Office Furniture & Equipment (5 years) | E36: 0 | F36: =IF(D36=0,'App.2-CC_MIFRS_DepExp_2012NA'!J36,+'App.2-CC_MIFRS_DepExp_2012NA'!J36+((C36*0.5)/D36)) -> 0 | H36: 0 | I36: 0 | J36: =IF(ISERROR(+I36+'App.2-CC_MIFRS_DepExp_2012NA'!J36), 0, +I36+'App.2-CC_MIFRS_DepExp_2012NA'!J36) -> 0
A37: 1920 | B37: Computer Equipment - Hardware | E37: 0 | F37: =IF(D37=0,'App.2-CC_MIFRS_DepExp_2012NA'!J37,+'App.2-CC_MIFRS_DepExp_2012NA'!J37+((C37*0.5)/D37)) -> 0 | H37: 0 | I37: 0 | J37: =IF(ISERROR(+I37+'App.2-CC_MIFRS_DepExp_2012NA'!J37), 0, +I37+'App.2-CC_MIFRS_DepExp_2012NA'!J37) -> 0
A38: 1920 | B38: Computer Equip.-Hardware(Post Mar. 22/04) | E38: 0 | F38: =IF(D38=0,'App.2-CC_MIFRS_DepExp_2012NA'!J38,+'App.2-CC_MIFRS_DepExp_2012NA'!J38+((C38*0.5)/D38)) -> 0 | H38: 0 | I38: 0 | J38: =IF(ISERROR(+I38+'App.2-CC_MIFRS_DepExp_2012NA'!J38), 0, +I38+'App.2-CC_MIFRS_DepExp_2012NA'!J38) -> 0
A39: 1920 | B39: Computer Equip.-Hardware(Post Mar. 19/07) | E39: 0 | F39: =IF(D39=0,'App.2-CC_MIFRS_DepExp_2012NA'!J39,+'App.2-CC_MIFRS_DepExp_2012NA'!J39+((C39*0.5)/D39)) -> 0 | H39: 0 | I39: 0 | J39: =IF(ISERROR(+I39+'App.2-CC_MIFRS_DepExp_2012NA'!J39), 0, +I39+'App.2-CC_MIFRS_DepExp_2012NA'!J39) -> 0
A40: 1930 | B40: Transportation Equipment | E40: 0 | F40: =IF(D40=0,'App.2-CC_MIFRS_DepExp_2012NA'!J40,+'App.2-CC_MIFRS_DepExp_2012NA'!J40+((C40*0.5)/D40)) -> 0 | H40: 0 | I40: 0 | J40: =IF(ISERROR(+I40+'App.2-CC_MIFRS_DepExp_2012NA'!J40), 0, +I40+'App.2-CC_MIFRS_DepExp_2012NA'!J40) -> 0
A41: 1935 | B41: Stores Equipment | E41: 0 | F41: =IF(D41=0,'App.2-CC_MIFRS_DepExp_2012NA'!J41,+'App.2-CC_MIFRS_DepExp_2012NA'!J41+((C41*0.5)/D41)) -> 0 | H41: 0 | I41: 0 | J41: =IF(ISERROR(+I41+'App.2-CC_MIFRS_DepExp_2012NA'!J41), 0, +I41+'App.2-CC_MIFRS_DepExp_2012NA'!J41) -> 0
A42: 1940 | B42: Tools, Shop & Garage Equipment | E42: 0 | F42: =IF(D42=0,'App.2-CC_MIFRS_DepExp_2012NA'!J42,+'App.2-CC_MIFRS_DepExp_2012NA'!J42+((C42*0.5)/D42)) -> 0 | H42: 0 | I42: 0 | J42: =IF(ISERROR(+I42+'App.2-CC_MIFRS_DepExp_2012NA'!J42), 0, +I42+'App.2-CC_MIFRS_DepExp_2012NA'!J42) -> 0
A43: 1945 | B43: Measurement & Testing Equipment | E43: 0 | F43: =IF(D43=0,'App.2-CC_MIFRS_DepExp_2012NA'!J43,+'App.2-CC_MIFRS_DepExp_2012NA'!J43+((C43*0.5)/D43)) -> 0 | H43: 0 | I43: 0 | J43: =IF(ISERROR(+I43+'App.2-CC_MIFRS_DepExp_2012NA'!J43), 0, +I43+'App.2-CC_MIFRS_DepExp_2012NA'!J43) -> 0
A44: 1950 | B44: Power Operated Equipment | E44: 0 | F44: =IF(D44=0,'App.2-CC_MIFRS_DepExp_2012NA'!J44,+'App.2-CC_MIFRS_DepExp_2012NA'!J44+((C44*0.5)/D44)) -> 0 | H44: 0 | I44: 0 | J44: =IF(ISERROR(+I44+'App.2-CC_MIFRS_DepExp_2012NA'!J44), 0, +I44+'App.2-CC_MIFRS_DepExp_2012NA'!J44) -> 0
A45: 1955 | B45: Communications Equipment | E45: 0 | F45: =IF(D45=0,'App.2-CC_MIFRS_DepExp_2012NA'!J45,+'App.2-CC_MIFRS_DepExp_2012NA'!J45+((C45*0.5)/D45)) -> 0 | H45: 0 | I45: 0 | J45: =IF(ISERROR(+I45+'App.2-CC_MIFRS_DepExp_2012NA'!J45), 0, +I45+'App.2-CC_MIFRS_DepExp_2012NA'!J45) -> 0
A46: 1955 | B46: Communication Equipment (Smart Meters) | E46: 0 | F46: =IF(D46=0,'App.2-CC_MIFRS_DepExp_2012NA'!J46,+'App.2-CC_MIFRS_DepExp_2012NA'!J46+((C46*0.5)/D46)) -> 0 | H46: 0 | I46: 0 | J46: =IF(ISERROR(+I46+'App.2-CC_MIFRS_DepExp_2012NA'!J46), 0, +I46+'App.2-CC_MIFRS_DepExp_2012NA'!J46) -> 0
A47: 1960 | B47: Miscellaneous Equipment | E47: 0 | F47: =IF(D47=0,'App.2-CC_MIFRS_DepExp_2012NA'!J47,+'App.2-CC_MIFRS_DepExp_2012NA'!J47+((C47*0.5)/D47)) -> 0 | H47: 0 | I47: 0 | J47: =IF(ISERROR(+I47+'App.2-CC_MIFRS_DepExp_2012NA'!J47), 0, +I47+'App.2-CC_MIFRS_DepExp_2012NA'!J47) -> 0
A48: 1975 | B48: Load Management Controls Utility Premises | E48: 0 | F48: =IF(D48=0,'App.2-CC_MIFRS_DepExp_2012NA'!J48,+'App.2-CC_MIFRS_DepExp_2012NA'!J48+((C48*0.5)/D48)) -> 0 | H48: 0 | I48: 0 | J48: =IF(ISERROR(+I48+'App.2-CC_MIFRS_DepExp_2012NA'!J48), 0, +I48+'App.2-CC_MIFRS_DepExp_2012NA'!J48) -> 0
A49: 1980 | B49: System Supervisor Equipment | E49: 0 | F49: =IF(D49=0,'App.2-CC_MIFRS_DepExp_2012NA'!J49,+'App.2-CC_MIFRS_DepExp_2012NA'!J49+((C49*0.5)/D49)) -> 0 | H49: 0 | I49: 0 | J49: =IF(ISERROR(+I49+'App.2-CC_MIFRS_DepExp_2012NA'!J49), 0, +I49+'App.2-CC_MIFRS_DepExp_2012NA'!J49) -> 0
A50: 1985 | B50: Miscellaneous Fixed Assets | E50: 0 | F50: =IF(D50=0,'App.2-CC_MIFRS_DepExp_2012NA'!J50,+'App.2-CC_MIFRS_DepExp_2012NA'!J50+((C50*0.5)/D50)) -> 0 | H50: 0 | I50: 0 | J50: =IF(ISERROR(+I50+'App.2-CC_MIFRS_DepExp_2012NA'!J50), 0, +I50+'App.2-CC_MIFRS_DepExp_2012NA'!J50) -> 0
A51: 1995 | B51: Contributions & Grants | E51: 0 | F51: =IF(D51=0,'App.2-CC_MIFRS_DepExp_2012NA'!J51,+'App.2-CC_MIFRS_DepExp_2012NA'!J51+((C51*0.5)/D51)) -> 0 | H51: 0 | I51: 0 | J51: =IF(ISERROR(+I51+'App.2-CC_MIFRS_DepExp_2012NA'!J51), 0, +I51+'App.2-CC_MIFRS_DepExp_2012NA'!J51) -> 0
A52: etc. | E52: 0 | F52: =IF(D52=0,'App.2-CC_MIFRS_DepExp_2012NA'!J52,+'App.2-CC_MIFRS_DepExp_2012NA'!J52+((C52*0.5)/D52)) -> 0 | H52: 0 | I52: 0 | J52: =IF(ISERROR(+I52+'App.2-CC_MIFRS_DepExp_2012NA'!J52), 0, +I52+'App.2-CC_MIFRS_DepExp_2012NA'!J52) -> 0
E53: 0 | F53: =IF(D53=0,'App.2-CC_MIFRS_DepExp_2012NA'!J53,+'App.2-CC_MIFRS_DepExp_2012NA'!J53+((C53*0.5)/D53)) -> 0 | H53: 0 | I53: 0 | J53: =IF(ISERROR(+I53+'App.2-CC_MIFRS_DepExp_2012NA'!J53), 0, +I53+'App.2-CC_MIFRS_DepExp_2012NA'!J53) -> 0
B54: Total | C54: =SUM(C16:C53) -> 0 | E54: 0 | F54: =SUM(F16:F53) -> 0 | G54: =SUM(G16:G53) -> 0 | H54: =SUM(H16:H53) -> 0 | I54: =SUM(I16:I53) -> 0 | J54: =SUM(J16:J53) -> 0
B55: Depreciation expense adjustment resulting from amortization of Account 1575 | F55: 0
B56: Total Depreciation expense to be included in the test year revenue requirement | F56: =+F54+F55 -> 0
A57: Notes:
A58: 1 | B58: Board policy of the "half-year" rule - the applicant must ensure that additions in the year attract a half-year depreciation expense in the first year. Deviations from this standard practice must be supported in the application.
A59: 2 | B59: The applicant must provide an explanation of material variances in evidence
A60: 3 | B60: If the assets are fully depreciated as of the end of 2012, the applicant must exclude the depreciation expense of these assets in the calculation of the 2013 depreciation expense.
A63: General: | B63: Applicants must provide a breakdown of depreciation and amortization expense in the above format for all relevant accounts. Asset Retirement Obligations (AROs), depreciation and accretion expense should be disclosed separately consistent with the Notes of historical Audited Financial Statements.

Sheet App2-CE Dep Summary
A1: Appendix 2-CE
A2: Summary Depreciation and Amortization Expense
C4: CGAAP | D4: CGAAP | E4: CGAAP | F4: CGAAP | G4: CGAAP
C5: 2009 | D5: 2010 | E5: 2011 | F5: 2012 | G5: 2013
B6: Opening Regulatory Gross PP&E as at Jan 1 | C6: ='App2-CE CGAAP Dep 2009'!C54 -> 6635653.36 | D6: ='App2-CE CGAAP Dep 2010'!C54 -> 6751833.36 | E6: ='App2-CE CGAAP Dep 2011 '!C54 -> 6537468.36 | F6: ='App.2-CF_CGAAP_DepExp_2012'!C54 -> 7865405.36 | G6: ='App.2-CF_CGAAP_DepExp_2013'!C54 -> 8695701.36
B7: Less Fully Depreciated | C7: ='App2-CE CGAAP Dep 2009'!D54 -> 331508 | D7: ='App2-CE CGAAP Dep 2010'!D54 -> 709708 | E7: ='App2-CE CGAAP Dep 2011 '!D54 -> 709708 | F7: ='App.2-CF_CGAAP_DepExp_2012'!D54 -> 569059 | G7: ='App.2-CF_CGAAP_DepExp_2013'!D54 -> 569059
B8: Net for Depreciation | C8: ='App2-CE CGAAP Dep 2009'!E54 -> 6304145.36 | D8: ='App2-CE CGAAP Dep 2010'!E54 -> 6042125.36 | E8: ='App2-CE CGAAP Dep 2011 '!E54 -> 5827760.36 | F8: ='App.2-CF_CGAAP_DepExp_2012'!E54 -> 7296346.36 | G8: ='App.2-CF_CGAAP_DepExp_2013'!E54 -> 8126642.36
B9: Additions | C9: ='App2-CE CGAAP Dep 2009'!F54 -> 201928 | D9: ='App2-CE CGAAP Dep 2010'!F54 -> 437145 | E9: ='App2-CE CGAAP Dep 2011 '!F54 -> 1430029 | F9: ='App.2-CF_CGAAP_DepExp_2012'!F54 -> 830296 | G9: ='App.2-CF_CGAAP_DepExp_2013'!F54 -> 1847088
B10: Total for Depreciation | C10: ='App2-CE CGAAP Dep 2009'!G54 -> 6405109.36 | D10: ='App2-CE CGAAP Dep 2010'!G54 -> 6260697.86 | E10: ='App2-CE CGAAP Dep 2011 '!G54 -> 6542774.86 | F10: ='App.2-CF_CGAAP_DepExp_2012'!G54 -> 7711494.36 | G10: ='App.2-CF_CGAAP_DepExp_2013'!G54 -> 9050186.36
B13: Depreciation Expense | C13: ='App2-CE CGAAP Dep 2009'!J54 -> 391392.6 | D13: ='App2-CE CGAAP Dep 2010'!J54 -> 386984.6 | E13: ='App2-CE CGAAP Dep 2011 '!J54 -> 404798 | F13: ='App.2-CF_CGAAP_DepExp_2012'!J54 -> 470239 | G13: ='App.2-CF_CGAAP_DepExp_2013'!J54 -> 538428.9826
B14: Depreciation Expense per Appendix 2-B Fixed Assets | C14: ='App2-CE CGAAP Dep 2009'!K54 -> 390072 | D14: ='App2-CE CGAAP Dep 2010'!K54 -> 384791 | E14: ='App2-CE CGAAP Dep 2011 '!K54 -> 404798 | F14: ='App.2-CF_CGAAP_DepExp_2012'!K54 -> 470239 | G14: ='App.2-CF_CGAAP_DepExp_2013'!K54 -> 538428.9826
B15: Variance | C15: ='App2-CE CGAAP Dep 2009'!L54 -> 1320.6 | D15: ='App2-CE CGAAP Dep 2010'!L54 -> 2193.6 | E15: ='App2-CE CGAAP Dep 2011 '!L54 -> 1.30961908e-14 | F15: ='App.2-CF_CGAAP_DepExp_2012'!L54 -> -1.005906469e-13 | G15: ='App.2-CF_CGAAP_DepExp_2013'!L54 -> 1.30961908e-14
F17: MIFRS | G17: MIFRS
F18: 2012 | G18: 2013
B19: Opening NBV as at Jan 1, | F19: ='App.2-CG_MIFRS_DepExp_2012'!C54 -> 4400309.41 | G19: 0
B20: Additions | F20: ='App.2-CG_MIFRS_DepExp_2012'!D54 -> 830296 | G20: ='App.2-CH_MIFRS_DepExp_2013'!C54 -> 1847088
B21: Depreciation Expense on Opening NBV | F21: ='App.2-CG_MIFRS_DepExp_2012'!H54 -> 332489.3047 | G21: 0
B22: Depreciation Expense on Additions | F22: ='App.2-CG_MIFRS_DepExp_2012'!I54 -> 31393.00657 | G22: 0
B23: Depreciation Expense | F23: ='App.2-CG_MIFRS_DepExp_2012'!J54 -> 363882.3113 | G23: ='App.2-CH_MIFRS_DepExp_2013'!F54 -> 446045.5772
B24: Depreciation Expense per Appendix 2-B Fixed Assets | F24: ='App.2-CG_MIFRS_DepExp_2012'!K54 -> 367059 | G24: ='App.2-CH_MIFRS_DepExp_2013'!G54 -> 533429
B25: Variance 2 | F25: ='App.2-CG_MIFRS_DepExp_2012'!L54 -> -3176.688699 | G25: 0
B26: Depreciation Expense on 2012 Full Year Additions | F26: ='App.2-CG_MIFRS_DepExp_2012'!M54 -> 62786.01313 | G26: ='App.2-CH_MIFRS_DepExp_2013'!I54 -> 101624.5188
B27: Full Year Depreciation | F27: ='App.2-CG_MIFRS_DepExp_2012'!N54 -> 395275.3179 | G27: ='App.2-CH_MIFRS_DepExp_2013'!J54 -> 496857.8366

Sheet App2-CE CGAAP Dep 2009
K1: File Number: | L1: 0
K2: Exhibit:
K3: Tab:
K4: Schedule:
K5: Page:
K7: Date:
A9: Appendix 2-CE
A10: Depreciation and Amortization Expense
A11: Assumes the applicant adopted IFRS for financial reporting purposes January 1, 2013
C12: Year | D12: 2009 | E12: CGAAP
A14: Account | B14: Description | C14: Opening Regulatory Gross PP&E as at Jan 1, 2009 | D14: Less Fully Depreciated | E14: Net for Depreciation | F14: Additions | G14: Total for Depreciation | H14: Years | I14: Depreciation Rate | J14: 2009 Depreciation Expense | K14: 2009 Depreciation Expense per Appendix 2-B Fixed Assets, Column K (l) | L14: Variance 2 | M14: Notes
C15: (a) | D15: (b) | E15: (c) | F15: (d) | G15: (e) = (c) + ½ x (d) 1 | H15: (f) | I15: (g) = 1 / (f) | J15: (h) = (e) / (f) | L15: (m) = (h) - (l)
A16: 1611 | B16: Computer Software (Formally known as Account 1925) | C16: =+'App.2-B_FAC 2009'!E16 -> 110642 | D16: 32733 | E16: =C16-D16 -> 77909 | F16: =+'App.2-B_FAC 2009'!F16 -> 67427 | G16: =E16+0.5*F16 -> 111622.5 | H16: =+G16/K16 -> 8.042546293 | I16: =IF(H16=0,"",1/H16) -> 0.124338731 | J16: =IF(H16=0,0,G16/H16) -> 13879 | K16: =-'App.2-B_FAC 2009'!K16 -> 13879 | L16: =IF(ISERROR(+J16-K16), "", +J16-K16) -> 1.818989404e-12 | M16: Note 8 | N16: 7 | O16: =+N16-H16 -> -1.042546293
A17: 1612 | B17: Land Rights (Formally known as Account 1906) | C17: =+'App.2-B_FAC 2009'!E17 -> 0 | E17: =C17-D17 -> 0 | F17: =+'App.2-B_FAC 2009'!F17 -> 0 | G17: =E17+0.5*F17 -> 0 | J17: 0 | K17: =-'App.2-B_FAC 2009'!K17 -> 0 | L17: =IF(ISERROR(+J17-K17), "", +J17-K17) -> 0
A18: 1805 | B18: Land | C18: =+'App.2-B_FAC 2009'!E18 -> 2840 | E18: 2840 | F18: =+'App.2-B_FAC 2009'!F18 -> 0 | G18: 2840 | J18: 0 | K18: =-'App.2-B_FAC 2009'!K18 -> 0 | L18: 0
A19: 1808 | B19: Buildings | C19: =+'App.2-B_FAC 2009'!E19 -> 93232 | D19: 18059 | E19: 75173 | F19: =+'App.2-B_FAC 2009'!F19 -> 0 | G19: 75173 | H19: =+G19/K19 -> 29.43343774 | I19: =IF(H19=0,"",1/H19) -> 0.03397496442 | J19: =IF(H19=0,0,G19/H19) -> 2554 | K19: =-'App.2-B_FAC 2009'!K19 -> 2554 | L19: 0 | N19: 30 | O19: =+N19-H19 -> 0.5665622553
A20: 1810 | B20: Leasehold Improvements | C20: =+'App.2-B_FAC 2009'!E20 -> 25087 | D20: 20033 | E20: 5054 | F20: =+'App.2-B_FAC 2009'!F20 -> 4692 | G20: 7400 | H20: =+G20/K20 -> 5.092911218 | I20: 0.1963513514 | J20: 1453 | K20: =-'App.2-B_FAC 2009'!K20 -> 1453 | L20: 0 | N20: 5 | O20: =+N20-H20 -> -0.09291121817
A21: 1815 | B21: Transformer Station Equipment >50 kV | C21: =+'App.2-B_FAC 2009'!E21 -> 3644 | E21: 3644 | F21: =+'App.2-B_FAC 2009'!F21 -> 0 | G21: 3644 | H21: =+G21/K21 -> 30.11570248 | I21: 0.03320526894 | J21: 121 | K21: =-'App.2-B_FAC 2009'!K21 -> 121 | L21: 0 | M21: Note 1 | N21: 30 | O21: =+N21-H21 -> -0.1157024793
A22: 1820 | B22: Distribution Station Equipment <50 kV | C22: =+'App.2-B_FAC 2009'!E22 -> 551343 | E22: 551343 | F22: =+'App.2-B_FAC 2009'!F22 -> 0 | G22: 551343 | H22: 26.94472681 | I22: 0.03711301313 | J22: 20462 | K22: =-'App.2-B_FAC 2009'!K22 -> 20462 | L22: 0 | M22: Note 1 | N22: 30 | O22: =+N22-H22 -> 3.055273189
A23: 1825 | B23: Storage Battery Equipment | C23: =+'App.2-B_FAC 2009'!E23 -> 0 | E23: 0 | F23: =+'App.2-B_FAC 2009'!F23 -> 0 | G23: 0 | J23: 0 | K23: =-'App.2-B_FAC 2009'!K23 -> 0 | L23: 0
A24: 1830 | B24: Poles, Towers & Fixtures | C24: =+'App.2-B_FAC 2009'!E24 -> 2315176 | E24: 2315176 | F24: =+'App.2-B_FAC 2009'!F24 -> 44303 | G24: 2337327.5 | H24: 24.43855146 | I24: 0.04091895552 | J24: 95641 | K24: =-'App.2-B_FAC 2009'!K24 -> 95641 | L24: 0 | M24: Note 1 | N24: 25 | O24: =+N24-H24 -> 0.5614485419
A25: 1835 | B25: Overhead Conductors & Devices | C25: =+'App.2-B_FAC 2009'!E25 -> 1318125.08 | E25: 1318125.08 | F25: =+'App.2-B_FAC 2009'!F25 -> 47817 | G25: 1342033.58 | H25: 16.35389803 | I25: 0.06114750124 | J25: 82062 | K25: =-'App.2-B_FAC 2009'!K25 -> 82062 | L25: 0 | M25: Note 1 | N25: 25 | O25: 8.646101972
A26: 1840 | B26: Underground Conduit | C26: =+'App.2-B_FAC 2009'!E26 -> 186674.28 | E26: 186674.28 | F26: =+'App.2-B_FAC 2009'!F26 -> 0 | G26: 186674.28 | H26: 12.95269775 | I26: 0.07720399404 | J26: 14412 | K26: =-'App.2-B_FAC 2009'!K26 -> 14412 | L26: 0 | M26: Note 1 | N26: 25 | O26: 12.04730225
A27: 1845 | B27: Underground Conductors & Devices | C27: =+'App.2-B_FAC 2009'!E27 -> 3690 | E27: 3690 | F27: =+'App.2-B_FAC 2009'!F27 -> 0 | G27: 3690 | H27: 25.10204082 | I27: 0.03983739837 | J27: 147 | K27: =-'App.2-B_FAC 2009'!K27 -> 147 | L27: 0 | N27: 25 | O27: -0.1020408163
A28: 1850 | B28: Line Transformers | C28: =+'App.2-B_FAC 2009'!E28 -> 512547 | E28: 512547 | F28: =+'App.2-B_FAC 2009'!F28 -> 0 | G28: 512547 | H28: 17.25108546 | I28: 0.0579673669 | J28: 29711 | K28: =-'App.2-B_FAC 2009'!K28 -> 29711 | L28: 0 | M28: Note 1 | N28: 25 | O28: 7.748914543
A29: 1855 | B29: Services (Overhead & Underground) | C29: =+'App.2-B_FAC 2009'!E29 -> -5.820899318e-13 | E29: -5.820899318e-13 | F29: =+'App.2-B_FAC 2009'!F29 -> 0 | G29: -5.820899318e-13 | H29: 25 | I29: 0.04 | J29: -2.328359727e-14 | K29: =-'App.2-B_FAC 2009'!K29 -> 0 | L29: -2.328359727e-14 | M29: Note 1 | N29: 25 | O29: 0
A30: 1860 | B30: Meters | C30: =+'App.2-B_FAC 2009'!E30 -> 529176 | E30: 529176 | F30: =+'App.2-B_FAC 2009'!F30 -> 2442 | G30: 530397 | H30: 16.21166366 | I30: 0.06168398388 | J30: 32717 | K30: =-'App.2-B_FAC 2009'!K30 -> 32717 | L30: 0 | M30: Note 1 | N30: 25 | O30: 8.788336339
A31: 1860 | B31: Meters (Smart Meters) | C31: =+'App.2-B_FAC 2009'!E31 -> 0 | E31: 0 | F31: =+'App.2-B_FAC 2009'!F31 -> 0 | G31: 0 | J31: 0 | K31: =-'App.2-B_FAC 2009'!K31 -> 0 | L31: 0
A32: 1905 | B32: Land | C32: =+'App.2-B_FAC 2009'!E32 -> 0 | E32: 0 | F32: =+'App.2-B_FAC 2009'!F32 -> 0 | G32: 0 | J32: 0 | K32: =-'App.2-B_FAC 2009'!K32 -> 0 | L32: 0
A33: 1908 | B33: Buildings & Fixtures | C33: =+'App.2-B_FAC 2009'!E33 -> 0 | E33: 0 | F33: =+'App.2-B_FAC 2009'!F33 -> 0 | G33: 0 | J33: 0 | K33: =-'App.2-B_FAC 2009'!K33 -> 0 | L33: 0
A34: 1910 | B34: Leasehold Improvements | C34: =+'App.2-B_FAC 2009'!E34 -> 0 | E34: 0 | F34: =+'App.2-B_FAC 2009'!F34 -> 0 | G34: 0 | J34: 0 | K34: =-'App.2-B_FAC 2009'!K34 -> 0 | L34: 0
A35: 1915 | B35: Office Furniture & Equipment (10 years) | C35: =+'App.2-B_FAC 2009'!E35 -> 17008 | D35: 6438 | E35: 10570 | F35: =+'App.2-B_FAC 2009'!F35 -> 0 | G35: 10570 | H35: =+G35/K35 -> 12.65868263 | I35: 0.07899716178 | J35: 835 | K35: =-'App.2-B_FAC 2009'!K35 -> 835 | L35: 0 | M35: Note 6 | N35: 7 | O35: =+N35-H35 -> -5.658682635
A36: 1915 | B36: Office Furniture & Equipment (5 years) | C36: =+'App.2-B_FAC 2009'!E36 -> 0 | E36: 0 | F36: =+'App.2-B_FAC 2009'!F36 -> 0 | G36: 0 | J36: 0 | K36: =-'App.2-B_FAC 2009'!K36 -> 0 | L36: 0
A37: 1920 | B37: Computer Equipment - Hardware | C37: =+'App.2-B_FAC 2009'!E37 -> 0 | E37: 0 | F37: =+'App.2-B_FAC 2009'!F37 -> 0 | G37: 0 | J37: 0 | K37: =-'App.2-B_FAC 2009'!K37 -> 0 | L37: 0
A38: 1920 | B38: Computer Equip.-Hardware(Post Mar. 22/04) | C38: =+'App.2-B_FAC 2009'!E38 -> 0 | E38: 0 | F38: =+'App.2-B_FAC 2009'!F38 -> 0 | G38: 0 | J38: 0 | K38: =-'App.2-B_FAC 2009'!K38 -> 0 | L38: 0
A39: 1920 | B39: Computer Equip.-Hardware(Post Mar. 19/07) | C39: =+'App.2-B_FAC 2009'!E39 -> 149130 | D39: 99509 | E39: 49621 | F39: =+'App.2-B_FAC 2009'!F39 -> 1410 | G39: 50326 | H39: =+G39/K39 -> 4.198031365 | I39: 0.2382068911 | J39: 11988 | K39: =-'App.2-B_FAC 2009'!K39 -> 11988 | L39: 0 | M39: Note 9 | N39: 5 | O39: =+N39-H39 -> 0.8019686353
A40: 1930 | B40: Transportation Equipment | C40: =+'App.2-B_FAC 2009'!E40 -> 701506 | D40: 128064 | E40: 573442 | F40: =+'App.2-B_FAC 2009'!F40 -> 20142 | G40: 583513 | H40: 8.023113201 | I40: 0.1246398966 | J40: 72729 | K40: =-'App.2-B_FAC 2009'!K40 -> 72729 | L40: 0 | N40: 8 | O40: =+N40-H40 -> -0.02311320106
A41: 1935 | B41: Stores Equipment | C41: =+'App.2-B_FAC 2009'!E41 -> 0 | E41: 0 | F41: =+'App.2-B_FAC 2009'!F41 -> 680 | G41: 340 | H41: 5 | I41: 0.2 | J41: 68 | K41: =-'App.2-B_FAC 2009'!K41 -> 68 | L41: 0 | N41: 10 | O41: =+N41-H41 -> 5
A42: 1940 | B42: Tools, Shop & Garage Equipment | C42: =+'App.2-B_FAC 2009'!E42 -> 108544 | D42: 25986 | E42: 82558 | F42: =+'App.2-B_FAC 2009'!F42 -> 13015 | G42: 89065.5 | H42: 7.886788276 | I42: 0.1267943255 | J42: 11293 | K42: =-'App.2-B_FAC 2009'!K42 -> 11293 | L42: 0 | M42: Note 4 | N42: 5 | O42: =+N42-H42 -> -2.886788276
A43: 1945 | B43: Measurement & Testing Equipment | C43: =+'App.2-B_FAC 2009'!E43 -> 0 | E43: 0 | F43: =+'App.2-B_FAC 2009'!F43 -> 0 | G43: 0 | J43: 0 | K43: =-'App.2-B_FAC 2009'!K43 -> 0 | L43: 0
A44: 1950 | B44: Power Operated Equipment | C44: =+'App.2-B_FAC 2009'!E44 -> 0 | E44: 0 | F44: =+'App.2-B_FAC 2009'!F44 -> 0 | G44: 0 | J44: 0 | K44: =-'App.2-B_FAC 2009'!K44 -> 0 | L44: 0
A45: 1955 | B45: Communications Equipment | C45: =+'App.2-B_FAC 2009'!E45 -> 686 | D45: 686 | E45: 0 | F45: =+'App.2-B_FAC 2009'!F45 -> 0 | G45: 0 | H45: 5 | I45: 0.2 | J45: 0 | K45: =-'App.2-B_FAC 2009'!K45 -> 0 | L45: 0 | N45: 5 | O45: =+N45-H45 -> 0
A46: 1955 | B46: Communication Equipment (Smart Meters) | C46: =+'App.2-B_FAC 2009'!E46 -> 0 | E46: 0 | F46: =+'App.2-B_FAC 2009'!F46 -> 0 | G46: 0 | J46: 0 | K46: =-'App.2-B_FAC 2009'!K46 -> 0 | L46: 0
A47: 1960 | B47: Miscellaneous Equipment | C47: =+'App.2-B_FAC 2009'!E47 -> 6603 | E47: 6603 | F47: =+'App.2-B_FAC 2009'!F47 -> 0 | G47: 6603 | H47: 5 | I47: 0.2 | J47: 1320.6 | K47: =-'App.2-B_FAC 2009'!K47 -> 0 | L47: 1320.6 | M47: Note 5 | N47: 5 | O47: =+N47-H47 -> 0
A48: 1975 | B48: Load Management Controls Utility Premises | C48: =+'App.2-B_FAC 2009'!E48 -> 0 | E48: 0 | F48: =+'App.2-B_FAC 2009'!F48 -> 0 | G48: 0 | J48: 0 | K48: =-'App.2-B_FAC 2009'!K48 -> 0 | L48: 0
A49: 1980 | B49: System Supervisor Equipment | C49: =+'App.2-B_FAC 2009'!E49 -> 0 | E49: 0 | F49: =+'App.2-B_FAC 2009'!F49 -> 0 | G49: 0 | J49: 0 | K49: =-'App.2-B_FAC 2009'!K49 -> 0 | L49: 0
A50: 1985 | B50: Miscellaneous Fixed Assets - Smart Meters WIP | C50: =+'App.2-B_FAC 2009'!E50 -> 0 | E50: 0 | F50: =+'App.2-B_FAC 2009'!F50 -> 0 | G50: 0 | J50: 0 | K50: =-'App.2-B_FAC 2009'!K50 -> 0 | L50: 0 | M50: Note 7
A51: 1995 | B51: Contributions & Grants | C51: =+'App.2-B_FAC 2009'!E51 -> 0 | E51: 0 | F51: =+'App.2-B_FAC 2009'!F51 -> 0 | G51: 0 | J51: 0 | K51: =-'App.2-B_FAC 2009'!K51 -> 0 | L51: 0
A52: etc. | C52: =+'App.2-B_FAC 2009'!E52 -> 0 | E52: 0 | F52: =+'App.2-B_FAC 2009'!F52 -> 0 | G52: 0 | J52: 0 | K52: =-'App.2-B_FAC 2009'!K52 -> 0 | L52: 0
C53: =+'App.2-B_FAC 2009'!E53 -> 0 | E53: 0 | F53: =+'App.2-B_FAC 2009'!F53 -> 0 | G53: 0 | J53: 0 | K53: =-'App.2-B_FAC 2009'!K53 -> 0 | L53: 0
B54: Total | C54: =SUM(C16:C53) -> 6635653.36 | D54: =SUM(D16:D53) -> 331508 | E54: =SUM(E16:E53) -> 6304145.36 | F54: =SUM(F16:F53) -> 201928 | G54: =SUM(G16:G53) -> 6405109.36 | J54: =SUM(J16:J53) -> 391392.6 | K54: =SUM(K16:K53) -> 390072 | L54: =SUM(L16:L53) -> 1320.6
A56: NOW Inc. Notes:
A57: Note 1 | B57: PPE Cost in our General Ledger was recorded at NBV when company was created in Nov 2000 ( column "a" above). Actual depreciation (reported in column "K" above) is calculated on spreadsheets that
B58: have the original PPE cost figures. Therefore "calculated depreciation - column "h" above will always be lower for the infrastructure accounts since it is calculating on NBV figure as of the Year 2000 + gross costs from the year 2000 to date.
A59: Note 2 | B59: Actual Depreciation reported in column "K" combines accounts 1835 and 1855.
A60: Note 3 | B60: Column "b" was determinable for accounts in which assets are specificably identifiable in the depreciation schedules
A61: Note 4 | B61: In 2009, NOW Inc changed the years for A/C#1940 Tools and Shop Equipment from 10 years to 5 years, not retroactively
A62: Note 5 | B62: Erroneously excluded this account when recording 2009 depreciation
A63: Note 6 | B63: In 2009, NOW Inc changed the years for A/C#1915 Tools and Shop Equipment from 10 years to 7 years, not retroactively
A64: Note 7 | B64: We have shown in A/C#1985 the balance at YE in our Capital Smart Meters WIP. It represents costs that were paid in January of the following year and therfore only get coded to the variance a/c in the month in which it is paid
A65: Note 8 | B65: Variance in depreciation is a result of timing of YE WIP for new billing system. For this schedule we have shown any WIP at YE 2008 related to the billing system implementation in its proper asset category although depreciation
B66: did not start until system was operating in 2009, and with 1/2 year
A67: Note 9 | B67: Computer Hardware - 5 years for servers, 3 years for PC's, most of this asset category consists of Servers
A69: OEB Notes:
A70: 1 | B70: Board policy of the "half-year" rule - the applicant must ensure that additions in the year attract a half-year depreciation expense in the first year. Deviations from this standard practice must be supported in the application.
A71: 2 | B71: The applicant must provide an explanation of material variances in evidence
A72: General: | B72: Applicants must provide a breakdown of depreciation and amortization expense in the above format for all relevant accounts. Asset Retirement Obligations (AROs), depreciation and accretion expense should be disclosed separately consistent with the Notes of historical Audited Financial Statements.

Sheet App2-CE CGAAP Dep 2010
K1: File Number: | L1: 0
K2: Exhibit:
K3: Tab:
K4: Schedule:
K5: Page:
K7: Date:
A9: Appendix 2-CE
A10: Depreciation and Amortization Expense
A11: Assumes the applicant adopted IFRS for financial reporting purposes January 1, 2013
C12: Year | D12: 2010 | E12: CGAAP
A14: Account | B14: Description | C14: Opening Regulatory Gross PP&E as at Jan 1, 2010 | D14: Less Fully Depreciated | E14: Net for Depreciation | F14: Additions | G14: Total for Depreciation | H14: Years | I14: Depreciation Rate | J14: 2010 Depreciation Expense | K14: 2010 Depreciation Expense per Appendix 2-B Fixed Assets, Column K (l) | L14: Variance 2 | M14: NOW NOTES
C15: (a) | D15: (b) | E15: (c) | F15: (d) | G15: (e) = (c) + ½ x (d) 1 | H15: (f) | I15: (g) = 1 / (f) | J15: (h) = (e) / (f) | L15: (m) = (h) - (l)
A16: 1611 | B16: Computer Software (Formally known as Account 1925) | C16: =+'App 2-B FAC 2010'!E16 -> 159158 | E16: =C16-D16 -> 159158 | F16: =+'App 2-B FAC 2010'!F16 -> 0 | G16: =E16+0.5*F16 -> 159158 | H16: =+G16/K16 -> 7.451217228 | I16: =IF(H16=0,"",1/H16) -> 0.1342062604 | J16: =IF(H16=0,0,G16/H16) -> 21360 | K16: =-'App 2-B FAC 2010'!K16 -> 21360 | L16: =IF(ISERROR(+J16-K16), "", +J16-K16) -> 0 | M16: Note 8 | O16: 7 | P16: =+O16-H16 -> -0.4512172285
A17: 1612 | B17: Land Rights (Formally known as Account 1906) | C17: =+'App 2-B FAC 2010'!E17 -> 0 | E17: =C17-D17 -> 0 | F17: =+'App 2-B FAC 2010'!F17 -> 0 | G17: =E17+0.5*F17 -> 0 | J17: 0 | K17: =-'App 2-B FAC 2010'!K17 -> 0 | L17: =IF(ISERROR(+J17-K17), "", +J17-K17) -> 0 | P17: =+O17-H17 -> 0
A18: 1805 | B18: Land | C18: =+'App 2-B FAC 2010'!E18 -> 2840 | E18: 2840 | F18: =+'App 2-B FAC 2010'!F18 -> 0 | G18: 2840 | J18: 0 | K18: =-'App 2-B FAC 2010'!K18 -> 0 | L18: 0 | P18: 0
A19: 1808 | B19: Buildings | C19: =+'App 2-B FAC 2010'!E19 -> 93232 | D19: 18059 | E19: 75173 | F19: =+'App 2-B FAC 2010'!F19 -> 0 | G19: 75173 | H19: =+G19/K19 -> 29.44496671 | I19: 0.03396166177 | J19: 2553 | K19: =-'App 2-B FAC 2010'!K19 -> 2553 | L19: 0 | O19: 30 | P19: 0.5550332942
A20: 1810 | B20: Leasehold Improvements | C20: =+'App 2-B FAC 2010'!E20 -> 29779 | D20: 20033 | E20: 9746 | F20: =+'App 2-B FAC 2010'!F20 -> 0 | G20: 9746 | H20: =+G20/K20 -> 5.070759625 | I20: 0.1972091114 | J20: 1922 | K20: =-'App 2-B FAC 2010'!K20 -> 1922 | L20: 0 | O20: 5 | P20: -0.07075962539
A21: 1815 | B21: Transformer Station Equipment >50 kV | C21: =+'App 2-B FAC 2010'!E21 -> 3644 | E21: 3644 | F21: =+'App 2-B FAC 2010'!F21 -> 0 | G21: 3644 | H21: =+G21/K21 -> 30.11570248 | I21: 0.03320526894 | J21: 121 | K21: =-'App 2-B FAC 2010'!K21 -> 121 | L21: 0 | M21: Note 1 | O21: 30 | P21: -0.1157024793
A22: 1820 | B22: Distribution Station Equipment <50 kV | C22: =+'App 2-B FAC 2010'!E22 -> 551343 | E22: 551343 | F22: =+'App 2-B FAC 2010'!F22 -> 0 | G22: 551343 | H22: =+G22/K22 -> 26.94341006 | I22: 0.03711482689 | J22: 20463 | K22: =-'App 2-B FAC 2010'!K22 -> 20463 | L22: 0 | M22: Note 1 | O22: 30 | P22: 3.056589943
A23: 1825 | B23: Storage Battery Equipment | C23: =+'App 2-B FAC 2010'!E23 -> 0 | E23: 0 | F23: =+'App 2-B FAC 2010'!F23 -> 0 | G23: 0 | J23: 0 | K23: =-'App 2-B FAC 2010'!K23 -> 0 | L23: 0 | P23: 0
A24: 1830 | B24: Poles, Towers & Fixtures | C24: =+'App 2-B FAC 2010'!E24 -> 2359479 | E24: 2359479 | F24: =+'App 2-B FAC 2010'!F24 -> 94217 | G24: 2406587.5 | H24: =+G24/K24 -> 24.74690996 | I24: 0.04040908548 | J24: 97248 | K24: =-'App 2-B FAC 2010'!K24 -> 97248 | L24: 0 | M24: Note 1 | O24: 25 | P24: 0.2530900378
A25: 1835 | B25: Overhead Conductors & Devices | C25: =+'App 2-B FAC 2010'!E25 -> 1365942.08 | E25: 1365942.08 | F25: =+'App 2-B FAC 2010'!F25 -> 111277 | G25: 1421580.58 | H25: =+G25/K25 -> 16.79184233 | I25: 0.05955272687 | J25: 84659 | K25: =-'App 2-B FAC 2010'!K25 -> 84659 | L25: 0 | M25: Note 1 | O25: 25 | P25: 8.208157668
A26: 1840 | B26: Underground Conduit | C26: =+'App 2-B FAC 2010'!E26 -> 186674.28 | E26: 186674.28 | F26: =+'App 2-B FAC 2010'!F26 -> 0 | G26: 186674.28 | H26: =+G26/K26 -> 12.95269775 | I26: 0.07720399404 | J26: 14412 | K26: =-'App 2-B FAC 2010'!K26 -> 14412 | L26: 0 | M26: Note 1 | O26: 25 | P26: 12.04730225
A27: 1845 | B27: Underground Conductors & Devices | C27: =+'App 2-B FAC 2010'!E27 -> 3690 | E27: 3690 | F27: =+'App 2-B FAC 2010'!F27 -> 0 | G27: 3690 | H27: =+G27/K27 -> 24.93243243 | I27: 0.04010840108 | J27: 148 | K27: =-'App 2-B FAC 2010'!K27 -> 148 | L27: 0 | O27: 25 | P27: 0.06756756757
A28: 1850 | B28: Line Transformers | C28: =+'App 2-B FAC 2010'!E28 -> 512547 | E28: 512547 | F28: =+'App 2-B FAC 2010'!F28 -> 6915 | G28: 516004.5 | H28: =+G28/K28 -> 17.43788652 | I28: 0.05734639911 | J28: 29591 | K28: =-'App 2-B FAC 2010'!K28 -> 29591 | L28: 0 | M28: Note 1 | O28: 25 | P28: 7.56211348
A29: 1855 | B29: Services (Overhead & Underground) | C29: =+'App 2-B FAC 2010'!E29 -> -5.820899318e-13 | E29: -5.820899318e-13 | F29: =+'App 2-B FAC 2010'!F29 -> 9.094947018e-13 | G29: -1.273425809e-13 | H29: 25 | I29: 0.04 | J29: -5.093703237e-15 | K29: =-'App 2-B FAC 2010'!K29 -> 0 | L29: -5.093703237e-15 | M29: Note 1 | O29: 25 | P29: 0
A30: 1860 | B30: Meters | C30: =+'App 2-B FAC 2010'!E30 -> 531618 | D30: =144609+191354+142492 -> 478455 | E30: 53163 | F30: =+'App 2-B FAC 2010'!F30 -> 3354 | G30: 54840 | H30: 25 | I30: 0.04 | J30: 2193.6 | K30: =-'App 2-B FAC 2010'!K30 -> 0 | L30: 2193.6 | M30: Note 10 | O30: 25 | P30: 0
A31: 1860 | B31: Meters (Smart Meters) | C31: =+'App 2-B FAC 2010'!E31 -> 0 | E31: 0 | F31: =+'App 2-B FAC 2010'!F31 -> 0 | G31: 0 | J31: 0 | K31: =-'App 2-B FAC 2010'!K31 -> 0 | L31: 0 | P31: 0
A32: 1905 | B32: Land | C32: =+'App 2-B FAC 2010'!E32 -> 0 | E32: 0 | F32: =+'App 2-B FAC 2010'!F32 -> 0 | G32: 0 | J32: 0 | K32: =-'App 2-B FAC 2010'!K32 -> 0 | L32: 0 | P32: 0
A33: 1908 | B33: Buildings & Fixtures | C33: =+'App 2-B FAC 2010'!E33 -> 0 | E33: 0 | F33: =+'App 2-B FAC 2010'!F33 -> 0 | G33: 0 | J33: 0 | K33: =-'App 2-B FAC 2010'!K33 -> 0 | L33: 0 | P33: 0
A34: 1910 | B34: Leasehold Improvements | C34: =+'App 2-B FAC 2010'!E34 -> 0 | E34: 0 | F34: =+'App 2-B FAC 2010'!F34 -> 0 | G34: 0 | J34: 0 | K34: =-'App 2-B FAC 2010'!K34 -> 0 | L34: 0 | P34: 0
A35: 1915 | B35: Office Furniture & Equipment (10 years) | C35: =+'App 2-B FAC 2010'!E35 -> 17008 | D35: 6438 | E35: 10570 | F35: =+'App 2-B FAC 2010'!F35 -> 0 | G35: 10570 | H35: =+G35/K35 -> 12.65868263 | I35: 0.07899716178 | J35: 835 | K35: =-'App 2-B FAC 2010'!K35 -> 835 | L35: 0 | M35: Note 6 | O35: 7 | P35: -5.658682635
A36: 1915 | B36: Office Furniture & Equipment (5 years) | C36: =+'App 2-B FAC 2010'!E36 -> 0 | E36: 0 | F36: =+'App 2-B FAC 2010'!F36 -> 0 | G36: 0 | J36: 0 | K36: =-'App 2-B FAC 2010'!K36 -> 0 | L36: 0 | P36: 0
A37: 1920 | B37: Computer Equipment - Hardware | C37: =+'App 2-B FAC 2010'!E37 -> 0 | E37: 0 | F37: =+'App 2-B FAC 2010'!F37 -> 0 | G37: 0 | J37: 0 | K37: =-'App 2-B FAC 2010'!K37 -> 0 | L37: 0 | P37: 0
A38: 1920 | B38: Computer Equip.-Hardware(Post Mar. 22/04) | C38: =+'App 2-B FAC 2010'!E38 -> 0 | E38: 0 | F38: =+'App 2-B FAC 2010'!F38 -> 0 | G38: 0 | J38: 0 | K38: =-'App 2-B FAC 2010'!K38 -> 0 | L38: 0 | P38: 0
A39: 1920 | B39: Computer Equip.-Hardware(Post Mar. 19/07) | C39: =+'App 2-B FAC 2010'!E39 -> 83703 | D39: =17455+15218 -> 32673 | E39: 51030 | F39: =+'App 2-B FAC 2010'!F39 -> 2419 | G39: 52239.5 | H39: =+G39/K39 -> 5.615339138 | I39: 0.178083634 | J39: 9303 | K39: =-'App 2-B FAC 2010'!K39 -> 9303 | L39: 0 | M39: Note 8 | O39: 5 | P39: -0.6153391379
A40: 1930 | B40: Transportation Equipment | C40: =+'App 2-B FAC 2010'!E40 -> 721648 | D40: 128064 | E40: 593584 | F40: =+'App 2-B FAC 2010'!F40 -> 195230 | G40: 691199 | H40: =+G40/K40 -> 7.982065732 | I40: 0.1252808525 | J40: 86594 | K40: =-'App 2-B FAC 2010'!K40 -> 86594 | L40: 0 | M40: Note 1 | O40: 8 | P40: 0.01793426796
A41: 1935 | B41: Stores Equipment | C41: =+'App 2-B FAC 2010'!E41 -> 680 | E41: 680 | F41: =+'App 2-B FAC 2010'!F41 -> 0 | G41: 680 | H41: =+G41/K41 -> 10 | I41: 0.1 | J41: 68 | K41: =-'App 2-B FAC 2010'!K41 -> 68 | L41: 0 | O41: 10 | P41: 0
A42: 1940 | B42: Tools, Shop & Garage Equipment | C42: =+'App 2-B FAC 2010'!E42 -> 121559 | D42: 25986 | E42: 95573 | F42: =+'App 2-B FAC 2010'!F42 -> 19781 | G42: 105463.5 | H42: =+G42/K42 -> 7.642836437 | I42: 0.130841476 | J42: 13799 | K42: =-'App 2-B FAC 2010'!K42 -> 13799 | L42: 0 | M42: Note 4 | O42: 5 | P42: -2.642836437
A43: 1945 | B43: Measurement & Testing Equipment | C43: =+'App 2-B FAC 2010'!E43 -> 0 | E43: 0 | F43: =+'App 2-B FAC 2010'!F43 -> 0 | G43: 0 | J43: 0 | K43: =-'App 2-B FAC 2010'!K43 -> 0 | L43: 0 | P43: 0
A44: 1950 | B44: Power Operated Equipment | C44: =+'App 2-B FAC 2010'!E44 -> 0 | E44: 0 | F44: =+'App 2-B FAC 2010'!F44 -> 0 | G44: 0 | J44: 0 | K44: =-'App 2-B FAC 2010'!K44 -> 0 | L44: 0 | P44: 0
A45: 1955 | B45: Communications Equipment | C45: =+'App 2-B FAC 2010'!E45 -> 686 | E45: 686 | F45: =+'App 2-B FAC 2010'!F45 -> 3952 | G45: 2662 | H45: =+G45/K45 -> 6.739240506 | I45: 0.1483846732 | J45: 395 | K45: =-'App 2-B FAC 2010'!K45 -> 395 | L45: 0 | O45: 5 | P45: -1.739240506
A46: 1955 | B46: Communication Equipment (Smart Meters) | C46: =+'App 2-B FAC 2010'!E46 -> 0 | E46: 0 | F46: =+'App 2-B FAC 2010'!F46 -> 0 | G46: 0 | J46: 0 | K46: =-'App 2-B FAC 2010'!K46 -> 0 | L46: 0 | P46: 0
A47: 1960 | B47: Miscellaneous Equipment | C47: =+'App 2-B FAC 2010'!E47 -> 6603 | E47: 6603 | F47: =+'App 2-B FAC 2010'!F47 -> 0 | G47: 6603 | H47: =+G47/K47 -> 5.002272727 | I47: 0.1999091322 | J47: 1320 | K47: =-'App 2-B FAC 2010'!K47 -> 1320 | L47: 0 | M47: Note 5 | O47: 5 | P47: -0.002272727273
A48: 1975 | B48: Load Management Controls Utility Premises | C48: =+'App 2-B FAC 2010'!E48 -> 0 | E48: 0 | F48: =+'App 2-B FAC 2010'!F48 -> 0 | G48: 0 | J48: 0 | K48: =-'App 2-B FAC 2010'!K48 -> 0 | L48: 0 | P48: 0
A49: 1980 | B49: System Supervisor Equipment | C49: =+'App 2-B FAC 2010'!E49 -> 0 | E49: 0 | F49: =+'App 2-B FAC 2010'!F49 -> 0 | G49: 0 | J49: 0 | K49: =-'App 2-B FAC 2010'!K49 -> 0 | L49: 0 | P49: 0
A50: 1985 | B50: Miscellaneous Fixed Assets - WIP Smart Meters | C50: =+'App 2-B FAC 2010'!E50 -> 0 | E50: 0 | F50: =+'App 2-B FAC 2010'!F50 -> 0 | G50: 0 | J50: 0 | K50: =-'App 2-B FAC 2010'!K50 -> 0 | L50: 0 | M50: Note 7 | P50: 0
A51: 1995 | B51: Contributions & Grants | C51: =+'App 2-B FAC 2010'!E51 -> 0 | E51: 0 | F51: =+'App 2-B FAC 2010'!F51 -> 0 | G51: 0 | J51: 0 | K51: =-'App 2-B FAC 2010'!K51 -> 0 | L51: 0 | P51: 0
A52: etc. | C52: =+'App 2-B FAC 2010'!E52 -> 0 | E52: 0 | F52: =+'App 2-B FAC 2010'!F52 -> 0 | G52: 0 | J52: 0 | K52: =-'App 2-B FAC 2010'!K52 -> 0 | L52: 0 | P52: 0
C53: =+'App 2-B FAC 2010'!E53 -> 0 | E53: 0 | F53: =+'App 2-B FAC 2010'!F53 -> 0 | G53: 0 | J53: 0 | K53: =-'App 2-B FAC 2010'!K53 -> 0 | L53: 0 | P53: 0
B54: Total | C54: =SUM(C16:C53) -> 6751833.36 | D54: =SUM(D16:D53) -> 709708 | E54: =SUM(E16:E53) -> 6042125.36 | F54: =SUM(F16:F53) -> 437145 | G54: =SUM(G16:G53) -> 6260697.86 | J54: =SUM(J16:J53) -> 386984.6 | K54: =SUM(K16:K53) -> 384791 | L54: =SUM(L16:L53) -> 2193.6
A56: NOW Inc. Notes:
A57: Note 1 | B57: PPE Cost in our General Ledger was recorded at NBV when company was created in Nov 2000 ( column "a" above). Actual depreciation (reported in column "K" above) is calculated on spreadsheets that
B58: have the original PPE cost figures. Therefore "calculated depreciation - column "h" above will always be lower for the infrastructure accounts since it is calculating on NBV figure as of the Year 2000 + gross costs from the year 2000 to date.
A59: Note 2 | B59: Actual Depreciation reported in column "K" combines accounts 1835 and 1855.
A60: Note 3 | B60: Column "b" was determinable for accounts in which assets are specificably identifiable in the depreciation schedules
A61: Note 4 | B61: In 2009, NOW Inc changed the years for A/C#1940 Tools and Shop Equipment from 10 years to 5 years, not retroactively
A62: Note 5 | B62: Erroneously excluded this account when recording 2009 depreciation
A63: Note 6 | B63: In 2009, NOW Inc changed the years for A/C#1915 Tools and Shop Equipment from 10 years to 7 years, not retroactively
A64: Note 7 | B64: We have shown in A/C#1985 the balance at YE in our Capital Smart Meters WIP. It represents costs that were paid in January of the following year and therfore only get coded to the variance a/c in the month in which it is paid
A65: Note 8 | B65: Variance in depreciation is a result of timing of YE WIP for new billing system. For this schedule we have shown any WIP at YE 2008 related to the billing system implementation in its proper asset category although depreciation
B66: did not start until system was operating in 2009, and with 1/2 year
A67: Note 9 | B67: Computer Hardware - 5 years for servers, 3 years for PC's, most of this asset category consists of Servers
A68: Note 10 | B68: 1860 Meters - In 2010 transferred most of conventional meters cost (90%) from asset account to variance account for stranded meters, did not book depreciation on remaining balance in 2010, did catch up entry in 2011
A77: Notes:
A78: 1 | B78: Board policy of the "half-year" rule - the applicant must ensure that additions in the year attract a half-year depreciation expense in the first year. Deviations from this standard practice must be supported in the application.
A79: 2 | B79: The applicant must provide an explanation of material variances in evidence
A80: General: | B80: Applicants must provide a breakdown of depreciation and amortization expense in the above format for all relevant accounts. Asset Retirement Obligations (AROs), depreciation and accretion expense should be disclosed separately consistent with the Notes of historical Audited Financial Statements.

Sheet App2-CE CGAAP Dep 2011
K1: File Number: | L1: 0
K2: Exhibit:
K3: Tab:
K4: Schedule:
K5: Page:
K7: Date:
A9: Appendix 2-CE
A10: Depreciation and Amortization Expense
A11: Assumes the applicant adopted IFRS for financial reporting purposes January 1, 2013
C12: Year | D12: 2011 | E12: CGAAP
A14: Account | B14: Description | C14: Opening Regulatory Gross PP&E as at Jan 1, 2011 | D14: Less Fully Depreciated | E14: Net for Depreciation | F14: Additions | G14: Total for Depreciation | H14: Years | I14: Depreciation Rate | J14: 2011 Depreciation Expense | K14: 2011 Depreciation Expense per Appendix 2-B Fixed Assets, Column K (l) | L14: Variance 2 | M14: NOW NOTES
C15: (a) | D15: (b) | E15: (c) | F15: (d) | G15: (e) = (c) + ½ x (d) 1 | H15: (f) | I15: (g) = 1 / (f) | J15: (h) = (e) / (f) | L15: (m) = (h) - (l)
A16: 1611 | B16: Computer Software (Formally known as Account 1925) | C16: =+'App 2-B FAC 2011'!E16 -> 159158 | E16: =C16-D16 -> 159158 | G16: =E16+0.5*F16 -> 159158 | H16: =+G16/K16 -> 7.451217228 | I16: =IF(H16=0,"",1/H16) -> 0.1342062604 | J16: =IF(H16=0,0,G16/H16) -> 21360 | K16: =-'App 2-B FAC 2011'!K16 -> 21360 | L16: =IF(ISERROR(+J16-K16), "", +J16-K16) -> 0 | M16: Note 8 | O16: 7 | P16: =+O16-H16 -> -0.4512172285
A17: 1612 | B17: Land Rights (Formally known as Account 1906) | C17: =+'App 2-B FAC 2011'!E17 -> 0 | E17: =C17-D17 -> 0 | G17: =E17+0.5*F17 -> 0 | J17: 0 | K17: =-'App 2-B FAC 2011'!K17 -> 0 | L17: =IF(ISERROR(+J17-K17), "", +J17-K17) -> 0 | P17: =+O17-H17 -> 0
A18: 1805 | B18: Land | C18: =+'App 2-B FAC 2011'!E18 -> 2840 | E18: 2840 | F18: 84860 | G18: 45270 | J18: 0 | K18: =-'App 2-B FAC 2011'!K18 -> 0 | L18: 0 | P18: 0
A19: 1808 | B19: Buildings | C19: =+'App 2-B FAC 2011'!E19 -> 93232 | D19: 18059 | E19: 75173 | F19: 296479 | G19: 223412.5 | H19: =+G19/K19 -> 29.80820547 | I19: 0.03354780955 | J19: 7495 | K19: =-'App 2-B FAC 2011'!K19 -> 7495 | L19: 0 | O19: 30 | P19: 0.1917945297
A20: 1810 | B20: Leasehold Improvements | C20: =+'App 2-B FAC 2011'!E20 -> 29779 | D20: 20033 | E20: 9746 | G20: 9746 | H20: =+G20/K20 -> 9.116931712 | I20: 0.109686025 | J20: 1069 | K20: =-'App 2-B FAC 2011'!K20 -> 1069 | L20: 0 | O20: 5 | P20: -4.116931712
A21: 1815 | B21: Transformer Station Equipment >50 kV | C21: =+'App 2-B FAC 2011'!E21 -> 3644 | E21: 3644 | G21: 3644 | H21: =+G21/K21 -> 30.11570248 | I21: 0.03320526894 | J21: 121 | K21: =-'App 2-B FAC 2011'!K21 -> 121 | L21: 0 | M21: Note 1 | O21: 30 | P21: -0.1157024793
A22: 1820 | B22: Distribution Station Equipment <50 kV | C22: =+'App 2-B FAC 2011'!E22 -> 551343 | E22: 551343 | F22: 942 | G22: 551814 | H22: =+G22/K22 -> 26.96774509 | I22: 0.03708133538 | J22: 20462 | K22: =-'App 2-B FAC 2011'!K22 -> 20462 | L22: 0 | M22: Note 1 | O22: 30 | P22: 3.032254912
A23: 1825 | B23: Storage Battery Equipment | C23: =+'App 2-B FAC 2011'!E23 -> 0 | E23: 0 | G23: 0 | J23: 0 | K23: =-'App 2-B FAC 2011'!K23 -> 0 | L23: 0 | P23: 0
A24: 1830 | B24: Poles, Towers & Fixtures | C24: =+'App 2-B FAC 2011'!E24 -> 2453696 | E24: 2453696 | F24: 147980 | G24: 2527686 | H24: =+G24/K24 -> 26.24803738 | I24: 0.03809808655 | J24: 96300 | K24: =-'App 2-B FAC 2011'!K24 -> 96300 | L24: 0 | M24: Note 1 | O24: 25 | P24: -1.248037383
A25: 1835 | B25: Overhead Conductors & Devices | C25: =+'App 2-B FAC 2011'!E25 -> 1477219.08 | E25: 1477219.08 | F25: =148426+32885 -> 181311 | G25: =E25+0.5*F25 -> 1567874.58 | H25: =+G25/K25 -> 24.26261711 | I25: 0.04121566918 | J25: 64621 | K25: =-'App 2-B FAC 2011'!K25 -> 64621 | L25: 0 | M25: Note 1 | O25: 25 | P25: 0.7373828941
A26: 1840 | B26: Underground Conduit | C26: =+'App 2-B FAC 2011'!E26 -> 186674.28 | E26: 186674.28 | G26: 186674.28 | H26: =+G26/K26 -> 18.64319185 | I26: 0.05363888373 | J26: 10013 | K26: =-'App 2-B FAC 2011'!K26 -> 10013 | L26: 0 | M26: Note 1 | O26: 25 | P26: 6.356808149
A27: 1845 | B27: Underground Conductors & Devices | C27: =+'App 2-B FAC 2011'!E27 -> 3690 | E27: 3690 | G27: 3690 | H27: =+G27/K27 -> 24.93243243 | I27: 0.04010840108 | J27: 148 | K27: =-'App 2-B FAC 2011'!K27 -> 148 | L27: 0 | O27: 25 | P27: 0.06756756757
A28: 1850 | B28: Line Transformers | C28: =+'App 2-B FAC 2011'!E28 -> 519462 | E28: 519462 | F28: 175330 | G28: 607127 | H28: =+G28/K28 -> 20.81411773 | I28: 0.04804431363 | J28: 29169 | K28: =-'App 2-B FAC 2011'!K28 -> 29169 | L28: 0 | M28: Note 1 | O28: 25 | P28: 4.185882272
A29: 1855 | B29: Services (Overhead & Underground) | C29: =+'App 2-B FAC 2011'!E29 -> 3.2740477e-13 | E29: 3.2740477e-13 | F29: =32885-32885 -> 0 | G29: 3.2740477e-13 | H29: 25 | I29: 0.04 | J29: 1.30961908e-14 | K29: =-'App 2-B FAC 2011'!K29 -> 0 | L29: 1.30961908e-14 | M29: Note 1 | O29: 25 | P29: 0
A30: 1860 | B30: Meters | C30: =+'App 2-B FAC 2011'!E30 -> 56517 | D30: =144609+191354+142492 -> 478455 | E30: =C30-D30 -> -421938 | F30: 9378 | G30: -417249 | H30: =+G30/K30 -> -133.9913295 | I30: -0.007463169474 | J30: 3114 | K30: =-'App 2-B FAC 2011'!K30 -> 3114 | L30: 0 | M30: Note 10 | O30: 25 | P30: 158.9913295
A31: 1860 | B31: Meters (Smart Meters) | C31: =+'App 2-B FAC 2011'!E31 -> 0 | E31: 0 | G31: 0 | J31: 0 | K31: =-'App 2-B FAC 2011'!K31 -> 0 | L31: 0 | P31: 0
A32: 1905 | B32: Land | C32: =+'App 2-B FAC 2011'!E32 -> 0 | E32: 0 | G32: 0 | J32: 0 | K32: =-'App 2-B FAC 2011'!K32 -> 0 | L32: 0 | P32: 0
A33: 1908 | B33: Buildings & Fixtures | C33: =+'App 2-B FAC 2011'!E33 -> 0 | E33: 0 | G33: 0 | J33: 0 | K33: =-'App 2-B FAC 2011'!K33 -> 0 | L33: 0 | P33: 0
A34: 1910 | B34: Leasehold Improvements | C34: =+'App 2-B FAC 2011'!E34 -> 0 | E34: 0 | G34: 0 | J34: 0 | K34: =-'App 2-B FAC 2011'!K34 -> 0 | L34: 0 | P34: 0
A35: 1915 | B35: Office Furniture & Equipment (10 years) | C35: =+'App 2-B FAC 2011'!E35 -> 17008 | D35: 6438 | E35: 10570 | F35: 599 | G35: 10869.5 | H35: =+G35/K35 -> 18.67611684 | I35: 0.05354432127 | J35: 582 | K35: =-'App 2-B FAC 2011'!K35 -> 582 | L35: 0 | M35: Note 6 | O35: 7 | P35: -11.67611684
A36: 1915 | B36: Office Furniture & Equipment (5 years) | C36: =+'App 2-B FAC 2011'!E36 -> 0 | E36: 0 | G36: 0 | J36: 0 | K36: =-'App 2-B FAC 2011'!K36 -> 0 | L36: 0 | P36: 0
A37: 1920 | B37: Computer Equipment - Hardware | C37: =+'App 2-B FAC 2011'!E37 -> 0 | E37: 0 | G37: 0 | J37: 0 | K37: =-'App 2-B FAC 2011'!K37 -> 0 | L37: 0 | P37: 0
A38: 1920 | B38: Computer Equip.-Hardware(Post Mar. 22/04) | C38: =+'App 2-B FAC 2011'!E38 -> 0 | E38: 0 | G38: 0 | J38: 0 | K38: =-'App 2-B FAC 2011'!K38 -> 0 | L38: 0 | P38: 0
A39: 1920 | B39: Computer Equip.-Hardware(Post Mar. 19/07) | C39: =+'App 2-B FAC 2011'!E39 -> 86122 | D39: =17455+15218 -> 32673 | E39: 53449 | F39: 1403 | G39: 54150.5 | H39: =+G39/K39 -> 5.813258186 | I39: 0.1720205723 | J39: 9315 | K39: =-'App 2-B FAC 2011'!K39 -> 9315 | L39: 0 | M39: Note 8 | O39: 5 | P39: -0.8132581857
A40: 1930 | B40: Transportation Equipment | C40: =+'App 2-B FAC 2011'!E40 -> 743823 | D40: 128064 | E40: 615759 | F40: =459146 -> 459146 | G40: 845332 | H40: =+G40/K40 -> 6.951400424 | I40: 0.1438559051 | J40: 121606 | K40: =-'App 2-B FAC 2011'!K40 -> 121606 | L40: 0 | M40: Note 1 | O40: 8 | P40: 1.048599576
A41: 1935 | B41: Stores Equipment | C41: =+'App 2-B FAC 2011'!E41 -> 680 | E41: 680 | G41: 680 | H41: =+G41/K41 -> 10 | I41: 0.1 | J41: 68 | K41: =-'App 2-B FAC 2011'!K41 -> 68 | L41: 0 | O41: 10 | P41: 0
A42: 1940 | B42: Tools, Shop & Garage Equipment | C42: =+'App 2-B FAC 2011'!E42 -> 141340 | D42: 25986 | E42: 115354 | F42: 26792 | G42: 128750 | H42: =+G42/K42 -> 7.466365113 | I42: 0.1339339806 | J42: 17244 | K42: =-'App 2-B FAC 2011'!K42 -> 17244 | L42: 0 | M42: Note 4 | O42: 5 | P42: -2.466365113
A43: 1945 | B43: Measurement & Testing Equipment | C43: =+'App 2-B FAC 2011'!E43 -> 0 | E43: 0 | G43: 0 | J43: 0 | K43: =-'App 2-B FAC 2011'!K43 -> 0 | L43: 0 | P43: 0
A44: 1950 | B44: Power Operated Equipment | C44: =+'App 2-B FAC 2011'!E44 -> 0 | E44: 0 | G44: 0 | J44: 0 | K44: =-'App 2-B FAC 2011'!K44 -> 0 | L44: 0 | P44: 0
A45: 1955 | B45: Communications Equipment | C45: =+'App 2-B FAC 2011'!E45 -> 4638 | E45: 4638 | G45: 4638 | H45: =+G45/K45 -> 5.870886076 | I45: 0.1703320397 | J45: 790 | K45: =-'App 2-B FAC 2011'!K45 -> 790 | L45: 0 | O45: 5 | P45: -0.8708860759
A46: 1955 | B46: Communication Equipment (Smart Meters) | C46: =+'App 2-B FAC 2011'!E46 -> 0 | E46: 0 | G46: 0 | J46: 0 | K46: =-'App 2-B FAC 2011'!K46 -> 0 | L46: 0 | P46: 0
A47: 1960 | B47: Miscellaneous Equipment | C47: =+'App 2-B FAC 2011'!E47 -> 6603 | E47: 6603 | G47: 6603 | H47: =+G47/K47 -> 4.998485995 | I47: 0.2000605785 | J47: 1321 | K47: =-'App 2-B FAC 2011'!K47 -> 1321 | L47: 0 | M47: Note 5 | O47: 5 | P47: 0.001514004542
A48: 1975 | B48: Load Management Controls Utility Premises | C48: =+'App 2-B FAC 2011'!E48 -> 0 | E48: 0 | G48: 0 | J48: 0 | K48: =-'App 2-B FAC 2011'!K48 -> 0 | L48: 0 | P48: 0
A49: 1980 | B49: System Supervisor Equipment | C49: =+'App 2-B FAC 2011'!E49 -> 0 | E49: 0 | G49: 0 | J49: 0 | K49: =-'App 2-B FAC 2011'!K49 -> 0 | L49: 0 | P49: 0
A50: 1985 | B50: Miscellaneous Fixed Assets | C50: =+'App 2-B FAC 2011'!E50 -> 0 | E50: 0 | F50: -38191 | G50: -19095.5 | J50: 0 | K50: =-'App 2-B FAC 2011'!K50 -> 0 | L50: 0 | M50: Note 7 | P50: 0
B51: Chassis Pymt for Truck - Truck rec'd in 2012 | C51: =+'App 2-B FAC 2011'!E51 -> 0 | E51: 0 | F51: 84000 | G51: 42000 | J51: 0 | K51: =-'App 2-B FAC 2011'!K51 -> 0 | L51: 0 | P51: 0
A52: etc. | C52: =+'App 2-B FAC 2011'!E52 -> 0 | E52: 0 | G52: 0 | J52: 0 | K52: =-'App 2-B FAC 2011'!K52 -> 0 | L52: 0 | P52: 0
C53: =+'App 2-B FAC 2011'!E53 -> 0 | E53: 0 | G53: 0 | J53: 0 | L53: 0 | P53: 0
B54: Total | C54: =SUM(C16:C53) -> 6537468.36 | D54: =SUM(D16:D53) -> 709708 | E54: =SUM(E16:E53) -> 5827760.36 | F54: =SUM(F16:F53) -> 1430029 | G54: =SUM(G16:G53) -> 6542774.86 | J54: =SUM(J16:J53) -> 404798 | K54: =SUM(K16:K53) -> 404798 | L54: =SUM(L16:L53) -> 1.30961908e-14
A56: NOW Inc. Notes:
A57: Note 1 | B57: PPE Cost in our General Ledger was recorded at NBV when company was created in Nov 2000 ( column "a" above). Actual depreciation (reported in column "K" above) is calculated on spreadsheets that
B58: have the original PPE cost figures. Therefore "calculated depreciation - column "h" above will always be lower for the infrastructure accounts since it is calculating on NBV figure as of the Year 2000 + gross costs from the year 2000 to date.
A59: Note 2 | B59: Actual Depreciation reported in column "K" combines accounts 1835 and 1855.
A60: Note 3 | B60: Column "b" was determinable for accounts in which assets are specificably identifiable in the depreciation schedules
A61: Note 4 | B61: In 2009, NOW Inc changed the years for A/C#1940 Tools and Shop Equipment from 10 years to 5 years, not retroactively
A62: Note 5 | B62: Erroneously excluded this account when recording 2009 depreciation
A63: Note 6 | B63: In 2009, NOW Inc changed the years for A/C#1915 Tools and Shop Equipment from 10 years to 7 years, not retroactively
A64: Note 7 | B64: We have shown in A/C#1985 the balance at YE in our Capital Smart Meters WIP. It represents costs that were paid in January of the following year and therfore only get coded to the variance a/c in the month in which it is paid
A65: Note 8 | B65: Variance in depreciation is a result of timing of YE WIP for new billing system. For this schedule we have shown any WIP at YE 2008 related to the billing system implementation in its proper asset category although depreciation
B66: did not start until system was operating in 2009, and with 1/2 year
A67: Note 9 | B67: Computer Hardware - 5 years for servers, 3 years for PC's, most of this asset category consists of Servers
A68: Note 10 | B68: 1860 Meters - In 2010 transferred most of conventional meters cost (90%) from asset account to variance account for stranded meters, did not book depreciation on remaining balance in 2010, did catch up entry in 2011
A75: Notes:
A76: 1 | B76: Board policy of the "half-year" rule - the applicant must ensure that additions in the year attract a half-year depreciation expense in the first year. Deviations from this standard practice must be supported in the application.
A77: 2 | B77: The applicant must provide an explanation of material variances in evidence
A78: General: | B78: Applicants must provide a breakdown of depreciation and amortization expense in the above format for all relevant accounts. Asset Retirement Obligations (AROs), depreciation and accretion expense should be disclosed separately consistent with the Notes of historical Audited Financial Statements.

Sheet App.2-CF_CGAAP_DepExp_2012
K1: File Number: | L1: 0
K2: Exhibit:
K3: Tab:
K4: Schedule:
K5: Page:
K7: Date:
A9: Appendix 2-CF
A10: Depreciation and Amortization Expense
A11: Assumes the applicant adopted IFRS for financial reporting purposes January 1, 2013
C12: Year | D12: 2012 | E12: CGAAP
A14: Account | B14: Description | C14: Opening Regulatory Gross PP&E as at Jan 1, 2012 | D14: Less Fully Depreciated | E14: Net for Depreciation | F14: Additions | G14: Total for Depreciation | H14: Years | I14: Depreciation Rate | J14: 2012 Depreciation Expense | K14: 2012 Depreciation Expense per Appendix 2-B Fixed Assets, Column K (l) | L14: Variance 2
C15: (a) | D15: (b) | E15: (c) | F15: (d) | G15: (e) = (c) + ½ x (d) 1 | H15: (f) | I15: (g) = 1 / (f) | J15: (h) = (e) / (f) | L15: (m) = (h) - (l)
A16: 1611 | B16: Computer Software (Formally known as Account 1925) | C16: =+'App2-B FAC2012'!E16 -> 159158 | E16: =C16-D16 -> 159158 | F16: =+'App2-B FAC2012'!F16 -> 0 | G16: =E16+0.5*F16 -> 159158 | H16: =+G16/K16 -> 7.451217228 | I16: =IF(H16=0,"",1/H16) -> 0.1342062604 | J16: =IF(H16=0,0,G16/H16) -> 21360 | K16: =-'App2-B FAC2012'!K16 -> 21360 | L16: =IF(ISERROR(+J16-K16), "", +J16-K16) -> 0
A17: 1612 | B17: Land Rights (Formally known as Account 1906) | C17: =+'App2-B FAC2012'!E17 -> 0 | E17: =C17-D17 -> 0 | F17: =+'App2-B FAC2012'!F17 -> 0 | G17: =E17+0.5*F17 -> 0 | J17: 0 | K17: =-'App2-B FAC2012'!K17 -> 0 | L17: =IF(ISERROR(+J17-K17), "", +J17-K17) -> 0
A18: 1805 | B18: Land | C18: =+'App2-B FAC2012'!E18 -> 87700 | E18: 87700 | F18: =+'App2-B FAC2012'!F18 -> 0 | G18: 87700 | J18: 0 | K18: =-'App2-B FAC2012'!K18 -> 0 | L18: 0
A19: 1808 | B19: Buildings | C19: =+'App2-B FAC2012'!E19 -> 385577 | D19: 18059 | E19: 367518 | F19: =+'App2-B FAC2012'!F19 -> 116245 | G19: 425640.5 | H19: =+G19/K19 -> 34.22647958 | I19: 0.02921714452 | J19: 12436 | K19: =-'App2-B FAC2012'!K19 -> 12436 | L19: =IF(ISERROR(+J19-K19), "", +J19-K19) -> 0
A20: 1810 | B20: Leasehold Improvements | C20: =+'App2-B FAC2012'!E20 -> 4692 | E20: 4692 | F20: =+'App2-B FAC2012'!F20 -> 0 | G20: 4692 | H20: =+G20/K20 -> 5.002132196 | I20: 0.1999147485 | J20: 938 | K20: =-'App2-B FAC2012'!K20 -> 938 | L20: 0
A21: 1815 | B21: Transformer Station Equipment >50 kV | C21: =+'App2-B FAC2012'!E21 -> 3644 | E21: 3644 | F21: =+'App2-B FAC2012'!F21 -> 0 | G21: 3644 | H21: =+G21/K21 -> 30.11570248 | I21: 0.03320526894 | J21: 121 | K21: =-'App2-B FAC2012'!K21 -> 121 | L21: 0
A22: 1820 | B22: Distribution Station Equipment <50 kV | C22: =+'App2-B FAC2012'!E22 -> 551343 | E22: 551343 | F22: =+'App2-B FAC2012'!F22 -> 16256 | G22: 559471 | H22: =+G22/K22 -> 27.23016646 | I22: 0.03672397676 | J22: 20546 | K22: =-'App2-B FAC2012'!K22 -> 20546 | L22: 0
A23: 1825 | B23: Storage Battery Equipment | C23: =+'App2-B FAC2012'!E23 -> 0 | E23: 0 | F23: =+'App2-B FAC2012'!F23 -> 0 | G23: 0 | J23: 0 | K23: =-'App2-B FAC2012'!K23 -> 0 | L23: 0
A24: 1830 | B24: Poles, Towers & Fixtures | C24: =+'App2-B FAC2012'!E24 -> 2601676 | E24: 2601676 | F24: =+'App2-B FAC2012'!F24 -> 186320 | G24: 2694836 | H24: =+G24/K24 -> 25.34098154 | I24: 0.03946177059 | J24: 106343 | K24: =-'App2-B FAC2012'!K24 -> 106343 | L24: 0
A25: 1835 | B25: Overhead Conductors & Devices | C25: =+'App2-B FAC2012'!E25 -> 1658530.08 | E25: 1658530.08 | F25: =+'App2-B FAC2012'!F25 -> 219276 | G25: 1768168.08 | H25: =+G25/K25 -> 24.58828385 | I25: 0.04066977614 | J25: 71911 | K25: =-'App2-B FAC2012'!K25 -> 71911 | L25: 0
A26: 1840 | B26: Underground Conduit | C26: =+'App2-B FAC2012'!E26 -> 186674.28 | E26: 186674.28 | F26: =+'App2-B FAC2012'!F26 -> 0 | G26: 186674.28 | H26: =+G26/K26 -> 19.50415631 | I26: 0.05127112316 | J26: 9571 | K26: =-'App2-B FAC2012'!K26 -> 9571 | L26: 0
A27: 1845 | B27: Underground Conductors & Devices | C27: =+'App2-B FAC2012'!E27 -> 3690 | E27: 3690 | F27: =+'App2-B FAC2012'!F27 -> 0 | G27: 3690 | H27: =+G27/K27 -> 24.93243243 | I27: 0.04010840108 | J27: 148 | K27: =-'App2-B FAC2012'!K27 -> 148 | L27: 0
A28: 1850 | B28: Line Transformers | C28: =+'App2-B FAC2012'!E28 -> 694792 | E28: 694792 | F28: =+'App2-B FAC2012'!F28 -> 54337 | G28: 721960.5 | H28: =+G28/K28 -> 26.50271649 | I28: 0.03773198118 | J28: 27241 | K28: =-'App2-B FAC2012'!K28 -> 27241 | L28: 0
A29: 1855 | B29: Services (Overhead & Underground) | C29: =+'App2-B FAC2012'!E29 -> 3.2740477e-13 | E29: 3.2740477e-13 | F29: =+'App2-B FAC2012'!F29 -> 0 | G29: 3.2740477e-13 | H29: 25 | I29: 0.04 | J29: 1.30961908e-14 | K29: =-'App2-B FAC2012'!K29 -> 0 | L29: 1.30961908e-14
A30: 1860 | B30: Meters | C30: =+'App2-B FAC2012'!E30 -> 39775 | E30: 39775 | F30: =+'App2-B FAC2012'!F30 -> -8497 | G30: 35526.5 | H30: =+G30/K30 -> 27.7985133 | I30: 0.03597314681 | J30: 1278 | K30: =-'App2-B FAC2012'!K30 -> 1278 | L30: 0
A31: 1860 | B31: Meters (Smart Meters) | C31: =+'App2-B FAC2012'!E31 -> 0 | E31: 0 | F31: =+'App2-B FAC2012'!F31 -> 0 | G31: 0 | J31: 0 | K31: =-'App2-B FAC2012'!K31 -> 0 | L31: 0
A32: 1905 | B32: Land | C32: =+'App2-B FAC2012'!E32 -> 0 | E32: 0 | F32: =+'App2-B FAC2012'!F32 -> 0 | G32: 0 | J32: 0 | K32: =-'App2-B FAC2012'!K32 -> 0 | L32: 0
A33: 1908 | B33: Buildings & Fixtures | C33: =+'App2-B FAC2012'!E33 -> 0 | E33: 0 | F33: =+'App2-B FAC2012'!F33 -> 0 | G33: 0 | J33: 0 | K33: =-'App2-B FAC2012'!K33 -> 0 | L33: 0
A34: 1910 | B34: Leasehold Improvements | C34: =+'App2-B FAC2012'!E34 -> 0 | E34: 0 | F34: =+'App2-B FAC2012'!F34 -> 0 | G34: 0 | J34: 0 | K34: =-'App2-B FAC2012'!K34 -> 0 | L34: 0
A35: 1915 | B35: Office Furniture & Equipment (10 years) | C35: =+'App2-B FAC2012'!E35 -> 17607 | E35: 17607 | F35: =+'App2-B FAC2012'!F35 -> 0 | G35: 17607 | H35: =+G35/K35 -> 43.58168317 | I35: 0.02294541944 | J35: 404 | K35: =-'App2-B FAC2012'!K35 -> 404 | L35: 0 | M35: Note 1
A36: 1915 | B36: Office Furniture & Equipment (5 years) | C36: =+'App2-B FAC2012'!E36 -> 0 | E36: 0 | F36: =+'App2-B FAC2012'!F36 -> 0 | G36: 0 | J36: 0 | K36: =-'App2-B FAC2012'!K36 -> 0 | L36: 0
A37: 1920 | B37: Computer Equipment - Hardware | C37: =+'App2-B FAC2012'!E37 -> 0 | E37: 0 | F37: =+'App2-B FAC2012'!F37 -> 0 | G37: 0 | J37: 0 | K37: =-'App2-B FAC2012'!K37 -> 0 | L37: 0
A38: 1920 | B38: Computer Equip.-Hardware(Post Mar. 22/04) | C38: =+'App2-B FAC2012'!E38 -> 0 | E38: 0 | F38: =+'App2-B FAC2012'!F38 -> 0 | G38: 0 | J38: 0 | K38: =-'App2-B FAC2012'!K38 -> 0 | L38: 0
A39: 1920 | B39: Computer Equip.-Hardware(Post Mar. 19/07) | C39: =+'App2-B FAC2012'!E39 -> 87525 | E39: 87525 | F39: =+'App2-B FAC2012'!F39 -> 3982 | G39: 89516 | H39: =+G39/K39 -> 19.38414898 | I39: 0.05158854283 | J39: 4618 | K39: =-'App2-B FAC2012'!K39 -> 4618 | L39: 0
A40: 1930 | B40: Transportation Equipment | C40: =+'App2-B FAC2012'!E40 -> 1202969 | D40: =291000+210000+50000 -> 551000 | E40: 651969 | F40: =+'App2-B FAC2012'!F40 -> 218112 | G40: 761025 | H40: =+G40/K40 -> 4.483818131 | I40: 0.2230242108 | J40: 169727 | K40: =-'App2-B FAC2012'!K40 -> 169727 | L40: 0
A41: 1935 | B41: Stores Equipment | C41: =+'App2-B FAC2012'!E41 -> 680 | E41: 680 | F41: =+'App2-B FAC2012'!F41 -> 0 | G41: 680 | H41: =+G41/K41 -> 10 | I41: 0.1 | J41: 68 | K41: =-'App2-B FAC2012'!K41 -> 68 | L41: 0
A42: 1940 | B42: Tools, Shop & Garage Equipment | C42: =+'App2-B FAC2012'!E42 -> 168132 | E42: 168132 | F42: =+'App2-B FAC2012'!F42 -> 24265 | G42: 180264.5 | H42: =+G42/K42 -> 8.164892653 | I42: 0.1224755845 | J42: 22078 | K42: =-'App2-B FAC2012'!K42 -> 22078 | L42: 0
A43: 1945 | B43: Measurement & Testing Equipment | C43: =+'App2-B FAC2012'!E43 -> 0 | E43: 0 | F43: =+'App2-B FAC2012'!F43 -> 0 | G43: 0 | J43: 0 | K43: =-'App2-B FAC2012'!K43 -> 0 | L43: 0
A44: 1950 | B44: Power Operated Equipment | C44: =+'App2-B FAC2012'!E44 -> 0 | E44: 0 | F44: =+'App2-B FAC2012'!F44 -> 0 | G44: 0 | J44: 0 | K44: =-'App2-B FAC2012'!K44 -> 0 | L44: 0
A45: 1955 | B45: Communications Equipment | C45: =+'App2-B FAC2012'!E45 -> 4638 | E45: 4638 | F45: =+'App2-B FAC2012'!F45 -> 0 | G45: 4638 | H45: =+G45/K45 -> 5.86346397 | I45: 0.1705476498 | J45: 791 | K45: =-'App2-B FAC2012'!K45 -> 791 | L45: -1.136868377e-13
A46: 1955 | B46: Communication Equipment (Smart Meters) | C46: =+'App2-B FAC2012'!E46 -> 0 | E46: 0 | F46: =+'App2-B FAC2012'!F46 -> 0 | G46: 0 | J46: 0 | K46: =-'App2-B FAC2012'!K46 -> 0 | L46: 0
A47: 1960 | B47: Miscellaneous Equipment | C47: =+'App2-B FAC2012'!E47 -> 6603 | E47: 6603 | F47: =+'App2-B FAC2012'!F47 -> 0 | G47: 6603 | H47: =+G47/K47 -> 10.00454545 | I47: 0.09995456611 | J47: 660 | K47: =-'App2-B FAC2012'!K47 -> 660 | L47: 0
A48: 1975 | B48: Load Management Controls Utility Premises | C48: =+'App2-B FAC2012'!E48 -> 0 | E48: 0 | F48: =+'App2-B FAC2012'!F48 -> 0 | G48: 0 | J48: 0 | K48: =-'App2-B FAC2012'!K48 -> 0 | L48: 0
A49: 1980 | B49: System Supervisor Equipment | C49: =+'App2-B FAC2012'!E49 -> 0 | E49: 0 | F49: =+'App2-B FAC2012'!F49 -> 0 | G49: 0 | J49: 0 | K49: =-'App2-B FAC2012'!K49 -> 0 | L49: 0
A50: 1985 | B50: Miscellaneous Fixed Assets | C50: =+'App2-B FAC2012'!E50 -> 0 | E50: 0 | F50: =+'App2-B FAC2012'!F50 -> 0 | G50: 0 | J50: 0 | K50: =-'App2-B FAC2012'!K50 -> 0 | L50: 0
A51: 1995 | B51: Contributions & Grants | C51: =+'App2-B FAC2012'!E51 -> 0 | E51: 0 | F51: =+'App2-B FAC2012'!F51 -> 0 | G51: 0 | J51: 0 | K51: =-'App2-B FAC2012'!K51 -> 0 | L51: 0
A52: etc. | C52: =+'App 2-B FAC 2011'!E52 -> 0 | E52: 0 | F52: =+'App2-B FAC2012'!F52 -> 0 | G52: 0 | J52: 0 | K52: =-'App2-B FAC2012'!K52 -> 0 | L52: 0
C53: =+'App 2-B FAC 2011'!E53 -> 0 | E53: 0 | F53: =+'App2-B FAC2012'!F53 -> 0 | G53: 0 | J53: 0 | K53: =-'App2-B FAC2012'!K53 -> 0 | L53: 0
B54: Total | C54: =SUM(C16:C53) -> 7865405.36 | D54: =SUM(D16:D53) -> 569059 | E54: =SUM(E16:E53) -> 7296346.36 | F54: =SUM(F16:F53) -> 830296 | G54: =SUM(G16:G53) -> 7711494.36 | J54: =SUM(J16:J53) -> 470239 | K54: =SUM(K16:K53) -> 470239 | L54: =SUM(L16:L53) -> -1.005906469e-13
A56: Note 1 | B56: Depreciation adjusted for over-amortized asset
A59: Notes:
A60: 1 | B60: Board policy of the "half-year" rule - the applicant must ensure that additions in the year attract a half-year depreciation expense in the first year. Deviations from this standard practice must be supported in the application.
A61: 2 | B61: The applicant must provide an explanation of material variances in evidence
A62: General: | B62: Applicants must provide a breakdown of depreciation and amortization expense in the above format for all relevant accounts. Asset Retirement Obligations (AROs), depreciation and accretion expense should be disclosed separately consistent with the Notes of historical Audited Financial Statements.

Sheet App.2-CF_CGAAP_DepExp_2013
K1: File Number: | L1: 0
K2: Exhibit:
K3: Tab:
K4: Schedule:
K5: Page:
K7: Date:
A9: Appendix 2-CF
A10: Depreciation and Amortization Expense
A11: Assumes the applicant adopted IFRS for financial reporting purposes January 1, 2013
C12: Year | D12: 2013 | E12: CGAAP
A14: Account | B14: Description | C14: Opening Regulatory Gross PP&E as at Jan 1, 2013 | D14: Less Fully Depreciated | E14: Net for Depreciation | F14: Additions | G14: Total for Depreciation | H14: Years | I14: Depreciation Rate | J14: 2013 Depreciation Expense | K14: 2013 Depreciation Expense per Appendix 2-B Fixed Assets, Column K (l) | L14: Variance 2
C15: (a) | D15: (b) | E15: (c) | F15: (d) | G15: (e) = (c) + ½ x (d) 1 | H15: (f) | I15: (g) = 1 / (f) | J15: (h) = (e) / (f) | L15: (m) = (h) - (l)
A16: 1611 | B16: Computer Software (Formally known as Account 1925) | C16: ='App 2-B FAC 2013'!E16 -> 159158 | E16: =C16-D16 -> 159158 | F16: ='App 2-B FAC 2013'!F16 -> 21743 | G16: =E16+0.5*F16 -> 170029.5 | H16: =+G16/K16 -> 5.391058123 | I16: =IF(H16=0,"",1/H16) -> 0.1854923425 | J16: =IF(H16=0,0,G16/H16) -> 31539.17026 | K16: =-'App 2-B FAC 2013'!K16 -> 31539.17026 | L16: =IF(ISERROR(+J16-K16), "", +J16-K16) -> 0
A17: 1612 | B17: Land Rights (Formally known as Account 1906) | C17: ='App 2-B FAC 2013'!E17 -> 0 | E17: =C17-D17 -> 0 | F17: ='App 2-B FAC 2013'!F17 -> 0 | G17: =E17+0.5*F17 -> 0 | J17: 0 | K17: =-'App 2-B FAC 2013'!K17 -> 0 | L17: =IF(ISERROR(+J17-K17), "", +J17-K17) -> 0
A18: 1805 | B18: Land | C18: ='App 2-B FAC 2013'!E18 -> 87700 | E18: 87700 | F18: ='App 2-B FAC 2013'!F18 -> 0 | G18: 87700 | J18: 0 | K18: =-'App 2-B FAC 2013'!K18 -> 0 | L18: 0
A19: 1808 | B19: Buildings | C19: ='App 2-B FAC 2013'!E19 -> 501822 | D19: 18059 | E19: 483763 | F19: ='App 2-B FAC 2013'!F19 -> 23854 | G19: 495690 | H19: =+G19/K19 -> 24.90391722 | I19: 0.04015432556 | J19: 19904.09764 | K19: =-'App 2-B FAC 2013'!K19 -> 19904.09764 | L19: =IF(ISERROR(+J19-K19), "", +J19-K19) -> 0
A20: 1810 | B20: Leasehold Improvements | C20: ='App 2-B FAC 2013'!E20 -> 4692 | E20: 4692 | F20: ='App 2-B FAC 2013'!F20 -> 0 | G20: 4692 | H20: =+G20/K20 -> 5.002132196 | I20: 0.1999147485 | J20: 938 | K20: =-'App 2-B FAC 2013'!K20 -> 938 | L20: 0
A21: 1815 | B21: Transformer Station Equipment >50 kV | C21: ='App 2-B FAC 2013'!E21 -> 3644 | E21: 3644 | F21: ='App 2-B FAC 2013'!F21 -> 0 | G21: 3644 | H21: =+G21/K21 -> 30.11570248 | I21: 0.03320526894 | J21: 121 | K21: =-'App 2-B FAC 2013'!K21 -> 121 | L21: 0
A22: 1820 | B22: Distribution Station Equipment <50 kV | C22: ='App 2-B FAC 2013'!E22 -> 567599 | E22: 567599 | F22: ='App 2-B FAC 2013'!F22 -> 15000 | G22: 575099 | H22: =+G22/K22 -> 58.34875931 | I22: 0.01713832499 | J22: 9856.233566 | K22: =-'App 2-B FAC 2013'!K22 -> 9856.233566 | L22: 0
A23: 1825 | B23: Storage Battery Equipment | C23: ='App 2-B FAC 2013'!E23 -> 0 | E23: 0 | F23: ='App 2-B FAC 2013'!F23 -> 0 | G23: 0 | J23: 0 | K23: =-'App 2-B FAC 2013'!K23 -> 0 | L23: 0
A24: 1830 | B24: Poles, Towers & Fixtures | C24: ='App 2-B FAC 2013'!E24 -> 2787996 | E24: 2787996 | F24: ='App 2-B FAC 2013'!F24 -> 129488 | G24: 2852740 | H24: =+G24/K24 -> 57.70927749 | I24: 0.01732823635 | J24: 49432.95297 | K24: =-'App 2-B FAC 2013'!K24 -> 49432.95297 | L24: 0
A25: 1835 | B25: Overhead Conductors & Devices | C25: ='App 2-B FAC 2013'!E25 -> 1877806.08 | E25: 1877806.08 | F25: ='App 2-B FAC 2013'!F25 -> 129488 | G25: 1942550.08 | H25: =+G25/K25 -> 68.77615151 | I25: 0.01453992377 | J25: 28244.53008 | K25: =-'App 2-B FAC 2013'!K25 -> 28244.53008 | L25: 0
A26: 1840 | B26: Underground Conduit | C26: ='App 2-B FAC 2013'!E26 -> 186674.28 | E26: 186674.28 | F26: ='App 2-B FAC 2013'!F26 -> 0 | G26: 186674.28 | H26: =+G26/K26 -> 216.5594896 | I26: 0.004617668808 | J26: 862 | K26: =-'App 2-B FAC 2013'!K26 -> 862 | L26: 0
A27: 1845 | B27: Underground Conductors & Devices | C27: ='App 2-B FAC 2013'!E27 -> 3690 | E27: 3690 | F27: ='App 2-B FAC 2013'!F27 -> 0 | G27: 3690 | H27: =+G27/K27 -> 50.54794521 | I27: 0.01978319783 | J27: 73 | K27: =-'App 2-B FAC 2013'!K27 -> 73 | L27: 0
A28: 1850 | B28: Line Transformers | C28: ='App 2-B FAC 2013'!E28 -> 749129 | E28: 749129 | F28: ='App 2-B FAC 2013'!F28 -> 112000 | G28: 805129 | H28: =+G28/K28 -> 61.75863153 | I28: 0.01619206863 | J28: 13036.70402 | K28: =-'App 2-B FAC 2013'!K28 -> 13036.70402 | L28: 0
A29: 1855 | B29: Services (Overhead & Underground) | C29: ='App 2-B FAC 2013'!E29 -> 3.2740477e-13 | E29: 3.2740477e-13 | F29: ='App 2-B FAC 2013'!F29 -> 0 | G29: 3.2740477e-13 | H29: 25 | I29: 0.04 | J29: 1.30961908e-14 | K29: =-'App 2-B FAC 2013'!K29 -> 0 | L29: 1.30961908e-14
A30: 1860 | B30: Meters | C30: ='App 2-B FAC 2013'!E30 -> 31278 | E30: 31278 | F30: ='App 2-B FAC 2013'!F30 -> 28775 | G30: 45665.5 | H30: =+G30/K30 -> 3.249597183 | I30: 0.3077304489 | J30: 14052.66481 | K30: =-'App 2-B FAC 2013'!K30 -> 14052.66481 | L30: 0
A31: 1860 | B31: Meters (Smart Meters) | C31: ='App 2-B FAC 2013'!E31 -> 0 | E31: 0 | F31: ='App 2-B FAC 2013'!F31 -> 1061720 | G31: 530860 | H31: =+G31/K31 -> 6.059976484 | I31: 0.165017142 | J31: 87601 | K31: =-'App 2-B FAC 2013'!K31 -> 87601 | L31: 0
A32: 1905 | B32: Land | C32: ='App 2-B FAC 2013'!E32 -> 0 | E32: 0 | F32: ='App 2-B FAC 2013'!F32 -> 0 | G32: 0 | J32: 0 | K32: =-'App 2-B FAC 2013'!K32 -> 0 | L32: 0
A33: 1908 | B33: Buildings & Fixtures | C33: ='App 2-B FAC 2013'!E33 -> 0 | E33: 0 | F33: ='App 2-B FAC 2013'!F33 -> 0 | G33: 0 | J33: 0 | K33: =-'App 2-B FAC 2013'!K33 -> 0 | L33: 0
A34: 1910 | B34: Leasehold Improvements | C34: ='App 2-B FAC 2013'!E34 -> 0 | E34: 0 | F34: ='App 2-B FAC 2013'!F34 -> 0 | G34: 0 | J34: 0 | K34: =-'App 2-B FAC 2013'!K34 -> 0 | L34: 0
A35: 1915 | B35: Office Furniture & Equipment (10 years) | C35: ='App 2-B FAC 2013'!E35 -> 17607 | E35: 17607 | F35: ='App 2-B FAC 2013'!F35 -> 0 | G35: 17607 | H35: =+G35/K35 -> 40.36964286 | I35: 0.0247710886 | J35: 436.144557 | K35: =-'App 2-B FAC 2013'!K35 -> 436.144557 | L35: 0 | M35: Note 1
A36: 1915 | B36: Office Furniture & Equipment (5 years) | C36: ='App 2-B FAC 2013'!E36 -> 0 | E36: 0 | F36: ='App 2-B FAC 2013'!F36 -> 0 | G36: 0 | J36: 0 | K36: =-'App 2-B FAC 2013'!K36 -> 0 | L36: 0
A37: 1920 | B37: Computer Equipment - Hardware | C37: ='App 2-B FAC 2013'!E37 -> 0 | E37: 0 | F37: ='App 2-B FAC 2013'!F37 -> 0 | G37: 0 | J37: 0 | K37: =-'App 2-B FAC 2013'!K37 -> 0 | L37: 0
A38: 1920 | B38: Computer Equip.-Hardware(Post Mar. 22/04) | C38: ='App 2-B FAC 2013'!E38 -> 0 | E38: 0 | F38: ='App 2-B FAC 2013'!F38 -> 0 | G38: 0 | J38: 0 | K38: =-'App 2-B FAC 2013'!K38 -> 0 | L38: 0
A39: 1920 | B39: Computer Equip.-Hardware(Post Mar. 19/07) | C39: ='App 2-B FAC 2013'!E39 -> 91507 | E39: 91507 | F39: ='App 2-B FAC 2013'!F39 -> 38169 | G39: 110591.5 | H39: =+G39/K39 -> 4.333493667 | I39: 0.2307606926 | J39: 25520.17114 | K39: =-'App 2-B FAC 2013'!K39 -> 25520.17114 | L39: 0
A40: 1930 | B40: Transportation Equipment | C40: ='App 2-B FAC 2013'!E40 -> 1421081 | D40: 551000 | E40: 870081 | F40: ='App 2-B FAC 2013'!F40 -> 262000 | G40: 1001081 | H40: =+G40/K40 -> 4.576354669 | I40: 0.2185145323 | J40: 218750.7465 | K40: =-'App 2-B FAC 2013'!K40 -> 218750.7465 | L40: 0
A41: 1935 | B41: Stores Equipment | C41: ='App 2-B FAC 2013'!E41 -> 680 | E41: 680 | F41: ='App 2-B FAC 2013'!F41 -> 0 | G41: 680 | H41: 0 | J41: 0 | K41: =-'App 2-B FAC 2013'!K41 -> 0 | L41: 0
A42: 1940 | B42: Tools, Shop & Garage Equipment | C42: ='App 2-B FAC 2013'!E42 -> 192397 | E42: 192397 | F42: ='App 2-B FAC 2013'!F42 -> 24100 | G42: 204447 | H42: =+G42/K42 -> 5.77377858 | I42: 0.1731968045 | J42: 35409.56709 | K42: =-'App 2-B FAC 2013'!K42 -> 35409.56709 | L42: 0
A43: 1945 | B43: Measurement & Testing Equipment | C43: ='App 2-B FAC 2013'!E43 -> 0 | E43: 0 | F43: ='App 2-B FAC 2013'!F43 -> 0 | G43: 0 | J43: 0 | K43: =-'App 2-B FAC 2013'!K43 -> 0 | L43: 0
A44: 1950 | B44: Power Operated Equipment | C44: ='App 2-B FAC 2013'!E44 -> 0 | E44: 0 | F44: ='App 2-B FAC 2013'!F44 -> 0 | G44: 0 | J44: 0 | K44: =-'App 2-B FAC 2013'!K44 -> 0 | L44: 0
A45: 1955 | B45: Communications Equipment | C45: ='App 2-B FAC 2013'!E45 -> 4638 | E45: 4638 | F45: ='App 2-B FAC 2013'!F45 -> 0 | G45: 4638 | H45: =+G45/K45 -> 5.86346397 | I45: 0.1705476498 | J45: 791 | K45: =-'App 2-B FAC 2013'!K45 -> 791 | L45: 0
A46: 1955 | B46: Communication Equipment (Smart Meters) | C46: ='App 2-B FAC 2013'!E46 -> 0 | E46: 0 | F46: ='App 2-B FAC 2013'!F46 -> 0 | G46: 0 | J46: 0 | K46: =-'App 2-B FAC 2013'!K46 -> 0 | L46: 0
A47: 1960 | B47: Miscellaneous Equipment | C47: ='App 2-B FAC 2013'!E47 -> 6603 | E47: 6603 | F47: ='App 2-B FAC 2013'!F47 -> 751 | G47: 6978.5 | H47: =+G47/K47 -> 3.75188172 | I47: 0.2665329225 | J47: 1860 | K47: =-'App 2-B FAC 2013'!K47 -> 1860 | L47: 0
A48: 1975 | B48: Load Management Controls Utility Premises | C48: ='App 2-B FAC 2013'!E48 -> 0 | E48: 0 | F48: ='App 2-B FAC 2013'!F48 -> 0 | G48: 0 | J48: 0 | K48: =-'App 2-B FAC 2013'!K48 -> 0 | L48: 0
A49: 1980 | B49: System Supervisor Equipment | C49: ='App 2-B FAC 2013'!E49 -> 0 | E49: 0 | F49: ='App 2-B FAC 2013'!F49 -> 0 | G49: 0 | J49: 0 | K49: =-'App 2-B FAC 2013'!K49 -> 0 | L49: 0
A50: 1985 | B50: Miscellaneous Fixed Assets | C50: ='App 2-B FAC 2013'!E50 -> 0 | E50: 0 | F50: ='App 2-B FAC 2013'!F50 -> 0 | G50: 0 | J50: 0 | K50: =-'App 2-B FAC 2013'!K50 -> 0 | L50: 0
A51: 1995 | B51: Contributions & Grants | C51: ='App 2-B FAC 2013'!E51 -> 0 | E51: 0 | F51: ='App 2-B FAC 2013'!F51 -> 0 | G51: 0 | J51: 0 | K51: =-'App 2-B FAC 2013'!K51 -> 0 | L51: 0
A52: etc. | C52: ='App 2-B FAC 2013'!E52 -> 0 | E52: 0 | F52: ='App 2-B FAC 2013'!F52 -> 0 | G52: 0 | J52: 0 | K52: =-'App 2-B FAC 2013'!K52 -> 0 | L52: 0
C53: ='App 2-B FAC 2013'!E53 -> 0 | E53: 0 | F53: ='App 2-B FAC 2013'!F53 -> 0 | G53: 0 | J53: 0 | K53: =-'App 2-B FAC 2013'!K53 -> 0 | L53: 0
B54: Total | C54: =SUM(C16:C53) -> 8695701.36 | D54: =SUM(D16:D53) -> 569059 | E54: =SUM(E16:E53) -> 8126642.36 | F54: =SUM(F16:F53) -> 1847088 | G54: =SUM(G16:G53) -> 9050186.36 | J54: =SUM(J16:J53) -> 538428.9826 | K54: =SUM(K16:K53) -> 538428.9826 | L54: =SUM(L16:L53) -> 1.30961908e-14
A56: Note 1 | B56: Depreciation adjusted for over-amortized asset
A59: Notes:
A60: 1 | B60: Board policy of the "half-year" rule - the applicant must ensure that additions in the year attract a half-year depreciation expense in the first year. Deviations from this standard practice must be supported in the application.
A61: 2 | B61: The applicant must provide an explanation of material variances in evidence
A62: General: | B62: Applicants must provide a breakdown of depreciation and amortization expense in the above format for all relevant accounts. Asset Retirement Obligations (AROs), depreciation and accretion expense should be disclosed separately consistent with the Notes of historical Audited Financial Statements.

Sheet App.2-CG_MIFRS_DepExp_2012
M1: File Number: | N1: ='LDC Info'!$E$18 -> EB-2012-0153
M2: Exhibit:
M3: Tab:
M4: Schedule:
M5: Page:
M7: Date:
A9: Appendix 2-CG
A10: Depreciation and Amortization Expense
A11: Assumes the applicant adopted IFRS for financial reporting purposes January 1, 2013
C12: Year | D12: 2012 | E12: MIFRS
A14: Account | B14: Description | C14: Opening NBV as at Jan 1, 2012 5 | D14: Additions | E14: Average Remaining Life of Opening NBV 4 | F14: Years (new additions only) 3 | G14: Depreciation Rate on New Additions | H14: Depreciation Expense on Opening NBV | I14: Depreciation Expense on Additions 1 | J14: 2012 Depreciation Expense | K14: 2012 Depreciation Expense per Appendix 2-B Fixed Assets, Columns K & L (l) | L14: Variance 2 | M14: Depreciation Expense on 2012 Full Year Additions | N14: 2012 Full Year Depreciation
C15: (a) | D15: (d) | E15: (i) | F15: (f) | G15: (g) = 1 / (f) | H15: (j) = (a) / (i) | I15: (h)=((d)*0.5)/(f) | J15: (k) = (j) + (h) | L15: (m) = (k) - (l) | M15: (n)=((d))/(f) | N15: (o) = (j) + (n)
A16: 1611 | B16: Computer Software (Formally known as Account 1925) | C16: =+'App 2-B FAC 2011'!N16 -> 90161 | D16: =+'App.2-CF_CGAAP_DepExp_2012'!F16 -> 0 | E16: =+C16/21717 -> 4.151632362 | F16: =+E16 -> 4.151632362 | G16: =IF(F16=0,0,1/F16) -> 0.2408691119 | H16: =IF(E16=0,0,+C16/E16) -> 21717 | I16: =IF(F16=0,0,+(D16*0.5)/F16) -> 0 | J16: =IF(ISERROR(+H16+I16), 0, +H16+I16) -> 21717 | K16: =-'App2-B FAC MIFRS2012'!K16 -> 22319 | L16: =IF(ISERROR(+J16-K16), 0, +J16-K16) -> -602 | M16: =IF(F16=0,0,+(D16)/F16) -> 0 | N16: =IF(ISERROR(+M16+H16), 0, +M16+H16) -> 21717
A17: 1612 | B17: Land Rights (Formally known as Account 1906) | C17: =+'App 2-B FAC 2011'!N17 -> 0 | D17: =+'App.2-CF_CGAAP_DepExp_2012'!F17 -> 0 | E17: =+'App.2-CF_CGAAP_DepExp_2012'!H17 -> 0 | F17: =+E17 -> 0 | G17: 0 | H17: =IF(E17=0,0,+C17/E17) -> 0 | I17: 0 | J17: 0 | K17: =-'App2-B FAC MIFRS2012'!K17 -> 0 | L17: 0 | M17: 0 | N17: 0
A18: 1805 | B18: Land | C18: =+'App 2-B FAC 2011'!N18 -> 87700 | D18: =+'App.2-CF_CGAAP_DepExp_2012'!F18 -> 0 | E18: =+'App.2-CF_CGAAP_DepExp_2012'!H18 -> 0 | F18: 0 | G18: 0 | H18: 0 | I18: 0 | J18: 0 | K18: =-'App2-B FAC MIFRS2012'!K18 -> 0 | L18: 0 | M18: 0 | N18: 0
A19: 1808 | B19: Buildings | C19: =+'App 2-B FAC 2011'!N19 -> 343099 | D19: =+'App.2-CF_CGAAP_DepExp_2012'!F19 -> 116245 | E19: =+C19/14936 -> 22.97127745 | F19: 22.97127745 | G19: 0.04353262469 | H19: 14936 | I19: 2530.224979 | J19: 17466.22498 | K19: =-'App2-B FAC MIFRS2012'!K19 -> 17113 | L19: 353.2249788 | M19: 5060.449958 | N19: 19996.44996
A20: 1810 | B20: Leasehold Improvements | C20: =+'App 2-B FAC 2011'!N20 -> 2347 | D20: =+'App.2-CF_CGAAP_DepExp_2012'!F20 -> 0 | E20: =+C20/938 -> 2.502132196 | F20: 2.502132196 | G20: 0.3996591393 | H20: 938 | I20: 0 | J20: 938 | K20: =-'App2-B FAC MIFRS2012'!K20 -> 938 | L20: -1.136868377e-13 | M20: 0 | N20: 938
A21: 1815 | B21: Transformer Station Equipment >50 kV | C21: =+'App 2-B FAC 2011'!N21 -> 2431 | D21: =+'App.2-CF_CGAAP_DepExp_2012'!F21 -> 0 | E21: =+C21/121 -> 20.09090909 | F21: 20.09090909 | G21: 0.04977375566 | H21: 121 | I21: 0 | J21: 121 | K21: =-'App2-B FAC MIFRS2012'!K21 -> 121 | L21: 0 | M21: 0 | N21: 121
A22: 1820 | B22: Distribution Station Equipment <50 kV | C22: =+'App 2-B FAC 2011'!N22 -> 243328 | D22: =+'App.2-CF_CGAAP_DepExp_2012'!F22 -> 16256 | E22: 28.75 | F22: 40.18 | G22: 0.02488800398 | H22: 8463.582609 | I22: 202.2896964 | J22: 8665.872305 | K22: =-'App2-B FAC MIFRS2012'!K22 -> 9649 | L22: -983.1276949 | M22: 404.5793927 | N22: 8868.162001
A23: 1825 | B23: Storage Battery Equipment | C23: =+'App 2-B FAC 2011'!N23 -> 0 | D23: =+'App.2-CF_CGAAP_DepExp_2012'!F23 -> 0 | E23: =+'App.2-CF_CGAAP_DepExp_2012'!H23 -> 0 | F23: =+E23 -> 0 | G23: 0 | H23: 0 | I23: 0 | J23: 0 | K23: =-'App2-B FAC MIFRS2012'!K23 -> 0 | L23: 0 | M23: 0 | N23: 0
A24: 1830 | B24: Poles, Towers & Fixtures | C24: =+'App 2-B FAC 2011'!N24 -> 1513881 | D24: =+'App.2-CF_CGAAP_DepExp_2012'!F24 -> 186320 | E24: 35 | F24: 45 | G24: 0.02222222222 | H24: 43253.74286 | I24: 2070.222222 | J24: 45323.96508 | K24: =-'App2-B FAC MIFRS2012'!K24 -> 45401 | L24: -77.03492063 | M24: 4140.444444 | N24: 47394.1873
A25: 1835 | B25: Overhead Conductors & Devices | C25: =+'App 2-B FAC 2011'!N25 -> 738134.08 | D25: =+'App.2-CF_CGAAP_DepExp_2012'!F25 -> 219276 | E25: 36 | F25: 45 | G25: 0.02222222222 | H25: 20503.72444 | I25: 2436.4 | J25: 22940.12444 | K25: =-'App2-B FAC MIFRS2012'!K25 -> 23513 | L25: -572.8755556 | M25: 4872.8 | N25: 25376.52444
A26: 1840 | B26: Underground Conduit | C26: =+'App 2-B FAC 2011'!N26 -> 30182.28 | D26: =+'App.2-CF_CGAAP_DepExp_2012'!F26 -> 0 | E26: 35 | F26: 45 | G26: 0.02222222222 | H26: 862.3508571 | I26: 0 | J26: 862.3508571 | K26: =-'App2-B FAC MIFRS2012'!K26 -> 862 | L26: 0.3508571429 | M26: 0 | N26: 862.3508571
A27: 1845 | B27: Underground Conductors & Devices | C27: =+'App 2-B FAC 2011'!N27 -> 2560 | D27: =+'App.2-CF_CGAAP_DepExp_2012'!F27 -> 0 | E27: 35 | F27: 45 | G27: 0.02222222222 | H27: 73.14285714 | I27: 0 | J27: 73.14285714 | K27: =-'App2-B FAC MIFRS2012'!K27 -> 73 | L27: 0.1428571429 | M27: 0 | N27: 73.14285714
A28: 1850 | B28: Line Transformers | C28: =+'App 2-B FAC 2011'!N28 -> 369391 | D28: =+'App.2-CF_CGAAP_DepExp_2012'!F28 -> 54337 | E28: 36 | F28: 45 | G28: 0.02222222222 | H28: 10260.86111 | I28: 603.7444444 | J28: =IF(ISERROR(+H28+I28), 0, +H28+I28) -> 10864.60556 | K28: =-'App2-B FAC MIFRS2012'!K28 -> 11372 | L28: -507.3944444 | M28: 1207.488889 | N28: 11468.35
A29: 1855 | B29: Services (Overhead & Underground) | C29: =+'App 2-B FAC 2011'!N29 -> 3.2740477e-13 | D29: =+'App.2-CF_CGAAP_DepExp_2012'!F29 -> 0 | E29: 13 | F29: 35 | G29: 0.02857142857 | H29: 2.51849823e-14 | I29: 0 | J29: 2.51849823e-14 | K29: =-'App2-B FAC MIFRS2012'!K29 -> 0 | L29: 2.51849823e-14 | M29: 0 | N29: 2.51849823e-14
A30: 1860 | B30: Meters | C30: =+'App 2-B FAC 2011'!N30 -> 31960 | D30: =+'App.2-CF_CGAAP_DepExp_2012'!F30 -> -8497 | E30: =+C30/16041 -> 1.992394489 | F30: =+E30 -> 1.992394489 | G30: 0.5019086358 | H30: 16041 | I30: -2132.358839 | J30: 13908.64116 | K30: =-'App2-B FAC MIFRS2012'!K30 -> 16041 | L30: -2132.358839 | M30: -4264.717678 | N30: 11776.28232
A31: 1860 | B31: Meters (Smart Meters) | C31: =+'App 2-B FAC 2011'!N31 -> 0 | D31: =+'App.2-CF_CGAAP_DepExp_2012'!F31 -> 0 | E31: =+'App.2-CF_CGAAP_DepExp_2012'!H31 -> 0 | F31: =+E31 -> 0 | G31: 0 | H31: 0 | I31: 0 | J31: 0 | K31: =-'App2-B FAC MIFRS2012'!K31 -> 0 | L31: 0 | M31: 0 | N31: 0
A32: 1905 | B32: Land | C32: =+'App 2-B FAC 2011'!N32 -> 0 | D32: =+'App.2-CF_CGAAP_DepExp_2012'!F32 -> 0 | E32: =+'App.2-CF_CGAAP_DepExp_2012'!H32 -> 0 | F32: 0 | G32: 0 | H32: 0 | I32: 0 | J32: 0 | K32: =-'App2-B FAC MIFRS2012'!K32 -> 0 | L32: 0 | M32: 0 | N32: 0
A33: 1908 | B33: Buildings & Fixtures | C33: =+'App 2-B FAC 2011'!N33 -> 0 | D33: =+'App.2-CF_CGAAP_DepExp_2012'!F33 -> 0 | E33: =+'App.2-CF_CGAAP_DepExp_2012'!H33 -> 0 | F33: 0 | G33: 0 | H33: 0 | I33: 0 | J33: 0 | K33: =-'App2-B FAC MIFRS2012'!K33 -> 0 | L33: 0 | M33: 0 | N33: 0
A34: 1910 | B34: Leasehold Improvements | C34: =+'App 2-B FAC 2011'!N34 -> 0 | D34: =+'App.2-CF_CGAAP_DepExp_2012'!F34 -> 0 | E34: =+'App.2-CF_CGAAP_DepExp_2012'!H34 -> 0 | F34: 0 | G34: 0 | H34: 0 | I34: 0 | J34: 0 | K34: =-'App2-B FAC MIFRS2012'!K34 -> 0 | L34: 0 | M34: 0 | N34: 0
A35: 1915 | B35: Office Furniture & Equipment (10 years) | C35: =+'App 2-B FAC 2011'!N35+3235.05 -> 569.05 | D35: =+'App.2-CF_CGAAP_DepExp_2012'!F35 -> 0 | E35: =+C35/59.9 -> 9.5 | F35: 10 | G35: 0.1 | H35: 59.9 | I35: 0 | J35: 59.9 | K35: =-'App2-B FAC MIFRS2012'!K35 -> -2925 | L35: =IF(ISERROR(+J35-K35), 0, +J35-K35) -> 2984.9 | M35: 0 | N35: 59.9 | O35: Note 1
A36: 1915 | B36: Office Furniture & Equipment (5 years) | C36: =+'App 2-B FAC 2011'!N36 -> 0 | D36: =+'App.2-CF_CGAAP_DepExp_2012'!F36 -> 0 | E36: =+'App.2-CF_CGAAP_DepExp_2012'!H36 -> 0 | F36: 0 | G36: 0 | H36: 0 | I36: 0 | J36: 0 | K36: =-'App2-B FAC MIFRS2012'!K36 -> 0 | L36: 0 | M36: 0 | N36: 0
A37: 1920 | B37: Computer Equipment - Hardware | C37: =+'App 2-B FAC 2011'!N37 -> 0 | D37: =+'App.2-CF_CGAAP_DepExp_2012'!F37 -> 0 | E37: =+'App.2-CF_CGAAP_DepExp_2012'!H37 -> 0 | F37: 0 | G37: 0 | H37: 0 | I37: 0 | J37: 0 | K37: =-'App2-B FAC MIFRS2012'!K37 -> 0 | L37: 0 | M37: 0 | N37: 0
A38: 1920 | B38: Computer Equip.-Hardware(Post Mar. 22/04) | C38: =+'App 2-B FAC 2011'!N38 -> 0 | D38: =+'App.2-CF_CGAAP_DepExp_2012'!F38 -> 0 | E38: =+'App.2-CF_CGAAP_DepExp_2012'!H38 -> 0 | F38: 0 | G38: 0 | H38: 0 | I38: 0 | J38: 0 | K38: =-'App2-B FAC MIFRS2012'!K38 -> 0 | L38: 0 | M38: 0 | N38: 0
A39: 1920 | B39: Computer Equip.-Hardware(Post Mar. 19/07) | C39: =+'App 2-B FAC 2011'!N39 -> 15622 | D39: =+'App.2-CF_CGAAP_DepExp_2012'!F39 -> 3982 | E39: =+C39/5621 -> 2.779220779 | F39: 2.779220779 | G39: 0.3598130841 | H39: 5621 | I39: 716.3878505 | J39: 6337.38785 | K39: =-'App2-B FAC MIFRS2012'!K39 -> 7420 | L39: -1082.61215 | M39: 1432.775701 | N39: 7053.775701
A40: 1930 | B40: Transportation Equipment | C40: =+'App 2-B FAC 2011'!N40 -> 847182 | D40: =+'App.2-CF_CGAAP_DepExp_2012'!F40 -> 218112 | E40: =+C40/164554 -> 5.148352516 | F40: 5.148352516 | G40: 0.1942368936 | H40: 164554 | I40: 21182.69867 | J40: 185736.6987 | K40: =-'App2-B FAC MIFRS2012'!K40 -> 183935 | L40: 1801.698669 | M40: 42365.39734 | N40: 206919.3973
A41: 1935 | B41: Stores Equipment | C41: =+'App 2-B FAC 2011'!N41 -> 42 | D41: =+'App.2-CF_CGAAP_DepExp_2012'!F41 -> 0 | E41: =+C41/42 -> 1 | F41: 1 | G41: 1 | H41: 42 | I41: 0 | J41: 42 | K41: =-'App2-B FAC MIFRS2012'!K41 -> 42 | L41: 0 | M41: 0 | N41: 42
A42: 1940 | B42: Tools, Shop & Garage Equipment | C42: =+'App 2-B FAC 2011'!N42 -> 75651 | D42: =+'App.2-CF_CGAAP_DepExp_2012'!F42 -> 24265 | E42: =+C42/23591 -> 3.20677377 | F42: 3.20677377 | G42: 0.3118398964 | H42: 23591 | I42: 3783.397543 | J42: 27374.39754 | K42: =-'App2-B FAC MIFRS2012'!K42 -> 29734 | L42: -2359.602457 | M42: 7566.795085 | N42: =IF(ISERROR(+M42+H42), 0, +M42+H42) -> 31157.79509
A43: 1945 | B43: Measurement & Testing Equipment | C43: =+'App 2-B FAC 2011'!N43 -> 0 | D43: =+'App.2-CF_CGAAP_DepExp_2012'!F43 -> 0 | E43: =+'App.2-CF_CGAAP_DepExp_2012'!H43 -> 0 | F43: 0 | G43: 0 | H43: 0 | I43: 0 | J43: 0 | K43: =-'App2-B FAC MIFRS2012'!K43 -> 0 | L43: 0 | M43: 0 | N43: 0
A44: 1950 | B44: Power Operated Equipment | C44: =+'App 2-B FAC 2011'!N44 -> 0 | D44: =+'App.2-CF_CGAAP_DepExp_2012'!F44 -> 0 | E44: =+'App.2-CF_CGAAP_DepExp_2012'!H44 -> 0 | F44: 0 | G44: 0 | H44: 0 | I44: 0 | J44: 0 | K44: =-'App2-B FAC MIFRS2012'!K44 -> 0 | L44: 0 | M44: 0 | N44: 0
A45: 1955 | B45: Communications Equipment | C45: =+'App 2-B FAC 2011'!N45 -> 2767 | D45: =+'App.2-CF_CGAAP_DepExp_2012'!F45 -> 0 | E45: =+C45/791 -> 3.498103666 | F45: 3.498103666 | G45: 0.2858691724 | H45: 791 | I45: 0 | J45: 791 | K45: =-'App2-B FAC MIFRS2012'!K45 -> 791 | L45: 0 | M45: 0 | N45: 791
A46: 1955 | B46: Communication Equipment (Smart Meters) | C46: =+'App 2-B FAC 2011'!N46 -> 0 | D46: =+'App.2-CF_CGAAP_DepExp_2012'!F46 -> 0 | E46: =+'App.2-CF_CGAAP_DepExp_2012'!H46 -> 0 | F46: 0 | G46: 0 | H46: 0 | I46: 0 | J46: 0 | K46: =-'App2-B FAC MIFRS2012'!K46 -> 0 | L46: 0 | M46: 0 | N46: 0
A47: 1960 | B47: Miscellaneous Equipment | C47: =+'App 2-B FAC 2011'!N47 -> 3302 | D47: =+'App.2-CF_CGAAP_DepExp_2012'!F47 -> 0 | E47: =+C47/660 -> 5.003030303 | F47: 5.003030303 | G47: 0.1998788613 | H47: 660 | I47: 0 | J47: 660 | K47: =-'App2-B FAC MIFRS2012'!K47 -> 660 | L47: 0 | M47: 0 | N47: 660
A48: 1975 | B48: Load Management Controls Utility Premises | C48: =+'App 2-B FAC 2011'!N48 -> 0 | D48: =+'App.2-CF_CGAAP_DepExp_2012'!F48 -> 0 | E48: =+'App.2-CF_CGAAP_DepExp_2012'!H48 -> 0 | F48: 0 | G48: 0 | H48: 0 | I48: 0 | J48: 0 | K48: =-'App2-B FAC MIFRS2012'!K48 -> 0 | L48: 0 | M48: 0 | N48: 0
A49: 1980 | B49: System Supervisor Equipment | C49: =+'App 2-B FAC 2011'!N49 -> 0 | D49: =+'App.2-CF_CGAAP_DepExp_2012'!F49 -> 0 | E49: =+'App.2-CF_CGAAP_DepExp_2012'!H49 -> 0 | F49: 0 | G49: 0 | H49: 0 | I49: 0 | J49: 0 | K49: =-'App2-B FAC MIFRS2012'!K49 -> 0 | L49: 0 | M49: 0 | N49: 0
A50: 1985 | B50: Miscellaneous Fixed Assets | C50: =+'App 2-B FAC 2011'!N50 -> 0 | D50: =+'App.2-CF_CGAAP_DepExp_2012'!F50 -> 0 | E50: =+'App.2-CF_CGAAP_DepExp_2012'!H50 -> 0 | F50: 0 | G50: 0 | H50: 0 | I50: 0 | J50: 0 | K50: =-'App2-B FAC MIFRS2012'!K50 -> 0 | L50: 0 | M50: 0 | N50: 0
A51: 1995 | B51: Contributions & Grants | C51: =+'App 2-B FAC 2011'!N51 -> 0 | D51: =+'App.2-CF_CGAAP_DepExp_2012'!F51 -> 0 | E51: =+'App.2-CF_CGAAP_DepExp_2012'!H51 -> 0 | F51: 0 | G51: 0 | H51: 0 | I51: 0 | J51: 0 | K51: =-'App2-B FAC MIFRS2012'!K51 -> 0 | L51: 0 | M51: 0 | N51: 0
A52: etc. | C52: =+'App 2-B FAC 2011'!N52 -> 0 | D52: =+'App.2-CF_CGAAP_DepExp_2012'!F52 -> 0 | E52: =+'App.2-CF_CGAAP_DepExp_2012'!H52 -> 0 | F52: 0 | G52: 0 | H52: 0 | I52: 0 | J52: 0 | K52: =-'App2-B FAC MIFRS2012'!K52 -> 0 | L52: 0 | M52: 0 | N52: 0
G53: 0 | H53: 0 | I53: 0 | J53: 0 | K53: =-'App2-B FAC MIFRS2012'!K53 -> 0 | L53: 0 | M53: 0 | N53: 0
B54: Total | C54: =SUM(C16:C53) -> 4400309.41 | D54: =SUM(D16:D53) -> 830296 | G54: 0 | H54: =SUM(H16:H53) -> 332489.3047 | I54: 31393.00657 | J54: 363882.3113 | K54: 367059 | L54: -3176.688699 | M54: 62786.01313 | N54: 395275.3179
A56: Note 1 | B56: Variance represents adjustment for over-amortized asset
A59: Notes:
A61: 1 | B61: Board policy of the "half-year" rule - the applicant must ensure that additions in the year attract a half-year depreciation expense in the first year. Deviations from this standard practice must be supported in the application.
A62: 2 | B62: The applicant must provide an explanation of material variances in evidence
A63: 3 | B63: The applicant should ensure that the years for new additions of assets are the asset useful lives determined by management in accordance with IFRS.
A64: 4 | B64: A recalculation should be performed to determine the average remaining life of opening balance of assets (i.e. excluding 2012 additions) under IFRS. For example, Asset A had a useful life of 20 years under CGAAP. On January 1, 2012, the date of transition, Asset A was 3 years depreciated. As a result, Asset A would have a remaining service life of 17 years (20 years less 3 years) under CGAAP as of January 1, 2012. Due to the transition to IFRS, management re-assessed the asset useful lives under IFRS principles and concluded that the revised useful life of Asset A is now 30 years. Therefore, the average remaining useful life of opening balance of Asset A is determined to be 27 years (30 years less 3 years) under IFRS as of January 1, 2012.
A65: 5 | B65: NBV must exclude assets still on the books but which have been fully amortized or depreciated.
A68: General: | B68: Applicants must provide a breakdown of depreciation and amortization expense in the above format for all relevant accounts. Asset Retirement Obligations (AROs), depreciation and accretion expense should be disclosed separately consistent with the Notes of historical Audited Financial Statements.

Sheet App.2-CH_MIFRS_DepExp_2013
I1: File Number: | J1: ='LDC Info'!$E$18 -> EB-2012-0153
I2: Exhibit:
I3: Tab:
I4: Schedule:
I5: Page:
I7: Date:
A9: Appendix 2-CH
A10: Depreciation and Amortization Expense
A11: Assumes the applicant adopted IFRS for financial reporting purposes January 1, 2013
C12: Year | D12: 2013 | E12: MIFRS
A14: Account | B14: Description | C14: Additions | D14: Years (new additions only) | E14: Depreciation Rate on New Additions | F14: 2013 Depreciation Expense 1 | G14: 2013 Depreciation Expense per Appendix 2-B Fixed Assets, Columns K & L (l) | H14: Variance 2 | I14: Depreciation Expense on 2013 Full Year Additions | J14: 2013 Full Year Depreciation
C15: (d) | D15: (f) | E15: (g) = 1 / (f) | F15: (h)=2012 Full Year Depreciation 3 + ((d)*0.5)/(f) | H15: (m) = (h) - (l) | I15: (n)=((d))/(f) | J15: (o) = 2012 Full Year Depreciation 3 + (n)
A16: 1611 | B16: Computer Software (Formally known as Account 1925) | C16: =+'App2-B FAC MIFRS2013'!F16 -> 21743 | D16: =+'App.2-CG_MIFRS_DepExp_2012'!F16 -> 4.151632362 | E16: =IF(D16=0,0,1/D16) -> 0.2408691119 | F16: =IF(D16=0,'App.2-CG_MIFRS_DepExp_2012'!N16,+'App.2-CG_MIFRS_DepExp_2012'!N16+((C16*0.5)/D16)) -> 24335.60855 | G16: =-'App2-B FAC MIFRS2013'!K16 -> 27916 | H16: =IF(ISERROR(+F16-G16), 0, +F16-G16) -> -3580.39145 | I16: =IF(D16=0,0,+(C16)/D16) -> 5237.217101 | J16: =IF(ISERROR(+I16+'App.2-CG_MIFRS_DepExp_2012'!N16), 0, +I16+'App.2-CG_MIFRS_DepExp_2012'!N16) -> 26954.2171
A17: 1612 | B17: Land Rights (Formally known as Account 1906) | C17: =+'App2-B FAC MIFRS2013'!F17 -> 0 | D17: =+'App.2-CG_MIFRS_DepExp_2012'!F17 -> 0 | E17: 0 | F17: =IF(D17=0,'App.2-CG_MIFRS_DepExp_2012'!N17,+'App.2-CG_MIFRS_DepExp_2012'!N17+((C17*0.5)/D17)) -> 0 | G17: =-'App2-B FAC MIFRS2013'!K17 -> 0 | H17: 0 | I17: 0 | J17: =IF(ISERROR(+I17+'App.2-CG_MIFRS_DepExp_2012'!N17), 0, +I17+'App.2-CG_MIFRS_DepExp_2012'!N17) -> 0
A18: 1805 | B18: Land | C18: =+'App2-B FAC MIFRS2013'!F18 -> 0 | D18: =+'App.2-CG_MIFRS_DepExp_2012'!F18 -> 0 | E18: 0 | F18: =IF(D18=0,'App.2-CG_MIFRS_DepExp_2012'!N18,+'App.2-CG_MIFRS_DepExp_2012'!N18+((C18*0.5)/D18)) -> 0 | G18: =-'App2-B FAC MIFRS2013'!K18 -> 0 | H18: 0 | I18: 0 | J18: =IF(ISERROR(+I18+'App.2-CG_MIFRS_DepExp_2012'!N18), 0, +I18+'App.2-CG_MIFRS_DepExp_2012'!N18) -> 0
A19: 1808 | B19: Buildings | C19: =+'App2-B FAC MIFRS2013'!F19 -> 23854 | D19: =+'App.2-CG_MIFRS_DepExp_2012'!F19 -> 22.97127745 | E19: 0.04353262469 | F19: =IF(D19=0,'App.2-CG_MIFRS_DepExp_2012'!N19,+'App.2-CG_MIFRS_DepExp_2012'!N19+((C19*0.5)/D19)) -> 20515.66357 | G19: =-'App2-B FAC MIFRS2013'!K19 -> 19289 | H19: 1226.663572 | I19: 1038.427229 | J19: =IF(ISERROR(+I19+'App.2-CG_MIFRS_DepExp_2012'!N19), 0, +I19+'App.2-CG_MIFRS_DepExp_2012'!N19) -> 21034.87719
A20: 1810 | B20: Leasehold Improvements | C20: =+'App2-B FAC MIFRS2013'!F20 -> 0 | D20: =+'App.2-CG_MIFRS_DepExp_2012'!F20 -> 2.502132196 | E20: 0.3996591393 | F20: =IF(D20=0,'App.2-CG_MIFRS_DepExp_2012'!N20,+'App.2-CG_MIFRS_DepExp_2012'!N20+((C20*0.5)/D20)) -> 938 | G20: =-'App2-B FAC MIFRS2013'!K20 -> 938 | H20: -1.136868377e-13 | I20: 0 | J20: =IF(ISERROR(+I20+'App.2-CG_MIFRS_DepExp_2012'!N20), 0, +I20+'App.2-CG_MIFRS_DepExp_2012'!N20) -> 938
A21: 1815 | B21: Transformer Station Equipment >50 kV | C21: =+'App2-B FAC MIFRS2013'!F21 -> 0 | D21: =+'App.2-CG_MIFRS_DepExp_2012'!F21 -> 20.09090909 | E21: 0.04977375566 | F21: =IF(D21=0,'App.2-CG_MIFRS_DepExp_2012'!N21,+'App.2-CG_MIFRS_DepExp_2012'!N21+((C21*0.5)/D21)) -> 121 | G21: =-'App2-B FAC MIFRS2013'!K21 -> 121 | H21: 0 | I21: 0 | J21: =IF(ISERROR(+I21+'App.2-CG_MIFRS_DepExp_2012'!N21), 0, +I21+'App.2-CG_MIFRS_DepExp_2012'!N21) -> 121
A22: 1820 | B22: Distribution Station Equipment <50 kV | C22: =+'App2-B FAC MIFRS2013'!F22 -> 15000 | D22: =+'App.2-CG_MIFRS_DepExp_2012'!F22 -> 40.18 | E22: 0.02488800398 | F22: =IF(D22=0,'App.2-CG_MIFRS_DepExp_2012'!N22,+'App.2-CG_MIFRS_DepExp_2012'!N22+((C22*0.5)/D22)) -> 9054.822031 | G22: =-'App2-B FAC MIFRS2013'!K22 -> 9836 | H22: -781.1779687 | I22: 373.3200597 | J22: =IF(ISERROR(+I22+'App.2-CG_MIFRS_DepExp_2012'!N22), 0, +I22+'App.2-CG_MIFRS_DepExp_2012'!N22) -> 9241.482061
A23: 1825 | B23: Storage Battery Equipment | C23: =+'App2-B FAC MIFRS2013'!F23 -> 0 | D23: =+'App.2-CG_MIFRS_DepExp_2012'!F23 -> 0 | E23: 0 | F23: =IF(D23=0,'App.2-CG_MIFRS_DepExp_2012'!N23,+'App.2-CG_MIFRS_DepExp_2012'!N23+((C23*0.5)/D23)) -> 0 | G23: =-'App2-B FAC MIFRS2013'!K23 -> 0 | H23: 0 | I23: 0 | J23: =IF(ISERROR(+I23+'App.2-CG_MIFRS_DepExp_2012'!N23), 0, +I23+'App.2-CG_MIFRS_DepExp_2012'!N23) -> 0
A24: 1830 | B24: Poles, Towers & Fixtures | C24: =+'App2-B FAC MIFRS2013'!F24 -> 129488 | D24: =+'App.2-CG_MIFRS_DepExp_2012'!F24 -> 45 | E24: 0.02222222222 | F24: =IF(D24=0,'App.2-CG_MIFRS_DepExp_2012'!N24,+'App.2-CG_MIFRS_DepExp_2012'!N24+((C24*0.5)/D24)) -> 48832.94286 | G24: =-'App2-B FAC MIFRS2013'!K24 -> 49550 | H24: -717.0571429 | I24: 2877.511111 | J24: =IF(ISERROR(+I24+'App.2-CG_MIFRS_DepExp_2012'!N24), 0, +I24+'App.2-CG_MIFRS_DepExp_2012'!N24) -> 50271.69841
A25: 1835 | B25: Overhead Conductors & Devices | C25: =+'App2-B FAC MIFRS2013'!F25 -> 129488 | D25: =+'App.2-CG_MIFRS_DepExp_2012'!F25 -> 45 | E25: 0.02222222222 | F25: =IF(D25=0,'App.2-CG_MIFRS_DepExp_2012'!N25,+'App.2-CG_MIFRS_DepExp_2012'!N25+((C25*0.5)/D25)) -> 26815.28 | G25: =-'App2-B FAC MIFRS2013'!K25 -> 28970 | H25: -2154.72 | I25: 2877.511111 | J25: =IF(ISERROR(+I25+'App.2-CG_MIFRS_DepExp_2012'!N25), 0, +I25+'App.2-CG_MIFRS_DepExp_2012'!N25) -> 28254.03556
A26: 1840 | B26: Underground Conduit | C26: =+'App2-B FAC MIFRS2013'!F26 -> 0 | D26: =+'App.2-CG_MIFRS_DepExp_2012'!F26 -> 45 | E26: 0.02222222222 | F26: =IF(D26=0,'App.2-CG_MIFRS_DepExp_2012'!N26,+'App.2-CG_MIFRS_DepExp_2012'!N26+((C26*0.5)/D26)) -> 862.3508571 | G26: =-'App2-B FAC MIFRS2013'!K26 -> 862 | H26: 0.3508571429 | I26: 0 | J26: =IF(ISERROR(+I26+'App.2-CG_MIFRS_DepExp_2012'!N26), 0, +I26+'App.2-CG_MIFRS_DepExp_2012'!N26) -> 862.3508571
A27: 1845 | B27: Underground Conductors & Devices | C27: =+'App2-B FAC MIFRS2013'!F27 -> 0 | D27: =+'App.2-CG_MIFRS_DepExp_2012'!F27 -> 45 | E27: 0.02222222222 | F27: =IF(D27=0,'App.2-CG_MIFRS_DepExp_2012'!N27,+'App.2-CG_MIFRS_DepExp_2012'!N27+((C27*0.5)/D27)) -> 73.14285714 | G27: =-'App2-B FAC MIFRS2013'!K27 -> 73 | H27: 0.1428571429 | I27: 0 | J27: =IF(ISERROR(+I27+'App.2-CG_MIFRS_DepExp_2012'!N27), 0, +I27+'App.2-CG_MIFRS_DepExp_2012'!N27) -> 73.14285714
A28: 1850 | B28: Line Transformers | C28: =+'App2-B FAC MIFRS2013'!F28 -> 112000 | D28: =+'App.2-CG_MIFRS_DepExp_2012'!F28 -> 45 | E28: 0.02222222222 | F28: =IF(D28=0,'App.2-CG_MIFRS_DepExp_2012'!N28,+'App.2-CG_MIFRS_DepExp_2012'!N28+((C28*0.5)/D28)) -> 12712.79444 | G28: =-'App2-B FAC MIFRS2013'!K28 -> 13728 | H28: -1015.205556 | I28: 2488.888889 | J28: =IF(ISERROR(+I28+'App.2-CG_MIFRS_DepExp_2012'!N28), 0, +I28+'App.2-CG_MIFRS_DepExp_2012'!N28) -> 13957.23889
A29: 1855 | B29: Services (Overhead & Underground) | C29: =+'App2-B FAC MIFRS2013'!F29 -> 0 | D29: =+'App.2-CG_MIFRS_DepExp_2012'!F29 -> 35 | E29: 0.02857142857 | F29: =IF(D29=0,'App.2-CG_MIFRS_DepExp_2012'!N29,+'App.2-CG_MIFRS_DepExp_2012'!N29+((C29*0.5)/D29)) -> 2.51849823e-14 | G29: =-'App2-B FAC MIFRS2013'!K29 -> 0 | H29: =IF(ISERROR(+F29-G29), 0, +F29-G29) -> 2.51849823e-14 | I29: 0 | J29: =IF(ISERROR(+I29+'App.2-CG_MIFRS_DepExp_2012'!N29), 0, +I29+'App.2-CG_MIFRS_DepExp_2012'!N29) -> 2.51849823e-14
A30: 1860 | B30: Meters | C30: =+'App2-B FAC MIFRS2013'!F30 -> 28775 | D30: =+'App.2-CG_MIFRS_DepExp_2012'!F30 -> 1.992394489 | E30: 0.5019086358 | F30: =IF(D30=0,'App.2-CG_MIFRS_DepExp_2012'!N30,+'App.2-CG_MIFRS_DepExp_2012'!N30+((C30*0.5)/D30)) -> 18997.49282 | G30: =-'App2-B FAC MIFRS2013'!K30 -> 16041 | H30: 2956.492819 | I30: 14442.42099 | J30: =IF(ISERROR(+I30+'App.2-CG_MIFRS_DepExp_2012'!N30), 0, +I30+'App.2-CG_MIFRS_DepExp_2012'!N30) -> 26218.70332
A31: 1860 | B31: Meters (Smart Meters) | C31: =+'App2-B FAC MIFRS2013'!F31 -> 1061720 | D31: =+'App.2-CG_MIFRS_DepExp_2012'!F31 -> 0 | E31: 0 | F31: =IF(D31=0,'App.2-CG_MIFRS_DepExp_2012'!N31,+'App.2-CG_MIFRS_DepExp_2012'!N31+((C31*0.5)/D31)) -> 0 | G31: =-'App2-B FAC MIFRS2013'!K31 -> 87601 | H31: -87601 | I31: 0 | J31: =IF(ISERROR(+I31+'App.2-CG_MIFRS_DepExp_2012'!N31), 0, +I31+'App.2-CG_MIFRS_DepExp_2012'!N31) -> 0
A32: 1905 | B32: Land | C32: =+'App2-B FAC MIFRS2013'!F32 -> 0 | D32: =+'App.2-CG_MIFRS_DepExp_2012'!F32 -> 0 | E32: 0 | F32: =IF(D32=0,'App.2-CG_MIFRS_DepExp_2012'!N32,+'App.2-CG_MIFRS_DepExp_2012'!N32+((C32*0.5)/D32)) -> 0 | G32: =-'App2-B FAC MIFRS2013'!K32 -> 0 | H32: 0 | I32: 0 | J32: =IF(ISERROR(+I32+'App.2-CG_MIFRS_DepExp_2012'!N32), 0, +I32+'App.2-CG_MIFRS_DepExp_2012'!N32) -> 0
A33: 1908 | B33: Buildings & Fixtures | C33: =+'App2-B FAC MIFRS2013'!F33 -> 0 | D33: =+'App.2-CG_MIFRS_DepExp_2012'!F33 -> 0 | E33: 0 | F33: =IF(D33=0,'App.2-CG_MIFRS_DepExp_2012'!N33,+'App.2-CG_MIFRS_DepExp_2012'!N33+((C33*0.5)/D33)) -> 0 | G33: =-'App2-B FAC MIFRS2013'!K33 -> 0 | H33: 0 | I33: 0 | J33: =IF(ISERROR(+I33+'App.2-CG_MIFRS_DepExp_2012'!N33), 0, +I33+'App.2-CG_MIFRS_DepExp_2012'!N33) -> 0
A34: 1910 | B34: Leasehold Improvements | C34: =+'App2-B FAC MIFRS2013'!F34 -> 0 | D34: =+'App.2-CG_MIFRS_DepExp_2012'!F34 -> 0 | E34: 0 | F34: =IF(D34=0,'App.2-CG_MIFRS_DepExp_2012'!N34,+'App.2-CG_MIFRS_DepExp_2012'!N34+((C34*0.5)/D34)) -> 0 | G34: =-'App2-B FAC MIFRS2013'!K34 -> 0 | H34: 0 | I34: 0 | J34: =IF(ISERROR(+I34+'App.2-CG_MIFRS_DepExp_2012'!N34), 0, +I34+'App.2-CG_MIFRS_DepExp_2012'!N34) -> 0
A35: 1915 | B35: Office Furniture & Equipment (10 years) | C35: =+'App2-B FAC MIFRS2013'!F35 -> 0 | D35: =+'App.2-CG_MIFRS_DepExp_2012'!F35 -> 10 | E35: 0.1 | F35: =IF(D35=0,'App.2-CG_MIFRS_DepExp_2012'!N35,+'App.2-CG_MIFRS_DepExp_2012'!N35+((C35*0.5)/D35)) -> 59.9 | G35: =-'App2-B FAC MIFRS2013'!K35 -> 560 | H35: -500.1 | I35: 0 | J35: =IF(ISERROR(+I35+'App.2-CG_MIFRS_DepExp_2012'!N35), 0, +I35+'App.2-CG_MIFRS_DepExp_2012'!N35) -> 59.9
A36: 1915 | B36: Office Furniture & Equipment (5 years) | C36: =+'App2-B FAC MIFRS2013'!F36 -> 0 | D36: =+'App.2-CG_MIFRS_DepExp_2012'!F36 -> 0 | E36: 0 | F36: =IF(D36=0,'App.2-CG_MIFRS_DepExp_2012'!N36,+'App.2-CG_MIFRS_DepExp_2012'!N36+((C36*0.5)/D36)) -> 0 | G36: =-'App2-B FAC MIFRS2013'!K36 -> 0 | H36: 0 | I36: 0 | J36: =IF(ISERROR(+I36+'App.2-CG_MIFRS_DepExp_2012'!N36), 0, +I36+'App.2-CG_MIFRS_DepExp_2012'!N36) -> 0
A37: 1920 | B37: Computer Equipment - Hardware | C37: =+'App2-B FAC MIFRS2013'!F37 -> 0 | D37: =+'App.2-CG_MIFRS_DepExp_2012'!F37 -> 0 | E37: 0 | F37: =IF(D37=0,'App.2-CG_MIFRS_DepExp_2012'!N37,+'App.2-CG_MIFRS_DepExp_2012'!N37+((C37*0.5)/D37)) -> 0 | G37: =-'App2-B FAC MIFRS2013'!K37 -> 0 | H37: 0 | I37: 0 | J37: =IF(ISERROR(+I37+'App.2-CG_MIFRS_DepExp_2012'!N37), 0, +I37+'App.2-CG_MIFRS_DepExp_2012'!N37) -> 0
A38: 1920 | B38: Computer Equip.-Hardware(Post Mar. 22/04) | C38: =+'App2-B FAC MIFRS2013'!F38 -> 0 | D38: =+'App.2-CG_MIFRS_DepExp_2012'!F38 -> 0 | E38: 0 | F38: =IF(D38=0,'App.2-CG_MIFRS_DepExp_2012'!N38,+'App.2-CG_MIFRS_DepExp_2012'!N38+((C38*0.5)/D38)) -> 0 | G38: =-'App2-B FAC MIFRS2013'!K38 -> 0 | H38: 0 | I38: 0 | J38: =IF(ISERROR(+I38+'App.2-CG_MIFRS_DepExp_2012'!N38), 0, +I38+'App.2-CG_MIFRS_DepExp_2012'!N38) -> 0
A39: 1920 | B39: Computer Equip.-Hardware(Post Mar. 19/07) | C39: =+'App2-B FAC MIFRS2013'!F39 -> 38169 | D39: =+'App.2-CG_MIFRS_DepExp_2012'!F39 -> 2.779220779 | E39: 0.3598130841 | F39: =IF(D39=0,'App.2-CG_MIFRS_DepExp_2012'!N39,+'App.2-CG_MIFRS_DepExp_2012'!N39+((C39*0.5)/D39)) -> 13920.6285 | G39: =-'App2-B FAC MIFRS2013'!K39 -> 18711 | H39: -4790.371495 | I39: 13733.70561 | J39: =IF(ISERROR(+I39+'App.2-CG_MIFRS_DepExp_2012'!N39), 0, +I39+'App.2-CG_MIFRS_DepExp_2012'!N39) -> 20787.48131
A40: 1930 | B40: Transportation Equipment | C40: =+'App2-B FAC MIFRS2013'!F40 -> 262000 | D40: =+'App.2-CG_MIFRS_DepExp_2012'!F40 -> 5.148352516 | E40: 0.1942368936 | F40: =IF(D40=0,'App.2-CG_MIFRS_DepExp_2012'!N40,+'App.2-CG_MIFRS_DepExp_2012'!N40+((C40*0.5)/D40)) -> 232364.4304 | G40: =-'App2-B FAC MIFRS2013'!K40 -> 218911 | H40: 13453.4304 | I40: 50890.06613 | J40: =IF(ISERROR(+I40+'App.2-CG_MIFRS_DepExp_2012'!N40), 0, +I40+'App.2-CG_MIFRS_DepExp_2012'!N40) -> 257809.4635
A41: 1935 | B41: Stores Equipment | C41: =+'App2-B FAC MIFRS2013'!F41 -> 0 | D41: =+'App.2-CG_MIFRS_DepExp_2012'!F41 -> 1 | E41: 1 | F41: =IF(D41=0,'App.2-CG_MIFRS_DepExp_2012'!N41,+'App.2-CG_MIFRS_DepExp_2012'!N41+((C41*0.5)/D41))*0 -> 0 | G41: =-'App2-B FAC MIFRS2013'!K41 -> 0 | H41: 0 | I41: 0 | J41: =IF(ISERROR(+I41+'App.2-CG_MIFRS_DepExp_2012'!N41), 0, +I41+'App.2-CG_MIFRS_DepExp_2012'!N41)*0 -> 0
A42: 1940 | B42: Tools, Shop & Garage Equipment | C42: =+'App2-B FAC MIFRS2013'!F42 -> 24100 | D42: =+'App.2-CG_MIFRS_DepExp_2012'!F42 -> 3.20677377 | E42: 0.3118398964 | F42: =IF(D42=0,'App.2-CG_MIFRS_DepExp_2012'!N42,+'App.2-CG_MIFRS_DepExp_2012'!N42+((C42*0.5)/D42)) -> 34915.46584 | G42: =-'App2-B FAC MIFRS2013'!K42 -> 37885 | H42: =IF(ISERROR(+F42-G42), 0, +F42-G42) -> -2969.534163 | I42: 7515.341502 | J42: =IF(ISERROR(+I42+'App.2-CG_MIFRS_DepExp_2012'!N42), 0, +I42+'App.2-CG_MIFRS_DepExp_2012'!N42) -> 38673.13659
A43: 1945 | B43: Measurement & Testing Equipment | C43: =+'App2-B FAC MIFRS2013'!F43 -> 0 | D43: =+'App.2-CG_MIFRS_DepExp_2012'!F43 -> 0 | E43: 0 | F43: =IF(D43=0,'App.2-CG_MIFRS_DepExp_2012'!N43,+'App.2-CG_MIFRS_DepExp_2012'!N43+((C43*0.5)/D43)) -> 0 | G43: =-'App2-B FAC MIFRS2013'!K43 -> 0 | H43: 0 | I43: 0 | J43: =IF(ISERROR(+I43+'App.2-CG_MIFRS_DepExp_2012'!N43), 0, +I43+'App.2-CG_MIFRS_DepExp_2012'!N43) -> 0
A44: 1950 | B44: Power Operated Equipment | C44: =+'App2-B FAC MIFRS2013'!F44 -> 0 | D44: =+'App.2-CG_MIFRS_DepExp_2012'!F44 -> 0 | E44: 0 | F44: =IF(D44=0,'App.2-CG_MIFRS_DepExp_2012'!N44,+'App.2-CG_MIFRS_DepExp_2012'!N44+((C44*0.5)/D44)) -> 0 | G44: =-'App2-B FAC MIFRS2013'!K44 -> 0 | H44: 0 | I44: 0 | J44: =IF(ISERROR(+I44+'App.2-CG_MIFRS_DepExp_2012'!N44), 0, +I44+'App.2-CG_MIFRS_DepExp_2012'!N44) -> 0
A45: 1955 | B45: Communications Equipment | C45: =+'App2-B FAC MIFRS2013'!F45 -> 0 | D45: =+'App.2-CG_MIFRS_DepExp_2012'!F45 -> 3.498103666 | E45: 0.2858691724 | F45: =IF(D45=0,'App.2-CG_MIFRS_DepExp_2012'!N45,+'App.2-CG_MIFRS_DepExp_2012'!N45+((C45*0.5)/D45)) -> 791 | G45: =-'App2-B FAC MIFRS2013'!K45 -> 791 | H45: 0 | I45: 0 | J45: =IF(ISERROR(+I45+'App.2-CG_MIFRS_DepExp_2012'!N45), 0, +I45+'App.2-CG_MIFRS_DepExp_2012'!N45) -> 791
A46: 1955 | B46: Communication Equipment (Smart Meters) | C46: =+'App2-B FAC MIFRS2013'!F46 -> 0 | D46: =+'App.2-CG_MIFRS_DepExp_2012'!F46 -> 0 | E46: 0 | F46: =IF(D46=0,'App.2-CG_MIFRS_DepExp_2012'!N46,+'App.2-CG_MIFRS_DepExp_2012'!N46+((C46*0.5)/D46)) -> 0 | G46: =-'App2-B FAC MIFRS2013'!K46 -> 0 | H46: 0 | I46: 0 | J46: =IF(ISERROR(+I46+'App.2-CG_MIFRS_DepExp_2012'!N46), 0, +I46+'App.2-CG_MIFRS_DepExp_2012'!N46) -> 0
A47: 1960 | B47: Miscellaneous Equipment | C47: =+'App2-B FAC MIFRS2013'!F47 -> 751 | D47: =+'App.2-CG_MIFRS_DepExp_2012'!F47 -> 5.003030303 | E47: 0.1998788613 | F47: =IF(D47=0,'App.2-CG_MIFRS_DepExp_2012'!N47,+'App.2-CG_MIFRS_DepExp_2012'!N47+((C47*0.5)/D47)) -> 735.0545124 | G47: =-'App2-B FAC MIFRS2013'!K47 -> 1646 | H47: -910.9454876 | I47: 150.1090248 | J47: =IF(ISERROR(+I47+'App.2-CG_MIFRS_DepExp_2012'!N47), 0, +I47+'App.2-CG_MIFRS_DepExp_2012'!N47) -> 810.1090248
A48: 1975 | B48: Load Management Controls Utility Premises | C48: =+'App2-B FAC MIFRS2013'!F48 -> 0 | D48: =+'App.2-CG_MIFRS_DepExp_2012'!F48 -> 0 | E48: 0 | F48: =IF(D48=0,'App.2-CG_MIFRS_DepExp_2012'!N48,+'App.2-CG_MIFRS_DepExp_2012'!N48+((C48*0.5)/D48)) -> 0 | G48: =-'App2-B FAC MIFRS2013'!K48 -> 0 | H48: 0 | I48: 0 | J48: =IF(ISERROR(+I48+'App.2-CG_MIFRS_DepExp_2012'!N48), 0, +I48+'App.2-CG_MIFRS_DepExp_2012'!N48) -> 0
A49: 1980 | B49: System Supervisor Equipment | C49: =+'App2-B FAC MIFRS2013'!F49 -> 0 | D49: =+'App.2-CG_MIFRS_DepExp_2012'!F49 -> 0 | E49: 0 | F49: =IF(D49=0,'App.2-CG_MIFRS_DepExp_2012'!N49,+'App.2-CG_MIFRS_DepExp_2012'!N49+((C49*0.5)/D49)) -> 0 | G49: =-'App2-B FAC MIFRS2013'!K49 -> 0 | H49: 0 | I49: 0 | J49: =IF(ISERROR(+I49+'App.2-CG_MIFRS_DepExp_2012'!N49), 0, +I49+'App.2-CG_MIFRS_DepExp_2012'!N49) -> 0
A50: 1985 | B50: Miscellaneous Fixed Assets | C50: =+'App2-B FAC MIFRS2013'!F50 -> 0 | D50: =+'App.2-CG_MIFRS_DepExp_2012'!F50 -> 0 | E50: 0 | F50: =IF(D50=0,'App.2-CG_MIFRS_DepExp_2012'!N50,+'App.2-CG_MIFRS_DepExp_2012'!N50+((C50*0.5)/D50)) -> 0 | G50: =-'App2-B FAC MIFRS2013'!K50 -> 0 | H50: 0 | I50: 0 | J50: =IF(ISERROR(+I50+'App.2-CG_MIFRS_DepExp_2012'!N50), 0, +I50+'App.2-CG_MIFRS_DepExp_2012'!N50) -> 0
A51: 1995 | B51: Contributions & Grants | C51: =+'App2-B FAC MIFRS2013'!F51 -> 0 | D51: =+'App.2-CG_MIFRS_DepExp_2012'!F51 -> 0 | E51: 0 | F51: =IF(D51=0,'App.2-CG_MIFRS_DepExp_2012'!N51,+'App.2-CG_MIFRS_DepExp_2012'!N51+((C51*0.5)/D51)) -> 0 | G51: =-'App2-B FAC MIFRS2013'!K51 -> 0 | H51: 0 | I51: 0 | J51: =IF(ISERROR(+I51+'App.2-CG_MIFRS_DepExp_2012'!N51), 0, +I51+'App.2-CG_MIFRS_DepExp_2012'!N51) -> 0
A52: etc. | C52: =+'App2-B FAC MIFRS2013'!F52 -> 0 | D52: =+'App.2-CG_MIFRS_DepExp_2012'!F52 -> 0 | E52: 0 | F52: =IF(D52=0,'App.2-CG_MIFRS_DepExp_2012'!N52,+'App.2-CG_MIFRS_DepExp_2012'!N52+((C52*0.5)/D52)) -> 0 | G52: =-'App2-B FAC MIFRS2013'!K52 -> 0 | H52: 0 | I52: 0 | J52: =IF(ISERROR(+I52+'App.2-CG_MIFRS_DepExp_2012'!N52), 0, +I52+'App.2-CG_MIFRS_DepExp_2012'!N52) -> 0
E53: 0 | F53: =IF(D53=0,'App.2-CG_MIFRS_DepExp_2012'!N53,+'App.2-CG_MIFRS_DepExp_2012'!N53+((C53*0.5)/D53)) -> 0 | H53: 0 | I53: 0 | J53: =IF(ISERROR(+I53+'App.2-CG_MIFRS_DepExp_2012'!N53), 0, +I53+'App.2-CG_MIFRS_DepExp_2012'!N53) -> 0
B54: Total | C54: =SUM(C16:C53) -> 1847088 | F54: =SUM(F16:F53) -> 446045.5772 | G54: =SUM(G16:G53) -> 533429 | H54: =SUM(H16:H53) -> -87383.42276 | I54: =SUM(I16:I53) -> 101624.5188 | J54: =SUM(J16:J53) -> 496857.8366
B55: Depreciation expense adjustment resulting from amortization of Account 1575 | F55: =+'App.2-EB_PP&E Deferral Account'!F43 -> 0
B56: Total Depreciation expense to be included in the test year revenue requirement | F56: =+F55+F54 -> 446045.5772
A58: Notes:
A59: 1 | B59: Board policy of the "half-year" rule - the applicant must ensure that additions in the year attract a half-year depreciation expense in the first year. Deviations from this standard practice must be supported in the application.
A60: 2 | B60: The applicant must provide an explanation of material variances in evidence
A61: 3 | B61: If the assets are fully depreciated as of the end of 2012, the applicant must exclude the depreciation expense of these assets in the calculation of the 2013 depreciation expense.
A64: General: | B64: Applicants must provide a breakdown of depreciation and amortization expense in the above format for all relevant accounts. Asset Retirement Obligations (AROs), depreciation and accretion expense should be disclosed separately consistent with the Notes of historical Audited Financial Statements.

Sheet App.2-CI_AltAccStd_DepExpNA (hidden)
I1: File Number: | J1: ='LDC Info'!$E$18 -> EB-2012-0153
I2: Exhibit:
I3: Tab:
I4: Schedule:
I5: Page:
I7: Date:
A9: Appendix 2-CI
A10: Depreciation and Amortization Expense
A11: Assumes the applicant adopted an alternate accounting standard other than IFRS for financial reporting purposes. For applicants adopting an Alternate Accounting Standard for financial reporting purposes January 1, 2012, applicants must complete 4 versions of the table below (2011 CGAAP, 2011 Alternate Accounting Standard, 2012 Alternate Accounting Standard and 2013 Alternate Accounting Standard). For applicants adopting an Alternate Accounting Standard for financial reporting purposes January 1, 2013, applicants must complete 4 versions of the table below (2011 CGAAP, 2012 CGAAP, 2012 Alternate Accounting Standard and 2013 Alternate Accounting Standard).
B12: Year | E12: Accounting Standard
A14: Account | B14: Description | C14: Opening NBV 1 | D14: Additions | E14: Total for Depreciation | F14: Years | G14: Depreciation Rate | H14: Depreciation Expense | I14: Depreciation Expense per Appendix 2-B Fixed Assets, Columns K & L (l) | J14: Variance 3
C15: (a) | D15: (d) | E15: (e) = (a) + ½ x (d) 2 | F15: (f) | G15: (g) = 1 / (f) | H15: (h) = (e) / (f) | J15: (m) = (h) - (l)
A16: 1611 | B16: Computer Software (Formally known as Account 1925) | E16: =C16+0.5*D16 -> 0 | G16: =IF(F16=0,0,1/F16) -> 0 | H16: =IF(F16=0,0,E16/F16) -> 0 | J16: =IF(ISERROR(+H16-I16), 0, +H16-I16) -> 0
A17: 1612 | B17: Land Rights (Formally known as Account 1906) | E17: 0 | G17: 0 | H17: 0 | J17: 0
A18: 1805 | B18: Land | E18: 0 | G18: 0 | H18: 0 | J18: 0
A19: 1808 | B19: Buildings | E19: 0 | G19: 0 | H19: 0 | J19: 0
A20: 1810 | B20: Leasehold Improvements | E20: 0 | G20: 0 | H20: 0 | J20: 0
A21: 1815 | B21: Transformer Station Equipment >50 kV | E21: 0 | G21: 0 | H21: 0 | J21: 0
A22: 1820 | B22: Distribution Station Equipment <50 kV | E22: 0 | G22: 0 | H22: 0 | J22: 0
A23: 1825 | B23: Storage Battery Equipment | E23: 0 | G23: 0 | H23: 0 | J23: 0
A24: 1830 | B24: Poles, Towers & Fixtures | E24: 0 | G24: 0 | H24: 0 | J24: 0
A25: 1835 | B25: Overhead Conductors & Devices | E25: 0 | G25: 0 | H25: 0 | J25: 0
A26: 1840 | B26: Underground Conduit | E26: 0 | G26: 0 | H26: 0 | J26: 0
A27: 1845 | B27: Underground Conductors & Devices | E27: 0 | G27: 0 | H27: 0 | J27: 0
A28: 1850 | B28: Line Transformers | E28: 0 | G28: 0 | H28: 0 | J28: 0
A29: 1855 | B29: Services (Overhead & Underground) | E29: 0 | G29: 0 | H29: 0 | J29: 0
A30: 1860 | B30: Meters | E30: 0 | G30: 0 | H30: 0 | J30: 0
A31: 1860 | B31: Meters (Smart Meters) | E31: 0 | G31: 0 | H31: 0 | J31: 0
A32: 1905 | B32: Land | E32: 0 | G32: 0 | H32: 0 | J32: 0
A33: 1908 | B33: Buildings & Fixtures | E33: 0 | G33: 0 | H33: 0 | J33: 0
A34: 1910 | B34: Leasehold Improvements | E34: 0 | G34: 0 | H34: 0 | J34: 0
A35: 1915 | B35: Office Furniture & Equipment (10 years) | E35: 0 | G35: 0 | H35: 0 | J35: 0
A36: 1915 | B36: Office Furniture & Equipment (5 years) | E36: 0 | G36: 0 | H36: 0 | J36: 0
A37: 1920 | B37: Computer Equipment - Hardware | E37: 0 | G37: 0 | H37: 0 | J37: 0
A38: 1920 | B38: Computer Equip.-Hardware(Post Mar. 22/04) | E38: 0 | G38: 0 | H38: 0 | J38: 0
A39: 1920 | B39: Computer Equip.-Hardware(Post Mar. 19/07) | E39: 0 | G39: 0 | H39: 0 | J39: 0
A40: 1930 | B40: Transportation Equipment | E40: 0 | G40: 0 | H40: 0 | J40: 0
A41: 1935 | B41: Stores Equipment | E41: 0 | G41: 0 | H41: 0 | J41: 0
A42: 1940 | B42: Tools, Shop & Garage Equipment | E42: 0 | G42: 0 | H42: 0 | J42: 0
A43: 1945 | B43: Measurement & Testing Equipment | E43: 0 | G43: 0 | H43: 0 | J43: 0
A44: 1950 | B44: Power Operated Equipment | E44: 0 | G44: 0 | H44: 0 | J44: 0
A45: 1955 | B45: Communications Equipment | E45: 0 | G45: 0 | H45: 0 | J45: 0
A46: 1955 | B46: Communication Equipment (Smart Meters) | E46: 0 | G46: 0 | H46: 0 | J46: 0
A47: 1960 | B47: Miscellaneous Equipment | E47: 0 | G47: 0 | H47: 0 | J47: 0
A48: 1975 | B48: Load Management Controls Utility Premises | E48: 0 | G48: 0 | H48: 0 | J48: 0
A49: 1980 | B49: System Supervisor Equipment | E49: 0 | G49: 0 | H49: 0 | J49: 0
A50: 1985 | B50: Miscellaneous Fixed Assets | E50: 0 | G50: 0 | H50: 0 | J50: 0
A51: 1995 | B51: Contributions & Grants | E51: 0 | G51: 0 | H51: 0 | J51: 0
A52: etc. | E52: 0 | G52: 0 | H52: 0 | J52: 0
E53: 0 | G53: 0 | H53: 0 | J53: 0
B54: Total | C54: =SUM(C16:C53) -> 0 | D54: =SUM(D16:D53) -> 0 | E54: =SUM(E16:E53) -> 0 | H54: =SUM(H16:H53) -> 0 | I54: =SUM(I16:I53) -> 0 | J54: =SUM(J16:J53) -> 0
A56: Notes:
A58: 1 | B58: NBV must exclude assets still on the books but which have been fully amortized or depreciated.
A59: 2 | B59: Board policy of the "half-year" rule - the applicant must ensure that additions in the year attract a half-year depreciation expense in the first year. Deviations from this standard practice must be supported in the application.
A60: 3 | B60: The applicant must provide an explanation of material variances in evidence
A63: General: | B63: Applicants must provide a breakdown of depreciation and amortization expense in the above format for all relevant accounts. Asset Retirement Obligations (AROs), depreciation and accretion expense should be disclosed separately consistent with the Notes of historical Audited Financial Statements.

Sheet App.2-D_Overhead
L1: File Number: | M1: ='LDC Info'!$E$18 -> EB-2012-0153
L2: Exhibit:
L3: Tab:
L4: Schedule:
L5: Page:
L7: Date:
A9: Appendix 2-D
A10: Overhead Expense
A12: The following table should be completed based on the information requested below. An explanation should be provided for any blank entries. The entries should include overhead costs that are currently capitalized on self-constructed assets under MIFRS or an alternate accounting standard.
E13: (A) 1 | F13: (B) | G13: (C) | H13: (D) | I13: (E) 1 | J13: (F) | K13: (G)
A14: Nature of the Overhead Costs | E14: Dollar | F14: Dollar | G14: Dollar | H14: Dollar Impact - | I14: Dollar Impact - | J14: Directly | K14: Reasons why the overhead costs are allowed to be
E15: Impact on PP&E | F15: Impact on PP&E | G15: Impact on PP&E | H15: PP&E Variance | I15: PP&E Variance | J15: Attributable? | K15: capitalized under MIFRS or an alternate accounting
E16: Historic Year | F16: Bridge Year | G16: Test Year | H16: Test versus Bridge | I16: Test versus Historic | J16: (Y/N) | K16: standard given limitations on capitalized overhead
A17: employee benefits | E17: 16596 | H17: =+G17-F17 -> 0 | I17: =+G17-E17 -> -16596 | K17: Represents proportiate payroll burden associate with direct wages costs for linemen working on capital infrastructure jobs.
A18: costs of site preparation | H18: 0 | I18: 0
A19: initial delivery and handling costs | H19: 0 | I19: 0
A20: costs of testing whether the asset is functioning properly | H20: 0 | I20: 0
A21: professional fees | E21: 6800 | H21: 0 | I21: -6800 | K21: Utilities Standards Forum (USF) Annual Membership fees, NOW allocates 80 % of this fee to capital jobs. Participation provides economic access to engineered and ESA approved construction drawings which are primarily required for construction jobs. Without USF, NOW would need to retain engineering services either in house or outsourced at a significantly higher cost.
H22: 0 | I22: 0
A23: costs of opening a new facility | H23: 0 | I23: 0
A24: costs of introducing a new product or service (including costs of advertising and promotional activities) | H24: 0 | I24: 0
A25: costs of conducting business in a new location or with a new class of customer (including costs of staff training) | H25: 0 | I25: 0
A26: administration and other general overhead costs | H26: 0 | I26: 0
H27: 0 | I27: 0
H28: 0 | I28: 0
H29: 0 | I29: 0
A30: Insert description of additional item(s) and new rows if needed. | H30: 0 | I30: 0
A31: Total | E31: =SUM(E17:E30) -> 23396 | F31: =SUM(F17:F30) -> 0 | G31: =SUM(G17:G30) -> 0 | H31: =SUM(H17:H30) -> 0 | I31: =SUM(I17:I30) -> -23396
A34: The following table should be completed based on the information requested below. An explanation should be provided for any blank entries. The entries should include overhead costs that were capitalized on self-constructed assets under CGAAP but are no longer capitalized under MIFRS or an alternate accounting standard and are included in OM&A.
E35: (A) 1 | F35: (B) | G35: (C) | H35: (D) | I35: (E) 1 | J35: (F) | K35: (G)
A36: Nature of the Overhead Costs | E36: Dollar | F36: Dollar | G36: Dollar | H36: Dollar Impact - | I36: Dollar Impact - | J36: Directly | K36: Reasons why the overhead costs are not allowed to be
E37: Impact on OM&A | F37: Impact on OM&A | G37: Impact on OM&A | H37: OM&A Variance | I37: OM&A Variance | J37: Attributable? | K37: capitalized under MIFRS or an alternate accounting
E38: Historic Year | F38: Bridge Year | G38: Test Year | H38: Test versus Bridge | I38: Test versus Historic | J38: (Y/N) | K38: standard given limitations on capitalized overhead
A39: employee benefits | H39: =+G39-F39 -> 0 | I39: =+G39-E39 -> 0
A40: costs of site preparation | H40: =+G40-F40 -> 0 | I40: =+G40-E40 -> 0
A41: initial delivery and handling costs | H41: =+G41-F41 -> 0 | I41: =+G41-E41 -> 0
A42: costs of testing whether the asset is functioning properly | H42: =+G42-F42 -> 0 | I42: =+G42-E42 -> 0
A43: professional fees | H43: =+G43-F43 -> 0 | I43: =+G43-E43 -> 0
A45: costs of opening a new facility | H45: =+G45-F45 -> 0 | I45: =+G45-E45 -> 0
A46: costs of introducing a new product or service (including costs of advertising and promotional activities) | H46: 0 | I46: 0
A47: costs of conducting business in a new location or with a new class of customer (including costs of staff training) | H47: 0 | I47: 0
A48: administration and other general overhead costs | H48: 0 | I48: 0
H49: 0 | I49: 0
H50: 0 | I50: 0
H51: 0 | I51: 0
A52: Insert description of additional item(s) and new rows if needed. | H52: 0 | I52: 0
A53: Total | E53: =SUM(E39:E52) -> 0 | F53: =SUM(F39:F52) -> 0 | G53: =SUM(G39:G52) -> 0 | H53: =SUM(H39:H52) -> 0 | I53: =SUM(I39:I52) -> 0
A55: Notes:
A56: 1 | B56: If the applicant chooses to adopt IFRS or an alternate accounting standard for financial reporting purposes in 2013, the applicant does not need to complete Columns A, E. If the applicant adopts IFRS or an alternate accounting standard for financial reporting purposes in 2012, the applicant must complete all columns.

Sheet App.2-EA_PP&E Deferral Acct NA (hidden)
H1: File Number: | I1: ='LDC Info'!$E$18 -> EB-2012-0153
H2: Exhibit:
H3: Tab:
H4: Schedule:
H5: Page:
H7: Date:
A9: Appendix 2-EA
A10: IFRS-CGAAP Transitional PP&E Amounts
A11: 2012 Adopters of IFRS for Financial Reporting Purposes
A13: For applicants that adopt IFRS on January 1, 2012 for financial reporting purposes
A15: Note: this sheet should be filled out if the applicant adopts IFRS for its financial reporting purpose as of January 1, 2012.
B17: 2009 Rebasing Year | C17: 2010 | D17: 2011 | E17: 2012 | F17: 2013 Rebasing Year | G17: 2014 | H17: 2015 | I17: 2016
A18: Reporting Basis | B18: CGAAP | C18: IRM | D18: IRM | E18: IRM | F18: MIFRS | G18: IRM | H18: IRM | I18: IRM
A19: Forecast vs. Actual Used in Rebasing Year | B19: Forecast | C19: Actual | D19: Actual | E19: Forecast | F19: Forecast
D20: $ | E20: $
A21: PP&E Values under CGAAP
A22: Opening net PP&E - Note 1
A23: Additions
A24: Depreciation (amounts should be negative)
A25: Closing net PP&E (1) | D25: =D22+D23+D24 -> 0 | E25: =E22+E23+E24 -> 0
A27: PP&E Values under MIFRS (Starts from 2011, the transition year)
A28: Opening net PP&E - Note 1
A29: Additions
A30: Depreciation (amounts should be negative)
A31: Closing net PP&E (2) | D31: =SUM(D28:D30) -> 0 | E31: =SUM(E28:E30) -> 0
A33: Difference in Closing net PP&E, CGAAP vs. MIFRS (Shown as adjustment to rate base on rebasing) | D33: =D25-D31 -> 0 | E33: =E25-E31 -> 0
A35: Account 1575 - IFRS-CGAAP Transitional PP&E Amounts
A36: Opening balance | D36: 0 | E36: =D40 -> 0 | F36: =E40 -> 0 | G36: =F40 -> 0 | H36: =G40 -> 0 | I36: =H40 -> 0
A37: Amounts added in the year | D37: =D33 -> 0 | E37: =E33-D33 -> 0
A38: Sub-total | D38: =D36+D37 -> 0 | E38: 0 | F38: 0 | G38: 0 | H38: 0 | I38: 0
A39: Amount of amortization, included in depreciation expense - Note 2 | F39: =IF(ISERROR(-E33/I44), 0, -E33/I44) -> 0 | G39: =+F39 -> 0 | H39: =+F39 -> 0 | I39: =+F39 -> 0
A40: Closing balance in deferral account | D40: =D38+D39 -> 0 | E40: 0 | F40: =IF(ISERROR(F38+F39), 0, F38+F39) -> 0 | G40: 0 | H40: 0 | I40: 0
A42: Effect on Revenue Requirement
A43: Amortization of deferred balance as above - Note 2 | F43: =IF(ISERROR(E33/I44), 0, E33/I44) -> 0 | H43: WACC
A44: Return on Rate Base Associated with deferred PP&E balance at WACC - Note 3 | F44: =E33*I43 -> 0 | H44: Disposition Period - Note 4 | I44: 4 | J44: Years
A45: Amount included in Revenue Requirement on rebasing | F45: =F43+F44 -> 0
A47: Notes:
A48: 1 For an applicant that adopts IFRS on January 1, 2012, the PP&E values as of January 1, 2011 under both CGAAP and MIFRS should be the same.
A49: 2 Amortization of the deferred balance in Account 1575 will start from the rebasing year.
A50: Assume the utility requests for a certain disposition period, the amortization that should be included in the depreciation expense is calculated as:
A51: the opening balance of Account 1575 / the approved disposition period
A52: 3 Return on rate base associated with deferred balance is calculated as:
A53: the deferred account opening balance as of 2013 rebasing year x WACC
A54: * Please note that the calculation should be adjusted once WACC is updated and finalized in the rate application.
A55: 4 Consistent with the 4 year normal rate cycle, the model is using a 4 year amortization period as a default selection to "clear" the PP&E deferral account through a one-time adjustment to ratebase to capture and remove the impact of the accounting policy changes as caused by the transition from CGAAP to MIFRS.

Sheet App.2-EB_PP&E Deferral Account
H1: File Number: | I1: ='LDC Info'!$E$18 -> EB-2012-0153
H2: Exhibit:
H3: Tab:
H4: Schedule:
H5: Page:
H7: Date:
A9: Appendix 2-EB
A10: IFRS-CGAAP Transitional PP&E Amounts
A11: 2013 Adopters of IFRS for Financial Reporting Purposes
A13: For applicants that adopt IFRS on January 1, 2013 for financial reporting purposes
A15: Note: this sheet should be filled out if the applicant adopts IFRS for its financial reporting purpose as of January 1, 2013.
B17: 2009 Rebasing Year | C17: 2010 | D17: 2011 | E17: 2012 | F17: 2013 Rebasing Year | G17: 2014 | H17: 2015 | I17: 2016
A18: Reporting Basis | B18: CGAAP | C18: IRM | D18: IRM | E18: IRM | F18: MIFRS | G18: IRM | H18: IRM | I18: IRM
A19: Forecast vs. Actual Used in Rebasing Year | B19: Forecast | C19: Actual | D19: Actual | E19: Forecast | F19: Forecast
D20: $ | E20: $ | F20: $ | G20: $ | H20: $ | I20: $
A21: PP&E Values under CGAAP
A22: Opening net PP&E - Note 1 | E22: =+'App 2-B FAC 2011'!N54 -> 4397074.36
A23: Additions | E23: =+'App2-B FAC2012'!F54 -> 830296
A24: Depreciation (amounts should be negative) | E24: =+'App2-B FAC2012'!K54 -> -470239
A25: Closing net PP&E (1) | E25: =SUM(E22:E24) -> 4757131.36
A27: PP&E Values under MIFRS (Starts from 2012, the transition year)
A28: Opening net PP&E - Note 1 | E28: =+'App 2-B FAC 2011'!N54 -> 4397074.36
A29: Additions | E29: ='App2-B FAC2012'!F54 -> 830296
A30: Depreciation (amounts should be negative) | E30: ='App2-B FAC2012'!K54 -> -470239
A31: Closing net PP&E (2) | E31: =SUM(E28:E30) -> 4757131.36
A33: Difference in Closing net PP&E, CGAAP vs. MIFRS (Shown as adjustment to rate base on rebasing) | E33: =E25-E31 -> 0
A35: Account 1575 - IFRS-CGAAP Transitional PP&E Amounts
A36: Opening balance | E36: =D40 -> 0 | F36: =E40 -> 0 | G36: =F40 -> 0 | H36: =G40 -> 0 | I36: =H40 -> 0
A37: Amounts added in the year | E37: =E33-D33 -> 0
A38: Sub-total | E38: =E36+E37 -> 0 | F38: =F36+F37 -> 0 | G38: =G36+G37 -> 0 | H38: =H36+H37 -> 0 | I38: =I36+I37 -> 0
A39: Amount of amortization, included in depreciation expense - Note 2 | F39: =IF(ISERROR(-E33/I44), 0, -E33/I44) -> 0 | G39: =+F39 -> 0 | H39: =+F39 -> 0 | I39: =+F39 -> 0
A40: Closing balance in deferral account | E40: =E38+E39 -> 0 | F40: =IF(ISERROR(F38+F39), 0, F38+F39) -> 0 | G40: =G38+G39 -> 0 | H40: =H38+H39 -> 0 | I40: =I38+I39 -> 0
A42: Effect on Revenue Requirement
A43: Amortization of deferred balance as above - Note 2 | F43: =IF(ISERROR(E33/I44), 0, E33/I44) -> 0 | H43: WACC | I43: 0.058312
A44: Return on Rate Base Associated with deferred PP&E balance at WACC - Note 3 | F44: =E33*I43 -> 0 | H44: Disposition Period - Note 4 | I44: 4 | J44: Years
A45: Amount included in Revenue Requirement on rebasing | F45: =F43+F44 -> 0
A47: Notes:
A48: 1 For an applicant that adopts IFRS on January 1, 2013, the PP&E values as of January 1, 2012 under both CGAAP and MIFRS should be the same.
A49: 2 Amortization of the deferred balance in Account 1575 will start from the rebasing year.
A50: Assume the utility requests for a certain disposition period, the amortization that should be included in the depreciation expense is calculated as:
A51: the opening balance of Account 1575 / the approved disposition period
A52: 3 Return on rate base associated with deferred balance is calculated as:
A53: the deferred account opening balance as of 2013 rebasing year x WACC
A54: * Please note that the calculation should be adjusted once WACC is updated and finalized in the rate application.
A55: 4 Consistent with the 4 year normal rate cycle, the model is using a 4 year amortization period as a default selection to "clear" the PP&E deferral account through a one-time adjustment to ratebase to capture and remove the impact of the accounting policy changes as caused by the transition from CGAAP to MIFRS.

Sheet App.2-F_Other_Oper_Rev
H1: File Number: | I1: ='LDC Info'!$E$18 -> EB-2012-0153
H2: Exhibit:
H3: Tab:
H4: Schedule:
H5: Page:
H7: Date:
A9: Appendix 2-F
A10: Other Operating Revenue
A12: USoA # | B12: USoA Description | C12: =G13-3 & " Actual" -> 2009 Actual | D12: =G13-2 & " Actual" -> 2010 Actual | E12: =G13-1 & " Actual"& CHAR(178) -> 2011 Actual² | F12: =G13-1 & " Actual"& CHAR(178) -> 2011 Actual² | G12: ="Bridge Year" & CHAR(179) -> Bridge Year³ | H12: ="Bridge Year" & CHAR(179) -> Bridge Year³ | I12: Test Year
G13: ='LDC Info'!E26 -> 2012 | H13: ='LDC Info'!E26 -> 2012 | I13: ='LDC Info'!E28 -> 2013
B14: Reporting Basis | G14: CGAAP | H14: MIFRS | I14: MIFRS
A15: 4235 | B15: Specific Service Charges | C15: 64318 | D15: 66426 | E15: 74958 | G15: 66250 | I15: =G15+1800 -> 68050
A16: 4225 | B16: Late Payment Charges | C16: 21802 | D16: 21049 | E16: 25069 | G16: 22500 | I16: =G16 -> 22500
A17: 4080 | B17: SSS Admin Fees | C17: 16783 | D17: 15648 | E17: 15316 | G17: 15317 | I17: 15317
A18: 4082 | B18: Retail Services Revenues | E18: 4607 | G18: 12200 | I18: 12200
A19: 4084 | B19: STR Revenues | E19: 752 | G19: 731 | I19: 731
A20: 4210 | B20: Rent from Electric Property | C20: 88204 | D20: 87628 | E20: 95584 | G20: 95500 | I20: 95500
A21: 4215 | B21: Other Utility Operating Income | C21: 4422 | D21: 5972 | E21: 11026 | G21: 2500 | I21: 2500
A22: 4220 | B22: Other Electric Revenue | E22: 2400 | G22: 0 | I22: 0
A23: 4325 | B23: Revenues from Merchandising, Jobbing etc, | C23: 10502 | D23: 12810 | E23: 18586 | G23: 20000 | I23: 20000
A24: 4375 | B24: Revenues from Non-Utility & Other Property | D24: 81 | E24: 12860 | G24: 500 | I24: 500
A25: 4390 | B25: Misc Non-Operating Income | D25: 0 | E25: 28054 | I25: 0
A26: 4405 | B26: Interest and Dividend Income | C26: 19943 | D26: 5584 | E26: 3985 | G26: 3500 | I26: 3500
A30: Specific Service Charges | C30: =C15+C18+C19 -> 64318 | D30: 66426 | E30: 80317 | F30: =F15+F18+F19 -> 0 | G30: =G15+G18+G19 -> 79181 | H30: =H15+H18+H19 -> 0 | I30: =I15+I18+I19 -> 80981
A31: Late Payment Charges | C31: =C16 -> 21802 | D31: =D16 -> 21049 | E31: 25069 | F31: =F16 -> 0 | G31: 22500 | H31: =H16 -> 0 | I31: 22500
A32: Other Operating Revenues | C32: =+C17+C20+C21+C22 -> 109409 | D32: =+D17+D20+D21+D22 -> 109248 | E32: 124326 | G32: =+G17+G20+G21+G22 -> 113317 | I32: =+I17+I20+I21+I22 -> 113317
A33: Other Income or Deductions | C33: =+C23+C24+C25+C26 -> 30445 | D33: =+D23+D24+D25+D26 -> 18475 | E33: 63485 | G33: =+G23+G24+G25+G26 -> 24000 | I33: =+I23+I24+I25+I26 -> 24000
A34: Total | C34: =SUM(C30:C33) -> 225974 | D34: =SUM(D30:D33) -> 215198 | E34: 293197 | F34: 0 | G34: =SUM(G30:G33) -> 238998 | H34: 0 | I34: =SUM(I30:I33) -> 240798
A38: Description | C38: Account(s)
A39: Specific Service Charges: | C39: 4235
A40: Late Payment Charges: | C40: 4225
A41: Other Distribution Revenues: | C41: 4080, 4082, 4084, 4090, 4205, 4210, 4215, 4220, 4240, 4245
A42: Other Income and Expenses: | C42: 4305, 4310, 4315, 4320, 4325, 4330, 4335, 4340, 4345, 4350, 4355, 4360, 4365, 4370, 4375, 4380, 4385, 4390, 4395, 4398, 4405, 4415
A45: Note: Add all applicable accounts listed above to the table and include all relevant information.
A46: The above table assumes adoption of MIFRS as of January 1, 2013. If the adoption year differs, please adjust the table accordingly.
A49: Account Breakdown Details
A51: For each "Other Operating Revenue" and "Other Income or Deductions" Account, a detailed breakdown of the account components is required. See the example below for Account 4405, Interest and Dividend Income.
A54: Account 4405 - Interest and Dividend Income
C55: =C12 -> 2009 Actual | D55: =D12 -> 2010 Actual | E55: =E12 -> 2011 Actual² | F55: =F12 -> 2011 Actual² | G55: Bridge Year | H55: Bridge Year | I55: Test Year
A56: Reporting Basis | C56: =IF(ISBLANK(C14), "", C14) ->  | G56: CGAAP | H56: MIFRS | I56: MIFRS
A57: Short-term Investment Interest
A58: Bank Deposit Interest | C58: 19943 | D58: 3414 | E58: 3716 | G58: 3500 | I58: 3500
A59: Miscellaneous Interest Revenue | D59: 2170 | E59: 269
A60: etc.1
A62: Total | C62: =SUM(C57:C61) -> 19943 | D62: 5584 | E62: 3985 | F62: 0 | G62: 3500 | H62: 0 | I62: 3500
A65: Notes:
A66: 1 | B66: List and specify any other interest revenue
A67: 2 | B67: If the applicant is adopting IFRS or an alternate accounting standard as of January 1, 2012 for financial reporting purposes, 2011 must be presented on both a CGAAP and MIFRS (or alternate accounting standard) basis.
A68: 3 | B68: If the applicant is adopting IFRS or an alternate accounting standard as of January 1, 2013 for financial reporting purposes, 2012 must be presented on both a CGAAP and MIFRS (or alternate accounting standard) basis.

Sheet App.2-G_Detailed_OM&A_Expenses
H1: File Number: | I1: ='LDC Info'!$E$18 -> EB-2012-0153
H2: Exhibit:
H3: Tab:
H4: Schedule:
H5: Page:
H7: Date:
A9: Appendix 2-G
A10: Detailed, Account by Account, OM&A Expense Table
A11: (excluding Depreciation and Amortization)
A14: Account | B14: Description | C14: ="Last Rebasing Year (" & 'LDC Info'!E30 & " Actuals)" -> Last Rebasing Year (2009 Actuals) | D14: ='LDC Info'!E26-2 & " Actual" -> 2010 Actual | E14: ='LDC Info'!E26-1 & " Actual" & CHAR(178) -> 2011 Actual² | F14: ='LDC Info'!E26-1 & " Actual"& CHAR(178) -> 2011 Actual² | G14: ="Bridge Year " & 'LDC Info'!E26& CHAR(179) -> Bridge Year 2012³ | H14: ="Bridge Year " & 'LDC Info'!E26& CHAR(179) -> Bridge Year 2012³ | I14: ="Test Year " & 'LDC Info'!E28 -> Test Year 2013
A15: Reporting Basis
A16: Operations
A17: 5005 | B17: Operation Supervision and Engineering | C17: 104060 | D17: 90538 | E17: 86237 | G17: 88134 | I17: =90778+2360+5000 -> 98138
A18: 5010 | B18: Load Dispatching | D18: 36
A19: 5012 | B19: Station Buildings and Fixtures Expense | C19: 124 | D19: 65
A20: 5014 | B20: Transformer Station Equipment - Operation Labour
A21: 5015 | B21: Transformer Station Equipment - Operation Supplies and Expenses
A22: 5016 | B22: Distribution Station Equipment - Operation Labour | C22: 2069 | D22: 8463
A23: 5017 | B23: Distribution Station Equipment - Operation Supplies and Expenses | C23: 9104 | D23: 8000 | E23: 13400 | G23: 13668 | I23: 14010
A24: 5020 | B24: Overhead Distribution Lines and Feeders - Operation Labour | C24: 32363 | D24: 38080 | E24: 40201 | G24: 60876 | I24: =41295+1073+4757 -> 47125
A25: 5025 | B25: Overhead Distribution Lines and Feeders - Operation Supplies and Expenses | C25: 3037 | D25: 801 | E25: 2019 | G25: 2060 | I25: 2114
A26: 5030 | B26: Overhead Sub-transmission Feeders - Operation | C26: 17791 | D26: 5764 | E26: 3621 | G26: 3700 | I26: =3806+98 -> 3904
A27: 5035 | B27: Overhead Distribution Transformers - Operation | D27: 839 | E27: 12402 | G27: 6650 | I27: =6816+177 -> 6993
A28: 5040 | B28: Underground Distribution Lines and Feeders - Operation Labour | C28: 2624 | D28: 663 | E28: 1272 | G28: 1473 | I28: =1516+40 -> 1556
A29: 5045 | B29: Underground Distribution Lines and Feeders - Operation Supplies and Expenses | C29: 6743 | E29: 170
A30: 5050 | B30: Underground Sub-transmission Feeders - Operation
A31: 5055 | B31: Underground Distribution Transformers - Operation | C31: 300 | D31: 59 | E31: 2542 | G31: 2598 | I31: =2676+70 -> 2746
A32: 5060 | B32: Street Lighting and Signal System Expense
A33: 5065 | B33: Meter Expense | C33: 14820 | D33: 30194 | E33: 16456 | G33: 16803 | I33: 17270
A34: 5070 | B34: Customer Premises - Operation Labour | C34: 27499 | D34: 58735 | E34: 74845 | G34: 81013 | I34: =67405+1752+7929 -> 77086
A35: 5075 | B35: Customer Premises - Operation Materials and Expenses | C35: 20284 | D35: 30417 | E35: 19946 | G35: 32957 | I35: 33781
A36: 5085 | B36: Miscellaneous Distribution Expenses | C36: 181840 | D36: 116203 | E36: 151379 | G36: 168035 | I36: =160649+15858 -> 176507
A37: 5090 | B37: Underground Distribution Lines and Feeders - Rental Paid
A38: 5095 | B38: Overhead Distribution Lines and Feeders - Rental Paid | C38: 13108 | D38: 13108 | E38: 13108 | G38: 13370 | I38: 9816
A39: 5096 | B39: Other Rent
A40: Total - Operations | C40: =SUM(C17:C39) -> 435766 | D40: =SUM(D17:D39) -> 401965 | E40: =SUM(E17:E39) -> 437598 | F40: =SUM(F17:F39) -> 0 | G40: 491337 | H40: 0 | I40: =SUM(I17:I39) -> 491046
A41: Account | B41: Description | C41: =C14 -> Last Rebasing Year (2009 Actuals) | D41: 2010 Actual | E41: 2011 Actual² | F41: 2011 Actual² | G41: Bridge Year 2012³ | H41: Bridge Year 2012³ | I41: Test Year 2013
A42: Maintenance
A43: 5105 | B43: Maintenance Supervision and Engineering | C43: 241 | D43: 470 | E43: 3631 | G43: 3710 | I43: 3818
A44: 5110 | B44: Maintenance of Buildings and Fixtures - Distribution Stations | C44: 1008 | D44: 2590 | E44: 349 | G44: 356 | I44: 365
A45: 5112 | B45: Maintenance of Transformer Station Equipment | C45: 16339 | D45: 4336 | E45: 21521 | G45: 13959 | I45: 14328
A46: 5114 | B46: Maintenance of Distribution Station Equipment | C46: 984 | D46: 1613 | E46: 2257 | G46: 2306 | I46: 2372
A47: 5120 | B47: Maintenance of Poles, Towers and Fixtures | C47: 15342 | D47: 29515 | E47: 17652 | G47: 18027 | I47: 18535
A48: 5125 | B48: Maintenance of Overhead Conductors and Devices | C48: 60015 | D48: 86376 | E48: 72751 | G48: 94091 | I48: =96760+7929+111 -> 104800
A49: 5130 | B49: Maintenance of Overhead Services | C49: 33261 | D49: 32251 | E49: 47473 | G49: 53755 | I49: 55258
A50: 5135 | B50: Overhead Distribution Lines and Feeders - Right of Way | C50: 21369 | D50: 87114 | E50: 123588 | G50: 126194 | I50: =129688+7929 -> 137617
A51: 5145 | B51: Maintenance of Underground Conduit | C51: 416 | D51: 1113 | E51: 1818 | G51: 1858 | I51: 1911
A52: 5150 | B52: Maintenance of Underground Conductors and Devices | C52: 30423 | D52: 37632 | E52: 54469 | G52: 55623 | I52: =57177+4229 -> 61406
A53: 5155 | B53: Maintenance of Underground Services | C53: 30322 | D53: 41459 | E53: 39810 | G53: 48591 | I53: =50010+4229 -> 54239
A54: 5160 | B54: Maintenance of Line Transformers | C54: 26581 | D54: 8564 | E54: 16879 | G54: 17237 | I54: 17719
A55: 5165 | B55: Maintenance of Street Lighting and Signal Systems | D55: 10699 | E55: 106 | G55: 107 | I55: 0
A56: 5170 | B56: Sentinel Lights - Labour
A57: 5172 | B57: Sentinel Lights - Materials and Expenses
A58: 5175 | B58: Maintenance of Meters | E58: 1405 | G58: 1433 | I58: 1470
A59: 5178 | B59: Customer Installations Expenses - Leased Property
A60: 5195 | B60: Maintenance of Other Installations on Customer Premises
A61: Total - Maintenance | C61: =SUM(C43:C60) -> 236301 | D61: =SUM(D43:D60) -> 343732 | E61: =SUM(E43:E60) -> 403709 | F61: =SUM(F43:F60) -> 0 | G61: 437247 | H61: 0 | I61: =SUM(I43:I60) -> 473838
A62: Account | B62: Description | C62: =C41 -> Last Rebasing Year (2009 Actuals) | D62: =D41 -> 2010 Actual | E62: =E41 -> 2011 Actual² | F62: =F41 -> 2011 Actual² | G62: Bridge Year 2012³ | H62: Bridge Year 2012³ | I62: =I41 -> Test Year 2013
A63: Billing and Collecting
A64: 5305 | B64: Supervision | C64: 78402 | D64: 80488 | E64: 87305 | G64: 89219 | I64: 91878
A65: 5310 | B65: Meter Reading Expense | C65: 233147 | D65: 115992 | E65: 101937 | G65: =104064 -> 104064 | I65: =106893+89596 -> 196489
A66: 5315 | B66: Customer Billing | C66: 278728 | D66: 259602 | E66: 276702 | G66: =282549 -> 282549 | I66: =290418+46177 -> 336595
A67: 5320 | B67: Collecting | C67: 91467 | D67: 95112 | E67: 88215 | G67: 90124 | I67: 92851
A68: 5325 | B68: Collecting - Cash Over and Short | D68: 309
A69: 5330 | B69: Collection Charges | C69: 2112 | D69: 3554 | E69: 4137 | G69: 4220 | I69: 4220
A70: 5335 | B70: Bad Debt Expense | C70: 39767 | D70: 25130 | E70: 43282 | G70: 22148 | I70: 22701
A71: 5340 | B71: Miscellaneous Customer Accounts Expenses | C71: 3134 | D71: 3980 | E71: 3440 | G71: 3509 | I71: 3527
A72: Total - Billing and Collecting | C72: =SUM(C64:C71) -> 726757 | D72: =SUM(D64:D71) -> 584167 | E72: =SUM(E64:E71) -> 605018 | F72: =SUM(F64:F71) -> 0 | G72: 595833 | H72: 0 | I72: =SUM(I64:I71) -> 748261
A73: Account | B73: Description | C73: =C62 -> Last Rebasing Year (2009 Actuals) | D73: =D62 -> 2010 Actual | E73: =E62 -> 2011 Actual² | F73: =F62 -> 2011 Actual² | G73: Bridge Year 2012³ | H73: Bridge Year 2012³ | I73: =I62 -> Test Year 2013
A74: Community Relations
A75: 5405 | B75: Supervision
A76: 5410 | B76: Community Relations - Sundry
A77: 5415 | B77: Energy Conservation | D77: 1237 | E77: 1295 | G77: 1323 | I77: 1363
A78: 5420 | B78: Community Safety Program
A79: 5425 | B79: Miscellaneous Customer Service and Informational Expenses
A80: 5505 | B80: Supervision
A81: 5510 | B81: Demonstrating and Selling Expense
A82: 5515 | B82: Advertising Expenses
A83: 5520 | B83: Miscellaneous Sales Expense
A84: Total - Community Relations | C84: =SUM(C75:C83) -> 0 | D84: =SUM(D75:D83) -> 1237 | E84: =SUM(E75:E83) -> 1295 | F84: =SUM(F75:F83) -> 0 | G84: 1323 | H84: 0 | I84: =SUM(I75:I83) -> 1363
A85: Account | B85: Description | C85: =C73 -> Last Rebasing Year (2009 Actuals) | D85: =D73 -> 2010 Actual | E85: =E73 -> 2011 Actual² | F85: =F73 -> 2011 Actual² | G85: Bridge Year 2012³ | H85: Bridge Year 2012³ | I85: =I73 -> Test Year 2013
A86: Administrative and General Expenses
A87: 5605 | B87: Executive Salaries and Expenses | C87: 112640 | D87: 116507 | E87: 130420 | G87: 141063 | I87: =145207+3775 -> 148982
A88: 5610 | B88: Management Salaries and Expenses | C88: 127702 | D88: 267726 | E88: 135319 | G88: 146449 | I88: =150711+3917 -> 154628
A89: 5615 | B89: General Administrative Salaries and Expenses | C89: 95662 | D89: 93312 | E89: 104649 | G89: 125611 | I89: =128383+3338 -> 131721
A90: 5620 | B90: Office Supplies and Expenses | C90: 42751 | D90: 39756 | E90: 30892 | G90: 31510 | I90: 32297
A91: 5625 | B91: Administrative Expense Transferred - Credit
A92: 5630 | B92: Outside Services Employed | C92: 160109 | D92: 136612 | E92: 210365 | G92: 239847 | I92: 214254
A93: 5635 | B93: Property Insurance | C93: 31019 | D93: 28108 | E93: 35632 | G93: 36345 | I93: 37253
A94: 5640 | B94: Injuries and Damages
A95: 5645 | B95: OMERS Pensions and Benefits
A96: 5646 | B96: Employee Pensions and OPEB
A97: 5647 | B97: Employee Sick Leave
A98: 5650 | B98: Franchise Requirements
A99: 5655 | B99: Regulatory Expenses | C99: 30242 | D99: 19514 | E99: 21023 | G99: 21443 | I99: 24950
A100: 5660 | B100: General Advertising Expenses | C100: 7213 | D100: 5398 | E100: 5420 | G100: 5528 | I100: 5667
A101: 5665 | B101: Miscellaneous General Expenses | C101: 14204 | D101: 12180 | E101: 11110 | G101: 11332 | I101: 11616
A102: 5670 | B102: Rent
A103: 5672 | B103: Lease Payment Charge
A104: 5675 | B104: Maintenance of General Plant
A105: 5680 | B105: Electrical Safety Authority Fees | C105: 3472 | D105: 3472 | E105: 3542 | G105: 3613 | I105: 3703
A106: 5681 | B106: Special Purpose Charge Expense
A107: 5685 | B107: Independent Electricity System Operator Fees and Penalties
A108: 5695 | B108: OM&A Contra Account
A109: 6205 | B109: Donations
A110: 6105/6110 | B110: Taxes - Other than Income Taxes | C110: 1634 | D110: 1513 | E110: 3657 | G110: 1573 | I110: 1620
A111: 6205 | B111: Donations, Sub-account LEAP Funding | E111: 3172 | G111: 3172 | I111: 3906
A112: Total - Administrative and General Expenses | C112: =SUM(C87:C111) -> 626648 | D112: =SUM(D87:D111) -> 724098 | E112: 695201 | F112: 0 | G112: 767486 | H112: 0 | I112: 770597
A113: Total OM&A | C113: =C40+C61+C72+C84+C112 -> 2025472 | D113: =D40+D61+D72+D84+D112 -> 2055199 | E113: =E40+E61+E72+E84+E112 -> 2142821 | F113: =F40+F61+F72+F84+F112 -> 0 | G113: 2293226 | H113: 0 | I113: =I40+I61+I72+I84+I112 -> 2485105
A114: Adjustments for non-recoverable items
A115: 5681 | B115: Special Purpose Charge Expense
A116: 6205 | B116: Donations1
A120: Total Recoverable OM&A | C120: =C113-SUM(C115:C119) -> 2025472 | D120: =D113-SUM(D115:D119) -> 2055199 | E120: 2142821 | F120: =F113-SUM(F115:F119) -> 0 | G120: 2293226 | H120: 0 | I120: 2485105
E121: =2142821-E120 -> 0
A122: 1 Account 6205 - Donations is generally non-recoverable. However, the sub-account LEAP funding of account 6205 is generally recoverable.
A124: Note:
A125: 1 | B125: If it has been more than three years since the applicant last filed a cost of service application, additional years of historical actuals should be incorporated into the table, as necessary, to go back to the last cost of service application. If the applicant last filed a cost of service application less than three years ago, a minimum of three years of actual information is required.
A126: 2 | B126: If the applicant is adopting IFRS or an alternate accounting standard as of January 1, 2012 for financial reporting purposes, 2011 must be presented on both a CGAAP and MIFRS (or alternate accounting standard) basis.
A127: 3 | B127: If the applicant is adopting IFRS or an alternate accounting standard as of January 1, 2013 for financial reporting purposes, 2012 must be presented on both a CGAAP and MIFRS (or alternate accounting standard) basis.

Sheet App.2-H_OM&A_Detailed_Analysis
H1: File Number: | I1: ='LDC Info'!$E$18 -> EB-2012-0153
H2: Exhibit:
H3: Tab:
H4: Schedule:
H5: Page:
H7: Date:
A9: Appendix 2-H
A10: OM&A Detailed Variance Analysis
A11: (excluding Depreciation and Amortization)
A14: Account | B14: Description | C14: ="Last Board-approved Rebasing Year ("&'LDC Info'!E30&" Year)" -> Last Board-approved Rebasing Year (2009 Year) | D14: Most Current Actuals Year 2011 | E14: ="Test Year " & 'LDC Info'!E28 -> Test Year 2013 | F14: Test Year Versus Last Rebasing | H14: Test Year Versus Most Current Actuals
F15: Variance ($) | G15: Percentage Change (%) | H15: Variance ($) | I15: Percentage Change (%)
A16: Reporting Basis | C16: CGAAP | D16: CGAAP | E16: MIFRS
A17: Operations
A18: 5005 | B18: Operation Supervision and Engineering | C18: =+'App.2-G_Detailed_OM&A_Expenses'!C17 -> 104060 | D18: =+'App.2-G_Detailed_OM&A_Expenses'!E17 -> 86237 | E18: =+'App.2-G_Detailed_OM&A_Expenses'!I17 -> 98138 | F18: =E18-C18 -> -5922 | G18: =IF(C18=0,"",(E18/C18)-1) -> -0.0569094753 | H18: =E18-D18 -> 11901 | I18: =IF(D18=0,"",(E18/D18)-1) -> 0.1380034092
A19: 5010 | B19: Load Dispatching | C19: =+'App.2-G_Detailed_OM&A_Expenses'!C18 -> 0 | D19: =+'App.2-G_Detailed_OM&A_Expenses'!E18 -> 0 | E19: =+'App.2-G_Detailed_OM&A_Expenses'!I18 -> 0 | F19: =E19-C19 -> 0 | G19: =IF(C19=0,"",(E19/C19)-1) ->  | H19: =E19-D19 -> 0 | I19: =IF(D19=0,"",(E19/D19)-1) -> 
A20: 5012 | B20: Station Buildings and Fixtures Expense | C20: =+'App.2-G_Detailed_OM&A_Expenses'!C19 -> 124 | D20: =+'App.2-G_Detailed_OM&A_Expenses'!E19 -> 0 | E20: =+'App.2-G_Detailed_OM&A_Expenses'!I19 -> 0 | F20: -124 | G20: -1 | H20: 0
A21: 5014 | B21: Transformer Station Equipment - Operation Labour | C21: =+'App.2-G_Detailed_OM&A_Expenses'!C20 -> 0 | D21: =+'App.2-G_Detailed_OM&A_Expenses'!E20 -> 0 | E21: =+'App.2-G_Detailed_OM&A_Expenses'!I20 -> 0 | F21: 0 | H21: 0
A22: 5015 | B22: Transformer Station Equipment - Operation Supplies and Expenses | C22: =+'App.2-G_Detailed_OM&A_Expenses'!C21 -> 0 | D22: =+'App.2-G_Detailed_OM&A_Expenses'!E21 -> 0 | E22: =+'App.2-G_Detailed_OM&A_Expenses'!I21 -> 0 | F22: 0 | H22: 0
A23: 5016 | B23: Distribution Station Equipment - Operation Labour | C23: =+'App.2-G_Detailed_OM&A_Expenses'!C22 -> 2069 | D23: =+'App.2-G_Detailed_OM&A_Expenses'!E22 -> 0 | E23: =+'App.2-G_Detailed_OM&A_Expenses'!I22 -> 0 | F23: -2069 | G23: -1 | H23: 0
A24: 5017 | B24: Distribution Station Equipment - Operation Supplies and Expenses | C24: =+'App.2-G_Detailed_OM&A_Expenses'!C23 -> 9104 | D24: =+'App.2-G_Detailed_OM&A_Expenses'!E23 -> 13400 | E24: =+'App.2-G_Detailed_OM&A_Expenses'!I23 -> 14010 | F24: 4906 | G24: 0.538884007 | H24: 610 | I24: 0.04552238806
A25: 5020 | B25: Overhead Distribution Lines and Feeders - Operation Labour | C25: =+'App.2-G_Detailed_OM&A_Expenses'!C24 -> 32363 | D25: =+'App.2-G_Detailed_OM&A_Expenses'!E24 -> 40201 | E25: =+'App.2-G_Detailed_OM&A_Expenses'!I24 -> 47125 | F25: 14762 | G25: 0.4561381825 | H25: 6924 | I25: 0.1722345215
A26: 5025 | B26: Overhead Distribution Lines and Feeders - Operation Supplies and Expenses | C26: =+'App.2-G_Detailed_OM&A_Expenses'!C25 -> 3037 | D26: =+'App.2-G_Detailed_OM&A_Expenses'!E25 -> 2019 | E26: =+'App.2-G_Detailed_OM&A_Expenses'!I25 -> 2114 | F26: -923 | G26: -0.3039183405 | H26: 95 | I26: 0.04705299653
A27: 5030 | B27: Overhead Sub-transmission Feeders - Operation | C27: =+'App.2-G_Detailed_OM&A_Expenses'!C26 -> 17791 | D27: =+'App.2-G_Detailed_OM&A_Expenses'!E26 -> 3621 | E27: =+'App.2-G_Detailed_OM&A_Expenses'!I26 -> 3904 | F27: -13887 | G27: -0.7805632061 | H27: 283 | I27: 0.07815520574
A28: 5035 | B28: Overhead Distribution Transformers - Operation | C28: =+'App.2-G_Detailed_OM&A_Expenses'!C27 -> 0 | D28: =+'App.2-G_Detailed_OM&A_Expenses'!E27 -> 12402 | E28: =+'App.2-G_Detailed_OM&A_Expenses'!I27 -> 6993 | F28: 6993 | H28: -5409 | I28: -0.4361393324
A29: 5040 | B29: Underground Distribution Lines and Feeders - Operation Labour | C29: =+'App.2-G_Detailed_OM&A_Expenses'!C28 -> 2624 | D29: =+'App.2-G_Detailed_OM&A_Expenses'!E28 -> 1272 | E29: =+'App.2-G_Detailed_OM&A_Expenses'!I28 -> 1556 | F29: -1068 | G29: -0.4070121951 | H29: 284 | I29: 0.2232704403
A30: 5045 | B30: Underground Distribution Lines and Feeders - Operation Supplies and Expenses | C30: =+'App.2-G_Detailed_OM&A_Expenses'!C29 -> 6743 | D30: =+'App.2-G_Detailed_OM&A_Expenses'!E29 -> 170 | E30: =+'App.2-G_Detailed_OM&A_Expenses'!I29 -> 0 | F30: -6743 | G30: -1 | H30: -170 | I30: -1
A31: 5050 | B31: Underground Sub-transmission Feeders - Operation | C31: =+'App.2-G_Detailed_OM&A_Expenses'!C30 -> 0 | D31: =+'App.2-G_Detailed_OM&A_Expenses'!E30 -> 0 | E31: =+'App.2-G_Detailed_OM&A_Expenses'!I30 -> 0 | F31: 0 | H31: 0
A32: 5055 | B32: Underground Distribution Transformers - Operation | C32: =+'App.2-G_Detailed_OM&A_Expenses'!C31 -> 300 | D32: =+'App.2-G_Detailed_OM&A_Expenses'!E31 -> 2542 | E32: =+'App.2-G_Detailed_OM&A_Expenses'!I31 -> 2746 | F32: 2446 | G32: 8.153333333 | H32: 204 | I32: 0.08025177026
A33: 5060 | B33: Street Lighting and Signal System Expense | C33: =+'App.2-G_Detailed_OM&A_Expenses'!C32 -> 0 | D33: =+'App.2-G_Detailed_OM&A_Expenses'!E32 -> 0 | E33: =+'App.2-G_Detailed_OM&A_Expenses'!I32 -> 0 | F33: 0 | H33: 0
A34: 5065 | B34: Meter Expense | C34: =+'App.2-G_Detailed_OM&A_Expenses'!C33 -> 14820 | D34: =+'App.2-G_Detailed_OM&A_Expenses'!E33 -> 16456 | E34: =+'App.2-G_Detailed_OM&A_Expenses'!I33 -> 17270 | F34: 2450 | G34: 0.165317139 | H34: 814 | I34: 0.04946524064
A35: 5070 | B35: Customer Premises - Operation Labour | C35: =+'App.2-G_Detailed_OM&A_Expenses'!C34 -> 27499 | D35: =+'App.2-G_Detailed_OM&A_Expenses'!E34 -> 74845 | E35: =+'App.2-G_Detailed_OM&A_Expenses'!I34 -> 77086 | F35: 49587 | G35: 1.803229208 | H35: 2241 | I35: 0.02994187989
A36: 5075 | B36: Customer Premises - Operation Materials and Expenses | C36: =+'App.2-G_Detailed_OM&A_Expenses'!C35 -> 20284 | D36: =+'App.2-G_Detailed_OM&A_Expenses'!E35 -> 19946 | E36: =+'App.2-G_Detailed_OM&A_Expenses'!I35 -> 33781 | F36: 13497 | G36: 0.6654013015 | H36: 13835 | I36: 0.6936227815
A37: 5085 | B37: Miscellaneous Distribution Expenses | C37: =+'App.2-G_Detailed_OM&A_Expenses'!C36 -> 181840 | D37: =+'App.2-G_Detailed_OM&A_Expenses'!E36 -> 151379 | E37: =+'App.2-G_Detailed_OM&A_Expenses'!I36 -> 176507 | F37: -5333 | G37: -0.02932798064 | H37: 25128 | I37: 0.1659939622
A38: 5090 | B38: Underground Distribution Lines and Feeders - Rental Paid | C38: =+'App.2-G_Detailed_OM&A_Expenses'!C37 -> 0 | D38: =+'App.2-G_Detailed_OM&A_Expenses'!E37 -> 0 | E38: =+'App.2-G_Detailed_OM&A_Expenses'!I37 -> 0 | F38: 0 | H38: 0
A39: 5095 | B39: Overhead Distribution Lines and Feeders - Rental Paid | C39: =+'App.2-G_Detailed_OM&A_Expenses'!C38 -> 13108 | D39: =+'App.2-G_Detailed_OM&A_Expenses'!E38 -> 13108 | E39: =+'App.2-G_Detailed_OM&A_Expenses'!I38 -> 9816 | F39: -3292 | G39: -0.2511443393 | H39: -3292 | I39: -0.2511443393
A40: 5096 | B40: Other Rent | C40: =+'App.2-G_Detailed_OM&A_Expenses'!C39 -> 0 | D40: =+'App.2-G_Detailed_OM&A_Expenses'!E39 -> 0 | E40: =+'App.2-G_Detailed_OM&A_Expenses'!I39 -> 0 | F40: 0 | H40: 0
A41: Total - Operations | C41: =SUM(C18:C40) -> 435766 | D41: =SUM(D18:D40) -> 437598 | E41: =SUM(E18:E40) -> 491046 | F41: 55280 | G41: 0.1268570747 | H41: 53448 | I41: 0.1221394979
A42: Account | B42: Description
A43: Maintenance
A44: 5105 | B44: Maintenance Supervision and Engineering | C44: =+'App.2-G_Detailed_OM&A_Expenses'!C43 -> 241 | D44: =+'App.2-G_Detailed_OM&A_Expenses'!E43 -> 3631 | E44: =+'App.2-G_Detailed_OM&A_Expenses'!I43 -> 3818 | F44: =E44-C44 -> 3577 | G44: =IF(C44=0,"",(E44/C44)-1) -> 14.84232365 | H44: =E44-D44 -> 187 | I44: =IF(D44=0,"",(E44/D44)-1) -> 0.05150096392
A45: 5110 | B45: Maintenance of Buildings and Fixtures - Distribution Stations | C45: =+'App.2-G_Detailed_OM&A_Expenses'!C44 -> 1008 | D45: =+'App.2-G_Detailed_OM&A_Expenses'!E44 -> 349 | E45: =+'App.2-G_Detailed_OM&A_Expenses'!I44 -> 365 | F45: -643 | G45: -0.6378968254 | H45: 16 | I45: 0.04584527221
A46: 5112 | B46: Maintenance of Transformer Station Equipment | C46: =+'App.2-G_Detailed_OM&A_Expenses'!C45 -> 16339 | D46: =+'App.2-G_Detailed_OM&A_Expenses'!E45 -> 21521 | E46: =+'App.2-G_Detailed_OM&A_Expenses'!I45 -> 14328 | F46: -2011 | G46: -0.1230797478 | H46: -7193 | I46: -0.3342316807
A47: 5114 | B47: Maintenance of Distribution Station Equipment | C47: =+'App.2-G_Detailed_OM&A_Expenses'!C46 -> 984 | D47: =+'App.2-G_Detailed_OM&A_Expenses'!E46 -> 2257 | E47: =+'App.2-G_Detailed_OM&A_Expenses'!I46 -> 2372 | F47: 1388 | G47: 1.410569106 | H47: 115 | I47: 0.05095259194
A48: 5120 | B48: Maintenance of Poles, Towers and Fixtures | C48: =+'App.2-G_Detailed_OM&A_Expenses'!C47 -> 15342 | D48: =+'App.2-G_Detailed_OM&A_Expenses'!E47 -> 17652 | E48: =+'App.2-G_Detailed_OM&A_Expenses'!I47 -> 18535 | F48: 3193 | G48: 0.2081214965 | H48: 883 | I48: 0.05002266032
A49: 5125 | B49: Maintenance of Overhead Conductors and Devices | C49: =+'App.2-G_Detailed_OM&A_Expenses'!C48 -> 60015 | D49: =+'App.2-G_Detailed_OM&A_Expenses'!E48 -> 72751 | E49: =+'App.2-G_Detailed_OM&A_Expenses'!I48 -> 104800 | F49: 44785 | G49: 0.7462301091 | H49: 32049 | I49: 0.4405300271
A50: 5130 | B50: Maintenance of Overhead Services | C50: =+'App.2-G_Detailed_OM&A_Expenses'!C49 -> 33261 | D50: =+'App.2-G_Detailed_OM&A_Expenses'!E49 -> 47473 | E50: =+'App.2-G_Detailed_OM&A_Expenses'!I49 -> 55258 | F50: 21997 | G50: 0.6613451189 | H50: 7785 | I50: 0.163987951
A51: 5135 | B51: Overhead Distribution Lines and Feeders - Right of Way | C51: =+'App.2-G_Detailed_OM&A_Expenses'!C50 -> 21369 | D51: =+'App.2-G_Detailed_OM&A_Expenses'!E50 -> 123588 | E51: =+'App.2-G_Detailed_OM&A_Expenses'!I50 -> 137617 | F51: 116248 | G51: 5.44002995 | H51: 14029 | I51: 0.113514257
A52: 5145 | B52: Maintenance of Underground Conduit | C52: =+'App.2-G_Detailed_OM&A_Expenses'!C51 -> 416 | D52: =+'App.2-G_Detailed_OM&A_Expenses'!E51 -> 1818 | E52: =+'App.2-G_Detailed_OM&A_Expenses'!I51 -> 1911 | F52: 1495 | G52: 3.59375 | H52: 93 | I52: 0.05115511551
A53: 5150 | B53: Maintenance of Underground Conductors and Devices | C53: =+'App.2-G_Detailed_OM&A_Expenses'!C52 -> 30423 | D53: =+'App.2-G_Detailed_OM&A_Expenses'!E52 -> 54469 | E53: =+'App.2-G_Detailed_OM&A_Expenses'!I52 -> 61406 | F53: 30983 | G53: 1.018407126 | H53: 6937 | I53: 0.1273568452
A54: 5155 | B54: Maintenance of Underground Services | C54: =+'App.2-G_Detailed_OM&A_Expenses'!C53 -> 30322 | D54: =+'App.2-G_Detailed_OM&A_Expenses'!E53 -> 39810 | E54: =+'App.2-G_Detailed_OM&A_Expenses'!I53 -> 54239 | F54: 23917 | G54: 0.7887672317 | H54: 14429 | I54: 0.3624466215
A55: 5160 | B55: Maintenance of Line Transformers | C55: =+'App.2-G_Detailed_OM&A_Expenses'!C54 -> 26581 | D55: =+'App.2-G_Detailed_OM&A_Expenses'!E54 -> 16879 | E55: =+'App.2-G_Detailed_OM&A_Expenses'!I54 -> 17719 | F55: -8862 | G55: -0.3333960348 | H55: 840 | I55: 0.0497659814
A56: 5165 | B56: Maintenance of Street Lighting and Signal Systems | C56: =+'App.2-G_Detailed_OM&A_Expenses'!C55 -> 0 | D56: =+'App.2-G_Detailed_OM&A_Expenses'!E55 -> 106 | E56: =+'App.2-G_Detailed_OM&A_Expenses'!I55 -> 0 | F56: 0 | H56: -106 | I56: -1
A57: 5170 | B57: Sentinel Lights - Labour | C57: =+'App.2-G_Detailed_OM&A_Expenses'!C56 -> 0 | D57: =+'App.2-G_Detailed_OM&A_Expenses'!E56 -> 0 | E57: =+'App.2-G_Detailed_OM&A_Expenses'!I56 -> 0 | F57: 0 | H57: 0
A58: 5172 | B58: Sentinel Lights - Materials and Expenses | C58: =+'App.2-G_Detailed_OM&A_Expenses'!C57 -> 0 | D58: =+'App.2-G_Detailed_OM&A_Expenses'!E57 -> 0 | E58: =+'App.2-G_Detailed_OM&A_Expenses'!I57 -> 0 | F58: 0 | H58: 0
A59: 5175 | B59: Maintenance of Meters | C59: =+'App.2-G_Detailed_OM&A_Expenses'!C58 -> 0 | D59: =+'App.2-G_Detailed_OM&A_Expenses'!E58 -> 1405 | E59: =+'App.2-G_Detailed_OM&A_Expenses'!I58 -> 1470 | F59: 1470 | H59: 65 | I59: 0.0462633452
A60: 5178 | B60: Customer Installations Expenses - Leased Property | C60: =+'App.2-G_Detailed_OM&A_Expenses'!C59 -> 0 | D60: =+'App.2-G_Detailed_OM&A_Expenses'!E59 -> 0 | E60: =+'App.2-G_Detailed_OM&A_Expenses'!I59 -> 0 | F60: 0 | H60: 0
A61: 5195 | B61: Maintenance of Other Installations on Customer Premises | C61: =+'App.2-G_Detailed_OM&A_Expenses'!C60 -> 0 | D61: =+'App.2-G_Detailed_OM&A_Expenses'!E60 -> 0 | E61: =+'App.2-G_Detailed_OM&A_Expenses'!I60 -> 0 | F61: 0 | H61: 0
A62: Total - Maintenance | C62: =SUM(C44:C61) -> 236301 | D62: =SUM(D44:D61) -> 403709 | E62: =SUM(E44:E61) -> 473838 | F62: 237537 | G62: 1.005230617 | H62: 70129 | I62: 0.1737117577
A63: Account | B63: Description
A64: Billing and Collecting
A65: 5305 | B65: Supervision | C65: =+'App.2-G_Detailed_OM&A_Expenses'!C64 -> 78402 | D65: =+'App.2-G_Detailed_OM&A_Expenses'!E64 -> 87305 | E65: =+'App.2-G_Detailed_OM&A_Expenses'!I64 -> 91878 | F65: =E65-C65 -> 13476 | G65: =IF(C65=0,"",(E65/C65)-1) -> 0.1718833703 | H65: =E65-D65 -> 4573 | I65: =IF(D65=0,"",(E65/D65)-1) -> 0.0523795888
A66: 5310 | B66: Meter Reading Expense | C66: =+'App.2-G_Detailed_OM&A_Expenses'!C65 -> 233147 | D66: =+'App.2-G_Detailed_OM&A_Expenses'!E65 -> 101937 | E66: =+'App.2-G_Detailed_OM&A_Expenses'!I65 -> 196489 | F66: -36658 | G66: -0.1572312747 | H66: 94552 | I66: 0.9275532927
A67: 5315 | B67: Customer Billing | C67: =+'App.2-G_Detailed_OM&A_Expenses'!C66 -> 278728 | D67: =+'App.2-G_Detailed_OM&A_Expenses'!E66 -> 276702 | E67: =+'App.2-G_Detailed_OM&A_Expenses'!I66 -> 336595 | F67: 57867 | G67: 0.2076110043 | H67: 59893 | I67: 0.2164530795
A68: 5320 | B68: Collecting | C68: =+'App.2-G_Detailed_OM&A_Expenses'!C67 -> 91467 | D68: =+'App.2-G_Detailed_OM&A_Expenses'!E67 -> 88215 | E68: =+'App.2-G_Detailed_OM&A_Expenses'!I67 -> 92851 | F68: 1384 | G68: 0.01513114019 | H68: 4636 | I68: 0.05255342062
A69: 5325 | B69: Collecting - Cash Over and Short | C69: =+'App.2-G_Detailed_OM&A_Expenses'!C68 -> 0 | D69: =+'App.2-G_Detailed_OM&A_Expenses'!E68 -> 0 | E69: =+'App.2-G_Detailed_OM&A_Expenses'!I68 -> 0 | F69: 0 | H69: 0
A70: 5330 | B70: Collection Charges | C70: =+'App.2-G_Detailed_OM&A_Expenses'!C69 -> 2112 | D70: =+'App.2-G_Detailed_OM&A_Expenses'!E69 -> 4137 | E70: =+'App.2-G_Detailed_OM&A_Expenses'!I69 -> 4220 | F70: 2108 | G70: 0.9981060606 | H70: 83 | I70: 0.02006284747
A71: 5335 | B71: Bad Debt Expense | C71: =+'App.2-G_Detailed_OM&A_Expenses'!C70 -> 39767 | D71: =+'App.2-G_Detailed_OM&A_Expenses'!E70 -> 43282 | E71: =+'App.2-G_Detailed_OM&A_Expenses'!I70 -> 22701 | F71: -17066 | G71: -0.4291497976 | H71: -20581 | I71: -0.4755094497
A72: 5340 | B72: Miscellaneous Customer Accounts Expenses | C72: =+'App.2-G_Detailed_OM&A_Expenses'!C71 -> 3134 | D72: =+'App.2-G_Detailed_OM&A_Expenses'!E71 -> 3440 | E72: =+'App.2-G_Detailed_OM&A_Expenses'!I71 -> 3527 | F72: 393 | G72: 0.1253988513 | H72: 87 | I72: 0.02529069767
A73: Total - Billing and Collecting | C73: =SUM(C65:C72) -> 726757 | D73: =SUM(D65:D72) -> 605018 | E73: =SUM(E65:E72) -> 748261 | F73: 21504 | G73: 0.02958898229 | H73: 143243 | I73: 0.2367582452
A74: Account | B74: Description
A75: Community Relations
A76: 5405 | B76: Supervision | C76: =+'App.2-G_Detailed_OM&A_Expenses'!C75 -> 0 | D76: =+'App.2-G_Detailed_OM&A_Expenses'!E75 -> 0 | E76: =+'App.2-G_Detailed_OM&A_Expenses'!I75 -> 0 | F76: =E76-C76 -> 0 | G76: =IF(C76=0,"",(E76/C76)-1) ->  | H76: =E76-D76 -> 0 | I76: =IF(D76=0,"",(E76/D76)-1) -> 
A77: 5410 | B77: Community Relations - Sundry | C77: =+'App.2-G_Detailed_OM&A_Expenses'!C76 -> 0 | D77: =+'App.2-G_Detailed_OM&A_Expenses'!E76 -> 0 | E77: =+'App.2-G_Detailed_OM&A_Expenses'!I76 -> 0 | F77: 0 | H77: 0
A78: 5415 | B78: Energy Conservation | C78: =+'App.2-G_Detailed_OM&A_Expenses'!C77 -> 0 | D78: =+'App.2-G_Detailed_OM&A_Expenses'!E77 -> 1295 | E78: =+'App.2-G_Detailed_OM&A_Expenses'!I77 -> 1363 | F78: 1363 | H78: 68 | I78: 0.05250965251
A79: 5420 | B79: Community Safety Program | C79: =+'App.2-G_Detailed_OM&A_Expenses'!C78 -> 0 | D79: =+'App.2-G_Detailed_OM&A_Expenses'!E78 -> 0 | E79: =+'App.2-G_Detailed_OM&A_Expenses'!I78 -> 0 | F79: 0 | H79: 0
A80: 5425 | B80: Miscellaneous Customer Service and Informational Expenses | C80: =+'App.2-G_Detailed_OM&A_Expenses'!C79 -> 0 | D80: =+'App.2-G_Detailed_OM&A_Expenses'!E79 -> 0 | E80: =+'App.2-G_Detailed_OM&A_Expenses'!I79 -> 0 | F80: 0 | H80: 0
A81: 5505 | B81: Supervision | C81: =+'App.2-G_Detailed_OM&A_Expenses'!C80 -> 0 | D81: =+'App.2-G_Detailed_OM&A_Expenses'!E80 -> 0 | E81: =+'App.2-G_Detailed_OM&A_Expenses'!I80 -> 0 | F81: 0 | H81: 0
A82: 5510 | B82: Demonstrating and Selling Expense | C82: =+'App.2-G_Detailed_OM&A_Expenses'!C81 -> 0 | D82: =+'App.2-G_Detailed_OM&A_Expenses'!E81 -> 0 | E82: =+'App.2-G_Detailed_OM&A_Expenses'!I81 -> 0 | F82: 0 | H82: 0
A83: 5515 | B83: Advertising Expenses | C83: =+'App.2-G_Detailed_OM&A_Expenses'!C82 -> 0 | D83: =+'App.2-G_Detailed_OM&A_Expenses'!E82 -> 0 | E83: =+'App.2-G_Detailed_OM&A_Expenses'!I82 -> 0 | F83: 0 | H83: 0
A84: 5520 | B84: Miscellaneous Sales Expense | C84: =+'App.2-G_Detailed_OM&A_Expenses'!C83 -> 0 | D84: =+'App.2-G_Detailed_OM&A_Expenses'!E83 -> 0 | E84: =+'App.2-G_Detailed_OM&A_Expenses'!I83 -> 0 | F84: 0 | H84: 0
A85: Total - Community Relations | C85: =SUM(C76:C84) -> 0 | D85: =SUM(D76:D84) -> 1295 | E85: =SUM(E76:E84) -> 1363 | F85: 1363 | H85: 68 | I85: 0.05250965251
A86: Account | B86: Description
A87: Administrative and General Expenses
A88: 5605 | B88: Executive Salaries and Expenses | C88: =+'App.2-G_Detailed_OM&A_Expenses'!C87 -> 112640 | D88: =+'App.2-G_Detailed_OM&A_Expenses'!E87 -> 130420 | E88: =+'App.2-G_Detailed_OM&A_Expenses'!I87 -> 148982 | F88: =E88-C88 -> 36342 | G88: =IF(C88=0,"",(E88/C88)-1) -> 0.3226384943 | H88: =E88-D88 -> 18562 | I88: =IF(D88=0,"",(E88/D88)-1) -> 0.1423247968
A89: 5610 | B89: Management Salaries and Expenses | C89: =+'App.2-G_Detailed_OM&A_Expenses'!C88 -> 127702 | D89: =+'App.2-G_Detailed_OM&A_Expenses'!E88 -> 135319 | E89: =+'App.2-G_Detailed_OM&A_Expenses'!I88 -> 154628 | F89: 26926 | G89: 0.2108502608 | H89: 19309 | I89: 0.1426924526
A90: 5615 | B90: General Administrative Salaries and Expenses | C90: =+'App.2-G_Detailed_OM&A_Expenses'!C89 -> 95662 | D90: =+'App.2-G_Detailed_OM&A_Expenses'!E89 -> 104649 | E90: =+'App.2-G_Detailed_OM&A_Expenses'!I89 -> 131721 | F90: 36059 | G90: 0.3769417323 | H90: 27072 | I90: 0.2586933463
A91: 5620 | B91: Office Supplies and Expenses | C91: =+'App.2-G_Detailed_OM&A_Expenses'!C90 -> 42751 | D91: =+'App.2-G_Detailed_OM&A_Expenses'!E90 -> 30892 | E91: =+'App.2-G_Detailed_OM&A_Expenses'!I90 -> 32297 | F91: -10454 | G91: -0.2445322916 | H91: 1405 | I91: 0.04548103069
A92: 5625 | B92: Administrative Expense Transferred - Credit | C92: =+'App.2-G_Detailed_OM&A_Expenses'!C91 -> 0 | D92: =+'App.2-G_Detailed_OM&A_Expenses'!E91 -> 0 | E92: =+'App.2-G_Detailed_OM&A_Expenses'!I91 -> 0 | F92: 0 | H92: 0
A93: 5630 | B93: Outside Services Employed | C93: =+'App.2-G_Detailed_OM&A_Expenses'!C92 -> 160109 | D93: =+'App.2-G_Detailed_OM&A_Expenses'!E92 -> 210365 | E93: =+'App.2-G_Detailed_OM&A_Expenses'!I92 -> 214254 | F93: 54145 | G93: 0.3381758677 | H93: 3889 | I93: 0.0184869156
A94: 5635 | B94: Property Insurance | C94: =+'App.2-G_Detailed_OM&A_Expenses'!C93 -> 31019 | D94: =+'App.2-G_Detailed_OM&A_Expenses'!E93 -> 35632 | E94: =+'App.2-G_Detailed_OM&A_Expenses'!I93 -> 37253 | F94: 6234 | G94: 0.2009735968 | H94: 1621 | I94: 0.04549281545
A95: 5640 | B95: Injuries and Damages | C95: =+'App.2-G_Detailed_OM&A_Expenses'!C94 -> 0 | D95: =+'App.2-G_Detailed_OM&A_Expenses'!E94 -> 0 | E95: =+'App.2-G_Detailed_OM&A_Expenses'!I94 -> 0 | F95: 0 | H95: 0
A96: 5645 | B96: OMERS Pensions and Benefits | C96: =+'App.2-G_Detailed_OM&A_Expenses'!C95 -> 0 | D96: =+'App.2-G_Detailed_OM&A_Expenses'!E95 -> 0 | E96: =+'App.2-G_Detailed_OM&A_Expenses'!I95 -> 0 | F96: 0 | H96: 0
A97: 5646 | B97: Employee Pensions and OPEB | C97: =+'App.2-G_Detailed_OM&A_Expenses'!C96 -> 0 | D97: =+'App.2-G_Detailed_OM&A_Expenses'!E96 -> 0 | E97: =+'App.2-G_Detailed_OM&A_Expenses'!I96 -> 0 | F97: =E97-C97 -> 0 | G97: =IF(C97=0,"",(E97/C97)-1) ->  | H97: =E97-D97 -> 0 | I97: =IF(D97=0,"",(E97/D97)-1) -> 
A98: 5647 | B98: Employee Sick Leave | C98: =+'App.2-G_Detailed_OM&A_Expenses'!C97 -> 0 | D98: =+'App.2-G_Detailed_OM&A_Expenses'!E97 -> 0 | E98: =+'App.2-G_Detailed_OM&A_Expenses'!I97 -> 0 | F98: 0 | H98: 0
A99: 5650 | B99: Franchise Requirements | C99: =+'App.2-G_Detailed_OM&A_Expenses'!C98 -> 0 | D99: =+'App.2-G_Detailed_OM&A_Expenses'!E98 -> 0 | E99: =+'App.2-G_Detailed_OM&A_Expenses'!I98 -> 0 | F99: 0 | H99: 0
A100: 5655 | B100: Regulatory Expenses | C100: =+'App.2-G_Detailed_OM&A_Expenses'!C99 -> 30242 | D100: =+'App.2-G_Detailed_OM&A_Expenses'!E99 -> 21023 | E100: =+'App.2-G_Detailed_OM&A_Expenses'!I99 -> 24950 | F100: -5292 | G100: -0.1749884267 | H100: 3927 | I100: 0.1867954145
A101: 5660 | B101: General Advertising Expenses | C101: =+'App.2-G_Detailed_OM&A_Expenses'!C100 -> 7213 | D101: =+'App.2-G_Detailed_OM&A_Expenses'!E100 -> 5420 | E101: =+'App.2-G_Detailed_OM&A_Expenses'!I100 -> 5667 | F101: -1546 | G101: -0.2143352281 | H101: 247 | I101: 0.04557195572
A102: 5665 | B102: Miscellaneous General Expenses | C102: =+'App.2-G_Detailed_OM&A_Expenses'!C101 -> 14204 | D102: =+'App.2-G_Detailed_OM&A_Expenses'!E101 -> 11110 | E102: =+'App.2-G_Detailed_OM&A_Expenses'!I101 -> 11616 | F102: -2588 | G102: -0.1822021966 | H102: 506 | I102: 0.04554455446
A103: 5670 | B103: Rent | C103: =+'App.2-G_Detailed_OM&A_Expenses'!C102 -> 0 | D103: =+'App.2-G_Detailed_OM&A_Expenses'!E102 -> 0 | E103: =+'App.2-G_Detailed_OM&A_Expenses'!I102 -> 0 | F103: =E103-C103 -> 0 | G103: =IF(C103=0,"",(E103/C103)-1) ->  | H103: =E103-D103 -> 0
A104: 5672 | B104: Lease Payment Charge | C104: =+'App.2-G_Detailed_OM&A_Expenses'!C103 -> 0 | D104: =+'App.2-G_Detailed_OM&A_Expenses'!E103 -> 0 | E104: =+'App.2-G_Detailed_OM&A_Expenses'!I103 -> 0 | F104: 0 | H104: 0
A105: 5675 | B105: Maintenance of General Plant | C105: =+'App.2-G_Detailed_OM&A_Expenses'!C104 -> 0 | D105: =+'App.2-G_Detailed_OM&A_Expenses'!E104 -> 0 | E105: =+'App.2-G_Detailed_OM&A_Expenses'!I104 -> 0 | F105: 0 | H105: 0
A106: 5680 | B106: Electrical Safety Authority Fees | C106: =+'App.2-G_Detailed_OM&A_Expenses'!C105 -> 3472 | D106: =+'App.2-G_Detailed_OM&A_Expenses'!E105 -> 3542 | E106: =+'App.2-G_Detailed_OM&A_Expenses'!I105 -> 3703 | F106: 231 | G106: 0.06653225806 | H106: 161 | I106: 0.04545454545
A107: 5681 | B107: Special Purpose Charge Expense | C107: =+'App.2-G_Detailed_OM&A_Expenses'!C106 -> 0 | D107: =+'App.2-G_Detailed_OM&A_Expenses'!E106 -> 0 | E107: =+'App.2-G_Detailed_OM&A_Expenses'!I106 -> 0 | F107: 0 | H107: 0
A108: 5685 | B108: Independent Electricity System Operator Fees and Penalties | C108: =+'App.2-G_Detailed_OM&A_Expenses'!C107 -> 0 | D108: =+'App.2-G_Detailed_OM&A_Expenses'!E107 -> 0 | E108: =+'App.2-G_Detailed_OM&A_Expenses'!I107 -> 0 | F108: 0 | H108: 0
A109: 5695 | B109: OM&A Contra Account | C109: =+'App.2-G_Detailed_OM&A_Expenses'!C108 -> 0 | D109: =+'App.2-G_Detailed_OM&A_Expenses'!E108 -> 0 | E109: =+'App.2-G_Detailed_OM&A_Expenses'!I108 -> 0 | F109: 0 | H109: 0
A110: 6105/6110 | B110: Taxes - Other than Income Taxes | C110: =+'App.2-G_Detailed_OM&A_Expenses'!C109 -> 0 | D110: =+'App.2-G_Detailed_OM&A_Expenses'!E109 -> 0 | E110: =+'App.2-G_Detailed_OM&A_Expenses'!I109 -> 0
A111: 6205 | B111: Donations | C111: =+'App.2-G_Detailed_OM&A_Expenses'!C110 -> 1634 | D111: =+'App.2-G_Detailed_OM&A_Expenses'!E110 -> 3657 | E111: =+'App.2-G_Detailed_OM&A_Expenses'!I110 -> 1620 | F111: =E111-C111 -> -14 | G111: =IF(C111=0,"",(E111/C111)-1) -> -0.008567931457 | H111: =E111-D111 -> -2037 | I111: =IF(D111=0,"",(E111/D111)-1) -> -0.5570139459
A112: 6205 | B112: Donations, Sub-account LEAP Funding | C112: =+'App.2-G_Detailed_OM&A_Expenses'!C111 -> 0 | D112: =+'App.2-G_Detailed_OM&A_Expenses'!E111 -> 3172 | E112: =+'App.2-G_Detailed_OM&A_Expenses'!I111 -> 3906 | F112: 3906 | H112: 734 | I112: 0.2313997478
A113: Total - Administrative and General Expenses | C113: =SUM(C88:C112) -> 626648 | D113: =SUM(D88:D112) -> 695201 | E113: =SUM(E88:E112) -> 770597 | F113: 143949 | G113: 0.2297126936 | H113: 75396 | I113: 0.108452088
A114: Total OM&A | C114: =C113+C85+C73+C62+C41 -> 2025472 | D114: =D113+D85+D73+D62+D41 -> 2142821 | E114: =E113+E85+E73+E62+E41 -> 2485105 | F114: 459633 | G114: 0.2269263658 | H114: 342284 | I114: 0.1597352275
A115: Adjustments for non-recoverable items
A116: 5681 | B116: Special Purpose Charge Expense | F116: =E116-C116 -> 0 | G116: =IF(C116=0,"",(E116/C116)-1) ->  | H116: =E116-D116 -> 0 | I116: =IF(D116=0,"",(E116/D116)-1) -> 
A117: 6205 | B117: Donations1 | F117: =E117-C117 -> 0 | G117: =IF(C117=0,"",(E117/C117)-1) ->  | H117: =E117-D117 -> 0 | I117: =IF(D117=0,"",(E117/D117)-1) -> 
F118: =E118-C118 -> 0 | G118: =IF(C118=0,"",(E118/C118)-1) ->  | H118: =E118-D118 -> 0 | I118: =IF(D118=0,"",(E118/D118)-1) -> 
F119: =E119-C119 -> 0 | G119: =IF(C119=0,"",(E119/C119)-1) ->  | H119: =E119-D119 -> 0 | I119: =IF(D119=0,"",(E119/D119)-1) -> 
F120: =E120-C120 -> 0 | G120: =IF(C120=0,"",(E120/C120)-1) ->  | H120: =E120-D120 -> 0 | I120: =IF(D120=0,"",(E120/D120)-1) -> 
A121: Total Recoverable OM&A | C121: =C114-SUM(C116:C120) -> 2025472 | D121: =D114-SUM(D116:D120) -> 2142821 | E121: 2485105 | F121: 459633 | G121: =IF(C121=0,"",(E121/C121)-1) -> 0.2269263658 | H121: 342284 | I121: =IF(D121=0,"",(E121/D121)-1) -> 0.1597352275
A123: 1 Account 6205 - Donations is generally non-recoverable. However, the sub-account LEAP funding of account 6205 is generally recoverable.
A126: Note:
A128: 1 | B128: If the applicant is adopting IFRS or an alternate accounting standard as of January 1, 2013 for financial reporting purposes, Column D "Most Current Actual Year" must be provided on CGAAP.
A129: 2 | B129: If the applicant is adopting IFRS or an alternate accounting standard as of January 1, 2012 for financial reporting purposes, Column D "Most Current Actual Year" must be provided on that standard.

Sheet App.2-I_OM&A_Summary_Analys
K1: File Number: | L1: ='LDC Info'!$E$18 -> EB-2012-0153
K2: Exhibit:
K3: Tab:
K4: Schedule:
K5: Page:
K7: Date:
A9: Appendix 2-I
A10: Summary of Recoverable OM&A Expenses
B13: ="Last Rebasing Year (" & 'LDC Info'!E30 & " BA)" -> Last Rebasing Year (2009 BA) | C13: ="Last Rebasing Year (" & 'LDC Info'!E30 & " Actuals)" -> Last Rebasing Year (2009 Actuals) | D13: ='LDC Info'!E26 -2 & " Actuals" -> 2010 Actuals | E13: ='LDC Info'!E26 -1 & " Actuals" -> 2011 Actuals | F13: ='LDC Info'!E26 & " Bridge Year" -> 2012 Bridge Year | G13: ='LDC Info'!E28 & " Test Year" -> 2013 Test Year
A14: Reporting Basis
A15: Operations | B15: 454973 | C15: =+'App.2-G_Detailed_OM&A_Expenses'!C40 -> 435766 | D15: =+'App.2-G_Detailed_OM&A_Expenses'!D40 -> 401965 | E15: =+'App.2-G_Detailed_OM&A_Expenses'!E40 -> 437598 | F15: =+'App.2-G_Detailed_OM&A_Expenses'!G40 -> 491337 | G15: =+'App.2-G_Detailed_OM&A_Expenses'!I40 -> 491046
A16: Maintenance | B16: 199133 | C16: =+'App.2-G_Detailed_OM&A_Expenses'!C61 -> 236301 | D16: =+'App.2-G_Detailed_OM&A_Expenses'!D61 -> 343732 | E16: =+'App.2-G_Detailed_OM&A_Expenses'!E61 -> 403709 | F16: =+'App.2-G_Detailed_OM&A_Expenses'!G61 -> 437247 | G16: =+'App.2-G_Detailed_OM&A_Expenses'!I61 -> 473838
A17: SubTotal | B17: =SUM(B15:B16) -> 654106 | C17: =SUM(C15:C16) -> 672067 | D17: 745697 | E17: 841307 | F17: 928584 | G17: 964884
A18: %Change (year over year) | D18: =IF(ISERROR((D17-C17)/C17), "", (D17-C17)/C17) -> 0.1095575292 | E18: =IF(ISERROR((E17-D17)/D17), "", (E17-D17)/D17) -> 0.1282156157 | F18: 0.1037397763 | G18: 0.03909177845
A19: %Change (Test Year vs Last Rebasing Year - Actual) | G19: =IF(ISERROR((G17-C17)/C17), "", (G17-C17)/C17) -> 0.4356961434
A20: Billing and Collecting | B20: 749870 | C20: =+'App.2-G_Detailed_OM&A_Expenses'!C72 -> 726757 | D20: =+'App.2-G_Detailed_OM&A_Expenses'!D72 -> 584167 | E20: =+'App.2-G_Detailed_OM&A_Expenses'!E72 -> 605018 | F20: =+'App.2-G_Detailed_OM&A_Expenses'!G72 -> 595833 | G20: =+'App.2-G_Detailed_OM&A_Expenses'!I72 -> 748261
A21: Community Relations | B21: =+'App.2-G_Detailed_OM&A_Expenses'!C84 -> 0 | C21: =+'App.2-G_Detailed_OM&A_Expenses'!C84 -> 0 | D21: =+'App.2-G_Detailed_OM&A_Expenses'!D84 -> 1237 | E21: =+'App.2-G_Detailed_OM&A_Expenses'!E84 -> 1295 | F21: =+'App.2-G_Detailed_OM&A_Expenses'!G84 -> 1323 | G21: =+'App.2-G_Detailed_OM&A_Expenses'!I84 -> 1363
A22: Administrative and General | B22: =627638+2703 -> 630341 | C22: =+'App.2-G_Detailed_OM&A_Expenses'!C112 -> 626648 | D22: =+'App.2-G_Detailed_OM&A_Expenses'!D112 -> 724098 | E22: =+'App.2-G_Detailed_OM&A_Expenses'!E112 -> 695201 | F22: =+'App.2-G_Detailed_OM&A_Expenses'!G112 -> 767486 | G22: =+'App.2-G_Detailed_OM&A_Expenses'!I112 -> 770597
A23: SubTotal | B23: =SUM(B20:B22) -> 1380211 | C23: =SUM(C20:C22) -> 1353405 | D23: 1309502 | E23: 1301514 | F23: 1364642 | G23: 1520221
A24: %Change (year over year) | D24: =IF(ISERROR((D23-C23)/C23), "", (D23-C23)/C23) -> -0.03243892257 | E24: =IF(ISERROR((E23-D23)/D23), "", (E23-D23)/D23) -> -0.006100028866 | F24: =IF(ISERROR((F23-E23)/E23), "", (F23-E23)/E23) -> 0.04850351206 | G24: =IF(ISERROR((G23-F23)/F23), "", (G23-F23)/F23) -> 0.1140071902
A25: %Change (Test Year vs Last Rebasing Year - Actual) | G25: =IF(ISERROR((G23-C23)/C23), "", (G23-C23)/C23) -> 0.1232565271
A26: Total | B26: =SUM(B23,B17) -> 2034317 | C26: =SUM(C23,C17) -> 2025472 | D26: 2055199 | E26: 2142821 | F26: 2293226 | G26: 2485105
A27: %Change (year over year) | D27: =IF(ISERROR((D26-C26)/C26), "", (D26-C26)/C26) -> 0.01467657909 | E27: =IF(ISERROR((E26-D26)/D26), "", (E26-D26)/D26) -> 0.04263431424 | F27: =IF(ISERROR((F26-E26)/E26), "", (F26-E26)/E26) -> 0.07019018387 | G27: =IF(ISERROR((G26-F26)/F26), "", (G26-F26)/F26) -> 0.08367208465
B30: =B13 -> Last Rebasing Year (2009 BA) | C30: =C13 -> Last Rebasing Year (2009 Actuals) | D30: 2010 Actuals | E30: 2011 Actuals | F30: 2012 Bridge Year | G30: 2013 Test Year
A31: Operations | B31: =B15 -> 454973 | C31: =C15 -> 435766 | D31: 401965 | E31: 437598 | F31: 491337 | G31: 491046
A32: Maintenance | B32: =B16 -> 199133 | C32: =C16 -> 236301 | D32: 343732 | E32: 403709 | F32: 437247 | G32: 473838
A33: Billing and Collecting | B33: =B20 -> 749870 | C33: =C20 -> 726757 | D33: 584167 | E33: 605018 | F33: 595833 | G33: 748261
A34: Community Relations | B34: =B21 -> 0 | C34: =C21 -> 0 | D34: 1237 | E34: 1295 | F34: 1323 | G34: 1363
A35: Administrative and General | B35: =B22 -> 630341 | C35: =C22 -> 626648 | D35: 724098 | E35: 695201 | F35: 767486 | G35: 770597
A36: Total | B36: =SUM(B31:B35) -> 2034317 | C36: =SUM(C31:C35) -> 2025472 | D36: 2055199 | E36: 2142821 | F36: 2293226 | G36: 2485105
A37: %Change (year over year) | D37: =IF(ISERROR((D36-C36)/C36), "", (D36-C36)/C36) -> 0.01467657909 | E37: =IF(ISERROR((E36-D36)/D36), "", (E36-D36)/D36) -> 0.04263431424 | F37: =IF(ISERROR((F36-E36)/E36), "", (F36-E36)/E36) -> 0.07019018387 | G37: =IF(ISERROR((G36-F36)/F36), "", (G36-F36)/F36) -> 0.08367208465
B40: =B13 -> Last Rebasing Year (2009 BA) | C40: =C13 -> Last Rebasing Year (2009 Actuals) | D40: ="Variance " & 'LDC Info'!E30 & " BA – " & 'LDC Info'!E30 & " Actuals" -> Variance 2009 BA – 2009 Actuals | E40: =D13 -> 2010 Actuals | F40: ="Variance " & 'LDC Info'!E26 -2 & " Actuals vs. " & 'LDC Info'!E30 & " Actuals" -> Variance 2010 Actuals vs. 2009 Actuals | G40: =E13 -> 2011 Actuals | H40: ="Variance " & 'LDC Info'!E26 -1 & " Actuals vs. " & 'LDC Info'!E26-2 & " Actuals" -> Variance 2011 Actuals vs. 2010 Actuals | I40: =F13 -> 2012 Bridge Year | J40: ="Variance " & 'LDC Info'!E26 & " Bridge vs. " & 'LDC Info'!E26 -1 & " Actuals" -> Variance 2012 Bridge vs. 2011 Actuals | K40: =G13 -> 2013 Test Year | L40: ="Variance " & 'LDC Info'!E28 & " Test vs. " & 'LDC Info'!E26 & " Bridge" -> Variance 2013 Test vs. 2012 Bridge
A41: Operations | B41: =B15 -> 454973 | C41: 435766 | D41: =B41-C41 -> 19207 | E41: =D15 -> 401965 | F41: =E41-C41 -> -33801 | G41: =E15 -> 437598 | H41: =G41-E41 -> 35633 | I41: =F15 -> 491337 | J41: =I41-G41 -> 53739 | K41: =G15 -> 491046 | L41: =K41-I41 -> -291
A42: Maintenance | B42: 199133 | C42: 236301 | D42: =B42-C42 -> -37168 | E42: =D16 -> 343732 | F42: =E42-C42 -> 107431 | G42: =E16 -> 403709 | H42: =G42-E42 -> 59977 | I42: =F16 -> 437247 | J42: 33538 | K42: =G16 -> 473838 | L42: 36591
A43: Billing and Collecting | B43: =B20 -> 749870 | C43: 726757 | D43: 23113 | E43: =D20 -> 584167 | F43: -142590 | G43: =E20 -> 605018 | H43: 20851 | I43: =F20 -> 595833 | J43: -9185 | K43: =G20 -> 748261 | L43: 152428
A44: Community Relations | B44: 0 | C44: 0 | D44: 0 | E44: =D21 -> 1237 | F44: 1237 | G44: =E21 -> 1295 | H44: 58 | I44: =F21 -> 1323 | J44: 28 | K44: =G21 -> 1363 | L44: 40
A45: Administrative and General | B45: 630341 | C45: 626648 | D45: 3693 | E45: 724098 | F45: 97450 | G45: 695201 | H45: -28897 | I45: 767486 | J45: 72285 | K45: 770597 | L45: 3111
A46: Total OM&A Expenses | B46: =SUM(B41:B45) -> 2034317 | C46: =SUM(C41:C45) -> 2025472 | D46: 8845 | E46: 2055199 | F46: 29727 | G46: 2142821 | H46: 87622 | I46: 2293226 | J46: 150405 | K46: 2485105 | L46: 191879
A47: Variance from previous year | E47: =E46-C46 -> 29727 | G47: =G46-E46 -> 87622 | I47: =I46-G46 -> 150405 | K47: =K46-I46 -> 191879
A48: Percent change (year over year) | E48: =IF(ISERROR(E47/C46), "", E47/C46) -> 0.01467657909 | G48: =IF(ISERROR(G47/E46), "", G47/E46) -> 0.04263431424 | I48: =IF(ISERROR(I47/G46), "", I47/G46) -> 0.07019018387 | K48: =IF(ISERROR(K47/I46), "", K47/I46) -> 0.08367208465
A49: Percent Change: Test year vs. Most Current Actual | G49: =IF(ISERROR((K46-G46)/G46), "", (K46-G46)/G46) -> 0.1597352275
A50: Simple average of % variance for all years | G50: =IF(ISERROR((K46-C46)/C46), "", (K46-C46)/C46) -> 0.2269263658 | L50: =IF(ISERROR(AVERAGE(E48,G48,I48,K48)), "", AVERAGE(E48,G48,I48,K48)) -> 0.05279329046
A51: Compound Annual Growth Rate for all years | G51: =IF(ISERROR((K47-C47)/C47), "", (K47-C47)/C47) ->  | L51: =IF((K46-C46)=0, "", (K46/C46)^(1/5)-1) -> 0.04175045749
A52: ="Compound Growth Rate (" & E13 & " vs. " & 'LDC Info'!E30 & " Actuals)" -> Compound Growth Rate (2011 Actuals vs. 2009 Actuals) | G52: =IF(ISERROR((G46/C46)^(1/(2010-2008)) - 1), "", (G46-C46)/C46) -> 0.05793661922
A54: Note:
A56: 1 "BA" = Board-Approved
A57: 2 If it has been more than three years since the applicant last filed a cost of service application, additional years of historical actuals should be incorporated into the table, as necessary, to go back to the last cost of service application. If the applicant last filed a cost of service application less than three years ago, a minimum of three years of actual information is required.
A59: 3 Recoverable OM&A that is included on these tables should be identical to the recoverable OM&A that is shown for the corresponding periods on Appendix 2-H.

Sheet App.2-J_OM&A_Cost _Drivers
F1: File Number: | G1: ='LDC Info'!$E$18 -> EB-2012-0153
F2: Exhibit:
F3: Tab:
F4: Schedule:
F5: Page:
F7: Date:
A10: Appendix 2-J
A11: OM&A Cost Driver Table
A13: OM&A | B13: ="Last Rebasing Year (" & 'LDC Info'!E30 & " Actuals)" -> Last Rebasing Year (2009 Actuals) | C13: 2009 Actuals | D13: ='LDC Info'!E26 -2 & " Actuals" -> 2010 Actuals | E13: ='LDC Info'!E26 -1 & " Actuals" -> 2011 Actuals | F13: ='LDC Info'!E26 & " Bridge Year" -> 2012 Bridge Year | G13: ='LDC Info'!E28 & " Test Year" -> 2013 Test Year
A14: Reporting Basis
A15: Opening Balance | B15: 1935793 | C15: =B31 -> 2025472 | D15: =B31 -> 2025472 | E15: =D31 -> 2055199 | F15: =E31 -> 2142821 | G15: 2293226
A16: Staffing ( Wages & Benefits) | B16: 64777 | C16: 123954 | D16: 123954 | E16: 48475 | F16: 150212 | G16: =-2319+16600+57859 -> 72140
A17: Shift in Labour Costs to Capital | B17: -4146 | C17: -72101 | D17: -72101 | E17: -90862
A18: Materials and Expenses
A19: Maintenance Materials & Services | B19: -24085 | C19: 33280 | D19: 33280 | E19: 51422 | F19: -23360
A20: Shift in Overhead Materials & Services to Capital | B20: -3309 | C20: -14855 | D20: -14855 | E20: -19781
A21: Bad Debt Expense | C21: -14637 | D21: -14637 | E21: 18151 | F21: -21134
A22: Regulatory | B22: 10998 | C22: -30036 | D22: -30036 | E22: 15609 | F22: 17577 | G22: 3750
A23: Third Party Services | B23: 3857 | C23: -11336 | D23: -11336 | E23: 35215 | F23: -1566 | G23: -24067
A24: Management Fees ( based on Union Employees payroll) | B24: 7631 | C24: -3952 | D24: -3952 | E24: 18600 | F24: 15747 | G24: -1984
A25: Accounting Method Change - Regulatory | E25: 5357
A26: Administration Materials And Services | B26: 16201
A27: Smart Meter Costs | G27: =135773 -> 135773
A28: Other | B28: ='App.2-G_Detailed_OM&A_Expenses'!C120-SUM(B15:B27) -> 17755 | C28: ='App.2-G_Detailed_OM&A_Expenses'!E120-SUM(C15:C27) -> 107032 | D28: ='App.2-G_Detailed_OM&A_Expenses'!D120-SUM(D15:D27) -> 19410 | E28: ='App.2-G_Detailed_OM&A_Expenses'!E120-SUM(E15:E27) -> 5436 | F28: ='App.2-G_Detailed_OM&A_Expenses'!G120-SUM(F15:F27) -> 12929 | G28: ='App.2-G_Detailed_OM&A_Expenses'!I120-SUM(G15:G27) -> 6267
A29: etc.
A31: Closing Balance | B31: =SUM(B15:B30) -> 2025472 | C31: =SUM(C15:C30) -> 2142821 | D31: 2055199 | E31: 2142821 | F31: 2293226 | G31: 2485105
B32: ='App.2-G_Detailed_OM&A_Expenses'!C120-B31 -> 0 | C32: ='App.2-G_Detailed_OM&A_Expenses'!D120-C31 -> -87622 | D32: ='App.2-G_Detailed_OM&A_Expenses'!D120-D31 -> 0
A33: Notes:
A35: 1 | B35: For each year, a detailed explanation for each cost driver and associated amount is
B36: required.
A37: 2 | B37: The closing balance for each year becomes the opening balance for the next year.
A38: 3 | B38: If it has been more than three years since the applicant last filed a cost of service application, additional years of historical actuals should be incorporated into the table, as necessary, to go back to the last cost of service application. If the applicant last filed a cost of service application less than three years ago, a minimum of three years of actual information is required.
A42: 4 | B42: Opening Balance for "Last Rebasing Year" (cell B15) should be equal to the Board-Approved amount.

Sheet App.2-K_Employee Costs
F1: File Number: | G1: ='LDC Info'!$E$18 -> EB-2012-0153
F2: Exhibit:
F3: Tab:
F4: Schedule:
F5: Page:
F7: Date:
A9: Appendix 2-K
A10: Employee Costs
B12: ="Last Rebasing Year (" & 'LDC Info'!E30 & " Board-Approved)" -> Last Rebasing Year (2009 Board-Approved) | C12: ="Last Rebasing Year (" & 'LDC Info'!E30 & " Actuals)" -> Last Rebasing Year (2009 Actuals) | D12: ='LDC Info'!E26 -2 & " Actuals" -> 2010 Actuals | E12: ='LDC Info'!E26 -1 & " Actuals" -> 2011 Actuals | F12: ='LDC Info'!E26 & " Bridge Year" -> 2012 Bridge Year | G12: ='LDC Info'!E28 & " Test Year" -> 2013 Test Year
A13: Reporting Basis
A14: Number of Employees (FTEs including Part-Time)1
A15: Executive
A16: Management | B16: 4.2 | C16: 4.2 | D16: 4.15 | E16: 4.2 | F16: 4.2 | G16: 4.2
A17: Non-Union
A18: Union | B18: 12.08 | C18: 11.6 | D18: 11.5 | E18: 12.9 | F18: 14.6 | G18: 14.6
A19: Total | B19: =SUM(B15:B18) -> 16.28 | C19: 15.8 | D19: 15.65 | E19: 17.1 | F19: 18.8 | G19: 18.8
A20: Number of Part-Time Employees
A21: Executive
A22: Management
A23: Non-Union
A24: Union
A25: Total | B25: =SUM(B21:B24) -> 0 | C25: 0 | D25: 0 | E25: 0 | F25: 0 | G25: 0
A26: Total Salary and Wages
A27: Executive
A28: Management | B28: 269021 | C28: 315304 | D28: 332470 | E28: 323953 | F28: 333672 | G28: 343682
A29: Non-Union
A30: Union | B30: 869607 | C30: 675891 | D30: 661632 | E30: 779772 | F30: 883227 | G30: =872224+50055 -> 922279
A31: Total | B31: =SUM(B27:B30) -> 1138628 | C31: 991195 | D31: 994102 | E31: 1103725 | F31: 1216899 | G31: 1265961
A32: Current Benefits
A33: Executive
A34: Management | B34: 53000 | C34: 78905 | D34: 221568 | E34: 97438 | F34: 100351 | G34: =103361+4856 -> 108217
A35: Non-Union
A36: Union | C36: 179270 | D36: 157594 | E36: 225162 | F36: 254310 | G36: =249940+11585+8808.8 -> 270333.8
A37: Total | B37: =SUM(B33:B36) -> 53000 | C37: 258175 | D37: 379162 | E37: 322600 | F37: 354661 | G37: 378550.8
A38: Accrued Pension and Post-Retirement Benefits
A39: Executive
A40: Management | C40: 6506 | D40: 3566 | E40: 1272 | F40: 5957 | G40: 5991
A41: Non-Union
A42: Union | C42: 9000 | D42: 12000 | E42: 9708 | F42: 10000 | G42: 10000
A43: Total | B43: =SUM(B39:B42) -> 0 | C43: 15506 | D43: 15566 | E43: 10980 | F43: 15957 | G43: 15991
A44: Total Benefits (Current + Accrued)
A45: Executive | B45: =B33+B39 -> 0 | C45: 0 | D45: 0 | E45: 0 | F45: 0 | G45: 0
A46: Management | B46: 53000 | C46: 85411 | D46: 225134 | E46: 98710 | F46: 106308 | G46: 114208
A47: Non-Union | B47: 0 | C47: 0 | D47: 0 | E47: 0 | F47: 0 | G47: 0
A48: Union | B48: 0 | C48: 188270 | D48: 169594 | E48: 234870 | F48: 264310 | G48: 280333.8
A49: Total | B49: 53000 | C49: 273681 | D49: 394728 | E49: 333580 | F49: 370618 | G49: 394541.8
A50: Total Compensation (Salary, Wages, & Benefits)
A51: Executive | B51: =B27+B45 -> 0 | C51: 0 | D51: 0 | E51: 0 | F51: 0 | G51: 0
A52: Management | B52: 322021 | C52: 400715 | D52: 557604 | E52: 422663 | F52: 439980 | G52: 457890
A53: Non-Union | B53: 0 | C53: 0 | D53: 0 | E53: 0 | F53: 0 | G53: 0
A54: Union | B54: 869607 | C54: 864161 | D54: 831226 | E54: 1014642 | F54: 1147537 | G54: 1202612.8
A55: Total | B55: 1191628 | C55: 1264876 | D55: 1388830 | E55: 1437305 | F55: 1587517 | G55: 1660502.8
A56: Compensation - Average Yearly Base Wages
A57: Executive
A58: Management | B58: =+B28/B16 -> 64052.61905 | C58: =+C28/C16 -> 75072.38095 | D58: 80113.25301 | E58: 77131.66667 | F58: 79445.71429 | G58: 81829.04762
A59: Non-Union
A60: Union | B60: =+B30/B18 -> 71987.33444 | C60: 58266.46552 | D60: 57533.21739 | E60: 60447.44186 | F60: 60495 | G60: 63169.79452
A61: Total
A62: Compensation - Average Yearly Overtime
A63: Executive
A64: Management
A65: Non-Union
A66: Union | C66: 5999 | D66: 4543 | E66: 4377 | F66: 4400 | G66: 4400
A67: Total
A68: Compensation - Average Yearly Incentive Pay
A69: Executive
A70: Management | D70: 3494 | E70: 4699 | F70: 4840 | G70: 4985
A71: Non-Union
A72: Union
A73: Total
A74: Compensation - Average Yearly Benefits
A75: Executive
A76: Management | C76: =+C46/C16 -> 20335.95238 | D76: =+D46/D16 -> 54249.15663 | E76: 23502.38095 | F76: 25311.42857 | G76: 27192.38095
A77: Non-Union
A78: Union | C78: =+C48/C18 -> 16230.17241 | D78: 14747.30435 | E78: 18206.97674 | F78: 18103.42466 | G78: 19200.94521
A79: Total
A81: Total Compensation | B81: =SUM(B51:B54) -> 1191628 | C81: 1264876 | D81: 1388830 | E81: 1437305 | F81: 1587517 | G81: 1660502.8
A82: Total Compensation Capitalized (CGAAP) | C82: 65105 | D82: 137205 | E82: 228068 | F82: =1587517-1325962 -> 261555
A83: Total Compensation Charged to OM&A (CGAAP) | B83: =B81-B82 -> 1191628 | C83: =C81-C82 -> 1199771 | D83: =D81-D82 -> 1251625 | E83: =E81-E82 -> 1209237 | F83: =F81-F82 -> 1325962
A85: Total Compensation Capitalized (MIFRS) | E85: =E82 -> 228068 | F85: =F82 -> 261555 | G85: =F85/F81*G81 -> 273579.9427
A86: Total Compensation Charged to OM&A (MIFRS) | E86: =E81-E85 -> 1209237 | F86: =F81-F85 -> 1325962 | G86: =G81-G85 -> 1386922.857
A89: 1 If an applicant wishes to use headcount, it must also file the same schedule on an FTE basis.
A91: Note:
A92: 1 Please report compensation on a CGAAP and MIFRS basis for your transition year.

Sheet App.2-L_OM&A_per_Cust_FTEE
G1: File Number: | H1: ='LDC Info'!$E$18 -> EB-2012-0153
G2: Exhibit:
G3: Tab:
G4: Schedule:
G5: Page:
G7: Date:
A9: Appendix 2-L
A10: Recoverable OM&A Cost per Customer and per FTEE
C12: ="Last Rebasing Year (" & 'LDC Info'!E30 & " Board-Approved)" -> Last Rebasing Year (2009 Board-Approved) | D12: ="Last Rebasing Year (" & 'LDC Info'!E30 & " Actuals)" -> Last Rebasing Year (2009 Actuals) | E12: ='LDC Info'!E26 -2 & " Actuals" -> 2010 Actuals | F12: ='LDC Info'!E26 -1 & " Actuals" -> 2011 Actuals | G12: ='LDC Info'!E26 & " Bridge Year" -> 2012 Bridge Year | H12: ='LDC Info'!E28 & " Test Year" -> 2013 Test Year
A13: Reporting Basis
A14: Number of Customers | C14: 6072 | D14: 6072 | E14: 6072 | F14: 6072 | G14: 6072 | H14: 6072
A15: Total Recoverable OM&A from Appendix 2-I | C15: =+'App.2-I_OM&A_Summary_Analys'!B36 -> 2034317 | D15: =+'App.2-I_OM&A_Summary_Analys'!C36 -> 2025472 | E15: =+'App.2-I_OM&A_Summary_Analys'!D36 -> 2055199 | F15: =+'App.2-I_OM&A_Summary_Analys'!E36 -> 2142821 | G15: =+'App.2-I_OM&A_Summary_Analys'!F36 -> 2293226 | H15: =+'App.2-I_OM&A_Summary_Analys'!G36 -> 2485105
A16: OM&A cost per customer | C16: =IF(C14=0,"",C15/C14) -> 335.032444 | D16: 333.5757576 | E16: 338.4715086 | F16: 352.9020092 | G16: 377.6722661 | H16: 409.272892
A17: Number of FTEEs | C17: =+'App.2-K_Employee Costs'!B19 -> 16.28 | D17: =+'App.2-K_Employee Costs'!C19 -> 15.8 | E17: =+'App.2-K_Employee Costs'!D19 -> 15.65 | F17: =+'App.2-K_Employee Costs'!E19 -> 17.1 | G17: =+'App.2-K_Employee Costs'!F19 -> 18.8 | H17: =+'App.2-K_Employee Costs'!G19 -> 18.8
A18: Customers/FTEEs | C18: =IF(C17=0,"",C14/C17) -> 372.972973 | D18: 384.3037975 | E18: 387.9872204 | F18: 355.0877193 | G18: 322.9787234 | H18: 322.9787234
A19: OM&A Cost per FTEE | C19: =IF(C17=0,"",C15/C17) -> 124958.0467 | D19: 128194.4304 | E19: 131322.6198 | F19: 125311.1696 | G19: 121980.1064 | H19: 132186.4362
A21: Notes:
A23: 1 | B23: If it has been more than three years since the applicant last filed a cost of service application, additional years of historical actuals should be incorporated into the table, as necessary, to go back to the last cost of service application. If the applicant last filed a cost of service application less than three years ago, a minimum of three years of actual information is required.
A27: 2 | B27: The method of calculating the number of customers must be identified.
A28: 3 | B28: The method of calculating the number of FTEEs must be identified. See also Appendix 2-K
A29: 4 | B29: The number of customers and the number of FTEEs should correspond to mid-year or average of January 1 and December 31 figures.

Sheet App.2-M_Regulatory_Costs
J1: File Number: | K1: ='LDC Info'!$E$18 -> EB-2012-0153
J2: Exhibit:
J3: Tab:
J4: Schedule:
J5: Page:
J7: Date:
A9: Appendix 2-M
A10: Regulatory Cost Schedule
E11: On-Going
E12: On-Time
A13: Regulatory Cost Category | C13: USoA Account | D13: USoA Account Balance | E13: Ongoing or One-time Cost? 2 | F13: ="Last Rebasing Year (" & 'LDC Info'!E30 & " Board Approved)" -> Last Rebasing Year (2009 Board Approved) | G13: Most Current Actuals Year 2011 | H13: ='LDC Info'!E26 & " Bridge Year" -> 2012 Bridge Year | I13: Annual % Change | J13: ='LDC Info'!E28 & " Test Year" -> 2013 Test Year | K13: Annual % Change
A14: (A) | C14: (B) | D14: (C ) | E14: (D) | F14: (E) | G14: (F) | H14: (G) | I14: (H) = [(G)-(F)]/(F) | J14: (I) | K14: (J) = [(I)-(G)]/(G)
A15: 1 | B15: OEB Annual Assessment | C15: 5655 | E15: On-Going | F15: 16000 | G15: 16959 | H15: 17000 | I15: =IF(G15=0,"",(H15-G15)/G15) -> 0.002417595377 | J15: 17000 | K15: =IF(H15=0,"",(J15-H15)/H15) -> 0
A16: 2 | B16: OEB Section 30 Costs (Applicant-originated) | I16: =IF(G16=0,"",(H16-G16)/G16) ->  | K16: =IF(H16=0,"",(J16-H16)/H16) -> 
A17: 3 | B17: OEB Section 30 Costs (OEB-initiated) | C17: 5655 | E17: On-Going | F17: 1075 | G17: 850 | H17: 900 | I17: 0.05882352941 | J17: 900 | K17: 0
A18: 4 | B18: Expert Witness costs for regulatory matters
A19: 5 | B19: Legal costs for regulatory matters
A20: 6 | B20: Consultants' costs for regulatory matters | C20: 5630 | E20: On-Going | F20: 8925 | G20: 15100 | H20: 7500 | I20: -0.5033112583 | J20: 7500 | K20: 0
A21: 7 | B21: Operating expenses associated with staff resources allocated to regulatory matters
A22: 8 | B22: Operating expenses associated with other resources allocated to regulatory matters 1
A23: 9 | B23: Other regulatory agency fees or assessments | C23: 5655 | E23: On-Going | F23: 800 | G23: 800 | H23: 800 | I23: 0 | J23: 800 | K23: 0
A24: 10 | B24: Any other costs for regulatory matters (please define) Publication Costs | C24: 5655 | G24: 2414 | H24: 2500 | I24: 0.03562551781 | J24: 2500 | K24: 0
A25: 10 | B25: Any other costs for regulatory matters (please define) Consultants for Cost of Service Application | C25: 5630-0003 | E25: On-Time | F25: 20000 | H25: 25000 | J25: 25000 | K25: 0
A26: 11 | B26: Intervenor costs | C26: 5655 | E26: On-Time | F26: 3750 | J26: 3750 | L26: Adjusted for 1/4 I think?
A27: 12 | B27: Sub-total - Ongoing Costs 3 | D27: =SUMIF($E15:$E26,$E11,D15:D26) -> 0 | F27: =SUMIF($E15:$E26,$E11,F15:F26) -> 26800 | G27: =SUMIF($E15:$E26,$E11,G15:G26) -> 33709 | H27: =SUMIF($E15:$E26,$E11,H15:H26) -> 26200 | I27: -0.2227595004 | J27: =SUMIF($E15:$E26,$E11,J15:J26) -> 26200 | K27: 0
A28: 13 | B28: Sub-total - One-time Costs 4 | D28: =SUMIF($E15:$E26,$E12,D15:D26) -> 0 | F28: =SUMIF($E15:$E26,$E12,F15:F26) -> 23750 | G28: =SUMIF($E15:$E26,$E12,G15:G26) -> 0 | H28: =SUMIF($E15:$E26,$E12,H15:H26) -> 25000 | J28: =SUMIF($E15:$E26,$E12,J15:J26) -> 28750 | K28: 0.15
A29: 14 | B29: Total | D29: =D27+D28 -> 0 | F29: =F27+F28 -> 50550 | G29: =G27+G28 -> 33709 | H29: =H27+H28 -> 51200 | I29: 0.5188821976 | J29: =J27+J28 -> 54950 | K29: 0.0732421875
A32: 1 | B32: Please identify the resources involved.
A33: 2 | B33: Where a category's costs include both one-time and ongoing costs, the applicant should prove a separate breakdown between one-time and ongoing costs.
A34: 3 | B34: Sum of all ongoing costs identified in rows 1 to 11 inclusive.
A35: 4 | B35: Sum of all one-time costs identified in rows 1 to 11 inclusive.
A38: Please fill out the following table for all one-time costs related to this cost of service application
C40: Historical Year(s) | D40: =H13 -> 2012 Bridge Year | E40: =J13 -> 2013 Test Year
A41: 4 | B41: Expert Witness costs for regulatory matters | D41: =H18 -> 0 | E41: =J18 -> 0
A42: 6 | B42: Consultants' costs for regulatory matters | D42: =H20 -> 7500 | E42: =J20 -> 7500
A43: 7 | B43: Operating expenses associated with staff resources allocated to regulatory matters | D43: =H21 -> 0 | E43: =J21 -> 0
A44: 8 | B44: Operating expenses associated with other resources allocated to regulatory matters 1 | D44: =H22 -> 0 | E44: =J22 -> 0
A45: 11 | B45: Intervenor costs | D45: =H26 -> 0 | E45: =J26 -> 3750

Sheet App.2-N_Corp_Cost_Allocation
F1: File Number: | G1: ='LDC Info'!$E$18 -> EB-2012-0153
F2: Exhibit:
F3: Tab:
F4: Schedule:
F5: Page:
A6: Martin - See Next Tab - Is this OK compared to individual worksheet for each year
F7: Date:
A9: Appendix 2-N
A10: Shared Services and Corporate Cost Allocation
B12: Year:
A14: Shared Services
A16: Name of Company | C16: Service Offered | D16: Pricing Methdology | E16: Price for the Service | F16: Cost for the Service
A17: From | B17: To
E18: $ | F18: $
A28: Corporate Cost Allocation
A30: Name of Company | C30: Service Offered | D30: Pricing Methdology | E30: % of Corporate Costs Allocated | F30: Amount Allocated
A31: From | B31: To
E32: % | F32: $
A33: eg: parent company | B33: eg: regulated entity
A42: Note:
A43: 1 | B43: This appendix must be completed in relation to each service provided or received for the Historical (actuals), Bridge and Test years.

Sheet App 2-N Original
L1: File Number:
L2: Exhibit:
L3: Tab:
L4: Schedule:
L5: Page:
L7: Date:
B9: Appendix 2-L
D12: Year: | E12: 2008 to 2013
B14: Name of Company | D14: Service Offered | E14: Pricing Methdology | I14: Actual 2009 | L14: Bridge 2012 | M14: Test 2013
B15: From | C15: To | F15: Allocation | G15: G/L Account | H15: Actual 2008 | J15: Actual 2010 | K15: Actual 2011
B17: Part 1 - Costs subject to Management Fees as per Services Agreement ( CTS&NOW)
B18: CTS | C18: NOW Inc. | D18: Wages and Benefits | E18: Actual Costs | F18: Based on Timesheet and position occupied. | G18: Various - as per USoA | H18: 810189 | I18: 870460 | J18: 845779 | K18: 1012973 | L18: 1145868.344 | M18: 1130494.464 | N18: check if changes to Labour schedules
B19: NOW Inc. | C19: CTS | D19: CREDIT - FOR SERVICES PROVIDED BY NOW MANAGEMENT EMPLOYEES TO CTS | G19: 5605 & 5615 | H19: -78235 | I19: -78949 | J19: -82451 | K19: -93496 | L19: -96300.88 | M19: -99189.9064 | N19: 0.03
B20: CTS | C20: Office Rental | D20: Office Rental | E20: Share of Actual Costs - | F20: based on Square Footage occupied/ Usage of facilties by NOW Activity | G20: various- allocate to Billing & Collecting and Admin accounts | H20: 35593 | I20: 32615 | J20: 33996 | K20: 34400 | L20: 35088 | M20: 36140.64 | N20: 0.03
B21: CTS | C21: Service Centre Rental | D21: Service Centre Rental | E21: Share of Actual Costs | F21: based on Square Footage occupied/ Usage of facilties by NOW Activity | G21: various OM&A | H21: 22805 | I21: 29817 | J21: 23688 | K21: 22135 | L21: 22577.7 | M21: 23255.031 | N21: 0.03
C22: TOTAL NET COSTS FOR CALCULATE MANAGEMENT FEES | D22: Labour,Billing & Administration services | E22: Per Services Agreement = Cost + 12% | H22: 790352 | I22: 853943 | J22: 821012 | K22: 976012 | L22: 1107233.164 | M22: 1090700.229
B23: MANAGEMENT FEES ( 12% of net costs) | G23: 5630 | H23: 94842.24 | I23: 102473.16 | J23: 98521.44 | K23: 117121.44 | L23: 132867.9797 | M23: 130884.0275
B24: Change | I24: 7630.92 | J24: -3951.72 | K24: 18600 | L24: 15746.53968 | M24: -1983.95221
B26: Part 2 - Other Shared Services/Cost Allocation not subject to Management Fees
B28: NOW Inc | C28: NOE Inc | D28: Trucks/ Equipment Rental & Inventory Sales | F28: Based on time and materials used | H28: 34751 | I28: 26251 | J28: 39561 | K28: 21807 | L28: 25000 | M28: 25000
B29: NOW Inc | C29: NOE Inc. | D29: Financial CFO, Billing and Stockeeper | E29: Actual Cost | F29: Estimate of Time Spent on NOE Functions | H29: 2784 | I29: 4370 | J29: 4032 | K29: 4107 | L29: 4100 | M29: 4100
B30: NOW Inc | C30: CTS | D30: Pole Rental | E30: As per OEB Tariff of Rates and Charges | G30: 4210 | H30: 16517 | I30: 16517 | J30: 16517 | K30: 16517 | L30: 16517 | M30: 16517
B33: Note:
B34: This appendix must be completed in relation to each service provided or received for the Historical (actuals), Bridge and Test years.

Sheet App.2-OA Capital Structure 2009
K1: File Number: | O1: ='LDC Info'!$E$18 -> EB-2012-0153
K2: Exhibit:
K3: Tab:
K4: Schedule:
K5: Page:
K7: Date:
C10: Appendix 2-OA
C11: Capital Structure and Cost of Capital
A13: This table must be completed for the required years of all historical years, the bridge year and the test year.
H14: Year | I14: 2009
A15: Line No.
C16: Particulars | E16: Capitalization Ratio | K16: Cost Rate | O16: Return
C19: Application
E20: (%) | I20: ($) | K20: (%) | O20: ($)
C21: Debt
A22: 1 | C22: Long-term Debt | E22: 0.5267 | I22: =$I$31*E22 -> 2847575.293 | K22: 0.0762 | O22: =K22*I22 -> 216985.2373
A23: 2 | C23: Short-term Debt | E23: 0.04 | G23: (1) | I23: =$I$31*E23 -> 216257.854 | K23: 0.0133 | O23: =K23*I23 -> 2876.229458
A24: 3 | C24: Total Debt | E24: =SUM(E22:E23) -> 0.5667 | I24: =SUM(I22:I23) -> 3063833.147 | K24: =IF(E24=0,0,SUMPRODUCT(E22:E23,K22:K23)/E24) -> 0.07176026116 | O24: =SUM(O22:O23) -> 219861.4668
C26: Equity
A27: 4 | C27: Common Equity | E27: 0.4333 | I27: =$I$31*E27 -> 2342613.203 | K27: 0.0801 | O27: =K27*I27 -> 187643.3176
A28: 5 | C28: Preferred Shares | I28: =$I$31*E28 -> 0 | O28: =K28*I28 -> 0
A29: 6 | C29: Total Equity | E29: =SUM(E27:E28) -> 0.4333 | I29: =SUM(I27:I28) -> 2342613.203 | K29: =IF(E29=0,0,SUMPRODUCT(E27:E28,K27:K28)/E29) -> 0.0801 | O29: =SUM(O27:O28) -> 187643.3176
A31: 7 | C31: Total | E31: 1 | I31: 5406446.35 | K31: =(K24*E24)+(K29*E29) -> 0.07537387 | O31: =O24+O29 -> 407504.7843
A34: Notes
A35: (1) | C35: 4.0% unless an applicant has proposed or been approved for a different amount.

Sheet App.2-OA Capital Structure 2010
K1: File Number: | O1: ='LDC Info'!$E$18 -> EB-2012-0153
K2: Exhibit:
K3: Tab:
K4: Schedule:
K5: Page:
K7: Date:
C10: Appendix 2-OA
C11: Capital Structure and Cost of Capital
A13: This table must be completed for the required years of all historical years, the bridge year and the test year.
H14: Year | I14: 2010
A15: Line No.
C16: Particulars | E16: Capitalization Ratio | K16: Cost Rate | O16: Return
C19: Application
E20: (%) | I20: ($) | K20: (%) | O20: ($)
C21: Debt
A22: 1 | C22: Long-term Debt | E22: 0.56 | I22: =$I$31*E22 -> 2993296.964 | K22: 0.0762 | O22: =K22*I22 -> 228089.2287
A23: 2 | C23: Short-term Debt | E23: 0.04 | G23: (1) | I23: =$I$31*E23 -> 213806.926 | K23: 0.0133 | O23: =K23*I23 -> 2843.632116
A24: 3 | C24: Total Debt | E24: =SUM(E22:E23) -> 0.6 | I24: =SUM(I22:I23) -> 3207103.89 | K24: =IF(E24=0,0,SUMPRODUCT(E22:E23,K22:K23)/E24) -> 0.07200666667 | O24: =SUM(O22:O23) -> 230932.8608
C26: Equity
A27: 4 | C27: Common Equity | E27: 0.4 | I27: =$I$31*E27 -> 2138069.26 | K27: 0.0801 | O27: =K27*I27 -> 171259.3477
A28: 5 | C28: Preferred Shares | I28: =$I$31*E28 -> 0 | O28: =K28*I28 -> 0
